Workbook

Sheet Disclaimer
B3: Model Disclaimer

Sheet Model Structure
I2: Unless otherwise stated all real dollars are in real $ December 2019
I4: Shading convention
I5: data | K5: Linked cell to external input prior to deleting links
A7: Worksheets | I7: data | K7: Calculation
B8: All worksheets are password protected to prevent inadvertent altering of inputs.
B9: Worksheet | C9: Description | I9: data | K9: Hard coded
B10: PTRM tariff tables | C10: Tariffs forecast in real and nominal dollars
B11: Main | C11: Summary of outputs | K11: Data not used
B12: Input | C12: Contains inputs inflation, asset lives, capital expenditures, operating expenditures, UAFG expense, approved depreciation, stand alone and avoidable costs
B13: WACC | C13: Contains the relevant parameters related to computing the WACC | K13: NPV checks in CoS tab
B14: Load_Tariffs | C14: Contains inputs of gas volumes, customer connections and other relevant information required to compute the reference tariffs
B15: Price path AA5 | C15: Calculated forecast tariffs based on a summary of cost of service and volume contained in revenue tab
B16: CoS | C16: Computations of total revenue building block (cost of service), inflationary gain and Credit Foncier Check | I16: Tariff model method: Principles
B17: Revenue | C17: Contains calculation of revenue and rule 94 tests | I17: End of year cashflow assumption
B18: Working Capital | C18: Contains calculation of working capital
B19: Tax_CoRE | C19: Contains calculation of tax, imputation credit and cost of raising equity | I19: Depreciation
B20: Asset | C20: Contains regulatory asset base. Includes initial capital base, capital expenditure account, Vines and Westnet. Computations in Real 31 December-2019 $m | I20: For AA1 period depreciation began in the year of acquisition but the ERA has modified the asset life in subsequent AA periods to assume asset depreciation began in the year after acquisition effectively adding one year to asset life for capex 2000 to 2004
B21: Tax_Asset | C21: Contains tax asset base. Includes Initial Capital Base per E&Y, capital expenditure account, Vines and Westnet. Computations in nominal $m | I21: For all subsequent AA periods depreciation began in the year after acquisition
I22: Regulatory depreciation is rolled forward on forecast basis
I23: ICB tax assets as at 30 June 2000 ( not 1 Jan 2000)
I24: Taxation
I25: Depreciation and Capex is rolled forward on an actual basis
I27: Other
I28: AA4 Equity raising costs per last ERA tariff variation model ( 1 January 2018)
I29: Opening working capital balance per last ERA tariff variation model ( 1 January 2018)
I31: Actual data to December 2017; Forecast data thereafter.

Sheet Output >>

Sheet PTRM_tariff tables
A5: Charging parameter ($ real at 31 December 2019) | B5: Units | C5: 2020 | D5: 2021 | E5: 2022 | F5: 2023 | G5: 2024
A6: Reference tariff A1
A7: Standing charge | B7: $/year | C7: =Price_path_AA5!F117 -> 39712.9 | D7: =Price_path_AA5!G117 -> 40626.3 | E7: =Price_path_AA5!H117 -> 41560.7 | F7: =Price_path_AA5!I117 -> 42516.6 | G7: =Price_path_AA5!J117 -> 43494.48
A8: Demand charge
A9: First 10 km | B9: $/GJ km | C9: =Price_path_AA5!F119 -> 167.42 | D9: =Price_path_AA5!G119 -> 171.27 | E9: =Price_path_AA5!H119 -> 175.21 | F9: =Price_path_AA5!I119 -> 179.24 | G9: =Price_path_AA5!J119 -> 183.36
A10: Distance > 10 km | B10: $/GJ km | C10: =Price_path_AA5!F120 -> 88.13 | D10: =Price_path_AA5!G120 -> 90.16 | E10: =Price_path_AA5!H120 -> 92.23 | F10: =Price_path_AA5!I120 -> 94.35 | G10: =Price_path_AA5!J120 -> 96.52
A11: Usage charge
A12: First 10 km | B12: $/GJ km | C12: =Price_path_AA5!F122 -> 0.03542 | D12: =Price_path_AA5!G122 -> 0.03623 | E12: =Price_path_AA5!H122 -> 0.03706 | F12: =Price_path_AA5!I122 -> 0.03791 | G12: =Price_path_AA5!J122 -> 0.03878
A13: Distance > 10 km | B13: $/GJ km | C13: =Price_path_AA5!F123 -> 0.01784 | D13: =Price_path_AA5!G123 -> 0.01825 | E13: =Price_path_AA5!H123 -> 0.01867 | F13: =Price_path_AA5!I123 -> 0.0191 | G13: =Price_path_AA5!J123 -> 0.01954
A14: Reference tariff A2
A15: Standing charge | B15: $/Year | C15: =Price_path_AA5!F125 -> 21977.9 | D15: =Price_path_AA5!G125 -> 22483.39 | E15: =Price_path_AA5!H125 -> 23000.51 | F15: =Price_path_AA5!I125 -> 23529.52 | G15: =Price_path_AA5!J125 -> 24070.7
A16: First 10 TJ | B16: $/GJ | C16: =Price_path_AA5!F126 -> 2.13 | D16: =Price_path_AA5!G126 -> 2.18 | E16: =Price_path_AA5!H126 -> 2.23 | F16: =Price_path_AA5!I126 -> 2.28 | G16: =Price_path_AA5!J126 -> 2.33
A17: Volume > 10 TJ | B17: $/GJ | C17: =Price_path_AA5!F127 -> 1.14 | D17: =Price_path_AA5!G127 -> 1.17 | E17: =Price_path_AA5!H127 -> 1.2 | F17: =Price_path_AA5!I127 -> 1.23 | G17: =Price_path_AA5!J127 -> 1.26
A18: Reference tariff B1
A19: Standing charge | B19: $/Year | C19: =Price_path_AA5!F129 -> 1114.12 | D19: =Price_path_AA5!G129 -> 1139.74 | E19: =Price_path_AA5!H129 -> 1165.95 | F19: =Price_path_AA5!I129 -> 1192.77 | G19: =Price_path_AA5!J129 -> 1220.2
A20: First 5 TJ | B20: $/GJ | C20: =Price_path_AA5!F130 -> 4.22 | D20: =Price_path_AA5!G130 -> 4.32 | E20: =Price_path_AA5!H130 -> 4.42 | F20: =Price_path_AA5!I130 -> 4.52 | G20: =Price_path_AA5!J130 -> 4.62
A21: Volume > 5 TJ | B21: $/GJ | C21: =Price_path_AA5!F131 -> 3.63 | D21: =Price_path_AA5!G131 -> 3.71 | E21: =Price_path_AA5!H131 -> 3.8 | F21: =Price_path_AA5!I131 -> 3.89 | G21: =Price_path_AA5!J131 -> 3.98
A22: Reference tariff B2
A23: Standing charge | B23: $/Year | C23: =Price_path_AA5!F133 -> 277.7 | D23: =Price_path_AA5!G133 -> 284.09 | E23: =Price_path_AA5!H133 -> 290.62 | F23: =Price_path_AA5!I133 -> 297.3 | G23: =Price_path_AA5!J133 -> 304.14
A24: First 100 GJ | B24: $/GJ | C24: =Price_path_AA5!F134 -> 7.08 | D24: =Price_path_AA5!G134 -> 7.24 | E24: =Price_path_AA5!H134 -> 7.41 | F24: =Price_path_AA5!I134 -> 7.58 | G24: =Price_path_AA5!J134 -> 7.75
A25: Volume > 100 GJ | B25: $/GJ | C25: =Price_path_AA5!F135 -> 4.21 | D25: =Price_path_AA5!G135 -> 4.31 | E25: =Price_path_AA5!H135 -> 4.41 | F25: =Price_path_AA5!I135 -> 4.51 | G25: =Price_path_AA5!J135 -> 4.61
A26: Reference tariff B3
A27: Standing charge | B27: $/Year | C27: =Price_path_AA5!F137 -> 116.97 | D27: =Price_path_AA5!G137 -> 116.97 | E27: =Price_path_AA5!H137 -> 116.97 | F27: =Price_path_AA5!I137 -> 116.97 | G27: =Price_path_AA5!J137 -> 116.97
A28: First 1.825 GJ | B28: $/GJ | C28: =Price_path_AA5!F138 -> 0 | D28: =Price_path_AA5!G138 -> 0 | E28: =Price_path_AA5!H138 -> 0 | F28: =Price_path_AA5!I138 -> 0 | G28: =Price_path_AA5!J138 -> 0
A29: Volume > 1.825 <9.855 GJ | B29: $/GJ | C29: =Price_path_AA5!F139 -> 8.38 | D29: =Price_path_AA5!G139 -> 8.57 | E29: =Price_path_AA5!H139 -> 8.77 | F29: =Price_path_AA5!I139 -> 8.97 | G29: =Price_path_AA5!J139 -> 9.18
A30: Volume > 9.855 GJ | B30: $/GJ | C30: =Price_path_AA5!F140 -> 6.22 | D30: =Price_path_AA5!G140 -> 6.36 | E30: =Price_path_AA5!H140 -> 6.51 | F30: =Price_path_AA5!I140 -> 6.66 | G30: =Price_path_AA5!J140 -> 6.81
A32: Inflator | C32: =Input!AI35 -> 1.0184 | D32: =Input!AJ35 -> 1.03713856 | E32: =Input!AK35 -> 1.05622191 | F32: =Input!AL35 -> 1.075656393 | G32: =Input!AM35 -> 1.09544847
A34: Charging parameter ($ Nominal as at year end) | B34: Units | C34: 2020 | D34: 2021 | E34: 2022 | F34: 2023 | G34: 2024
A35: Reference tariff A1
A36: Standing charge | B36: $/year | C36: =C7*C$32 -> 40443.61736 | D36: 42135.10228 | E36: 43897.32191 | F36: 45733.25258 | G36: 47645.96158
A37: Demand charge
A38: First 10 km | B38: $/GJ km | C38: =C9*C$32 -> 170.500528 | D38: 177.6307212 | E38: 185.0606408 | F38: 192.8006518 | G38: 200.8614315
A39: Distance > 10 km | B39: $/GJ km | C39: =C10*C$32 -> 89.751592 | D39: 93.50841257 | E39: 97.41534671 | F39: 101.4881806 | G39: 105.7326863
A40: Usage charge
A41: First 10 km | B41: $/GJ km | C41: =C12*C$32 -> 0.036071728 | D41: 0.03757553003 | E41: 0.03914358397 | F41: 0.04077813384 | G41: 0.04248149168
A42: Distance > 10 km | B42: $/GJ km | C42: =C13*C$32 -> 0.018168256 | D42: 0.01892777872 | E42: 0.01971966305 | F42: 0.0205450371 | G42: 0.02140506311
A43: Reference tariff A2
A44: Standing charge | B44: $/Year | C44: =C15*C$32 -> 22382.29336 | D44: 23318.39073 | E44: 24293.64259 | F44: 25309.6786 | G44: 26368.21149
A45: First 10 TJ | B45: $/GJ | C45: =C16*C$32 -> 2.169192 | D45: 2.260962061 | E45: 2.355374858 | F45: 2.452496575 | G45: 2.552394936
A46: Volume > 10 TJ | B46: $/GJ | C46: =C17*C$32 -> 1.160976 | D46: 1.213452115 | E46: 1.267466291 | F46: 1.323057363 | G46: 1.380265073
A47: Reference tariff B1
A48: Standing charge | B48: $/Year | C48: =C19*C$32 -> 1134.619808 | D48: 1182.068302 | E48: 1231.501935 | F48: 1283.010675 | G48: 1336.666223
A49: First 5 TJ | B49: $/GJ | C49: =C20*C$32 -> 4.297648 | D49: 4.480438579 | E49: 4.66850084 | F49: 4.861966895 | G49: 5.060971933
A50: Volume > 5 TJ | B50: $/GJ | C50: =C21*C$32 -> 3.696792 | D50: 3.847784058 | E50: 4.013643256 | F50: 4.184303367 | G50: 4.359884912
A51: Reference tariff B2
A52: Standing charge | B52: $/Year | C52: =C23*C$32 -> 282.80968 | D52: 294.6406935 | E52: 306.9592113 | F52: 319.7926455 | G52: 333.1696977
A53: First 100 GJ | B53: $/GJ | C53: =C24*C$32 -> 7.210272 | D53: 7.508883174 | E53: 7.826604349 | F53: 8.153475456 | G53: 8.489725645
A54: Volume > 100 GJ | B54: $/GJ | C54: =C25*C$32 -> 4.287464 | D54: 4.470067194 | E54: 4.657938621 | F54: 4.851210331 | G54: 5.050017448
A55: Reference tariff B3
A56: Standing charge | B56: $/Year | C56: =C27*C$32 -> 119.122248 | D56: 121.3140974 | E56: 123.5462768 | F56: 125.8195282 | G56: 128.1346076
A57: First 1.825 GJ | B57: $/GJ | C57: =C28*C$32 -> 0 | D57: 0 | E57: 0 | F57: 0 | G57: 0
A58: Volume > 1.825 <9.855 GJ | B58: $/GJ | C58: =C29*C$32 -> 8.534192 | D58: 8.888277459 | E58: 9.263066146 | F58: 9.648637842 | G58: 10.05621696
A59: Volume > 9.855 GJ | B59: $/GJ | C59: =C30*C$32 -> 6.334448 | D59: 6.596201242 | E59: 6.876004631 | F59: 7.163871575 | G59: 7.460004082

Sheet Main
A2: Main Summary
A3: Ref | C3: =COLUMN() -> 3 | D3: =COLUMN() -> 4 | E3: =COLUMN() -> 5 | F3: =COLUMN() -> 6 | G3: =COLUMN() -> 7 | H3: =COLUMN() -> 8
A4: WACC
A5: =ROW() -> 5 | E5: ="Real at "&Input!$G$34 -> Real at 31/12/2019 | F5: Nominal
A6: =ROW() -> 6 | D6: Post-tax WACC | E6: =WACC!$AI$36 -> 0.04113364101 | F6: =WACC!$AI$35 -> 0.0602905
A7: =ROW() -> 7
A8: Closing Regulated Asset Base
A9: =ROW() -> 9 | E9: 30/6/2014 | F9: December 2019
A10: =ROW() -> 10 | D10: Closing Asset Value [Real $m 31/12/2019] | E10: =Asset!$Z$25 -> 1103.790337 | F10: =Asset!$AH$25 -> 1347.537977
A11: =ROW() -> 11
A12: Revenue Building Block
A13: =ROW() -> 13 | E13: ="Real at "&Input!$G$34&" [m$]" -> Real at 31/12/2019 [m$] | F13: Nominal [m$] | G13: Real % | H13: Nominal %
A14: =ROW() -> 14 | C14: PV of Cost of Service
A15: =ROW() -> 15 | D15: Operating Expenditure | E15: =CoS!$F65 -> 316.488162 | F15: =CoS!$F38 -> 316.488162 | G15: =E15/E$22 -> 0.3689896305 | H15: 0.3689896305
A16: =ROW() -> 16 | D16: Return on Asset | E16: =CoS!$F68 -> 262.5012268 | F16: =CoS!$F42 -> 377.8023708 | G16: 0.306046931 | H16: 0.4404751076
A17: =ROW() -> 17 | D17: Depreciation | E17: =CoS!$F66 -> 259.9283211 | F17: =CoS!$F39 -> 259.9283211 | G17: 0.3030472121 | H17: 0.3030472121
A18: =ROW() -> 18 | D18: Inflationary Gain | F18: =CoS!$F40 -> -115.301144 | H18: =F18/F$22 -> -0.1344281766
A19: =ROW() -> 19 | D19: Tax | E19: =CoS!$F70 -> 20.72057769 | F19: =CoS!$F44 -> 20.72057769 | G19: =E19/E$22 -> 0.02415786504 | H19: =F19/F$22 -> 0.02415786504
A20: =ROW() -> 20 | D20: Imputation Credits | E20: =CoS!$F71 -> -7.044996414 | F20: =CoS!$F45 -> -7.044996414 | G20: =E20/E$22 -> -0.008213674115 | H20: =F20/F$22 -> -0.008213674115
A21: =ROW() -> 21 | D21: Return on Working Capital | E21: =CoS!$F69 -> 5.122307889 | F21: =CoS!$F43 -> 5.122307889 | G21: =E21/E$22 -> 0.005972035364 | H21: =F21/F$22 -> 0.005972035364
A22: =ROW() -> 22 | D22: Cost of Service (Total Revenue Required) | E22: =SUM(E15:E21) -> 857.715599 | F22: =SUM(F15:F21) -> 857.715599 | G22: =E22/E$22 -> 1 | H22: =F22/F$22 -> 1
A23: =ROW() -> 23
A24: =ROW() -> 24
A25: =ROW() -> 25
A26: PV of Forecast Revenue
A27: =ROW() -> 27 | E27: ="Real at "&Input!$G$34&" [m$]" -> Real at 31/12/2019 [m$] | F27: Nominal [m$] | G27: % of Total Forecast Revenue
A28: =ROW() -> 28 | D28: A1 | E28: =Revenue!$F$140 -> 34.64283288 | F28: =Revenue!$F$231 -> 34.64283288 | G28: =E28/$E$36 -> 0.04038965913
A29: =ROW() -> 29 | D29: A2 | E29: =Revenue!$F$141 -> 21.39636736 | F29: =Revenue!$F$232 -> 21.39636736 | G29: 0.02494576547
A30: =ROW() -> 30 | D30: B1 | E30: =Revenue!$F$142 -> 51.71421449 | F30: =Revenue!$F$233 -> 51.71421449 | G30: 0.06029297612
A31: =ROW() -> 31 | D31: B2 | E31: =Revenue!$F$143 -> 52.70746156 | F31: =Revenue!$F$234 -> 52.70746156 | G31: 0.06145099085
A32: =ROW() -> 32 | D32: B3 | E32: =Revenue!$F$144 -> 683.6072247 | F32: =Revenue!$F$235 -> 683.6072247 | G32: 0.7970093809
A33: =ROW() -> 33 | D33: Total Tariff Revenue | E33: =SUM(E28:E32) -> 844.068101 | F33: =SUM(F28:F32) -> 844.068101 | G33: 0.9840887724
A34: =ROW() -> 34 | D34: Revenue from Prudent Discounts | E34: =Revenue!F$146 -> 0.6725158557 | F34: =Revenue!F$237 -> 0.6725158557 | G34: 0.0007840780881
A35: =ROW() -> 35 | D35: Revenue from Ancillary Services | E35: =Revenue!$F$147 -> 12.97478917 | F35: =Revenue!$F$238 -> 12.97478917 | G35: 0.01512714949
A36: =ROW() -> 36 | D36: Total Forecast Revenue | E36: =SUM(E33:E35) -> 857.715406 | F36: =SUM(F33:F35) -> 857.715406 | G36: 1
A37: =ROW() -> 37
A38: =ROW() -> 38 | D38: Check: PV CoS = PV Total Forecast Revenue | E38: =IF(ROUND(E22-E36,3)=0,"OK","Wrong") -> OK | F38: =IF(ROUND(F22-F36,3)=0,"OK","Wrong") -> OK

Sheet Input >>

Sheet Input
A2: Inputs
C3: =COLUMN() -> 3 | D3: =COLUMN() -> 4 | E3: =COLUMN() -> 5 | F3: =COLUMN() -> 6 | G3: =COLUMN() -> 7 | H3: =COLUMN() -> 8 | I3: =COLUMN() -> 9 | J3: =COLUMN() -> 10 | K3: =COLUMN() -> 11 | L3: =COLUMN() -> 12 | M3: =COLUMN() -> 13 | N3: =COLUMN() -> 14 | O3: =COLUMN() -> 15 | P3: =COLUMN() -> 16 | Q3: =COLUMN() -> 17 | R3: =COLUMN() -> 18 | S3: =COLUMN() -> 19 | T3: =COLUMN() -> 20 | U3: =COLUMN() -> 21 | V3: =COLUMN() -> 22 | W3: =COLUMN() -> 23 | X3: =COLUMN() -> 24 | Y3: =COLUMN() -> 25 | Z3: =COLUMN() -> 26 | AA3: =COLUMN() -> 27 | AD3: =COLUMN() -> 30 | AE3: =COLUMN() -> 31 | AF3: =COLUMN() -> 32 | AG3: =COLUMN() -> 33 | AH3: =COLUMN() -> 34 | AI3: =COLUMN() -> 35 | AJ3: =COLUMN() -> 36 | AK3: =COLUMN() -> 37 | AL3: =COLUMN() -> 38 | AM3: =COLUMN() -> 39
A4: =ROW() -> 4 | J4: Year ending 31 December | O4: Year ending 31 December | T4: Year Ending 30 June | AA4: Year Ending 31 December
A5: Regulatory Period | J5: 1 | K5: 1 | L5: 1 | M5: 1 | N5: 1 | O5: 2 | P5: 2 | Q5: 2 | R5: 2 | S5: 2 | T5: 3 | U5: 3 | V5: 3 | W5: 3 | X5: 3 | Y5: 3 | Z5: 3 | AA5: 4 | AB5: 4 | AC5: 4 | AD5: 4 | AE5: 4 | AF5: 4 | AG5: 4 | AH5: 4 | AI5: 5 | AJ5: 5 | AK5: 5 | AL5: 5 | AM5: 5
A6: Year ending | I6: 1999 | J6: 2000 | K6: 2001 | L6: 2002 | M6: 2003 | N6: 2004 | O6: 2005 | P6: 2006 | Q6: 2007 | R6: 2008 | S6: =1+R6 -> 2009 | T6: =1+S6 -> 2010 | U6: 2010 | V6: 2011 | W6: =T6+1 -> 2011 | X6: =W6+1 -> 2012 | Y6: =X6+1 -> 2013 | Z6: =Y6+1 -> 2014 | AA6: 2014 | AB6: 2015 | AC6: 2015 | AD6: =AA6+1 -> 2015 | AE6: =AD6+1 -> 2016 | AF6: 2017 | AG6: 2018 | AH6: 2019 | AI6: 2020 | AJ6: 2021 | AK6: 2022 | AL6: 2023 | AM6: 2024
A7: Months | I7: 1 to 12 | J7: 1 to 12 | K7: 1 to 12 | L7: 1 to 12 | M7: 1 to 12 | N7: 1 to 12 | O7: 1 to 12 | P7: 1 to 12 | Q7: 1 to 12 | R7: 1 to 12 | S7: 1 to 12 | T7: 1 to 6 | U7: 7 to 12 | V7: 1 to 6 | W7: 7 to 6 | X7: 7 to 6 | Y7: 7 to 6 | Z7: 7 to 6 | AA7: 7 to 12 | AB7: 1 to 9 | AC7: 10 to 12 | AD7: 1 to 12 | AE7: 1 to 12 | AF7: 1 to 12 | AG7: 1 to 12 | AH7: 1 to 12 | AI7: 1 to 12 | AJ7: 1 to 12 | AK7: 1 to 12 | AL7: 1 to 12 | AM7: 1 to 12
A8: Days | I8: 365 | J8: 366 | K8: 365 | L8: 365 | M8: 365 | N8: 366 | O8: 365 | P8: 365 | Q8: 365 | R8: 366 | S8: 365 | T8: 181 | U8: 184 | V8: 181 | W8: 365 | X8: 366 | Y8: 365 | Z8: 365 | AA8: =DATEVALUE("31/12/2014")-DATEVALUE("30/6/2014") -> 184 | AB8: =DATEVALUE("30/9/2015")-DATEVALUE("31/12/2014") -> 273 | AC8: =DATEVALUE("31/12/2015")-DATEVALUE("30/9/2015") -> 92 | AD8: 365 | AE8: 366 | AF8: 365 | AG8: 365 | AH8: 365 | AI8: 366 | AJ8: 365 | AK8: 365 | AL8: 365 | AM8: 365
A9: Year portion | I9: 1 | J9: =I9 -> 1 | K9: 1 | L9: 1 | M9: 1 | N9: 1 | O9: 1 | P9: 1 | Q9: 1 | R9: 1 | S9: 1 | T9: =T8/365 -> 0.495890411 | U9: 0.5 | V9: 0.5 | W9: 1 | X9: =W9 -> 1 | Y9: =X9 -> 1 | Z9: =Y9 -> 1 | AA9: =AA8/365 -> 0.504109589 | AB9: =AB8/365 -> 0.7479452055 | AC9: =1-AB9 -> 0.2520547945 | AD9: 1 | AE9: =AD9 -> 1 | AF9: 1 | AG9: 1 | AH9: 1 | AI9: 1 | AJ9: 1 | AK9: 1 | AL9: 1 | AM9: 1
A10: 8 Cities Inflation
A11: =ROW() -> 11 | I11: Actual | J11: Actual | K11: Actual | L11: Actual | M11: Actual | N11: Actual | O11: Actual | P11: Actual | Q11: Actual | R11: Actual | S11: Actual | T11: Actual | V11: Actual | W11: Actual | X11: Actual | Y11: Actual | Z11: Actual | AA11: Actual | AD11: Actual | AE11: Actual | AF11: Forecast | AG11: Forecast | AH11: Forecast | AI11: Forecast | AJ11: Forecast | AK11: Forecast | AL11: Forecast | AM11: Forecast
A12: =ROW() -> 12 | C12: Actual June and Forecast Inflation | I12: 1999-06-30 | J12: 2000-06-30 | K12: 2001-06-30 | L12: 2002-06-30 | M12: 2003-06-30 | N12: 2004-06-30 | O12: 2005-06-30 | P12: 2006-06-30 | Q12: 2007-06-30 | R12: 2008-06-30 | S12: 2009-06-30 | T12: 2010-06-30 | V12: 2011-06-30 | W12: 2011-06-30 | X12: 2012-06-30 | Y12: 2013-06-30 | Z12: 2014-06-30 | AA12: =Z12 -> 2014-06-30
A13: =ROW() -> 13 | D13: June CPI All Groups, 8 Capital Cities - (Pre-2012 index) | I13: =J13/(1+J14) -> 122.3 | J13: 126.2 | K13: 133.8 | L13: 137.6 | M13: 141.3 | N13: 144.8 | O13: 148.4 | P13: 154.3 | Q13: 157.5 | R13: 164.6 | S13: 167 | T13: 172.1 | V13: 178.3 | W13: 178.3 | X13: 180.4
A14: =ROW() -> 14 | D14: June inflation All Groups, 8 Capital Cities - (Pre-2012 index) | J14: 0.03188879804 | K14: 0.06022187005 | L14: 0.02840059791 | M14: 0.02688953488 | N14: 0.02476999292 | O14: 0.02486187845 | P14: 0.0397574124 | Q14: 0.02073882048 | R14: 0.04507936508 | S14: 0.01458080194 | T14: =T13/S13-1 -> 0.03053892216 | V14: =V13/T13-1 -> 0.03602556653 | W14: =W13/T13-1 -> 0.03602556653 | X14: =X13/W13-1 -> 0.01177790241
A15: =ROW() -> 15 | D15: June CPI All Groups, 8 Capital Cities - published Mar-2014 | I15: =J15/(1+J14) -> 68.03058637 | J15: 70.2 | K15: 74.5 | L15: 76.6 | M15: 78.6 | N15: 80.6 | O15: 82.6 | P15: 85.9 | Q15: 87.7 | R15: 91.6 | S15: 92.9 | T15: 95.8 | V15: 99.2 | W15: 99.2 | X15: 100.4 | Y15: 102.8 | Z15: 105.9
A16: =ROW() -> 16 | D16: June inflation All Groups, 8 Capital Cities - (Sep-2012 base index) | J16: =J15/I15-1 -> 0.03188879804 | K16: 0.06125356125 | L16: 0.02818791946 | M16: 0.02610966057 | N16: 0.02544529262 | O16: 0.02481389578 | P16: 0.03995157385 | Q16: 0.02095459837 | R16: 0.04446978335 | S16: 0.01419213974 | T16: 0.03121636168 | V16: =V15/T15-1 -> 0.03549060543 | W16: =W15/T15-1 -> 0.03549060543 | X16: 0.01209677419 | Y16: 0.02390438247 | Z16: 0.03015564202
A17: =ROW() -> 17
A18: =ROW() -> 18 | I18: Actual | J18: Actual | K18: Actual | L18: Actual | M18: Actual | N18: Actual | O18: Actual | P18: Actual | Q18: Actual | R18: Actual | S18: Actual | T18: Actual | U18: Actual | V18: Actual | W18: Actual | X18: Actual | Y18: Actual | Z18: Actual | AA18: Actual | AB18: Forecast | AC18: Forecast | AD18: Forecast | AE18: Forecast | AF18: Forecast | AG18: Forecast | AH18: Forecast | AI18: Forecast | AJ18: Forecast | AK18: Forecast | AL18: Forecast | AM18: Forecast
A19: =ROW() -> 19 | C19: Actual December and Forecast Inflation | I19: 1999-12-31 | J19: 2000-12-31 | K19: 2001-12-31 | L19: 2002-12-31 | M19: 2003-12-31 | N19: 2004-12-31 | O19: 2005-12-31 | P19: 2006-12-31 | Q19: 2007-12-31 | R19: 2008-12-31 | S19: 2009-12-31 | U19: 2010-12-31 | W19: 2011-12-31 | X19: 2012-12-31 | Y19: 2013-12-31 | Z19: 2014-12-31 | AA19: =Z19 -> 2014-12-31 | AB19: 2015-12-31 | AC19: 2015-12-31 | AD19: 2015-12-31 | AE19: 2016-12-31 | AF19: 2017-12-31 | AG19: 2018-12-31 | AH19: 2019-12-03 | AI19: 2020-12-31 | AJ19: 2021-12-31 | AK19: 2022-12-31 | AL19: 2023-12-31 | AM19: 2024-12-03
A20: =ROW() -> 20 | D20: December CPI All Groups, 8 Capital Cities - (Pre-2012 index) | I20: 124.1 | J20: 131.3 | K20: 135.4 | L20: 139.5 | M20: 142.8 | N20: 146.5 | O20: 150.6 | P20: 155.5 | Q20: 160.1 | R20: 166 | S20: 169.5 | U20: 174 | W20: 179.4
A21: =ROW() -> 21 | D21: December inflation All Groups, 8 Capital Cities - (Pre-2012 index) | J21: 0.05801772764 | K21: 0.03122619954 | L21: 0.03028064993 | M21: 0.02365591398 | N21: 0.02591036415 | O21: 0.02798634812 | P21: 0.03253652058 | Q21: 0.02958199357 | R21: 0.03685196752 | S21: 0.02108433735 | U21: =U20/T13-1 -> 0.01104009297 | W21: =W20/U20-1 -> 0.03103448276
A22: =ROW() -> 22 | D22: December CPI All Groups, 8 Capital Cities - published Mar-2014 | I22: 69.1 | J22: 73.1 | K22: 75.4 | L22: 77.6 | M22: 79.5 | N22: 81.5 | O22: 83.8 | P22: 86.6 | Q22: 89.1 | R22: 92.4 | S22: 94.3 | U22: 96.9 | W22: 99.8 | X22: 102 | Y22: 104.8 | Z22: 106.6 | AA22: 106.6 | AB22: =$AD22 -> 108.4 | AC22: 108.4 | AD22: 108.4 | AE22: 110 | AF22: =AE22*(1+AF23) -> 112.1 | AG22: 114.16264 | AH22: 116.2632326 | AI22: 118.4024761 | AJ22: 120.5810816 | AK22: 122.7997735 | AL22: 125.0592893 | AM22: 127.3603803
A23: =ROW() -> 23 | D23: December inflation All Groups , 8 Capital Cities - (Sep-2012 base index) | J23: =J22/I22-1 -> 0.05788712012 | K23: 0.03146374829 | L23: 0.02917771883 | M23: 0.02448453608 | N23: 0.0251572327 | O23: 0.0282208589 | P23: 0.03341288783 | Q23: 0.02886836028 | R23: 0.03703703704 | S23: 0.02056277056 | U23: =U22/T15-1 -> 0.0114822547 | W23: =W22/U22-1 -> 0.02992776058 | X23: 0.02204408818 | Y23: 0.02745098039 | Z23: =(Z22/Y22-1) -> 0.01717557252 | AA23: =Z23 -> 0.01717557252 | AB23: 0.01688555347 | AC23: 0.01688555347 | AD23: =AD22/AA22-1 -> 0.01688555347 | AE23: =AE22/AD22-1 -> 0.0147601476 | AF23: 0.01909090909 | AG23: 0.0184 | AH23: 0.0184 | AI23: 0.0184 | AJ23: 0.0184 | AK23: 0.0184 | AL23: 0.0184 | AM23: 0.0184
C25: WAGN Inflation from 2005 to 2009 OD to 31/12/09 | O25: 1.159945318 | P25: 1.10770235 | Q25: 1.074050633 | R25: 1.027861902 | S25: 1.013739546
C26: Using Perth Inflation and (Estim Dec)/(Actual Jun) Adjustment
A27: =ROW() -> 27
A28: =ROW() -> 28 | C28: Modelled Inflation
A29: =ROW() -> 29 | D29: Selected CPI period | F29: Base period: | G29: 2019-12-31 | I29: =I19 -> 1999-12-31 | J29: 2000-12-31 | K29: 2001-12-31 | L29: 2002-12-31 | M29: 2003-12-31 | N29: 2004-12-31 | O29: 2005-12-31 | P29: 2006-12-31 | Q29: 2007-12-31 | R29: 2008-12-31 | S29: 2009-12-31 | T29: =T12 -> 2010-06-30 | U29: 2010-12-31 | V29: =V12 -> 2011-06-30 | W29: =W12 -> 2011-06-30 | X29: =X12 -> 2012-06-30 | Y29: =Y12 -> 2013-06-30 | Z29: =Z12 -> 2014-06-30 | AA29: =AA19 -> 2014-12-31 | AB29: =AD29 -> 2015-12-31 | AC29: 2016-12-31 | AD29: =AD19 -> 2015-12-31 | AE29: =AE19 -> 2016-12-31 | AF29: =AF19 -> 2017-12-31 | AG29: =AG19 -> 2018-12-31 | AH29: 2019-12-31 | AI29: =AI19 -> 2020-12-31 | AJ29: 2021-12-31 | AK29: 2022-12-31 | AL29: 2023-12-31 | AM29: 2024-12-03
A30: =ROW() -> 30 | D30: CPI | I30: =J30/(J31+1) -> 69.06674058 | J30: 73.07383592 | K30: 75.3556541 | L30: 77.63747228 | M30: 79.47405765 | N30: 81.53325942 | O30: 83.81507761 | P30: 86.5421286 | Q30: 89.10221729 | R30: 92.38580931 | S30: 94.33370288 | T30: =W30/(W31+1) -> 95.78070953 | U30: =T30*(U31+1) -> 96.83813747 | V30: =X30/(X31+1) -> 99.23126386 | W30: 99.23126386 | X30: =X15 -> 100.4 | Y30: =Y15 -> 102.8 | Z30: =Z15 -> 105.9 | AA30: =AA22 -> 106.6 | AB30: =AD30 -> 108.4 | AC30: =AD30 -> 108.4 | AD30: =AD22 -> 108.4 | AE30: =AE22 -> 110 | AF30: =AF22 -> 112.1 | AG30: =AG22 -> 114.16264 | AH30: =AH22 -> 116.2632326 | AI30: =AI22 -> 118.4024761 | AJ30: 120.5810816 | AK30: 122.7997735 | AL30: 125.0592893 | AM30: 127.3603803
A31: =ROW() -> 31 | D31: Inflation | J31: =J$21 -> 0.05801772764 | K31: 0.03122619954 | L31: 0.03028064993 | M31: 0.02365591398 | N31: 0.02591036415 | O31: 0.02798634812 | P31: 0.03253652058 | Q31: 0.02958199357 | R31: 0.03685196752 | S31: 0.02108433735 | T31: =(T$13/S$20-1) -> 0.01533923304 | U31: =U21 -> 0.01104009297 | V31: =V$14 -> 0.03602556653 | W31: =W$14 -> 0.03602556653 | X31: =X$14 -> 0.01177790241 | Y31: =Y30/X30-1 -> 0.02390438247 | Z31: =Z30/Y30-1 -> 0.03015564202 | AA31: =AA30/Z30-1 -> 0.006610009443 | AB31: =AD31 -> 0.01688555347 | AC31: =AD31 -> 0.01688555347 | AD31: =AD30/AA30-1 -> 0.01688555347 | AE31: =AE30/AD30-1 -> 0.0147601476 | AF31: =AF30/AE30-1 -> 0.01909090909 | AG31: =AG30/AF30-1 -> 0.0184 | AH31: =AH30/AG30-1 -> 0.0184 | AI31: =AI30/AH30-1 -> 0.0184 | AJ31: 0.0184 | AK31: 0.0184 | AL31: 0.0184 | AM31: 0.0184
A32: Financial Parameters
A33: =ROW() -> 33 | C33: Inflation factor | J33: Actual 1 | O33: Actual 2 | T33: Actual 3 | AA33: Forecast
A34: =ROW() -> 34 | D34: ="Inflation Factor (convert to real "&$G$34&" $)" -> Inflation Factor (convert to real 31/12/2019 $) | F34: Real $ at | G34: =TEXT($G$29,"dd/mm/yyyy") -> 31/12/2019 | I34: =HLOOKUP($G$29,$I$29:$AH$30,2,FALSE)/I$30 -> 1.683346161 | J34: 1.591037765 | K34: 1.542860107 | L34: 1.497514398 | M34: 1.462907973 | N34: 1.425960809 | O34: 1.387139831 | P34: 1.343429315 | Q34: 1.304829847 | R34: 1.258453365 | S34: 1.232467602 | T34: 1.213848103 | U34: =HLOOKUP($G$29,$I$29:$AH$30,2,FALSE)/U$30 -> 1.20059344 | V34: 1.171639139 | W34: =HLOOKUP($G$29,$I$29:$AH$30,2,FALSE)/W$30 -> 1.171639139 | X34: =HLOOKUP($G$29,$I$29:$AH$30,2,FALSE)/X$30 -> 1.158000324 | Y34: =HLOOKUP($G$29,$I$29:$AH$30,2,FALSE)/Y$30 -> 1.130965297 | Z34: =HLOOKUP($G$29,$I$29:$AH$30,2,FALSE)/Z$30 -> 1.097858665 | AA34: =HLOOKUP($G$29,$I$29:$AH$30,2,FALSE)/AA$30 -> 1.090649461 | AB34: =HLOOKUP($G$29,$I$29:$AH$30,2,FALSE)/AB$30 -> 1.072539046 | AC34: 1.072539046 | AD34: =HLOOKUP($G$29,$I$29:$AH$30,2,FALSE)/AD$30 -> 1.072539046 | AE34: 1.056938478 | AF34: 1.03713856 | AG34: 1.0184 | AH34: 1 | AI34: 0.981932443 | AJ34: 0.9641913227 | AK34: 0.9467707411 | AL34: 0.9296649068 | AM34: 0.9128681331
A35: =ROW() -> 35 | D35: ="Inflation Factor (convert " &$G$34& " $ to nominal $)" -> Inflation Factor (convert 31/12/2019 $ to nominal $) | I35: =1/I34 -> 0.5940548791 | J35: 0.6285205933 | K35: 0.6481469028 | L35: 0.6677732122 | M35: 0.6835699979 | N35: 0.7012815455 | O35: 0.7209078549 | P35: 0.7443636882 | Q35: 0.76638345 | R35: 0.7946261881 | S35: 0.8113803547 | T35: =1/T34 -> 0.823826307 | U35: =1/U34 -> 0.832921426 | V35: 0.8535051164 | W35: =1/W34 -> 0.8535051164 | X35: 0.8635576164 | Y35: 0.884200428 | Z35: 0.9108640595 | AA35: 0.9168848796 | AB35: =1/AB34 -> 0.9323669882 | AC35: 0.9323669882 | AD35: 0.9323669882 | AE35: 0.9461288626 | AF35: 0.9641913227 | AG35: 0.981932443 | AH35: 1 | AI35: =1/AI34 -> 1.0184 | AJ35: 1.03713856 | AK35: 1.05622191 | AL35: 1.075656393 | AM35: 1.09544847
A36: =ROW() -> 36 | J36: Approved 1 | O36: Approved 2 | T36: Actual 3 | AA36: Forecast
A37: =ROW() -> 37 | C37: Real Post Tax WACC
A38: =ROW() -> 38 | D38: WACC | T38: =(1+W41)^(T$8/365)-1 -> 0 | W38: =WACC!$S$36 -> 0 | X38: =W38 -> 0 | Y38: =X38 -> 0 | Z38: =Y38 -> 0 | AA38: =(1+WACC!AA$36)^AA$9-1 -> 0.0198101078 | AD38: =WACC!AD$36 -> 0.04010991168 | AE38: =WACC!AE$36 -> 0.04113444553 | AF38: =WACC!AF$36 -> 0.04177625123 | AG38: =WACC!AG$36 -> 0.04071638862 | AH38: =WACC!AH$36 -> 0.04071638862 | AI38: =WACC!AI$36 -> 0.04113364101 | AJ38: =WACC!AJ$36 -> 0.04113364101 | AK38: =WACC!AK$36 -> 0.04113364101 | AL38: =WACC!AL$36 -> 0.04113364101 | AM38: =WACC!AM$36 -> 0.04113364101
A39: =ROW() -> 39 | D39: Discounting Factor | T39: =1/(1+T38) -> 1 | W39: =T39/(1+W38) -> 1 | X39: =W39/(1+X38) -> 1 | Y39: =X39/(1+Y38) -> 1 | Z39: =Y39/(1+Z38) -> 1 | AA39: =1/(1+AA38) -> 0.9805747093 | AD39: =AA39/(1+AD38) -> 0.9427606624 | AE39: =AD39/(1+AE38) -> 0.9055128917 | AF39: =AE39/(1+AF38) -> 0.869200935 | AG39: =AF39/(1+AG38) -> 0.8351948183 | AH39: =AG39/(1+AH38) -> 0.8025191372 | AI39: =1/(1+AI38) -> 0.9604914879 | AJ39: =AI39/(1+AJ38) -> 0.9225438984 | AK39: 0.8860955617 | AL39: 0.8510872445 | AM39: 0.8174620538
A40: =ROW() -> 40 | C40: Nominal Post Tax WACC
A41: =ROW() -> 41 | D41: WACC | T41: =(1+W41)^(T$8/365)-1 -> 0 | W41: =WACC!$S$35 -> 0 | X41: =W41 -> 0 | Y41: =X41 -> 0 | Z41: =Y41 -> 0 | AA41: =(1+WACC!AA$35)^AA$9-1 -> 0.02953234787 | AD41: =WACC!AD$35 -> 0.059872 | AE41: =WACC!AE$35 -> 0.060916 | AF41: =WACC!AF$35 -> 0.06157 | AG41: =WACC!AG$35 -> 0.06049 | AH41: =WACC!AH$35 -> 0.06049 | AI41: =WACC!AI$35 -> 0.0602905 | AJ41: =WACC!AJ$35 -> 0.0602905 | AK41: =WACC!AK$35 -> 0.0602905 | AL41: =WACC!AL$35 -> 0.0602905 | AM41: =WACC!AM$35 -> 0.0602905
A42: =ROW() -> 42 | D42: Discounting Factor | T42: =1/(1+T41) -> 1 | W42: =T42/(1+W41) -> 1 | X42: =W42/(1+X41) -> 1 | Y42: =X42/(1+Y41) -> 1 | Z42: =Y42/(1+Z41) -> 1 | AA42: =1/(1+AA41) -> 0.9713147936 | AD42: =AA42/(1+AD41) -> 0.9164453761 | AE42: =AD42/(1+AE41) -> 0.8638246346 | AF42: =AE42/(1+AF41) -> 0.8137236684 | AG42: =AF42/(1+AG41) -> 0.7673091386 | AH42: =AG42/(1+AH41) -> 0.7235420783 | AI42: =1/(1+AI41) -> 0.9431377533 | AJ42: =AI42/(1+AJ41) -> 0.8895088217 | AK42: =AJ42/(1+AK41) -> 0.8389293516 | AL42: =AK42/(1+AL41) -> 0.7912259438 | AM42: =AL42/(1+AM41) -> 0.746235059
A43: =ROW() -> 43
A44: Assets Life
A45: =ROW() -> 45 | J45: 1999-2013/14 | AA45: Jun-2014 onwards | AB45: 2020 onwards
A46: =ROW() -> 46 | C46: Asset Life for new Capex (years) | J46: Economic Life | AA46: Economic Life | AB46: Economic Life | AD46: Tax Asset Life (to Dec 2007) | AE46: Tax Asset Life (from Jan 2008 onwards)
A47: =ROW() -> 47 | D47: High Pressure Mains - Steel | J47: 120 | AA47: 80 | AB47: 80 | AD47: 20 | AE47: 20
A48: =ROW() -> 48 | D48: High Pressure Mains - PE | J48: 120 | AA48: 60 | AB48: 60 | AD48: 20 | AE48: 20
A49: =ROW() -> 49 | D49: Medium Pressure Mains | J49: 60 | AA49: 60 | AB49: 60 | AD49: 20 | AE49: 20
A50: =ROW() -> 50 | D50: Medium / Low Pressure Mains | J50: 60 | AA50: 60 | AB50: 60 | AD50: 20 | AE50: 20
A51: =ROW() -> 51 | D51: Low Pressure Mains | J51: 60 | AA51: 60 | AB51: 60 | AD51: 20 | AE51: 20
A52: =ROW() -> 52 | D52: Regulators | J52: 40 | AA52: 40 | AB52: 40 | AD52: 40 | AE52: 40
A53: =ROW() -> 53 | D53: Secondary Gate Stations | J53: 40 | AA53: 40 | AB53: 40 | AD53: 40 | AE53: 40
A54: =ROW() -> 54 | D54: Buildings | J54: 40 | AA54: 40 | AB54: 40 | AD54: 40 | AE54: 40
A55: =ROW() -> 55 | D55: Meter and Services Pipes | J55: 25 | AA55: 25 | AB55: 25 | AD55: 25 | AE55: 15
A56: =ROW() -> 56 | D56: Equipment & Vehicles | J56: 10 | AA56: 10 | AB56: 10 | AD56: 10 | AE56: 10
A57: =ROW() -> 57 | D57: Vehicle | J57: 10 | AA57: 10 | AB57: 10 | AD57: 10 | AE57: 10
A58: =ROW() -> 58 | D58: Information Technology | J58: 5 | AA58: 5 | AB58: 5 | AD58: 4 | AE58: 4
D59: Telemetry and monitoring | J59: 10 | AA59: 10 | AB59: 10 | AD59: 10 | AE59: 10
A60: =ROW() -> 60 | D60: FRC | J60: 5 | AA60: 5 | AB60: 5 | AD60: 4 | AE60: 4
A61: =ROW() -> 61 | D61: Land | J61: 0 | AA61: 0 | AB61: 0 | AD61: 0 | AE61: 0
A62: =ROW() -> 62 | D62: Equity Raising Cost | J62: 65.8 | AA62: 65.84239709 | AB62: =SUMPRODUCT(Input!$AB$47:$AB$60,Asset!$AI$58:$AI$71)/SUM(Asset!$AI$58:$AI$71) -> 52.98558043 | AD62: 5 | AE62: 5
A63: Initial Capital Base | N63: ICB as at 31/12/2004 | S63: ICB as at 31/12/2009 | AH63: ICB as at 31/12/2019
A64: =ROW() -> 64 | C64: Initial Capital Base | F64: Life 31/12/1998 | I64: Initial Value at 1999 m$ 31/12/99 | M64: ="Initial Value at 1999 m$ 31/12/04" -> Initial Value at 1999 m$ 31/12/04 | N64: WDV in 2004 m$ 31/12/04 | O64: Over depreciation correction | R64: ="Initial Value at 1999 m$ 31/12/09" -> Initial Value at 1999 m$ 31/12/09 | S64: WDV in 2004 m$ 31/12/09 | T64: Over depreciation correction | AG64: ="Initial Value at 1999 m$ "&$G$34 -> Initial Value at 1999 m$ 31/12/2019 | AH64: ="WDV in 2004 m$ "&$G$34 -> WDV in 2004 m$ 31/12/2019 | AI64: Over depreciation correction $m 31/12/2019
A65: =ROW() -> 65 | D65: High Pressure Mains - Steel | F65: 106 | I65: 149.0525001 | M65: =I65*$I$34/$N$34 -> 175.9564163 | N65: 167.7680127 | O65: 0 | R65: =M65*$N$34/$S$34 -> 203.5809732 | S65: 194.1070181 | T65: 0 | AG65: =R65*$S$34/$Z$34 -> 228.5421265 | AH65: =N65*$N$34 -> 239.2306112 | AI65: =O65*$N$34 -> 0
A66: =ROW() -> 66 | D66: High Pressure Mains - PE | F66: 106 | M66: =I66*$I$34/$N$34 -> 0 | R66: =M66*$N$34/$S$34 -> 0 | T66: 0 | AG66: 0 | AH66: 0 | AI66: 0
A67: =ROW() -> 67 | D67: Medium Pressure Mains | F67: 51 | I67: 176.9970506 | M67: 208.944947 | N67: 188.6930491 | O67: 0 | R67: 241.7485905 | S67: 218.3172139 | T67: 0 | AG67: 271.3894924 | AH67: 269.068893 | AI67: 0
A68: =ROW() -> 68 | D68: Medium / Low Pressure Mains | F68: 41 | I68: 96.15873274 | M68: 113.5153453 | N68: 99.14965429 | O68: 0 | R68: 131.336867 | S68: 114.7158116 | T68: 0 | AG68: 147.4401385 | AH68: 141.3835213 | AI68: 0
A69: =ROW() -> 69 | D69: Low Pressure Mains | F69: 33 | I69: 27.7917523 | M69: 32.80815239 | N69: 27.64155259 | O69: -0.5911241171 | R69: 37.95892035 | S69: 31.98118201 | T69: -0.683928586 | AG69: 42.61308039 | AH69: 39.4157707 | AI69: -0.8429198243
A70: =ROW() -> 70 | D70: Regulators | F70: 28 | I70: 9.716025086 | M70: 11.4697637 | N70: 9.535022566 | O70: 0 | R70: 13.27047745 | S70: 11.03198857 | T70: 0 | AG70: 14.89757658 | AH70: 13.59656849 | AI70: 0
A71: =ROW() -> 71 | D71: Secondary Gate Stations | F71: 25 | I71: 1.972158078 | M71: 2.328131817 | N71: 1.837078987 | O71: -0.04208879663 | R71: 2.693640566 | S71: 2.125494118 | T71: -0.04869659406 | AG71: 3.02390903 | AH71: 2.619602639 | AI71: -0.0600169745
A72: =ROW() -> 72 | D72: Buildings | F72: 24 | I72: 1.739642739 | M72: 2.053647553 | N72: 1.601656344 | O72: 0 | R72: 2.376063209 | S72: 1.853110923 | T72: 0 | AG72: 2.667393373 | AH72: 2.283899176 | AI72: 0
A73: =ROW() -> 73 | D73: Meter and Services Pipes | F73: 11 | I73: 52.79515012 | M73: 62.32465345 | N73: 35.72045608 | O73: 0 | R73: 72.10941132 | S73: 41.32844578 | T73: 0 | AG73: 80.9507782 | AH73: 50.93597046 | AI73: 0
A74: =ROW() -> 74 | D74: Equipment & Vehicles | F74: 11 | I74: 15.06392605 | M74: 17.78295863 | N74: 2.494216868 | O74: -5.384402837 | R74: 20.57482245 | S74: 2.885800404 | T74: -6.229735706 | AG74: 23.09751054 | AH74: 3.556655504 | AI74: -7.677947426
A75: =ROW() -> 75 | D75: Vehicle | F75: 11 | M75: 0 | R75: 0 | S75: 0 | T75: 0 | AG75: 0 | AH75: 0 | AI75: 0
A76: =ROW() -> 76 | D76: Information Technology | F76: 6 | I76: 0 | M76: 0 | N76: 0 | O76: 0 | R76: 0 | S76: 0 | T76: 0 | AG76: 0 | AH76: 0 | AI76: 0
D77: Telemetry and Monitoring | F77: 0 | R77: 0 | S77: 0 | T77: 0 | AG77: 0 | AH77: 0 | AI77: 0
A78: =ROW() -> 78 | D78: FRC | F78: 6 | I78: 0 | M78: 0 | N78: 0 | O78: 0 | R78: 0 | S78: 0 | T78: 0 | AG78: =R78*$S$34/$Z$34 -> 0 | AH78: =N78*$N$34 -> 0 | AI78: 0
A79: =ROW() -> 79 | D79: Land | I79: 4.470241902 | M79: =I79*$I$34/$N$34 -> 5.277118764 | N79: 5.277118764 | O79: 0 | R79: =M79*$N$34/$S$34 -> 6.105608399 | S79: 6.105608399 | T79: 0 | AG79: =R79*$S$34/$Z$34 -> 6.854219751 | AH79: 7.524964542 | AI79: 0
A80: =ROW() -> 80 | D80: Equity Raising Cost | F80: 66.84239709 | M80: 0 | O80: 0 | R80: 0 | T80: 0 | AG80: =R80*$S$34/$Z$34 -> 0 | AH80: 0 | AI80: 0
A81: =ROW() -> 81 | D81: Total | I81: =SUM(I65:I80) -> 535.7571798 | M81: =SUM(M65:M80) -> 632.4611349 | N81: =SUM(N65:N80) -> 539.7178184 | O81: =SUM(O65:O80) -> -6.017615751 | R81: =SUM(R65:R80) -> 731.7553745 | S81: =SUM(S65:S80) -> 624.4516738 | T81: =SUM(T65:T80) -> -6.962360886 | AG81: =SUM(AG65:AG80) -> 821.4762253 | AH81: =SUM(AH65:AH80) -> 769.616457 | AI81: =SUM(AI65:AI80) -> -8.580884225
A82: =ROW() -> 82
A83: Vines, New Assets
A84: =ROW() -> 84 | C84: CAPEX | P84: Life at 31/12/09 | Q84: Tax Asset Life at 31/12/09 | R84: m$ 31/12/09 | S84: ="m$ "&TEXT($G$34,"d/m/yyyy") -> m$ 31/12/2019
A85: =ROW() -> 85 | D85: High Pressure Mains - Steel | P85: 0 | Q85: 0 | R85: 0 | S85: =R85*$S$34 -> 0
A86: =ROW() -> 86 | D86: High Pressure Mains - PE | P86: 0 | Q86: 0 | R86: 0 | S86: 0
A87: =ROW() -> 87 | D87: Medium Pressure Mains | P87: 0 | Q87: 0 | R87: 0 | S87: 0
A88: =ROW() -> 88 | D88: Medium / Low Pressure Mains | P88: 50.34 | Q88: =$AE50-($J50-P88)-1 -> 9.34 | R88: 0.426991 | S88: 0.5262525738
A89: =ROW() -> 89 | D89: Low Pressure Mains | P89: 0 | Q89: 0 | R89: 0 | S89: 0
A90: =ROW() -> 90 | D90: Regulators | P90: 0 | Q90: 0 | R90: 0 | S90: 0
A91: =ROW() -> 91 | D91: Secondary Gate Stations | P91: 0 | Q91: 0 | R91: 0 | S91: 0
A92: =ROW() -> 92 | D92: Buildings | P92: 0 | Q92: 0 | R92: 0 | S92: =R92*$S$34 -> 0
A93: =ROW() -> 93 | D93: Meter and Services Pipes | P93: 15.34 | Q93: =$AE55-($J55-P93)-1 -> 4.34 | R93: 0.152832 | S93: 0.1883604885
A94: =ROW() -> 94 | D94: Equipment & Vehicles | P94: 0 | Q94: 0 | R94: 0 | S94: 0
A95: =ROW() -> 95 | D95: Vehicle | P95: 0 | Q95: 0 | S95: 0
A96: =ROW() -> 96 | D96: Information Technology | P96: 0 | Q96: 0 | R96: 0 | S96: 0
D97: Telemetry and Monitoring | P97: 0 | Q97: 0 | R97: 0 | S97: 0
A98: =ROW() -> 98 | D98: FRC | P98: 0 | Q98: 0 | R98: 0 | S98: 0
A99: =ROW() -> 99 | D99: Land | P99: 0 | Q99: 0 | R99: 0 | S99: 0
A100: =ROW() -> 100 | D100: Equity Raising Cost | P100: 0 | Q100: 0 | R100: 0 | S100: =R100*$S$34 -> 0
A101: =ROW() -> 101 | D101: Total | R101: =SUM(R85:R100) -> 0.579823 | S101: =SUM(S85:S100) -> 0.7146130624 | Z101: =SUM(Z85:Z100) -> 0
A102: West Net Energy, New Assets
A103: =ROW() -> 103 | C103: CAPEX | Q103: Life 30/06/10 | R103: Tax Asset Life at 30/6/10 | S103: m$ 30/6/2010 | T103: ="m$ "&TEXT($G$34,"d/m/yyyy") -> m$ 31/12/2019
A104: =ROW() -> 104 | D104: High Pressure Mains - Steel | Q104: 0 | R104: 0 | S104: 0
A105: =ROW() -> 105 | D105: High Pressure Mains - PE | Q105: 0 | R105: 0 | S105: 0
A106: =ROW() -> 106 | D106: Medium Pressure Mains | Q106: 0 | R106: 0 | S106: 0
A107: =ROW() -> 107 | D107: Medium / Low Pressure Mains | Q107: 0 | R107: 0 | S107: 0
A108: =ROW() -> 108 | D108: Low Pressure Mains | Q108: 0 | R108: 0 | S108: 0
A109: =ROW() -> 109 | D109: Regulators | Q109: 0 | R109: 0 | S109: 0
A110: =ROW() -> 110 | D110: Secondary Gate Stations | Q110: 0 | R110: 0 | S110: 0
A111: =ROW() -> 111 | D111: Buildings | Q111: 35.09881279 | R111: =$AE54-($J54-Q111)-0.5 -> 34.59881279 | S111: =0.0130522132542073 -> 0.01305221325 | T111: =S111*$T$34 -> 0.0158434043
A112: =ROW() -> 112 | D112: Meter and Services Pipes | Q112: 0 | R112: 0 | S112: 0
A113: =ROW() -> 113 | D113: Equipment & Vehicles | Q113: 6.536661454 | R113: =$AE56-($J56-Q113)-0.5 -> 6.036661454 | S113: =2.88462274182994 -> 2.884622742 | T113: =S113*$T$34 -> 3.501493843
A114: =ROW() -> 114 | D114: Vehicle | Q114: 0 | R114: 0 | S114: 0
A115: =ROW() -> 115 | D115: Information Technology | Q115: 4.021920327 | R115: =$AE58-($J58-Q115)-0.5 -> 2.521920327 | S115: =0.104081321679867 -> 0.1040813217 | T115: =S115*$T$34 -> 0.1263389149
D116: Telemetry and Monitoring
A117: =ROW() -> 117 | D117: FRC | Q117: 0 | R117: 0 | S117: 0
A118: =ROW() -> 118 | D118: Land | Q118: 0 | R118: 0 | S118: 0
A119: =ROW() -> 119 | D119: Equity Raising Cost | Q119: 0 | R119: 0 | S119: 0
A120: =ROW() -> 120 | D120: Total | S120: =SUM(S104:S119) -> 3.001756277 | T120: =SUM(T104:T119) -> 3.643676162 | AA120: =SUM(AA104:AA119) -> 0
A121: Redundant Assets (ICB)
A122: =ROW() -> 122 | C122: Redundant Asset | O122: Actual 2 [m$ 30/06/2019] | T122: Actual 2 [m$ 30/06/2019] | AA122: Actual [m$ 2019] | AG122: Forecast [m$ 2019] | AI122: Forecast [m$ 2019]
A123: =ROW() -> 123 | D123: High Pressure Mains - Steel | F123: $M 2019 | O123: 0 | P123: 0 | Q123: 0 | R123: 0 | S123: 0 | T123: 0 | W123: 0 | X123: 0 | Y123: 0 | Z123: 0 | AA123: 0 | AD123: 0 | AE123: 0 | AF123: 0 | AG123: 0 | AH123: 0 | AI123: 0 | AJ123: 0 | AK123: 0 | AL123: 0 | AM123: 0
A124: =ROW() -> 124 | D124: High Pressure Mains - PE | F124: $M 2019 | O124: 0 | P124: 0 | Q124: 0 | R124: 0 | S124: 0 | T124: 0 | W124: 0 | X124: 0 | Y124: 0 | Z124: 0 | AA124: 0 | AD124: 0 | AE124: 0 | AF124: 0 | AG124: 0 | AH124: 0 | AI124: 0 | AJ124: 0 | AK124: 0 | AL124: 0 | AM124: 0
A125: =ROW() -> 125 | D125: Medium Pressure Mains | F125: $M 2019 | O125: 0 | P125: 0 | Q125: 0 | R125: 0 | S125: 0 | T125: 0 | W125: 0 | X125: 0 | Y125: 0 | Z125: 0 | AA125: 0 | AD125: 0 | AE125: 0 | AF125: 0 | AG125: 0 | AH125: 0 | AI125: 0 | AJ125: 0 | AK125: 0 | AL125: 0 | AM125: 0
A126: =ROW() -> 126 | D126: Medium / Low Pressure Mains | F126: $M 2019 | O126: 0 | P126: 0 | Q126: 0 | R126: 0 | S126: 0 | T126: 0 | W126: 0 | X126: 0 | Y126: 0 | Z126: 0 | AA126: 0 | AD126: 0 | AE126: 0 | AF126: 0 | AG126: 0 | AH126: 0 | AI126: 0 | AJ126: 0 | AK126: 0 | AL126: 0 | AM126: 0
A127: =ROW() -> 127 | D127: Low Pressure Mains | F127: $M 2019 | O127: 0 | P127: 0 | Q127: 0 | R127: 0 | S127: 0 | T127: 0 | W127: 0 | X127: 0 | Y127: 0 | Z127: 0 | AA127: 0 | AD127: 0 | AE127: 0 | AF127: 0 | AG127: 0 | AH127: 0 | AI127: 0 | AJ127: 0 | AK127: 0 | AL127: 0 | AM127: 0
A128: =ROW() -> 128 | D128: Regulators | F128: $M 2019 | O128: 0 | P128: 0 | Q128: 0 | R128: 0 | S128: 0 | T128: 0 | W128: 0 | X128: 0 | Y128: 0 | Z128: 0 | AA128: 0 | AD128: 0 | AE128: 0 | AF128: 0 | AG128: 0 | AH128: 0 | AI128: 0 | AJ128: 0 | AK128: 0 | AL128: 0 | AM128: 0
A129: =ROW() -> 129 | D129: Secondary Gate Stations | F129: $M 2019 | O129: 0 | P129: 0 | Q129: 0 | R129: 0 | S129: 0 | T129: 0 | W129: 0 | X129: 0 | Y129: 0 | Z129: 0 | AA129: 0 | AD129: 0 | AE129: 0 | AF129: 0 | AG129: 0 | AH129: 0 | AI129: 0 | AJ129: 0 | AK129: 0 | AL129: 0 | AM129: 0
A130: =ROW() -> 130 | D130: Buildings | F130: $M 2019 | O130: 0 | P130: 0 | Q130: 0 | R130: 0 | S130: 0 | T130: 0 | W130: 0 | X130: 0 | Y130: 0 | Z130: 0 | AA130: 0 | AD130: 0 | AE130: 0 | AF130: 0 | AG130: 0 | AH130: 0 | AI130: 0 | AJ130: 0 | AK130: 0 | AL130: 0 | AM130: 0
A131: =ROW() -> 131 | D131: Meter and Services Pipes | F131: $M 2019 | O131: 0 | P131: 0 | Q131: 0 | R131: 0 | S131: 0 | T131: 0 | W131: 0 | X131: 0 | Y131: 0 | Z131: 0 | AA131: 0 | AD131: 0 | AE131: 0 | AF131: 0 | AG131: 0 | AH131: 0 | AI131: 0 | AJ131: 0 | AK131: 0 | AL131: 0 | AM131: 0
A132: =ROW() -> 132 | D132: Equipment & Vehicles | F132: $M 2019 | O132: 0 | P132: 0 | Q132: 0 | R132: 0 | S132: 0 | T132: 0 | W132: 0 | X132: 0 | Y132: 0 | Z132: 0 | AA132: 0 | AD132: 0 | AE132: 0 | AF132: 0 | AG132: 0 | AH132: 0 | AI132: 0 | AJ132: 0 | AK132: 0 | AL132: 0 | AM132: 0
A133: =ROW() -> 133 | D133: Vehicle | F133: $M 2019 | O133: 0 | P133: 0 | Q133: 0 | R133: 0 | S133: 0 | T133: 0 | W133: 0 | X133: 0 | Y133: 0 | Z133: 0 | AA133: 0 | AD133: 0 | AE133: 0 | AF133: 0 | AG133: 0 | AH133: 0 | AI133: 0 | AJ133: 0 | AK133: 0 | AL133: 0 | AM133: 0
A134: =ROW() -> 134 | D134: Information Technology | F134: $M 2019 | O134: 0 | P134: 0 | Q134: 0 | R134: 0 | S134: 0 | T134: 0 | W134: 0 | X134: 0 | Y134: 0 | Z134: 0 | AA134: 0 | AD134: 0 | AE134: 0 | AF134: 0 | AG134: 0 | AH134: 0 | AI134: 0 | AJ134: 0 | AK134: 0 | AL134: 0 | AM134: 0
D135: Telemetry and Monitoring | F135: $M 2019 | O135: 0 | P135: 0 | Q135: 0 | R135: 0 | S135: 0 | T135: 0 | W135: 0 | X135: 0 | Y135: 0 | Z135: 0 | AA135: 0 | AD135: 0 | AE135: 0 | AF135: 0 | AG135: 0 | AH135: 0 | AI135: 0 | AJ135: 0 | AK135: 0 | AL135: 0 | AM135: 0
A136: =ROW() -> 136 | D136: FRC | F136: $M 2019 | O136: 0 | P136: 0 | Q136: 0 | R136: 0 | S136: 0 | T136: 0 | W136: 0 | X136: 0 | Y136: 0 | Z136: 0 | AA136: 0 | AD136: 0 | AE136: 0 | AF136: 0 | AG136: 0 | AH136: 0 | AI136: 0 | AJ136: 0 | AK136: 0 | AL136: 0 | AM136: 0
A137: =ROW() -> 137 | D137: Land | F137: $M 2019 | O137: 0 | P137: 0 | Q137: 0 | R137: 0 | S137: 0 | T137: 0 | W137: 0 | X137: 0 | Y137: 0 | Z137: 0 | AA137: 0 | AD137: 0 | AE137: 0 | AF137: 0 | AG137: 0 | AH137: 0 | AI137: 0 | AJ137: 0 | AK137: 0 | AL137: 0 | AM137: 0
A138: =ROW() -> 138 | D138: Equity Raising Cost | F138: $M 2019 | O138: 0 | P138: 0 | Q138: 0 | R138: 0 | S138: 0 | T138: 0 | W138: 0 | X138: 0 | Y138: 0 | Z138: 0 | AA138: 0 | AD138: 0 | AE138: 0 | AF138: 0 | AG138: 0 | AH138: 0 | AI138: 0 | AJ138: 0 | AK138: 0 | AL138: 0 | AM138: 0
A139: =ROW() -> 139 | D139: Total | O139: =SUM(O123:O138) -> 0 | P139: 0 | Q139: 0 | R139: 0 | S139: 0 | T139: 0 | W139: 0 | X139: 0 | Y139: 0 | Z139: 0 | AA139: =SUM(AA123:AA138) -> 0 | AD139: 0 | AE139: 0 | AF139: 0 | AG139: 0 | AH139: 0 | AI139: =SUM(AI123:AI138) -> 0 | AJ139: 0 | AK139: 0 | AL139: 0 | AM139: 0
A140: Asset Disposal (ICB)
A141: =ROW() -> 141
A142: =ROW() -> 142 | C142: Disposal | O142: Post DD3 - WAGN Actual 2 [m$ 31/12/2009] | T142: Actual 3 [m$ 30/06/2014] | AA142: Actual [m$ OD] | AG142: Forecast [m$ OD] | AI142: Forecast [m$ OD]
A143: =ROW() -> 143 | D143: High Pressure Mains - Steel | O143: 0 | P143: 0 | Q143: 0 | R143: 0 | S143: 0 | T143: 0 | W143: 0 | X143: 0 | Y143: 0 | Z143: 0 | AA143: 0 | AD143: 0 | AE143: 0 | AF143: 0 | AG143: 0 | AH143: 0 | AI143: 0 | AJ143: 0 | AK143: 0 | AL143: 0 | AM143: 0
A144: =ROW() -> 144 | D144: High Pressure Mains - PE | O144: 0 | P144: 0 | Q144: 0 | R144: 0 | S144: 0 | T144: 0 | W144: 0 | X144: 0 | Y144: 0 | Z144: 0 | AA144: 0 | AD144: 0 | AE144: 0 | AF144: 0 | AG144: 0 | AH144: 0 | AI144: 0 | AJ144: 0 | AK144: 0 | AL144: 0 | AM144: 0
A145: =ROW() -> 145 | D145: Medium Pressure Mains | O145: 0 | P145: 0 | Q145: 0 | R145: 0 | S145: 0 | T145: 0 | W145: 0 | X145: 0 | Y145: 0 | Z145: 0 | AA145: 0 | AD145: 0 | AE145: 0 | AF145: 0 | AG145: 0 | AH145: 0 | AI145: 0 | AJ145: 0 | AK145: 0 | AL145: 0 | AM145: 0
A146: =ROW() -> 146 | D146: Medium / Low Pressure Mains | O146: 0 | P146: 0 | Q146: 0 | R146: 0 | S146: 0 | T146: 0 | W146: 0 | X146: 0 | Y146: 0 | Z146: 0 | AA146: 0 | AD146: 0 | AE146: 0 | AF146: 0 | AG146: 0 | AH146: 0 | AI146: 0 | AJ146: 0 | AK146: 0 | AL146: 0 | AM146: 0
A147: =ROW() -> 147 | D147: Low Pressure Mains | O147: 0 | P147: 0 | Q147: 0 | R147: 0 | S147: 0 | T147: 0 | W147: 0 | X147: 0 | Y147: 0 | Z147: 0 | AA147: 0 | AD147: 0 | AE147: 0 | AF147: 0 | AG147: 0 | AH147: 0 | AI147: 0 | AJ147: 0 | AK147: 0 | AL147: 0 | AM147: 0
A148: =ROW() -> 148 | D148: Regulators | O148: 0 | P148: 0 | Q148: 0 | R148: 0 | S148: 0 | T148: 0 | W148: 0 | X148: 0 | Y148: 0 | Z148: 0 | AA148: 0 | AD148: 0 | AE148: 0 | AF148: 0 | AG148: 0 | AH148: 0 | AI148: 0 | AJ148: 0 | AK148: 0 | AL148: 0 | AM148: 0
A149: =ROW() -> 149 | D149: Secondary Gate Stations | O149: 0 | P149: 0 | Q149: 0 | R149: 0 | S149: 0 | T149: 0 | W149: 0 | X149: 0 | Y149: 0 | Z149: 0 | AA149: 0 | AD149: 0 | AE149: 0 | AF149: 0 | AG149: 0 | AH149: 0 | AI149: 0 | AJ149: 0 | AK149: 0 | AL149: 0 | AM149: 0
A150: =ROW() -> 150 | D150: Buildings | O150: 0 | P150: 0 | Q150: 0 | R150: 0 | S150: =-1.042 -> -1.042 | T150: 0 | W150: 0 | X150: 0 | Y150: 0 | Z150: 0 | AA150: 0 | AD150: 0 | AE150: 0 | AF150: 0 | AG150: 0 | AH150: 0 | AI150: 0 | AJ150: 0 | AK150: 0 | AL150: 0 | AM150: 0
A151: =ROW() -> 151 | D151: Meter and Services Pipes | O151: 0 | P151: 0 | Q151: 0 | R151: 0 | S151: 0 | T151: 0 | W151: 0 | X151: 0 | Y151: 0 | Z151: 0 | AA151: 0 | AD151: 0 | AE151: 0 | AF151: 0 | AG151: 0 | AH151: 0 | AI151: 0 | AJ151: 0 | AK151: 0 | AL151: 0 | AM151: 0
A152: =ROW() -> 152 | D152: Equipment & Vehicles | O152: 0 | P152: 0 | Q152: 0 | R152: 0 | S152: 0 | T152: 0 | W152: 0 | X152: 0 | Y152: 0 | Z152: 0 | AA152: 0 | AD152: 0 | AE152: 0 | AF152: 0 | AG152: 0 | AH152: 0 | AI152: 0 | AJ152: 0 | AK152: 0 | AL152: 0 | AM152: 0
A153: =ROW() -> 153 | D153: Vehicle | O153: 0 | P153: 0 | Q153: 0 | R153: 0 | S153: 0 | T153: 0 | W153: 0 | X153: 0 | Y153: 0 | Z153: 0 | AA153: 0 | AD153: 0 | AE153: 0 | AF153: 0 | AG153: 0 | AH153: 0 | AI153: 0 | AJ153: 0 | AK153: 0 | AL153: 0 | AM153: 0
A154: =ROW() -> 154 | D154: Information Technology | O154: 0 | P154: 0 | Q154: 0 | R154: 0 | S154: 0 | T154: 0 | W154: 0 | X154: 0 | Y154: 0 | Z154: 0 | AA154: 0 | AD154: 0 | AE154: 0 | AF154: 0 | AG154: 0 | AH154: 0 | AI154: 0 | AJ154: 0 | AK154: 0 | AL154: 0 | AM154: 0
D155: Telemetry and Monitoring | O155: 0 | P155: 0 | Q155: 0 | R155: 0 | S155: 0 | T155: 0 | W155: 0 | X155: 0 | Y155: 0 | Z155: 0 | AA155: 0 | AD155: 0 | AE155: 0 | AF155: 0 | AG155: 0 | AH155: 0 | AI155: 0 | AJ155: 0 | AK155: 0 | AL155: 0 | AM155: 0
A156: =ROW() -> 156 | D156: FRC | O156: 0 | P156: 0 | Q156: 0 | R156: 0 | S156: 0 | T156: 0 | W156: 0 | X156: 0 | Y156: 0 | Z156: 0 | AA156: 0 | AD156: 0 | AE156: 0 | AF156: 0 | AG156: 0 | AH156: 0 | AI156: 0 | AJ156: 0 | AK156: 0 | AL156: 0 | AM156: 0
A157: =ROW() -> 157 | D157: Land | O157: 0 | P157: 0 | Q157: 0 | R157: 0 | S157: =-3.428 -> -3.428 | T157: 0 | W157: 0 | X157: 0 | Y157: 0 | Z157: 0 | AA157: 0 | AD157: 0 | AE157: 0 | AF157: 0 | AG157: 0 | AH157: 0 | AI157: 0 | AJ157: 0 | AK157: 0 | AL157: 0 | AM157: 0
A158: =ROW() -> 158 | D158: Equity Raising Cost | O158: 0 | P158: 0 | Q158: 0 | R158: 0 | S158: 0 | T158: 0 | W158: 0 | X158: 0 | Y158: 0 | Z158: 0 | AA158: 0 | AD158: 0 | AE158: 0 | AF158: 0 | AG158: 0 | AH158: 0 | AI158: 0 | AJ158: 0 | AK158: 0 | AL158: 0 | AM158: 0
A159: =ROW() -> 159 | D159: Total | O159: =SUM(O143:O158) -> 0 | P159: =SUM(P143:P158) -> 0 | Q159: =SUM(Q143:Q158) -> 0 | R159: =SUM(R143:R158) -> 0 | S159: =SUM(S143:S158) -> -4.47 | T159: =SUM(T143:T158) -> 0 | W159: 0 | X159: 0 | Y159: 0 | Z159: 0 | AA159: 0 | AD159: 0 | AE159: 0 | AF159: 0 | AG159: 0 | AH159: 0 | AI159: =SUM(AI143:AI158) -> 0 | AJ159: 0 | AK159: 0 | AL159: 0 | AM159: 0
A160: =ROW() -> 160 | C160: Disposal | O160: ="Actual 3 [m$ "&$G$34&"]" -> Actual 3 [m$ 31/12/2019] | T160: ="Actual 3 [m$ "&$G$34&"]" -> Actual 3 [m$ 31/12/2019] | AA160: ="Actual [m$ "&$G$34&"]" -> Actual [m$ 31/12/2019] | AG160: ="Forecast [m$ "&$G$34&"]" -> Forecast [m$ 31/12/2019] | AI160: ="Forecast [m$ "&$G$34&"]" -> Forecast [m$ 31/12/2019]
A161: =ROW() -> 161 | D161: High Pressure Mains - Steel | O161: =O143/$S$25*$S$34 -> 0 | P161: 0 | Q161: 0 | R161: 0 | S161: 0 | T161: =T143*$Z$34 -> 0 | W161: =W143*$Z$34 -> 0 | X161: 0 | Y161: 0 | Z161: 0 | AA161: =AA143*AA$34 -> 0 | AD161: 0 | AE161: 0 | AF161: 0 | AG161: 0 | AH161: 0 | AI161: 0 | AJ161: 0 | AK161: 0 | AL161: 0 | AM161: 0
A162: =ROW() -> 162 | D162: High Pressure Mains - PE | O162: 0 | P162: 0 | Q162: 0 | R162: 0 | S162: 0 | T162: 0 | W162: 0 | X162: 0 | Y162: 0 | Z162: 0 | AA162: =AA144*AA$34 -> 0 | AD162: 0 | AE162: 0 | AF162: 0 | AG162: 0 | AH162: 0 | AI162: 0 | AJ162: 0 | AK162: 0 | AL162: 0 | AM162: 0
A163: =ROW() -> 163 | D163: Medium Pressure Mains | O163: 0 | P163: 0 | Q163: 0 | R163: 0 | S163: 0 | T163: 0 | W163: 0 | X163: 0 | Y163: 0 | Z163: 0 | AA163: =AA145*AA$34 -> 0 | AD163: 0 | AE163: 0 | AF163: 0 | AG163: 0 | AH163: 0 | AI163: 0 | AJ163: 0 | AK163: 0 | AL163: 0 | AM163: 0
A164: =ROW() -> 164 | D164: Medium / Low Pressure Mains | O164: 0 | P164: 0 | Q164: 0 | R164: 0 | S164: 0 | T164: 0 | W164: 0 | X164: 0 | Y164: 0 | Z164: 0 | AA164: =AA146*AA$34 -> 0 | AD164: 0 | AE164: 0 | AF164: 0 | AG164: 0 | AH164: 0 | AI164: 0 | AJ164: 0 | AK164: 0 | AL164: 0 | AM164: 0
A165: =ROW() -> 165 | D165: Low Pressure Mains | O165: 0 | P165: 0 | Q165: 0 | R165: 0 | S165: 0 | T165: 0 | W165: 0 | X165: 0 | Y165: 0 | Z165: 0 | AA165: =AA147*AA$34 -> 0 | AD165: 0 | AE165: 0 | AF165: 0 | AG165: 0 | AH165: 0 | AI165: 0 | AJ165: 0 | AK165: 0 | AL165: 0 | AM165: 0
A166: =ROW() -> 166 | D166: Regulators | O166: 0 | P166: 0 | Q166: 0 | R166: 0 | S166: 0 | T166: 0 | W166: 0 | X166: 0 | Y166: 0 | Z166: 0 | AA166: =AA148*AA$34 -> 0 | AD166: 0 | AE166: 0 | AF166: 0 | AG166: 0 | AH166: 0 | AI166: 0 | AJ166: 0 | AK166: 0 | AL166: 0 | AM166: 0
A167: =ROW() -> 167 | D167: Secondary Gate Stations | O167: 0 | P167: 0 | Q167: 0 | R167: 0 | S167: 0 | T167: 0 | W167: 0 | X167: 0 | Y167: 0 | Z167: 0 | AA167: =AA149*AA$34 -> 0 | AD167: 0 | AE167: 0 | AF167: 0 | AG167: 0 | AH167: 0 | AI167: 0 | AJ167: 0 | AK167: 0 | AL167: 0 | AM167: 0
A168: =ROW() -> 168 | D168: Buildings | O168: 0 | P168: 0 | Q168: 0 | R168: 0 | S168: -1.266825632 | T168: 0 | W168: 0 | X168: 0 | Y168: 0 | Z168: 0 | AA168: =AA150*AA$34 -> 0 | AD168: 0 | AE168: 0 | AF168: 0 | AG168: 0 | AH168: 0 | AI168: 0 | AJ168: 0 | AK168: 0 | AL168: 0 | AM168: 0
A169: =ROW() -> 169 | D169: Meter and Services Pipes | O169: 0 | P169: 0 | Q169: 0 | R169: 0 | S169: 0 | T169: 0 | W169: 0 | X169: 0 | Y169: 0 | Z169: 0 | AA169: =AA151*AA$34 -> 0 | AD169: 0 | AE169: 0 | AF169: 0 | AG169: 0 | AH169: 0 | AI169: 0 | AJ169: 0 | AK169: 0 | AL169: 0 | AM169: 0
A170: =ROW() -> 170 | D170: Equipment & Vehicles | O170: 0 | P170: 0 | Q170: 0 | R170: 0 | S170: 0 | T170: 0 | W170: 0 | X170: 0 | Y170: 0 | Z170: 0 | AA170: =AA152*AA$34 -> 0 | AD170: 0 | AE170: 0 | AF170: 0 | AG170: 0 | AH170: 0 | AI170: 0 | AJ170: 0 | AK170: 0 | AL170: 0 | AM170: 0
A171: =ROW() -> 171 | D171: Vehicle | O171: =O153/$S$25*$S$34 -> 0 | P171: 0 | Q171: 0 | R171: 0 | S171: 0 | T171: 0 | W171: 0 | X171: 0 | Y171: 0 | Z171: 0 | AA171: =AA153*AA$34 -> 0 | AD171: 0 | AE171: 0 | AF171: 0 | AG171: 0 | AH171: 0 | AI171: 0 | AJ171: 0 | AK171: 0 | AL171: 0 | AM171: 0
A172: =ROW() -> 172 | D172: Information Technology | O172: 0 | P172: 0 | Q172: 0 | R172: 0 | S172: 0 | T172: 0 | W172: 0 | X172: 0 | Y172: 0 | Z172: 0 | AA172: =AA154*AA$34 -> 0 | AD172: 0 | AE172: 0 | AF172: 0 | AG172: 0 | AH172: 0 | AI172: 0 | AJ172: 0 | AK172: 0 | AL172: 0 | AM172: 0
D173: Telemetry and Monitoring | O173: 0 | P173: 0 | Q173: 0 | R173: 0 | S173: 0 | T173: 0 | W173: 0 | X173: 0 | Y173: 0 | Z173: 0 | AA173: 0 | AD173: 0 | AE173: 0 | AF173: 0 | AG173: 0 | AH173: 0 | AI173: 0 | AJ173: 0 | AK173: 0 | AL173: 0 | AM173: 0
A174: =ROW() -> 174 | D174: FRC | O174: 0 | P174: 0 | Q174: 0 | R174: 0 | S174: 0 | T174: 0 | W174: 0 | X174: 0 | Y174: 0 | Z174: 0 | AA174: =AA156*AA$34 -> 0 | AD174: 0 | AE174: 0 | AF174: 0 | AG174: 0 | AH174: 0 | AI174: 0 | AJ174: 0 | AK174: 0 | AL174: 0 | AM174: 0
A175: =ROW() -> 175 | D175: Land | O175: 0 | P175: 0 | Q175: 0 | R175: 0 | S175: -4.167637493 | T175: 0 | W175: 0 | X175: 0 | Y175: 0 | Z175: 0 | AA175: =AA157*AA$34 -> 0 | AD175: 0 | AE175: 0 | AF175: 0 | AG175: 0 | AH175: 0 | AI175: 0 | AJ175: 0 | AK175: 0 | AL175: 0 | AM175: 0
A176: =ROW() -> 176 | D176: Equity Raising Cost | O176: 0 | P176: 0 | Q176: 0 | R176: 0 | S176: 0 | T176: 0 | W176: 0 | X176: 0 | Y176: 0 | Z176: 0 | AA176: =AA158*AA$34 -> 0 | AD176: 0 | AE176: 0 | AF176: 0 | AG176: 0 | AH176: 0 | AI176: 0 | AJ176: 0 | AK176: 0 | AL176: 0 | AM176: 0
A177: =ROW() -> 177 | D177: Total | O177: =SUM(O161:O176) -> 0 | P177: 0 | Q177: 0 | R177: 0 | S177: -5.434463125 | T177: 0 | W177: 0 | X177: 0 | Y177: 0 | Z177: 0 | AA177: =SUM(AA161:AA176) -> 0 | AD177: 0 | AE177: 0 | AF177: 0 | AG177: 0 | AH177: 0 | AI177: =SUM(AI161:AI176) -> 0 | AJ177: 0 | AK177: 0 | AL177: 0 | AM177: 0
A178: AA2 Asset Adjustment(ICB), Redundant Assets(ICB) & Asset Disposal (ICB)
A179: =ROW() -> 179 | C179: Redundant Asset | O179: =O$160 -> Actual 3 [m$ 31/12/2019] | T179: =T$160 -> Actual 3 [m$ 31/12/2019] | AA179: ="Actual [m$ "&$G$34&"]" -> Actual [m$ 31/12/2019] | AG179: ="Forecast [m$ "&$G$34&"]" -> Forecast [m$ 31/12/2019] | AI179: ="Forecast [m$ "&$G$34&"]" -> Forecast [m$ 31/12/2019]
A180: =ROW() -> 180 | D180: High Pressure Mains - Steel | O180: =O123+O161 -> 0 | P180: 0 | Q180: 0 | R180: 0 | S180: 0 | T180: 0 | W180: 0 | X180: 0 | Y180: 0 | Z180: 0 | AA180: 0 | AB180: 0 | AC180: 0 | AD180: 0 | AE180: 0 | AF180: 0 | AG180: 0 | AH180: 0 | AI180: 0 | AJ180: 0 | AK180: 0 | AL180: 0 | AM180: 0
A181: =ROW() -> 181 | D181: High Pressure Mains - PE | O181: =O124+O162 -> 0 | P181: 0 | Q181: 0 | R181: 0 | S181: 0 | T181: 0 | W181: 0 | X181: 0 | Y181: 0 | Z181: 0 | AA181: 0 | AB181: 0 | AC181: 0 | AD181: 0 | AE181: 0 | AF181: 0 | AG181: 0 | AH181: 0 | AI181: 0 | AJ181: 0 | AK181: 0 | AL181: 0 | AM181: 0
A182: =ROW() -> 182 | D182: Medium Pressure Mains | O182: =O125+O163 -> 0 | P182: 0 | Q182: 0 | R182: 0 | S182: 0 | T182: 0 | W182: 0 | X182: 0 | Y182: 0 | Z182: 0 | AA182: 0 | AB182: 0 | AC182: 0 | AD182: 0 | AE182: 0 | AF182: 0 | AG182: 0 | AH182: 0 | AI182: 0 | AJ182: 0 | AK182: 0 | AL182: 0 | AM182: 0
A183: =ROW() -> 183 | D183: Medium / Low Pressure Mains | O183: =O126+O164 -> 0 | P183: 0 | Q183: 0 | R183: 0 | S183: 0 | T183: 0 | W183: 0 | X183: 0 | Y183: 0 | Z183: 0 | AA183: 0 | AB183: 0 | AC183: 0 | AD183: 0 | AE183: 0 | AF183: 0 | AG183: 0 | AH183: 0 | AI183: 0 | AJ183: 0 | AK183: 0 | AL183: 0 | AM183: 0
A184: =ROW() -> 184 | D184: Low Pressure Mains | O184: =O127+O165 -> 0 | P184: 0 | Q184: 0 | R184: 0 | S184: 0 | T184: 0 | W184: 0 | X184: 0 | Y184: 0 | Z184: 0 | AA184: 0 | AB184: 0 | AC184: 0 | AD184: 0 | AE184: 0 | AF184: 0 | AG184: 0 | AH184: 0 | AI184: 0 | AJ184: 0 | AK184: 0 | AL184: 0 | AM184: 0
A185: =ROW() -> 185 | D185: Regulators | O185: =O128+O166 -> 0 | P185: 0 | Q185: 0 | R185: 0 | S185: 0 | T185: 0 | W185: 0 | X185: 0 | Y185: 0 | Z185: 0 | AA185: 0 | AB185: 0 | AC185: 0 | AD185: 0 | AE185: 0 | AF185: 0 | AG185: 0 | AH185: 0 | AI185: 0 | AJ185: 0 | AK185: 0 | AL185: 0 | AM185: 0
A186: =ROW() -> 186 | D186: Secondary Gate Stations | O186: =O129+O167 -> 0 | P186: 0 | Q186: 0 | R186: 0 | S186: 0 | T186: 0 | W186: 0 | X186: 0 | Y186: 0 | Z186: 0 | AA186: 0 | AB186: 0 | AC186: 0 | AD186: 0 | AE186: 0 | AF186: 0 | AG186: 0 | AH186: 0 | AI186: 0 | AJ186: 0 | AK186: 0 | AL186: 0 | AM186: 0
A187: =ROW() -> 187 | D187: Buildings | O187: =O130+O168 -> 0 | P187: 0 | Q187: 0 | R187: 0 | S187: -1.266825632 | T187: 0 | W187: 0 | X187: 0 | Y187: 0 | Z187: 0 | AA187: 0 | AB187: 0 | AC187: 0 | AD187: 0 | AE187: 0 | AF187: 0 | AG187: 0 | AH187: 0 | AI187: 0 | AJ187: 0 | AK187: 0 | AL187: 0 | AM187: 0
A188: =ROW() -> 188 | D188: Meter and Services Pipes | O188: =O131+O169 -> 0 | P188: 0 | Q188: 0 | R188: 0 | S188: 0 | T188: 0 | W188: 0 | X188: 0 | Y188: 0 | Z188: 0 | AA188: 0 | AB188: 0 | AC188: 0 | AD188: 0 | AE188: 0 | AF188: 0 | AG188: 0 | AH188: 0 | AI188: 0 | AJ188: 0 | AK188: 0 | AL188: 0 | AM188: 0
A189: =ROW() -> 189 | D189: Equipment & Vehicles | O189: =O132+O170 -> 0 | P189: 0 | Q189: 0 | R189: 0 | S189: 0 | T189: 0 | W189: 0 | X189: 0 | Y189: 0 | Z189: 0 | AA189: 0 | AB189: 0 | AC189: 0 | AD189: 0 | AE189: 0 | AF189: 0 | AG189: 0 | AH189: 0 | AI189: 0 | AJ189: 0 | AK189: 0 | AL189: 0 | AM189: 0
A190: =ROW() -> 190 | D190: Vehicle | O190: =O133+O171 -> 0 | P190: 0 | Q190: 0 | R190: 0 | S190: 0 | T190: 0 | W190: 0 | X190: 0 | Y190: 0 | Z190: 0 | AA190: 0 | AB190: 0 | AC190: 0 | AD190: 0 | AE190: 0 | AF190: 0 | AG190: 0 | AH190: 0 | AI190: 0 | AJ190: 0 | AK190: 0 | AL190: 0 | AM190: 0
A191: =ROW() -> 191 | D191: Information Technology | O191: =O134+O172 -> 0 | P191: 0 | Q191: 0 | R191: 0 | S191: 0 | T191: 0 | W191: 0 | X191: 0 | Y191: 0 | Z191: 0 | AA191: 0 | AB191: 0 | AC191: 0 | AD191: 0 | AE191: 0 | AF191: 0 | AG191: 0 | AH191: 0 | AI191: 0 | AJ191: 0 | AK191: 0 | AL191: 0 | AM191: 0
D192: Telemetry and Monitoring | O192: =O135+O173 -> 0 | P192: 0 | Q192: 0 | R192: 0 | S192: 0 | T192: 0 | W192: 0 | X192: 0 | Y192: 0 | Z192: 0 | AA192: 0 | AB192: 0 | AC192: 0 | AD192: 0 | AE192: 0 | AF192: 0 | AG192: 0 | AH192: 0 | AI192: 0 | AJ192: 0 | AK192: 0 | AL192: 0 | AM192: 0
A193: =ROW() -> 193 | D193: FRC | O193: =O136+O174 -> 0 | P193: 0 | Q193: 0 | R193: 0 | S193: 0 | T193: 0 | W193: 0 | X193: 0 | Y193: 0 | Z193: 0 | AA193: 0 | AB193: 0 | AC193: 0 | AD193: 0 | AE193: 0 | AF193: 0 | AG193: 0 | AH193: 0 | AI193: 0 | AJ193: 0 | AK193: 0 | AL193: 0 | AM193: 0
A194: =ROW() -> 194 | D194: Land | O194: =O137+O175 -> 0 | P194: 0 | Q194: 0 | R194: 0 | S194: -4.167637493 | T194: 0 | W194: 0 | X194: 0 | Y194: 0 | Z194: 0 | AA194: 0 | AB194: 0 | AC194: 0 | AD194: 0 | AE194: 0 | AF194: 0 | AG194: 0 | AH194: 0 | AI194: 0 | AJ194: 0 | AK194: 0 | AL194: 0 | AM194: 0
A195: =ROW() -> 195 | D195: Equity Raising Cost | O195: =O138+O176 -> 0 | P195: 0 | Q195: 0 | R195: 0 | S195: 0 | T195: 0 | W195: 0 | X195: 0 | Y195: 0 | Z195: 0 | AA195: 0 | AB195: 0 | AC195: 0 | AD195: 0 | AE195: 0 | AF195: 0 | AG195: 0 | AH195: 0 | AI195: 0 | AJ195: 0 | AK195: 0 | AL195: 0 | AM195: 0
A196: =ROW() -> 196 | D196: Total | O196: =SUM(O180:O195) -> 0 | P196: 0 | Q196: 0 | R196: 0 | S196: -5.434463125 | T196: 0 | W196: 0 | X196: 0 | Y196: 0 | Z196: 0 | AA196: =SUM(AA180:AA195) -> 0 | AD196: 0 | AE196: 0 | AF196: 0 | AG196: 0 | AH196: 0 | AI196: =SUM(AI180:AI195) -> 0 | AJ196: 0 | AK196: 0 | AL196: 0 | AM196: 0
A197: Asset Correction (Data entry)
A198: =ROW() -> 198 | C198: Redundant Asset | O198: Actual 2 [m$ 31/12/2004] | T198: Actual 3 [m$ 30/06/2014] | AA198: Actual [m$ 31/12/2019] | AG198: ="Forecast [m$ "&$G$34&"]" -> Forecast [m$ 31/12/2019] | AI198: ="Forecast [m$ "&$G$34&"]" -> Forecast [m$ 31/12/2019]
A199: =ROW() -> 199 | D199: High Pressure Mains - Steel | O199: 0 | P199: 0 | Q199: 0 | R199: 0 | S199: 0 | T199: 0 | W199: 0 | X199: 0 | Y199: 0 | Z199: 0 | AA199: 0 | AD199: 0 | AE199: 0 | AF199: 0 | AG199: 0 | AH199: 0 | AI199: 0 | AJ199: 0 | AK199: 0 | AL199: 0 | AM199: 0
A200: =ROW() -> 200 | D200: High Pressure Mains - PE | T200: 0 | W200: 0 | X200: 0 | Y200: 0 | Z200: 0 | AA200: 0 | AD200: 0 | AE200: 0 | AF200: 0 | AG200: 0 | AH200: 0 | AI200: 0 | AJ200: 0 | AK200: 0 | AL200: 0 | AM200: 0
A201: =ROW() -> 201 | D201: Medium Pressure Mains | O201: 0 | P201: 0 | Q201: 0 | R201: 0 | S201: 0 | T201: 0 | W201: 0 | X201: 0 | Y201: 0 | Z201: 0 | AA201: 0 | AD201: 0 | AE201: 0 | AF201: 0 | AG201: 0 | AH201: 0 | AI201: 0 | AJ201: 0 | AK201: 0 | AL201: 0 | AM201: 0
A202: =ROW() -> 202 | D202: Medium / Low Pressure Mains | O202: 0 | P202: 0 | Q202: 0 | R202: 0 | S202: 0 | T202: 0 | W202: 0 | X202: 0 | Y202: 0 | Z202: 0 | AA202: 0 | AD202: 0 | AE202: 0 | AF202: 0 | AG202: 0 | AH202: 0 | AI202: 0 | AJ202: 0 | AK202: 0 | AL202: 0 | AM202: 0
... 1402 more rows

Sheet WACC
A4: Determination of the Weighted Average Cost of Capital (WACC)
A5: Ref | B5: =COLUMN() -> 2 | C5: =COLUMN() -> 3 | AA5: =COLUMN() -> 27 | AD5: =COLUMN() -> 30 | AE5: =COLUMN() -> 31
A6: =ROW() -> 6 | AA6: ERA | AD6: ERA | AE6: ERA | AF6: ERA | AG6: ERA | AH6: ERA | AI6: ERA | AJ6: ERA | AK6: ERA | AL6: ERA | AM6: ERA
A7: =ROW() -> 7 | AA7: AA4 Jul - Dec 2014 | AD7: AA4 2015 | AE7: AA4 2016 | AF7: AA4 2017 | AG7: AA4 2018 | AH7: AA4 2019 | AI7: AA4 2020 | AJ7: AA4 2021 | AK7: AA4 2022 | AL7: AA4 2023 | AM7: AA4 2024
A8: =ROW() -> 8
A9: =ROW() -> 9 | C9: Debt: Nominal Risk Free Rate (DRfn) | AA9: 0.0196 | AD9: 0.0196 | AE9: 0.0196 | AF9: 0.0196 | AG9: 0.0196 | AH9: 0.0196 | AI9: 0.0237 | AJ9: 0.0237 | AK9: 0.0237 | AL9: 0.0237 | AM9: 0.0237
A10: =ROW() -> 10 | C10: Debt: Real Risk Free Rate (DRfr) | AA10: =(1+AA9)/(1+AA13)-1 -> 0.0005888125613 | AD10: =(1+AD9)/(1+AD13)-1 -> 0.0005888125613 | AE10: =(1+AE9)/(1+AE13)-1 -> 0.0005888125613 | AF10: =(1+AF9)/(1+AF13)-1 -> 0.0005888125613 | AG10: =(1+AG9)/(1+AG13)-1 -> 0.0005888125613 | AH10: =(1+AH9)/(1+AH13)-1 -> 0.0005888125613 | AI10: 0.005204241948 | AJ10: 0.005204241948 | AK10: 0.005204241948 | AL10: 0.005204241948 | AM10: 0.005204241948
A11: =ROW() -> 11 | C11: Equity: Nominal Risk Free Rate (ERfn) | AA11: 0.0196 | AD11: 0.0196 | AE11: 0.0196 | AF11: 0.0196 | AG11: 0.0196 | AH11: 0.0196 | AI11: 0.0237 | AJ11: 0.0237 | AK11: 0.0237 | AL11: 0.0237 | AM11: 0.0237
A12: =ROW() -> 12 | C12: Equity: Real Risk Free Rate (ERfr) | AA12: =(1+AA11)/(1+AA13)-1 -> 0.0005888125613 | AD12: =(1+AD11)/(1+AD13)-1 -> 0.0005888125613 | AE12: =(1+AE11)/(1+AE13)-1 -> 0.0005888125613 | AF12: =(1+AF11)/(1+AF13)-1 -> 0.0005888125613 | AG12: =(1+AG11)/(1+AG13)-1 -> 0.0005888125613 | AH12: =(1+AH11)/(1+AH13)-1 -> 0.0005888125613 | AI12: 0.005204241948 | AJ12: 0.005204241948 | AK12: 0.005204241948 | AL12: 0.005204241948 | AM12: 0.005204241948
A13: =ROW() -> 13 | C13: Inflation Rate for WACC (I) | AA13: 0.019 | AD13: 0.019 | AE13: 0.019 | AF13: 0.019 | AG13: 0.019 | AH13: 0.019 | AI13: =Input!AI23 -> 0.0184 | AJ13: =Input!AJ23 -> 0.0184 | AK13: =Input!AK23 -> 0.0184 | AL13: =Input!AL23 -> 0.0184 | AM13: =Input!AM23 -> 0.0184
A14: =ROW() -> 14 | C14: Debt Proportion (D) | AA14: 0.6 | AD14: 0.6 | AE14: 0.6 | AF14: 0.6 | AG14: 0.6 | AH14: 0.6 | AI14: 0.55 | AJ14: 0.55 | AK14: 0.55 | AL14: 0.55 | AM14: 0.55
A15: =ROW() -> 15 | C15: Equity Proportion (E) | AA15: =1-AA14 -> 0.4 | AD15: =1-AD14 -> 0.4 | AE15: =1-AE14 -> 0.4 | AF15: =1-AF14 -> 0.4 | AG15: =1-AG14 -> 0.4 | AH15: =1-AH14 -> 0.4 | AI15: 0.45 | AJ15: 0.45 | AK15: 0.45 | AL15: 0.45 | AM15: 0.45
A16: =ROW() -> 16 | C16: Cost of Debt; Debt Risk Premium (Drp) | AA16: 0.02429 | AD16: 0.02502 | AE16: 0.02676 | AF16: 0.02785 | AG16: 0.02605 | AH16: =AG16 -> 0.02605 | AI16: 0.02267 | AJ16: 0.02267 | AK16: 0.02267 | AL16: 0.02267 | AM16: 0.02267
A17: =ROW() -> 17 | C17: Cost of Debt; Debt Issuing Cost (Disc) | AA17: 0.00125 | AD17: =AA17 -> 0.00125 | AE17: =AD17 -> 0.00125 | AF17: 0.00125 | AG17: 0.00125 | AH17: 0.00125 | AI17: 0.001 | AJ17: 0.001 | AK17: 0.001 | AL17: 0.001 | AM17: 0.001
A18: =ROW() -> 18 | C18: Cost of Debt; Hedging Cost | AA18: 0.00114 | AD18: =AA18 -> 0.00114 | AE18: 0.00114 | AF18: 0.00114 | AG18: 0.00114 | AH18: 0.00114 | AI18: 0.00114 | AJ18: 0.00114 | AK18: 0.00114 | AL18: 0.00114 | AM18: 0.00114
A19: =ROW() -> 19 | C19: Cost of Debt; 5 year Interest Rate Swap Spread | AA19: 0.00471 | AD19: 0.00471 | AE19: =AD19 -> 0.00471 | AF19: =AE19 -> 0.00471 | AG19: =AF19 -> 0.00471 | AH19: =AG19 -> 0.00471 | AI19: 0.0022 | AJ19: 0.0022 | AK19: 0.0022 | AL19: 0.0022 | AM19: 0.0022
A20: =ROW() -> 20 | C20: Cost of Debt; Risk Margin (Rm) | AA20: =SUM(AA16:AA19) -> 0.03139 | AD20: 0.03212 | AE20: 0.03386 | AF20: 0.03495 | AG20: 0.03315 | AH20: 0.03315 | AI20: 0.02701 | AJ20: 0.02701 | AK20: 0.02701 | AL20: 0.02701 | AM20: 0.02701
A21: =ROW() -> 21 | C21: Australian Market Risk Premium (Rp) | AA21: 0.075 | AD21: 0.075 | AE21: 0.075 | AF21: 0.075 | AG21: 0.075 | AH21: 0.075 | AI21: 0.069 | AJ21: 0.069 | AK21: 0.069 | AL21: 0.069 | AM21: 0.069
A22: =ROW() -> 22 | C22: Equity Beta (Be) | AA22: 0.7 | AD22: =AA22 -> 0.7 | AE22: =AD22 -> 0.7 | AF22: 0.7 | AG22: 0.7 | AH22: 0.7 | AI22: 0.7 | AJ22: 0.7 | AK22: 0.7 | AL22: 0.7 | AM22: 0.7
A23: =ROW() -> 23 | C23: Corporate Tax Rate (T) | AA23: 0.3 | AD23: 0.3 | AE23: 0.3 | AF23: 0.3 | AG23: 0.3 | AH23: 0.3 | AI23: 0.3 | AJ23: 0.3 | AK23: 0.3 | AL23: 0.3 | AM23: 0.3
A24: =ROW() -> 24 | C24: Franking Credit (g) | AA24: =40%*0 + 25% -> 0.25 | AD24: =AA24 -> 0.25 | AE24: 0.25 | AF24: 0.25 | AG24: 0.25 | AH24: 0.25 | AI24: 0.34 | AJ24: 0.34 | AK24: 0.34 | AL24: 0.34 | AM24: 0.34
A25: =ROW() -> 25 | C25: Imputation Adj (G) | AA25: =(1-AA23)/(1-AA23*(1-AA24)) -> 0.9032258065 | AD25: 0.9032258065 | AE25: 0.9032258065 | AF25: 0.9032258065 | AG25: 0.9032258065 | AH25: 0.9032258065 | AI25: 0.8728179551 | AJ25: 0.8728179551 | AK25: 0.8728179551 | AL25: 0.8728179551 | AM25: 0.8728179551
A26: =ROW() -> 26 | B26: Debt
A27: =ROW() -> 27 | C27: Nominal Cost of Debt (DPn) | AA27: =AA9+AA20 -> 0.05099 | AD27: 0.05172 | AE27: 0.05346 | AF27: 0.05455 | AG27: 0.05275 | AH27: 0.05275 | AI27: 0.05071 | AJ27: 0.05071 | AK27: 0.05071 | AL27: 0.05071 | AM27: 0.05071
A28: =ROW() -> 28 | B28: Equity
A29: =ROW() -> 29 | C29: Nominal Pre Tax Cost of Equity (EPn) | AA29: =AA30/(1-AA23*(1-AA24)) -> 0.09303225806 | AD29: 0.09303225806 | AE29: 0.09303225806 | AF29: 0.09303225806 | AG29: 0.09303225806 | AH29: 0.09303225806 | AI29: =AI30/(1-AI23*(1-AI24)) -> 0.0897755611 | AJ29: 0.0897755611 | AK29: 0.0897755611 | AL29: 0.0897755611 | AM29: 0.0897755611
A30: =ROW() -> 30 | C30: Nominal After Tax Cost of Equity (EAn) | AA30: =AA11+(AA21*AA22) -> 0.0721 | AD30: 0.0721 | AE30: 0.0721 | AF30: 0.0721 | AG30: 0.0721 | AH30: 0.0721 | AI30: =AI11+(AI21*AI22) -> 0.072 | AJ30: 0.072 | AK30: 0.072 | AL30: 0.072 | AM30: 0.072
A31: =ROW() -> 31 | B31: WACC; Pre-tax Officer (Market Practise or Forward Transformation)
A32: =ROW() -> 32 | C32: Nominal Pre Tax WACC (WPn) | AA32: =AA29*AA15+AA27*AA14 -> 0.06780690323 | AD32: 0.06824490323 | AE32: 0.06928890323 | AF32: 0.06994290323 | AG32: 0.06886290323 | AH32: 0.06886290323 | AI32: =AI29*AI15+AI27*AI14 -> 0.06828950249 | AJ32: 0.06828950249 | AK32: 0.06828950249 | AL32: 0.06828950249 | AM32: 0.06828950249
A33: =ROW() -> 33 | C33: Real Pre Tax WACC (WPr) | AA33: =(1+AA32)/(1+AA13)-1 -> 0.04789686283 | AD33: 0.048326696 | AE33: 0.04935122986 | AF33: 0.04999303555 | AG33: 0.04893317294 | AH33: 0.04893317294 | AI33: =(1+AI32)/(1+AI13)-1 -> 0.04898812107 | AJ33: 0.04898812107 | AK33: 0.04898812107 | AL33: 0.04898812107 | AM33: 0.04898812107
A34: =ROW() -> 34 | B34: WACC: Vanilla
A35: =ROW() -> 35 | C35: Nominal After Tax WACC | AA35: =AA14*AA27+AA15*AA30 -> 0.059434 | AD35: 0.059872 | AE35: 0.060916 | AF35: 0.06157 | AG35: 0.06049 | AH35: 0.06049 | AI35: =AI14*AI27+AI15*AI30 -> 0.0602905 | AJ35: 0.0602905 | AK35: 0.0602905 | AL35: 0.0602905 | AM35: 0.0602905
A36: =ROW() -> 36 | C36: Real After Tax WACC | AA36: =(1+AA35)/(1+AA13)-1 -> 0.03968007851 | AD36: 0.04010991168 | AE36: 0.04113444553 | AF36: 0.04177625123 | AG36: 0.04071638862 | AH36: 0.04071638862 | AI36: =(1+AI35)/(1+AI13)-1 -> 0.04113364101 | AJ36: 0.04113364101 | AK36: 0.04113364101 | AL36: 0.04113364101 | AM36: 0.04113364101
A37: =ROW() -> 37

Sheet Load_Tariffs
A2: Inputs for Tariff Revenue
C3: =COLUMN() -> 3 | D3: =COLUMN() -> 4 | E3: =COLUMN() -> 5 | F3: =COLUMN() -> 6 | G3: =COLUMN() -> 7 | H3: =COLUMN() -> 8 | I3: =COLUMN() -> 9 | J3: =COLUMN() -> 10 | K3: =COLUMN() -> 11 | L3: =COLUMN() -> 12 | M3: =COLUMN() -> 13 | N3: =COLUMN() -> 14 | O3: =COLUMN() -> 15 | P3: =COLUMN() -> 16 | Q3: =COLUMN() -> 17 | R3: =COLUMN() -> 18 | S3: =COLUMN() -> 19 | T3: =COLUMN() -> 20 | U3: =COLUMN() -> 21 | V3: =COLUMN() -> 22 | W3: =COLUMN() -> 23 | X3: =COLUMN() -> 24 | Y3: =COLUMN() -> 25 | Z3: =COLUMN() -> 26 | AA3: =COLUMN() -> 27 | AB3: =COLUMN() -> 28 | AC3: =COLUMN() -> 29 | AD3: =COLUMN() -> 30 | AE3: =COLUMN() -> 31 | AF3: =COLUMN() -> 32 | AG3: =COLUMN() -> 33 | AH3: =COLUMN() -> 34
A4: =ROW() -> 4 | J4: Year ending 31 December | O4: Year ending 31 December | W4: Year Ending 30 June | AD4: Year ending 31 December | AI4: Year ending 31 December
A5: Regulatory Period | J5: 1 | K5: 1 | L5: 1 | M5: 1 | N5: 1 | O5: 2 | P5: 2 | Q5: 2 | R5: 2 | S5: 2 | T5: 3 | U5: 3 | V5: 3 | W5: 3 | X5: 3 | Y5: 3 | Z5: 3 | AA5: 4 | AB5: 4 | AC5: 4 | AD5: 4 | AE5: 4 | AF5: 4 | AG5: 4 | AH5: 4 | AI5: 5 | AJ5: 6 | AK5: 7 | AL5: 8 | AM5: 9
A6: Year ending | I6: 1999 | J6: 2000 | K6: 2001 | L6: 2002 | M6: 2003 | N6: 2004 | O6: 2005 | P6: 2006 | Q6: 2007 | R6: 2008 | S6: =1+R6 -> 2009 | T6: =1+S6 -> 2010 | U6: 2010 | V6: =1+U6 -> 2011 | W6: =T6+1 -> 2011 | X6: =1+V6 -> 2012 | Y6: =1+X6 -> 2013 | Z6: =1+Y6 -> 2014 | AA6: 2014 | AB6: 2015 | AC6: 2015 | AD6: 2015 | AE6: =1+AD6 -> 2016 | AF6: 2017 | AG6: 2018 | AH6: 2019 | AI6: 2020 | AJ6: 2021 | AK6: 2022 | AL6: 2023 | AM6: 2024
A7: Months | I7: 1 to 12 | J7: 1 to 12 | K7: 1 to 12 | L7: 1 to 12 | M7: 1 to 12 | N7: 1 to 12 | O7: 1 to 12 | P7: 1 to 12 | Q7: 1 to 12 | R7: 1 to 12 | S7: 1 to 12 | T7: 1 to 6 | U7: 7 to 12 | V7: 1 to 6 | W7: 7 to 6 | X7: 7 to 6 | Y7: 7 to 6 | Z7: 7 to 6 | AA7: 7 to 12 | AB7: 1 to 9 | AC7: 10 to 12 | AD7: 1 to 12 | AE7: 1 to 12 | AF7: 1 to 12 | AG7: 1 to 12 | AH7: 1 to 12 | AI7: 2 to 12 | AJ7: 3 to 12 | AK7: 4 to 12 | AL7: 5 to 12 | AM7: 6 to 12
A8: Days | I8: =Input!I8 -> 365 | J8: =Input!J8 -> 366 | K8: =Input!K8 -> 365 | L8: =Input!L8 -> 365 | M8: =Input!M8 -> 365 | N8: =Input!N8 -> 366 | O8: =Input!O8 -> 365 | P8: =Input!P8 -> 365 | Q8: =Input!Q8 -> 365 | R8: =Input!R8 -> 366 | S8: =Input!S8 -> 365 | T8: =Input!T8 -> 181 | U8: 184 | V8: 181 | W8: =Input!W8 -> 365 | X8: =Input!X8 -> 366 | Y8: =Input!Y8 -> 365 | Z8: =Input!Z8 -> 365 | AA8: =DATEVALUE("31/12/2014")-DATEVALUE("30/6/2014") -> 184 | AB8: =DATEVALUE("30/9/2015")-DATEVALUE("31/12/2014") -> 273 | AC8: =DATEVALUE("31/12/2015")-DATEVALUE("30/9/2015") -> 92 | AD8: =Input!AD8 -> 365 | AE8: =Input!AE8 -> 366 | AF8: =Input!AF8 -> 365 | AG8: =Input!AG8 -> 365 | AH8: =Input!AH8 -> 365 | AI8: =Input!AI8 -> 366 | AJ8: =Input!AJ8 -> 365 | AK8: =Input!AK8 -> 365 | AL8: =Input!AL8 -> 365 | AM8: =Input!AM8 -> 365
A9: Year portion | I9: =Input!I9 -> 1 | J9: =Input!J9 -> 1 | K9: =Input!K9 -> 1 | L9: =Input!L9 -> 1 | M9: =Input!M9 -> 1 | N9: =Input!N9 -> 1 | O9: =Input!O9 -> 1 | P9: =Input!P9 -> 1 | Q9: =Input!Q9 -> 1 | R9: =Input!R9 -> 1 | S9: =Input!S9 -> 1 | T9: =Input!T9 -> 0.495890411 | U9: =ROUND(U8/365,2) -> 0.5 | V9: =1-U9 -> 0.5 | W9: =Input!W9 -> 1 | X9: =Input!X9 -> 1 | Y9: =Input!Y9 -> 1 | Z9: =Input!Z9 -> 1 | AA9: =Input!AA9 -> 0.504109589 | AB9: =AB8/365 -> 0.7479452055 | AC9: =1-AB9 -> 0.2520547945 | AD9: =Input!AD9 -> 1 | AE9: =Input!AE9 -> 1 | AF9: =Input!AF9 -> 1 | AG9: =Input!AG9 -> 1 | AH9: =Input!AH9 -> 1 | AI9: =Input!AI9 -> 1 | AJ9: =Input!AJ9 -> 1 | AK9: =Input!AK9 -> 1 | AL9: =Input!AL9 -> 1 | AM9: =Input!AM9 -> 1
A10: Financial Parameters
A11: =ROW() -> 11 | C11: Inflation to Convert from the end of the period
A12: =ROW() -> 12 | D12: ="Inflation Factor (convert to real "&Input!$G$34&" $)" -> Inflation Factor (convert to real 31/12/2019 $) | G12: Base period | H12: =Input!G29 -> 2019-12-31 | I12: =Input!I34 -> 1.683346161 | J12: =Input!J34 -> 1.591037765 | K12: =Input!K34 -> 1.542860107 | L12: =Input!L34 -> 1.497514398 | M12: =Input!M34 -> 1.462907973 | N12: =Input!N34 -> 1.425960809 | O12: =Input!O34 -> 1.387139831 | P12: =Input!P34 -> 1.343429315 | Q12: =Input!Q34 -> 1.304829847 | R12: =Input!R34 -> 1.258453365 | S12: =Input!S34 -> 1.232467602 | T12: =Input!T34 -> 1.213848103 | U12: =Input!U34 -> 1.20059344 | V12: =Input!V34 -> 1.171639139 | W12: =Input!W34 -> 1.171639139 | X12: =Input!X34 -> 1.158000324 | Y12: =Input!Y34 -> 1.130965297 | Z12: =Input!Z34 -> 1.097858665 | AA12: =Input!AA34 -> 1.090649461 | AB12: =Input!AB34 -> 1.072539046 | AC12: =Input!AC34 -> 1.072539046 | AD12: =Input!AD34 -> 1.072539046 | AE12: =Input!AE34 -> 1.056938478 | AF12: =Input!AF34 -> 1.03713856 | AG12: =Input!AG34 -> 1.0184 | AH12: =Input!AH34 -> 1 | AI12: =Input!AI34 -> 0.981932443 | AJ12: =Input!AJ34 -> 0.9641913227 | AK12: =Input!AK34 -> 0.9467707411 | AL12: =Input!AL34 -> 0.9296649068 | AM12: =Input!AM34 -> 0.9128681331
A13: =ROW() -> 13 | D13: ="Inflation Factor (convert " &Input!$G$34& " $ to nominal $)" -> Inflation Factor (convert 31/12/2019 $ to nominal $) | I13: =Input!I35 -> 0.5940548791 | J13: =Input!J35 -> 0.6285205933 | K13: =Input!K35 -> 0.6481469028 | L13: =Input!L35 -> 0.6677732122 | M13: =Input!M35 -> 0.6835699979 | N13: =Input!N35 -> 0.7012815455 | O13: =Input!O35 -> 0.7209078549 | P13: =Input!P35 -> 0.7443636882 | Q13: =Input!Q35 -> 0.76638345 | R13: =Input!R35 -> 0.7946261881 | S13: =Input!S35 -> 0.8113803547 | T13: =Input!T35 -> 0.823826307 | U13: =Input!U35 -> 0.832921426 | V13: =Input!V35 -> 0.8535051164 | W13: =Input!W35 -> 0.8535051164 | X13: =Input!X35 -> 0.8635576164 | Y13: =Input!Y35 -> 0.884200428 | Z13: =Input!Z35 -> 0.9108640595 | AA13: =Input!AA35 -> 0.9168848796 | AB13: =Input!AB35 -> 0.9323669882 | AC13: =Input!AC35 -> 0.9323669882 | AD13: =Input!AD35 -> 0.9323669882 | AE13: =Input!AE35 -> 0.9461288626 | AF13: =Input!AF35 -> 0.9641913227 | AG13: =Input!AG35 -> 0.981932443 | AH13: =Input!AH35 -> 1 | AI13: =Input!AI35 -> 1.0184 | AJ13: =Input!AJ35 -> 1.03713856 | AK13: =Input!AK35 -> 1.05622191 | AL13: =Input!AL35 -> 1.075656393 | AM13: =Input!AM35 -> 1.09544847
A14: =ROW() -> 14
A15: Volume & Customer # by Tariff Class
A16: =ROW() -> 16 | O16: Actual 2 | T16: Actual 3 | AA16: Actual | AG16: Forecast | AI16: Forecast
A17: =ROW() -> 17 | C17: Customers Including Prudent Discounts
A18: =ROW() -> 18 | D18: Tariff class A1 | O18: =O25+O39 -> 70.5 | P18: 72.5 | Q18: 72 | R18: 73 | S18: 75.5 | T18: =T25+T32 -> 75.33333333 | U18: 75 | V18: 75.16666667 | W18: 75.16666667 | X18: 72.91666667 | Y18: 75.66666667 | Z18: 74.5 | AA18: 72.5 | AD18: =AD25+AD32 -> 73.5 | AE18: 76 | AF18: 75.5 | AG18: 73 | AH18: 72 | AI18: 72 | AJ18: 72 | AK18: 71 | AL18: 69.5 | AM18: 69
A19: =ROW() -> 19 | D19: Tariff class A2 | O19: 93 | P19: 96 | Q19: 97 | R19: 98 | S19: 99 | T19: 102.1666667 | U19: 100.5 | V19: 105 | W19: 105 | X19: 112.5 | Y19: 109.0833333 | Z19: 107.5 | AA19: 107 | AD19: =AD26+AD33 -> 106.5 | AE19: 102 | AF19: 99 | AG19: 98 | AH19: 96.5 | AI19: 96 | AJ19: 96 | AK19: 96 | AL19: 96 | AM19: 96
A20: =ROW() -> 20 | D20: Tariff class B1 | O20: 1074 | P20: 1084.5 | Q20: 1106.5 | R20: 1136.5 | S20: 1184.5 | T20: 1225.166667 | U20: 1244.5 | V20: 1258.833333 | W20: 1258.833333 | X20: 1298.916667 | Y20: 1335.416667 | Z20: 1365 | AA20: 1400 | AD20: =AD27+AD34 -> 1445 | AE20: 1519.5 | AF20: 1600 | AG20: 1672.241222 | AH20: 1743.818606 | AI20: 1816.131496 | AJ20: 1885.458649 | AK20: 1949.254309 | AL20: 2009.576465 | AM20: 2068.688606
A21: =ROW() -> 21 | D21: Tariff class B2 | O21: 5988 | P21: 5810 | Q21: 6218 | R21: 6677 | S21: 7248.505679 | T21: 7702.5 | U21: 7898 | V21: 8110.083333 | W21: 8110.083333 | X21: 8713.75 | Y21: 9267.25 | Z21: 9801.5 | AA21: 10224.5 | AD21: =AD28+AD35 -> 10624.5 | AE21: 11114.5 | AF21: 11496.5 | AG21: 11829.87933 | AH21: 12192.67811 | AI21: 12527.29492 | AJ21: 12850.49669 | AK21: 13189.96324 | AL21: 13527.58584 | AM21: 13850.06039
A22: =ROW() -> 22 | D22: Tariff class B3 | O22: 515677.5 | P22: 536107.5 | Q22: 556115.5 | R22: 573808.5 | S22: 589563.5 | T22: 601247 | U22: 609163.8988 | V22: 614525 | W22: 614525 | X22: 629900.5833 | Y22: 642710.8333 | Z22: 657672.5 | AA22: 671182 | AD22: =AD29+AD36 -> 686910.5 | AE22: 705512.5 | AF22: 718910.5 | AG22: 727270.0987 | AH22: 735730.8491 | AI22: 747478.9968 | AJ22: 759437.1999 | AK22: 771652.0947 | AL22: 784164.53 | AM22: 796954.0703
A23: =ROW() -> 23 | D23: Total | O23: =SUM(O18:O22) -> 522903 | P23: =SUM(P18:P22) -> 543170.5 | Q23: =SUM(Q18:Q22) -> 563609 | R23: =SUM(R18:R22) -> 581793 | S23: =SUM(S18:S22) -> 598171.0057 | T23: =SUM(T18:T22) -> 610352.1667 | U23: 618481.8988 | V23: 624074.0833 | W23: 624074.0833 | X23: 640098.6667 | Y23: 653498.25 | Z23: 669021 | AA23: 682986 | AD23: =SUM(AD18:AD22) -> 699160 | AE23: 718324.5 | AF23: 732181.5 | AG23: 740943.2192 | AH23: 749835.8458 | AI23: 761990.4232 | AJ23: 774341.1552 | AK23: 786958.3122 | AL23: 799867.1923 | AM23: 813037.8193
A24: =ROW() -> 24 | C24: FD - Customers Receiving Prudent Discounts
A25: =ROW() -> 25 | D25: Tariff class A1 | O25: 29 | P25: 30.5 | Q25: 29.5 | R25: 28 | S25: 27 | T25: 25 | U25: =W25 -> 22 | V25: =W25 -> 22 | W25: 22 | X25: 17 | Y25: 13 | Z25: 10 | AA25: 8 | AD25: 7 | AE25: 4 | AF25: 3 | AG25: 2 | AH25: 2 | AI25: 2 | AJ25: 2 | AK25: 2 | AL25: 2 | AM25: 2
A26: =ROW() -> 26 | D26: Tariff class A2 | O26: 12 | P26: 11.5 | Q26: 10 | R26: 7.5 | S26: 5 | T26: 5 | U26: =W26 -> 4 | V26: =W26 -> 4 | W26: 4 | X26: 3 | Y26: 2.5 | Z26: 3 | AA26: 4 | AD26: 4 | AE26: 3.5 | AF26: 2 | AG26: 0 | AH26: 0 | AI26: 0 | AJ26: 0 | AK26: 0 | AL26: 0 | AM26: 0
A27: =ROW() -> 27 | D27: Tariff class B1 | O27: 4 | P27: 4 | Q27: 4 | R27: 4 | S27: 3.5 | T27: 3 | U27: =W27 -> 2.5 | V27: =W27 -> 2.5 | W27: 2.5 | X27: 1.5 | Y27: 1 | Z27: 1 | AA27: 1 | AD27: 1 | AE27: 1 | AF27: 0.5 | AG27: 0 | AH27: 0 | AI27: 0 | AJ27: 0 | AK27: 0 | AL27: 0 | AM27: 0
A28: =ROW() -> 28 | D28: Tariff class B2 | O28: 5 | P28: 5 | Q28: 5 | R28: 5 | S28: 5.005679466 | T28: 5 | U28: =W28 -> 5 | V28: =W28 -> 5 | W28: 5 | X28: 5 | Y28: 5 | Z28: 4.5 | AA28: 3 | AD28: 2 | AE28: 2 | AF28: 2 | AG28: 0 | AH28: 0 | AI28: 0 | AJ28: 0 | AK28: 0 | AL28: 0 | AM28: 0
A29: =ROW() -> 29 | D29: Tariff class B3 | O29: 1 | P29: 1 | Q29: 1 | R29: 1 | S29: 1 | T29: 1 | U29: =W29 -> 1 | V29: =W29 -> 1 | W29: 1 | X29: 1 | Y29: 1 | Z29: 1 | AA29: 1 | AD29: 1 | AE29: 0.5 | AF29: 0 | AG29: 0 | AH29: 0 | AI29: 0 | AJ29: 0 | AK29: 0 | AL29: 0 | AM29: 0
A30: =ROW() -> 30 | D30: Total | O30: =SUM(O25:O29) -> 51 | P30: =SUM(P25:P29) -> 52 | Q30: =SUM(Q25:Q29) -> 49.5 | R30: =SUM(R25:R29) -> 45.5 | S30: =SUM(S25:S29) -> 41.50567947 | T30: =SUM(T25:T29) -> 39 | U30: 34.5 | V30: 34.5 | W30: 34.5 | X30: 27.5 | Y30: 22.5 | Z30: 19.5 | AA30: =SUM(AA25:AA29) -> 17 | AD30: 15 | AE30: 11 | AF30: 7.5 | AG30: 2 | AH30: 2 | AI30: =SUM(AI25:AI29) -> 2 | AJ30: 2 | AK30: 2 | AL30: 2 | AM30: 2
A31: =ROW() -> 31 | C31: FD - Customers (Excluding Prudent Discounts)
A32: =ROW() -> 32 | D32: Tariff class A1 | O32: 41.5 | P32: 42 | Q32: 42.5 | R32: 45 | S32: 48.5 | T32: 50.33333333 | U32: 53 | V32: =W32 -> 53.16666667 | W32: 53.16666667 | X32: 55.91666667 | Y32: 62.66666667 | Z32: 64.5 | AA32: 64.5 | AD32: 66.5 | AE32: 72 | AF32: 72.5 | AG32: 71 | AH32: 70 | AI32: 70 | AJ32: 70 | AK32: 69 | AL32: 67.5 | AM32: 67
A33: =ROW() -> 33 | D33: Tariff class A2 | O33: 81 | P33: 84.5 | Q33: 87 | R33: 90.5 | S33: 94 | T33: 97.16666667 | U33: 96.5 | V33: =W33 -> 101 | W33: 101 | X33: 109.5 | Y33: 106.5833333 | Z33: 104.5 | AA33: 103 | AD33: 102.5 | AE33: 98.5 | AF33: 97 | AG33: 98 | AH33: 96.5 | AI33: 96 | AJ33: 96 | AK33: 96 | AL33: 96 | AM33: 96
A34: =ROW() -> 34 | D34: Tariff class B1 | O34: 1070 | P34: 1080.5 | Q34: 1102.5 | R34: 1132.5 | S34: 1181 | T34: 1222.166667 | U34: 1242 | V34: =W34 -> 1256.333333 | W34: 1256.333333 | X34: 1297.416667 | Y34: 1334.416667 | Z34: 1364 | AA34: 1399 | AD34: 1444 | AE34: 1518.5 | AF34: 1599.5 | AG34: 1672.241222 | AH34: 1743.818606 | AI34: 1816.131496 | AJ34: 1885.458649 | AK34: 1949.254309 | AL34: 2009.576465 | AM34: 2068.688606
A35: =ROW() -> 35 | D35: Tariff class B2 | O35: 5983 | P35: 5805 | Q35: 6213 | R35: 6672 | S35: 7243.5 | T35: 7697.5 | U35: 7893 | V35: =W35 -> 8105.083333 | W35: 8105.083333 | X35: 8708.75 | Y35: 9262.25 | Z35: 9797 | AA35: 10221.5 | AD35: 10622.5 | AE35: 11112.5 | AF35: 11494.5 | AG35: 11829.87933 | AH35: 12192.67811 | AI35: 12527.29492 | AJ35: 12850.49669 | AK35: 13189.96324 | AL35: 13527.58584 | AM35: 13850.06039
A36: =ROW() -> 36 | D36: Tariff class B3 | O36: 515676.5 | P36: 536106.5 | Q36: 556114.5 | R36: 573807.5 | S36: 589562.5 | T36: 601246 | U36: 609162.8988 | V36: =W36 -> 614524 | W36: 614524 | X36: 629899.5833 | Y36: 642709.8333 | Z36: 657671.5 | AA36: 671181 | AD36: 686909.5 | AE36: 705512 | AF36: 718910.5 | AG36: 727270.0987 | AH36: 735730.8491 | AI36: 747478.9968 | AJ36: 759437.1999 | AK36: 771652.0947 | AL36: 784164.53 | AM36: 796954.0703
A37: =ROW() -> 37 | D37: Total | O37: =SUM(O32:O36) -> 522852 | P37: =SUM(P32:P36) -> 543118.5 | Q37: =SUM(Q32:Q36) -> 563559.5 | R37: =SUM(R32:R36) -> 581747.5 | S37: =SUM(S32:S36) -> 598129.5 | T37: 610313.1667 | U37: 618447.3988 | V37: 624039.5833 | W37: 624039.5833 | X37: 640071.1667 | Y37: 653475.75 | Z37: 669001.5 | AA37: =SUM(AA32:AA36) -> 682969 | AD37: 699145 | AE37: 718313.5 | AF37: 732174 | AG37: 740941.2192 | AH37: 749833.8458 | AI37: =SUM(AI32:AI36) -> 761988.4232 | AJ37: 774339.1552 | AK37: 786956.3122 | AL37: 799865.1923 | AM37: 813035.8193
A38: =ROW() -> 38 | C38: Customers (Excluding Prudent Discounts)
A39: =ROW() -> 39 | D39: Tariff class A1 | O39: =O32 -> 41.5 | P39: 42 | Q39: 42.5 | R39: 45 | S39: 48.5 | T39: 50.33333333 | U39: 53 | V39: 53.16666667 | W39: 53.16666667 | X39: 55.91666667 | Y39: 62.66666667 | Z39: 64.5 | AA39: 64.5 | AD39: =AD32 -> 66.5 | AE39: 72 | AF39: 72.5 | AG39: 71 | AH39: 70 | AI39: 70 | AJ39: 70 | AK39: 69 | AL39: 67.5 | AM39: 67
A40: =ROW() -> 40 | D40: Tariff class A2 | O40: 81 | P40: 84.5 | Q40: 87 | R40: 90.5 | S40: 94 | T40: 97.16666667 | U40: 96.5 | V40: 101 | W40: 101 | X40: =X33 -> 109.5 | Y40: 106.5833333 | Z40: 104.5 | AA40: 103 | AD40: =AD33 -> 102.5 | AE40: 98.5 | AF40: 97 | AG40: 98 | AH40: 96.5 | AI40: 96 | AJ40: 96 | AK40: 96 | AL40: 96 | AM40: 96
A41: =ROW() -> 41 | D41: Tariff class B1 | O41: 1070 | P41: 1080.5 | Q41: 1102.5 | R41: 1132.5 | S41: 1181 | T41: 1222.166667 | U41: 1242 | V41: 1256.333333 | W41: 1256.333333 | X41: 1297.416667 | Y41: 1334.416667 | Z41: 1364 | AA41: 1399 | AD41: =AD34 -> 1444 | AE41: 1518.5 | AF41: 1599.5 | AG41: 1672.241222 | AH41: 1743.818606 | AI41: 1816.131496 | AJ41: 1885.458649 | AK41: 1949.254309 | AL41: 2009.576465 | AM41: 2068.688606
A42: =ROW() -> 42 | D42: Tariff class B2 | O42: 5983 | P42: 5805 | Q42: 6213 | R42: 6672 | S42: 7243.5 | T42: 7697.5 | U42: 7893 | V42: 8105.083333 | W42: 8105.083333 | X42: 8708.75 | Y42: 9262.25 | Z42: 9797 | AA42: 10221.5 | AD42: =AD35 -> 10622.5 | AE42: 11112.5 | AF42: 11494.5 | AG42: 11829.87933 | AH42: 12192.67811 | AI42: 12527.29492 | AJ42: 12850.49669 | AK42: 13189.96324 | AL42: 13527.58584 | AM42: 13850.06039
A43: =ROW() -> 43 | D43: Tariff class B3 | O43: 515676.5 | P43: 536106.5 | Q43: 556114.5 | R43: 573807.5 | S43: 589562.5 | T43: 601246 | U43: 609162.8988 | V43: 614524 | W43: 614524 | X43: 629899.5833 | Y43: 642709.8333 | Z43: 657671.5 | AA43: 671181 | AD43: =AD36 -> 686909.5 | AE43: 705512 | AF43: 718910.5 | AG43: 727270.0987 | AH43: 735730.8491 | AI43: 747478.9968 | AJ43: 759437.1999 | AK43: 771652.0947 | AL43: 784164.53 | AM43: 796954.0703
A44: =ROW() -> 44 | D44: Total | O44: =SUM(O39:O43) -> 522852 | P44: 543118.5 | Q44: 563559.5 | R44: 581747.5 | S44: 598129.5 | T44: 610313.1667 | U44: 618447.3988 | V44: 624039.5833 | W44: 624039.5833 | X44: 640071.1667 | Y44: 653475.75 | Z44: 669001.5 | AA44: =SUM(AA39:AA43) -> 682969 | AD44: =SUM(AD39:AD43) -> 699145 | AE44: 718313.5 | AF44: 732174 | AG44: 740941.2192 | AH44: 749833.8458 | AI44: 761988.4232 | AJ44: 774339.1552 | AK44: 786956.3122 | AL44: 799865.1923 | AM44: 813035.8193
A45: =ROW() -> 45 | C45: FD - Volume (Including Prudent Discounts) [TJ]
A46: =ROW() -> 46 | D46: Tariff class A1 | O46: 16191.68504 | P46: 15869.0038 | Q46: 15601.67466 | R46: 12400.4278 | S46: 12209.3604 | T46: 6031.337349 | U46: 6214.313395 | V46: =W46-U46 -> 6292.668281 | W46: 12506.98168 | X46: 12071.65486 | Y46: 11296.60722 | Z46: 11362.13068 | AA46: 6025.896565 | AD46: 11398.21581 | AE46: 10777.96142 | AF46: 10338.17915 | AG46: 10184.42002 | AH46: 10019.52159 | AI46: 9828.458296 | AJ46: 10065.72403 | AK46: 9648.793606 | AL46: 9269.945623 | AM46: 9142.962358
A47: =ROW() -> 47 | D47: Tariff class A2 | O47: 2239.295585 | P47: 2067.887482 | Q47: 2111.61597 | R47: 1945.340459 | S47: 1956.817742 | T47: 936.9033746 | U47: 1052.735121 | V47: =W47-U47 -> 870.5179483 | W47: 1923.253069 | X47: 2092.299763 | Y47: 2040.058109 | Z47: 1927.568029 | AA47: 971.99815 | AD47: 1854.028603 | AE47: 1819.923627 | AF47: 1814.45347 | AG47: 1770.229228 | AH47: 1717.549119 | AI47: 1668.935071 | AJ47: 1629.849651 | AK47: 1591.768212 | AL47: 1554.66281 | AM47: 1518.50632
A48: =ROW() -> 48 | D48: Tariff class B1 | O48: 1890.602 | P48: 1703.088083 | Q48: 1717.715314 | R48: 1649.406131 | S48: 1636.164865 | T48: 745.5632319 | U48: 910.7456253 | V48: =W48-U48 -> 683.8857193 | W48: 1594.631345 | X48: 1553.663922 | Y48: 1640.269951 | Z48: 1629.429407 | AA48: 889.2586427 | AD48: 1720.802873 | AE48: 1930.425315 | AF48: 1874.796319 | AG48: 1985.854659 | AH48: 2041.554597 | AI48: 2094.014867 | AJ48: 2133.259729 | AK48: 2168.126574 | AL48: 2199.63352 | AM48: 2222.512423
A49: =ROW() -> 49 | D49: Tariff class B2 | O49: 1068.909 | P49: 1109.032828 | Q49: 1134.902225 | R49: 1196.891861 | S49: 1158.582311 | T49: 552.7825543 | U49: 646.6664185 | V49: =W49-U49 -> 522.0128637 | W49: 1168.679282 | X49: 1189.664699 | Y49: 1232.063588 | Z49: 1255.113315 | AA49: 663.227406 | AD49: 1292.02506 | AE49: 1368.908476 | AF49: 1343.140615 | AG49: 1372.282518 | AH49: 1399.029803 | AI49: 1418.723358 | AJ49: 1435.840413 | AK49: 1453.190661 | AL49: 1469.028594 | AM49: 1477.29579
A50: =ROW() -> 50 | D50: Tariff class B3 | O50: 10302.854 | P50: 9974.977966 | Q50: 10147.42947 | R50: 10602.50509 | S50: 10434.25466 | T50: 4589.274683 | U50: 6078.261289 | V50: =W50-U50 -> 3691.503785 | W50: 9769.765074 | X50: 9645.962254 | Y50: 9905.950696 | Z50: 9840.84139 | AA50: 5226.947008 | AD50: 9796.899664 | AE50: 10874.77906 | AF50: 9932.181873 | AG50: 10082.22476 | AH50: 10032.90397 | AI50: 9891.180557 | AJ50: 9758.030801 | AK50: 9634.404276 | AL50: 9518.002194 | AM50: 9421.049552
A51: =ROW() -> 51 | D51: Total | O51: =SUM(O46:O50) -> 31693.34562 | P51: =SUM(P46:P50) -> 30723.99016 | Q51: =SUM(Q46:Q50) -> 30713.33764 | R51: =SUM(R46:R50) -> 27794.57134 | S51: =SUM(S46:S50) -> 27395.17998 | T51: 12855.86119 | U51: 14902.72185 | V51: 12060.5886 | W51: 26963.31045 | X51: 26553.2455 | Y51: 26114.94957 | Z51: 26015.08283 | AA51: =SUM(AA46:AA50) -> 13777.32777 | AD51: 26061.97201 | AE51: 26771.99789 | AF51: 25302.75142 | AG51: 25395.01118 | AH51: 25210.55908 | AI51: =SUM(AI46:AI50) -> 24901.31215 | AJ51: 25022.70462 | AK51: 24496.28333 | AL51: 24011.27274 | AM51: 23782.32644
A52: =ROW() -> 52 | C52: Authority adjustments to volume (Including Prudent Discounts) [TJ] | O52: Actual 2 | T52: Estimate
A53: =ROW() -> 53 | D53: Tariff class A1
A54: =ROW() -> 54 | D54: Tariff class A2
A55: =ROW() -> 55 | D55: Tariff class B1
A56: =ROW() -> 56 | D56: Tariff class B2
A57: =ROW() -> 57 | D57: Tariff class B3 | N57: WAGN submission 24/12/2010 | T57: =4589.27118678824-T50 -> -0.003496266674 | U57: =5806-U50 -> -272.2612895 | V57: =W57-U57 -> 272.2612895
A58: =ROW() -> 58 | D58: Total | O58: =SUM(O53:O57) -> 0 | P58: 0 | Q58: 0 | R58: 0 | S58: 0 | T58: -0.003496266674 | U58: -272.2612895 | V58: 272.2612895 | W58: 0 | X58: 0 | Y58: 0 | Z58: 0 | AC58: =SUM(AC53:AC57) -> 0 | AD58: 0 | AE58: 0 | AF58: 0 | AG58: 0 | AH58: 0 | AI58: =SUM(AI53:AI57) -> 0 | AJ58: 0 | AK58: 0 | AL58: 0 | AM58: 0
A59: =ROW() -> 59 | C59: Modelled Volume (Including Prudent Discounts) [TJ] | O59: Actual 2 | T59: Actual 3 and est for 2013/14 | AA59: Actual | AG59: Forecast | AI59: Forecast
A60: =ROW() -> 60 | D60: Tariff class A1 | O60: =O46+O53 -> 16191.68504 | P60: =P46+P53 -> 15869.0038 | Q60: =Q46+Q53 -> 15601.67466 | R60: =R46+R53 -> 12400.4278 | S60: =S46+S53 -> 12209.3604 | T60: =T46+T53 -> 6031.337349 | U60: 6214.313395 | V60: 6292.668281 | W60: 12506.98168 | X60: 12071.65486 | Y60: 11296.60722 | Z60: =Z46+Z53 -> 11362.13068 | AA60: 6025.896565 | AD60: =AD46+AD53 -> 11398.21581 | AE60: 10777.96142 | AF60: 10338.17915 | AG60: 10184.42002 | AH60: 10019.52159 | AI60: 9828.458296 | AJ60: 10065.72403 | AK60: 9648.793606 | AL60: 9269.945623 | AM60: 9142.962358
A61: =ROW() -> 61 | D61: Tariff class A2 | O61: =O47+O54 -> 2239.295585 | P61: 2067.887482 | Q61: 2111.61597 | R61: 1945.340459 | S61: 1956.817742 | T61: 936.9033746 | U61: 1052.735121 | V61: 870.5179483 | W61: 1923.253069 | X61: 2092.299763 | Y61: 2040.058109 | Z61: 1927.568029 | AA61: 971.99815 | AD61: =AD47+AD54 -> 1854.028603 | AE61: 1819.923627 | AF61: 1814.45347 | AG61: 1770.229228 | AH61: 1717.549119 | AI61: 1668.935071 | AJ61: 1629.849651 | AK61: 1591.768212 | AL61: 1554.66281 | AM61: 1518.50632
A62: =ROW() -> 62 | D62: Tariff class B1 | O62: 1890.602 | P62: 1703.088083 | Q62: 1717.715314 | R62: 1649.406131 | S62: 1636.164865 | T62: 745.5632319 | U62: 910.7456253 | V62: 683.8857193 | W62: 1594.631345 | X62: 1553.663922 | Y62: 1640.269951 | Z62: 1629.429407 | AA62: 889.2586427 | AD62: =AD48+AD55 -> 1720.802873 | AE62: 1930.425315 | AF62: 1874.796319 | AG62: 1985.854659 | AH62: 2041.554597 | AI62: 2094.014867 | AJ62: 2133.259729 | AK62: 2168.126574 | AL62: 2199.63352 | AM62: 2222.512423
A63: =ROW() -> 63 | D63: Tariff class B2 | O63: 1068.909 | P63: 1109.032828 | Q63: 1134.902225 | R63: 1196.891861 | S63: 1158.582311 | T63: 552.7825543 | U63: 646.6664185 | V63: 522.0128637 | W63: 1168.679282 | X63: 1189.664699 | Y63: 1232.063588 | Z63: 1255.113315 | AA63: 663.227406 | AD63: =AD49+AD56 -> 1292.02506 | AE63: 1368.908476 | AF63: 1343.140615 | AG63: 1372.282518 | AH63: 1399.029803 | AI63: 1418.723358 | AJ63: 1435.840413 | AK63: 1453.190661 | AL63: 1469.028594 | AM63: 1477.29579
A64: =ROW() -> 64 | D64: Tariff class B3 | O64: 10302.854 | P64: 9974.977966 | Q64: 10147.42947 | R64: 10602.50509 | S64: 10434.25466 | T64: 4589.271187 | U64: 5806 | V64: 3963.765074 | W64: 9769.765074 | X64: 9645.962254 | Y64: 9905.950696 | Z64: 9840.84139 | AA64: 5226.947008 | AD64: =AD50+AD57 -> 9796.899664 | AE64: 10874.77906 | AF64: 9932.181873 | AG64: 10082.22476 | AH64: 10032.90397 | AI64: 9891.180557 | AJ64: 9758.030801 | AK64: 9634.404276 | AL64: 9518.002194 | AM64: 9421.049552
A65: =ROW() -> 65 | D65: Total | O65: =SUM(O60:O64) -> 31693.34562 | P65: 30723.99016 | Q65: 30713.33764 | R65: 27794.57134 | S65: 27395.17998 | T65: 12855.8577 | U65: 14630.46056 | V65: 12332.84989 | W65: 26963.31045 | X65: 26553.2455 | Y65: 26114.94957 | Z65: =SUM(Z60:Z64) -> 26015.08283 | AA65: =SUM(AA60:AA64) -> 13777.32777 | AD65: =SUM(AD60:AD64) -> 26061.97201 | AE65: 26771.99789 | AF65: 25302.75142 | AG65: 25395.01118 | AH65: 25210.55908 | AI65: 24901.31215 | AJ65: 25022.70462 | AK65: 24496.28333 | AL65: 24011.27274 | AM65: 23782.32644
A66: =ROW() -> 66 | C66: FD - Volume of Prudent Discounts [TJ]
A67: =ROW() -> 67 | D67: Tariff class A1 | O67: 11296.79104 | P67: 10770.79694 | Q67: 10049.11316 | R67: 6739.789882 | S67: 6558.942626 | T67: 3042.31029 | U67: 2828.607685 | V67: =W67-U67 -> 2616.601033 | W67: 5445.208718 | X67: 3509.122373 | Y67: 2818.078397 | Z67: 2692.272436 | AA67: 1365.485083 | AD67: 2555.292333 | AE67: 1303.226657 | AF67: 1045.562486 | AG67: 989.4116295 | AH67: 958.7261792 | AI67: 928.9924025 | AJ67: 900.1807842 | AK67: 872.2627248 | AL67: 845.2105114 | AM67: 818.997291
A68: =ROW() -> 68 | D68: Tariff class A2 | O68: 365.01537 | P68: 329.50928 | Q68: 350.493518 | R68: 243.118371 | S68: 175.3598537 | T68: 49.906037 | U68: 60.16105509 | V68: =W68-U68 -> 46.87684991 | W68: 107.037905 | X68: 72.247343 | Y68: 56.564383 | Z68: 43.053627 | AA68: 23.578265 | AD68: 49.569611 | AE68: 49.199402 | AF68: 20.702943 | AG68: 0 | AH68: 0 | AI68: 0 | AJ68: 0 | AK68: 0 | AL68: 0 | AM68: 0
A69: =ROW() -> 69 | D69: Tariff class B1 | O69: 10.517 | P69: 10.376937 | Q69: 10.00596632 | R69: 8.315351313 | S69: 9.59728022 | T69: 1.809206 | U69: 1.970497382 | V69: =W69-U69 -> 0.4672086183 | W69: 2.437706 | X69: 7.6e-05 | Y69: 0 | Z69: 0 | AA69: 0 | AD69: 0 | AE69: 0 | AF69: 0 | AG69: 0 | AH69: 0 | AI69: 0 | AJ69: 0 | AK69: 0 | AL69: 0 | AM69: 0
A70: =ROW() -> 70 | D70: Tariff class B2 | O70: =5.169-0.86 -> 4.309 | P70: =3.131383-0.95 -> 2.181383 | Q70: =1.74440634963386-0.02 -> 1.72440635 | R70: 1.797894512 | S70: 1.741422764 | T70: 0.6762485319 | U70: 1.19580294 | V70: =W70-U70 -> 0.3562082316 | W70: 1.552011171 | X70: 1.196401906 | Y70: 0.4597468801 | Z70: 0.4452877621 | AA70: 0.2171567033 | AD70: 0.3885947692 | AE70: 0.3911495833 | AF70: 0.3908289794 | AG70: 0 | AH70: 0 | AI70: 0 | AJ70: 0 | AK70: 0 | AL70: 0 | AM70: 0
A71: =ROW() -> 71 | D71: Tariff class B3 | O71: 0.5 | P71: 0 | Q71: 0.0066 | R71: 0.0047 | S71: 0.007345700984 | T71: 0 | U71: 0 | V71: =W71-U71 -> 0 | W71: 0 | X71: 0.001401 | Y71: 0.000307 | Z71: 0.000113 | AA71: 0 | AD71: 0 | AE71: 0 | AF71: 0 | AG71: 0 | AH71: 0 | AI71: 0 | AJ71: 0 | AK71: 0 | AL71: 0 | AM71: 0
A72: =ROW() -> 72 | D72: Total | O72: =SUM(O67:O71) -> 11677.13241 | P72: =SUM(P67:P71) -> 11112.86454 | Q72: =SUM(Q67:Q71) -> 10411.34365 | R72: =SUM(R67:R71) -> 6993.026199 | S72: =SUM(S67:S71) -> 6745.648528 | T72: =SUM(T67:T71) -> 3094.701782 | U72: 2891.935041 | V72: 2664.301299 | W72: 5556.23634 | X72: 3582.567595 | Y72: 2875.102834 | Z72: 2735.771464 | AA72: =SUM(AA67:AA71) -> 1389.280505 | AD72: =SUM(AD67:AD71) -> 2605.250539 | AE72: 1352.817209 | AF72: 1066.656258 | AG72: 989.4116295 | AH72: 958.7261792 | AI72: =SUM(AI67:AI71) -> 928.9924025 | AJ72: 900.1807842 | AK72: 872.2627248 | AL72: 845.2105114 | AM72: 818.997291
A73: =ROW() -> 73 | C73: Volume Excluding Prudent Discounts [TJ]
A74: =ROW() -> 74 | D74: Tariff class A1 | O74: =O60-O67 -> 4894.893999 | P74: 5098.206856 | Q74: 5552.561498 | R74: 5660.63792 | S74: 5650.417774 | T74: 2989.027059 | U74: 3385.705709 | V74: 3676.067249 | W74: 7061.772958 | X74: 8562.532485 | Y74: 8478.528824 | Z74: =Z60-Z67 -> 8669.858249 | AA74: =AA60-AA67 -> 4660.411482 | AD74: 8842.923473 | AE74: 9474.73476 | AF74: 9292.61666 | AG74: 9195.00839 | AH74: 9060.795412 | AI74: 8899.465893 | AJ74: 9165.543247 | AK74: 8776.530882 | AL74: 8424.735111 | AM74: 8323.965067
A75: =ROW() -> 75 | D75: Tariff class A2 | O75: 1874.280215 | P75: 1738.378202 | Q75: 1761.122452 | R75: 1702.222088 | S75: 1781.457888 | T75: 886.9973376 | U75: 992.574066 | V75: 823.6410984 | W75: 1816.215164 | X75: 2020.05242 | Y75: 1983.493726 | Z75: =Z61-Z68 -> 1884.514402 | AA75: =AA61-AA68 -> 948.419885 | AD75: 1804.458992 | AE75: 1770.724225 | AF75: 1793.750527 | AG75: 1770.229228 | AH75: 1717.549119 | AI75: 1668.935071 | AJ75: 1629.849651 | AK75: 1591.768212 | AL75: 1554.66281 | AM75: 1518.50632
A76: =ROW() -> 76 | D76: Tariff class B1 | O76: 1880.085 | P76: 1692.711146 | Q76: 1707.709348 | R76: 1641.09078 | S76: 1626.567585 | T76: 743.7540259 | U76: 908.7751279 | V76: 683.4185106 | W76: 1592.193639 | X76: 1553.663846 | Y76: 1640.269951 | Z76: =Z62-Z69 -> 1629.429407 | AA76: =AA62-AA69 -> 889.2586427 | AD76: 1720.802873 | AE76: 1930.425315 | AF76: 1874.796319 | AG76: 1985.854659 | AH76: 2041.554597 | AI76: 2094.014867 | AJ76: 2133.259729 | AK76: 2168.126574 | AL76: 2199.63352 | AM76: 2222.512423
A77: =ROW() -> 77 | D77: Tariff class B2 | O77: 1064.6 | P77: 1106.851445 | Q77: 1133.177818 | R77: 1195.093966 | S77: 1156.840888 | T77: 552.1063057 | U77: 645.4706156 | V77: 521.6566555 | W77: 1167.127271 | X77: 1188.468297 | Y77: 1231.603841 | Z77: =Z63-Z70 -> 1254.668028 | AA77: =AA63-AA70 -> 663.0102493 | AD77: 1291.636465 | AE77: 1368.517326 | AF77: 1342.749786 | AG77: 1372.282518 | AH77: 1399.029803 | AI77: 1418.723358 | AJ77: 1435.840413 | AK77: 1453.190661 | AL77: 1469.028594 | AM77: 1477.29579
A78: =ROW() -> 78 | D78: Tariff class B3 | O78: 10302.354 | P78: 9974.977966 | Q78: 10147.42287 | R78: 10602.50039 | S78: 10434.24731 | T78: 4589.271187 | U78: 5806 | V78: 3963.765074 | W78: =W64-W71 -> 9769.765074 | X78: 9645.960853 | Y78: 9905.950389 | Z78: =Z64-Z71 -> 9840.841277 | AA78: =AA64-AA71 -> 5226.947008 | AD78: 9796.899664 | AE78: 10874.77906 | AF78: 9932.181873 | AG78: 10082.22476 | AH78: 10032.90397 | AI78: 9891.180557 | AJ78: 9758.030801 | AK78: 9634.404276 | AL78: 9518.002194 | AM78: 9421.049552
A79: =ROW() -> 79 | D79: Total | O79: =SUM(O74:O78) -> 20016.21321 | P79: =SUM(P74:P78) -> 19611.12562 | Q79: =SUM(Q74:Q78) -> 20301.99398 | R79: =SUM(R74:R78) -> 20801.54514 | S79: =SUM(S74:S78) -> 20649.53145 | T79: =SUM(T74:T78) -> 9761.155915 | U79: 11738.52552 | V79: 9668.548587 | W79: 21407.07411 | X79: 22970.6779 | Y79: 23239.84673 | Z79: 23279.31136 | AA79: 12388.04727 | AD79: =SUM(AD74:AD78) -> 23456.72147 | AE79: =SUM(AE74:AE78) -> 25419.18069 | AF79: 24236.09517 | AG79: 24405.59955 | AH79: 24251.8329 | AI79: 23972.31975 | AJ79: 24122.52384 | AK79: 23624.0206 | AL79: 23166.06223 | AM79: 22963.32915
A80: =ROW() -> 80 | C80: FD - # of Net Connections During Period
A81: =ROW() -> 81 | D81: Tariff class A1 | T81: =T32-S32 -> 1.833333333 | W81: =W32-T32 -> 2.833333333 | X81: =X32-W32 -> 2.75 | Y81: =Y32-X32 -> 6.75 | Z81: =Z32-Y32 -> 1.833333333
A82: =ROW() -> 82 | D82: Tariff class A2 | T82: =T33-S33 -> 3.166666667 | W82: =W33-T33 -> 3.833333333 | X82: =X33-W33 -> 8.5 | Y82: -2.916666667 | Z82: -2.083333333
A83: =ROW() -> 83 | D83: Tariff class B1 | T83: =T34-S34 -> 41.16666667 | W83: =W34-T34 -> 34.16666667 | X83: =X34-W34 -> 41.08333333 | Y83: 37 | Z83: 29.58333333
A84: =ROW() -> 84 | D84: Tariff class B2 | T84: =T35-S35 -> 454 | W84: =W35-T35 -> 407.5833333 | X84: =X35-W35 -> 603.6666667 | Y84: 553.5 | Z84: 534.75
A85: =ROW() -> 85 | D85: Tariff class B3 | T85: =T36-S36 -> 11683.5 | W85: =W36-T36 -> 13278 | X85: =X36-W36 -> 15375.58333 | Y85: 12810.25 | Z85: 14961.66667
A86: =ROW() -> 86 | D86: Total | T86: =SUM(T81:T85) -> 12183.66667 | W86: =SUM(W81:W85) -> 13726.41667 | X86: =SUM(X81:X85) -> 16031.58333 | Y86: =SUM(Y81:Y85) -> 13404.58333 | Z86: =SUM(Z81:Z85) -> 15525.75 | AA86: =SUM(AA81:AA85) -> 0 | AD86: 0 | AE86: 0 | AF86: 0 | AG86: 0 | AH86: 0 | AI86: =SUM(AI81:AI85) -> 0 | AJ86: 0 | AK86: 0 | AL86: 0 | AM86: 0
A87: Volume & Customer # by Bands
A88: =ROW() -> 88 | T88: Actual 3 and est for 2013/14 | AA88: Actual | AG88: Forecast | AI88: Forecast
A89: =ROW() -> 89 | C89: A1
A90: =ROW() -> 90 | D90: Customers | T90: =T39 -> 50.33333333 | U90: 53 | V90: 53.16666667 | W90: 53.16666667 | X90: 55.91666667 | Y90: 62.66666667 | Z90: 64.5 | AA90: 64.5 | AD90: 66.5 | AE90: 72 | AF90: 72.5 | AG90: 71 | AH90: 70 | AI90: =AI39 -> 70 | AJ90: 70 | AK90: 69 | AL90: 67.5 | AM90: 67
A91: =ROW() -> 91 | D91: Demand 1 [GJ km Year] | T91: 4810.674978 | W91: 9941.092845 | X91: 11680.59719 | Y91: 12196.77594 | Z91: 12836.93546 | AA91: 6908.508355 | AD91: 13355.22104 | AE91: 15366.25762 | AF91: 15901.48185 | AG91: 16147.655 | AH91: 16025.655 | AI91: 16630.842 | AJ91: 16646.029 | AK91: 14733.029 | AL91: 13023.229 | AM91: 13043.229
A92: =ROW() -> 92 | D92: Demand 2 [GJ km Year] | T92: 1022.982247 | W92: 2395.216712 | X92: 6559.023452 | Y92: 5974.018389 | Z92: 6077.220082 | AA92: 3742.059419 | AD92: 7362.087342 | AE92: 7594.702027 | AF92: 6938.869589 | AG92: 6356.14 | AH92: 6308.14 | AI92: 6488.14 | AJ92: 6493.34 | AK92: 6493.34 | AL92: 6090.24 | AM92: 6095.44
A93: =ROW() -> 93 | D93: Usage 1 [TJ km] | T93: 10466.01377 | W93: 23453.57172 | X93: 30807.77556 | Y93: 28099.35376 | Z93: 29939.8747 | AA93: 16267.79064 | AD93: 31828.34975 | AE93: 37584.49962 | AF93: 37057.85173 | AG93: 39956.21185 | AH93: 38200.76597 | AI93: 37240.58199 | AJ93: 40662.39316 | AK93: 38691.19088 | AL93: 37533.07076 | AM93: 37113.48222
A94: =ROW() -> 94 | D94: Usage 2 [TJ km] | T94: 1432.245102 | W94: 2792.582836 | X94: 22417.44889 | Y94: 10456.27511 | Z94: 9608.150919 | AA94: 5860.346571 | AD94: 14173.39355 | AE94: 17215.38124 | AF94: 18631.62799 | AG94: 19169.47691 | AH94: 18609.32003 | AI94: 18381.76806 | AJ94: 19527.80797 | AK94: 19415.828 | AL94: 19048.42767 | AM94: 18856.82771
A95: =ROW() -> 95 | D95: Modelled [GJ per Annum] | T95: =T74*1000 -> 2989027.059 | U95: 3385705.709 | V95: 3676067.249 | W95: 7061772.958 | X95: 8562532.485 | Y95: 8478528.824 | Z95: 8669858.249 | AA95: 4660411.482 | AD95: =AD74*1000 -> 8842923.473 | AE95: 9474734.76 | AF95: 9292616.66 | AG95: 9195008.39 | AH95: 9060795.412 | AI95: =AI74*1000 -> 8899465.893 | AJ95: 9165543.247 | AK95: 8776530.882 | AL95: 8424735.111 | AM95: 8323965.067
A96: =ROW() -> 96 | D96: Adjustment [GJ per Annum] | T96: 0 | U96: 0 | V96: 0 | W96: 0 | X96: 0 | Y96: 0 | Z96: 0 | AA96: 0 | AD96: 0 | AE96: 0 | AF96: 0 | AG96: 0 | AH96: 0
A97: =ROW() -> 97 | D97: Total [GJ per Annum] | T97: =T95+T96 -> 2989027.059 | U97: 3385705.709 | V97: 3676067.249 | W97: 7061772.958 | X97: 8562532.485 | Y97: 8478528.824 | Z97: 8669858.249 | AA97: 4660411.482 | AD97: =AD95+AD96 -> 8842923.473 | AE97: 9474734.76 | AF97: 9292616.66 | AG97: 9195008.39 | AH97: 9060795.412 | AI97: 8899465.893 | AJ97: 9165543.247 | AK97: 8776530.882 | AL97: 8424735.111 | AM97: 8323965.067
A98: =ROW() -> 98 | D98: Volume per Customer [GJ per customer] | T98: =T97/T90 -> 59384.64356 | U98: 63881.2398 | V98: 69142.3307 | W98: 132823.3158 | X98: 153130.2382 | Y98: 135295.6727 | Z98: 134416.407 | AA98: 72254.44158 | AD98: =AD97/AD90 -> 132976.2928 | AE98: 131593.5383 | AF98: 128174.0229 | AG98: 129507.1604 | AH98: 129439.9345 | AI98: 127135.227 | AJ98: 130936.3321 | AK98: 127196.0997 | AL98: 124810.8905 | AM98: 124238.2846
A99: =ROW() -> 99 | C99: A2
A100: =ROW() -> 100 | D100: A2 Customers | T100: =T40 -> 97.16666667 | U100: 96.5 | V100: 101 | W100: 101 | X100: 109.5 | Y100: 106.5833333 | Z100: 104.5 | AA100: 103 | AD100: 102.5 | AE100: 98.5 | AF100: 97 | AG100: 98 | AH100: 96.5 | AI100: =AI40 -> 96 | AJ100: 96 | AK100: 96 | AL100: 96 | AM100: 96
A101: =ROW() -> 101 | D101: Band 1 | T101: 228196.5464 | W101: 439801.477 | X101: 851175.004 | Y101: 838543.447 | Z101: 815846.866
A102: =ROW() -> 102 | D102: Band 2 | T102: 203649.7527 | W102: 383576.215 | X102: 1168877.416 | Y102: 1144950.279 | Z102: 1068670.536
A103: =ROW() -> 103 | D103: Band 3 | T103: 455151.0385 | W103: 992837.4724
A104: =ROW() -> 104 | D104: Band 1* | AA104: 405625.606 | AD104: 785654.977 | AE104: 762671.7419 | AF104: 768684.569 | AG104: 763938.3887 | AH104: 741204.4078 | AI104: 720225.1262 | AJ104: 703357.9022 | AK104: 686923.944 | AL104: 670911.1925 | AM104: 655307.9418
A105: =ROW() -> 105 | D105: Band 2* | AA105: 542794.279 | AD105: 1018804.015 | AE105: 1008052.483 | AF105: 1025065.958 | AG105: 1006290.839 | AH105: 976344.711 | AI105: 948709.9447 | AJ105: 926491.7485 | AK105: 904844.2677 | AL105: 883751.6176 | AM105: 863198.3786
A106: =ROW() -> 106 | D106: Total [GJ per Annum] | T106: =SUM(T101:T103) -> 886997.3376 | U106: 0 | V106: 0 | W106: 1816215.164 | X106: 2020052.42 | Y106: 1983493.726 | Z106: 1884517.402 | AA106: =SUM(AA101:AA105) -> 948419.885 | AD106: =SUM(AD101:AD105) -> 1804458.992 | AE106: 1770724.225 | AF106: 1793750.527 | AG106: 1770229.228 | AH106: 1717549.119 | AI106: 1668935.071 | AJ106: 1629849.651 | AK106: 1591768.212 | AL106: 1554662.81 | AM106: 1518506.32
A107: =ROW() -> 107 | D107: Adjustment [GJ per Annum] | T107: 0 | U107: =W107*J107 -> 0 | V107: 0 | W107: 0 | X107: 0 | Y107: 0 | Z107: 0 | AA107: 0 | AD107: 0 | AE107: 0 | AF107: 0 | AG107: 0 | AH107: 0
A108: =ROW() -> 108 | D108: Modelled [GJ per Annum] | T108: =T106+T107 -> 886997.3376 | U108: 0 | V108: 0 | W108: 1816215.164 | X108: 2020052.42 | Y108: 1983493.726 | Z108: 1884517.402 | AA108: 948419.885 | AD108: =AD106+AD107 -> 1804458.992 | AE108: 1770724.225 | AF108: 1793750.527 | AG108: 1770229.228 | AH108: 1717549.119 | AI108: 1668935.071 | AJ108: 1629849.651 | AK108: 1591768.212 | AL108: 1554662.81 | AM108: 1518506.32
A109: =ROW() -> 109 | D109: Volume per Customer [GJ per customer] | T109: =T108/T100 -> 9128.61754 | U109: 0 | V109: 0 | W109: 17982.32836 | X109: 18447.96731 | Y109: 18609.79258 | Z109: 18033.65935 | AA109: 9207.960049 | AD109: =AD108/AD100 -> 17604.47797 | AE109: 17976.89569 | AF109: 18492.27347 | AG109: 18063.56355 | AH109: 17798.43646 | AI109: 17384.74032 | AJ109: 16977.60053 | AK109: 16580.91887 | AL109: 16194.40427 | AM109: 15817.77417
A110: =ROW() -> 110 | C110: B1
A111: =ROW() -> 111 | D111: Customers | T111: =T41 -> 1222.166667 | U111: 1242 | V111: 1256.333333 | W111: 1256.333333 | X111: 1297.416667 | Y111: 1334.416667 | Z111: 1364 | AA111: 1399 | AD111: 1444 | AE111: 1518.5 | AF111: 1599.5 | AG111: 1672.241222 | AH111: 1743.818606 | AI111: =AI41 -> 1816.131496 | AJ111: 1885.458649 | AK111: 1949.254309 | AL111: 2009.576465 | AM111: 2068.688606
A112: =ROW() -> 112 | D112: Band 1 | T112: 649493.4631 | W112: 1389540.322 | X112: 1385587.464 | Y112: 1463332.441 | Z112: 1472170.211 | AA112: 791288.4815 | AD112: 1523036.72 | AE112: 1664051.405 | AF112: 1632990.466 | AG112: 1741093.915 | AH112: 1792671.474 | AI112: 1846691.104 | AJ112: 1892339.618 | AK112: 1927555.553 | AL112: 1957058.15 | AM112: 1978539.77
A113: =ROW() -> 113 | D113: Band 2 | T113: 94260.5628 | W113: 202653.3169 | X113: 168076.3819 | Y113: 176654.1947 | Z113: 175019.4857
A114: =ROW() -> 114 | D114: Band 2* | AA114: 97970.16121 | AD114: 197766.1523 | AE114: 266373.9094 | AF114: 241805.8528 | AG114: 244760.7432 | AH114: 248883.1224 | AI114: 247323.7629 | AJ114: 240920.1111 | AK114: 240571.021 | AL114: 242575.3702 | AM114: 243972.6539
A115: =ROW() -> 115 | D115: Total [GJ per Annum] | T115: =SUM(T112:T113) -> 743754.0259 | U115: 0 | V115: 0 | W115: 1592193.639 | X115: 1553663.846 | Y115: 1639986.635 | Z115: 1647189.697 | AA115: =SUM(AA112:AA114) -> 889258.6427 | AD115: =SUM(AD112:AD114) -> 1720802.873 | AE115: 1930425.315 | AF115: 1874796.319 | AG115: 1985854.659 | AH115: 2041554.597 | AI115: 2094014.867 | AJ115: 2133259.729 | AK115: 2168126.574 | AL115: 2199633.52 | AM115: 2222512.423
A116: =ROW() -> 116 | D116: Adjustment [GJ per Annum] | T116: 0 | U116: =W116*J116 -> 0 | V116: =W116*L116 -> 0 | W116: 0 | X116: 0 | Y116: 0 | Z116: 0 | AA116: 0 | AD116: 0 | AE116: 0 | AF116: 0 | AG116: 0 | AH116: 0
A117: =ROW() -> 117 | D117: Modelled [GJ per Annum] | T117: =T115+T116 -> 743754.0259 | U117: 0 | V117: 0 | W117: 1592193.639 | X117: 1553663.846 | Y117: 1639986.635 | Z117: 1647189.697 | AA117: 889258.6427 | AD117: =AD115+AD116 -> 1720802.873 | AE117: 1930425.315 | AF117: 1874796.319 | AG117: 1985854.659 | AH117: 2041554.597 | AI117: 2094014.867 | AJ117: 2133259.729 | AK117: 2168126.574 | AL117: 2199633.52 | AM117: 2222512.423
A118: =ROW() -> 118 | D118: Volume per Customer [GJ per customer] | T118: =T117/T111 -> 608.5536827 | U118: 0 | V118: 0 | W118: 1267.333753 | X118: 1197.505694 | Y118: 1228.991421 | Z118: 1207.61708 | AA118: 635.6387725 | AD118: =AD117/AD111 -> 1191.69174 | AE118: 1271.271198 | AF118: 1172.113985 | AG118: 1187.540788 | AH118: 1170.737937 | AI118: 1153.008398 | AJ118: 1131.42748 | AK118: 1112.285126 | AL118: 1094.575677 | AM118: 1074.358131
A119: =ROW() -> 119 | C119: B2
A120: =ROW() -> 120 | D120: Modelled B2 Customers | T120: =T42 -> 7697.5 | U120: 7893 | V120: 8105.083333 | W120: 8105.083333 | X120: 8708.75 | Y120: 9262.25 | Z120: 9797 | AA120: 10221.5 | AD120: 10622.5 | AE120: 11112.5 | AF120: 11494.5 | AG120: 11829.87933 | AH120: 12192.67811 | AI120: =AI42 -> 12527.29492 | AJ120: 12850.49669 | AK120: 13189.96324 | AL120: 13527.58584 | AM120: 13850.06039
A121: =ROW() -> 121 | D121: Band 1 | T121: 185987.7142 | W121: 389585.8249 | X121: 403522.1127 | Y121: 418531.9016 | Z121: 430255.2483 | AA121: 228811.0652 | AD121: 454358.7074 | AE121: 481672.4814 | AF121: 480578.9736 | AG121: 496039.3116 | AH121: 511642.5087 | AI121: 527736.289 | AJ121: 543080.6255 | AK121: 558795.2475 | AL121: 573853.3317 | AM121: 583261.5202
A122: =ROW() -> 122 | D122: Band 2 | T122: 366118.5915 | W122: 777541.4461 | X122: 784946.1842 | Y122: 812884.7301 | Z122: 825273.9552 | AA122: 434199.1841 | AD122: 837277.7577 | AE122: 886844.8449 | AF122: 862170.8128 | AG122: 876243.2066 | AH122: 887387.2942 | AI122: 890987.0695 | AJ122: 892759.7875 | AK122: 894395.4133 | AL122: 895175.2627 | AM122: 894034.2702
A123: =ROW() -> 123 | D123: Total [GJ per Annum] | T123: =SUM(T121:T122) -> 552106.3057 | U123: 0 | V123: 0 | W123: 1167127.271 | X123: 1188468.297 | Y123: 1231416.632 | Z123: 1255529.203 | AA123: 663010.2493 | AD123: =SUM(AD121:AD122) -> 1291636.465 | AE123: 1368517.326 | AF123: 1342749.786 | AG123: 1372282.518 | AH123: 1399029.803 | AI123: 1418723.358 | AJ123: 1435840.413 | AK123: 1453190.661 | AL123: 1469028.594 | AM123: 1477295.79
A124: =ROW() -> 124 | D124: Adjustment [GJ per Annum] | T124: 0 | U124: =W124*J124 -> 0 | V124: =W124*L124 -> 0 | W124: 0 | X124: 0 | Y124: 0 | Z124: 0 | AA124: 0 | AD124: 0 | AE124: 0 | AF124: 0 | AG124: 0 | AH124: 0
A125: =ROW() -> 125 | D125: Modelled [GJ per Annum] | T125: =T123+T124 -> 552106.3057 | U125: 0 | V125: 0 | W125: 1167127.271 | X125: 1188468.297 | Y125: 1231416.632 | Z125: 1255529.203 | AA125: 663010.2493 | AD125: =AD123+AD124 -> 1291636.465 | AE125: 1368517.326 | AF125: 1342749.786 | AG125: 1372282.518 | AH125: 1399029.803 | AI125: 1418723.358 | AJ125: 1435840.413 | AK125: 1453190.661 | AL125: 1469028.594 | AM125: 1477295.79
A126: =ROW() -> 126 | D126: Volume per Customer [GJ per customer] | T126: =T125/T120 -> 71.7254051 | U126: 0 | V126: 0 | W126: 143.9994165 | X126: 136.4682988 | Y126: 132.9500534 | Z126: 128.1544558 | AA126: 64.86428111 | AD126: =AD125/AD120 -> 121.5943954 | AE126: 123.1511655 | AF126: 116.8167199 | AG126: 116.0013961 | AH126: 114.7434379 | AI126: 113.2505754 | AJ126: 111.7342347 | AK126: 110.1739735 | AL126: 108.5950303 | AM126: 106.6634909
A127: =ROW() -> 127 | C127: B3
A128: =ROW() -> 128 | D128: Modelled B3 Customers | O128: 517005 | P128: 536255 | Q128: 553005 | R128: 568255 | S128: 583955 | T128: =T43 -> 601246 | U128: 609162.8988 | V128: 614524 | W128: 614524 | X128: 629899.5833 | Y128: 642709.8333 | Z128: 657671.5 | AA128: 671181 | AD128: 686909.5 | AE128: 705512 | AF128: 718910.5 | AG128: 727270.0987 | AH128: 735730.8491 | AI128: =AI43 -> 747478.9968 | AJ128: 759437.1999 | AK128: 771652.0947 | AL128: 784164.53 | AM128: 796954.0703
A129: =ROW() -> 129 | D129: Band 1 | O129: 5612594.867 | P129: 5804269.831 | Q129: 5947535.191 | R129: 6153433.466 | S129: 6175963.154 | T129: 3008688.118 | W129: 6231553.639 | X129: 4913980.424 | Y129: 5015651.234 | Z129: 5094684.331
A130: =ROW() -> 130 | D130: Band 2 | O130: 3447512.497 | P130: 3565248.028 | Q130: 3653248.165 | R130: 3601834.077 | S130: 3793559.069 | T130: 1249333.842 | W130: 2807463.61 | X130: 4731980.429 | Y130: 4888608.743 | Z130: 4772554.581
A131: =ROW() -> 131 | D131: Band 3 | O131: 1086632.898 | P131: 1123742.351 | Q131: 1151479.406 | R131: 1191342.579 | S131: 1195704.465 | T131: 331249.2265 | W131: 730749.4901
A132: =ROW() -> 132 | D132: Band 1* | AA132: 0 | AD132: 288522.8556 | AE132: 1180420.566 | AF132: 1198474.251 | AG132: 1229905.561 | AH132: 1251997.877 | AI132: 1263570.96 | AJ132: 1281241.823 | AK132: 1310813.427 | AL132: 1328708.229 | AM132: 1348124.44
A133: =ROW() -> 133 | D133: Band 2* | AA133: 2658352.316 | AD133: 4884879.333 | AE133: 4166565.797 | AF133: 4166780.088 | AG133: 4252134.295 | AH133: 4283899.833 | AI133: 4273886.087 | AJ133: 4267621.681 | AK133: 4279268.54 | AL133: 4265820.183 | AM133: 4259216.16
A134: =ROW() -> 134 | D134: Band 3* | AA134: 2568594.692 | AD134: 4623497.475 | AE134: 5527792.696 | AF134: 4566927.535 | AG134: 4600184.904 | AH134: 4497006.261 | AI134: 4353723.51 | AJ134: 4209167.297 | AK134: 4044322.309 | AL134: 3923473.783 | AM134: 3813708.951
A135: =ROW() -> 135 | D135: Total [GJ per Annum] | O135: =SUM(O129:O131) -> 10146740.26 | P135: 10493260.21 | Q135: 10752262.76 | R135: 10946610.12 | S135: 11165226.69 | T135: 4589271.187 | U135: 0 | V135: 0 | W135: 9769766.739 | X135: 9645960.853 | Y135: 9904259.977 | Z135: 9867238.912 | AA135: =SUM(AA129:AA134) -> 5226947.008 | AD135: =SUM(AD129:AD134) -> 9796899.664 | AE135: 10874779.06 | AF135: 9932181.873 | AG135: 10082224.76 | AH135: 10032903.97 | AI135: 9891180.557 | AJ135: 9758030.801 | AK135: 9634404.276 | AL135: 9518002.194 | AM135: 9421049.552
A136: =ROW() -> 136 | D136: Total [GJ per Annum] Adjusted | T136: =T78*1000 -> 4589271.187 | U136: 5806000 | V136: 3963765.074 | W136: 9769765.074 | X136: 9645960.853 | Y136: 9905950.389 | Z136: 9840841.277 | AA136: 5226947.008 | AD136: 9796899.664 | AE136: 10874779.06 | AF136: 9932181.873 | AG136: 10082224.76 | AH136: 10032903.97 | AI136: =AI78*1000 -> 9891180.557 | AJ136: 9758030.801 | AK136: 9634404.276 | AL136: 9518002.194 | AM136: 9421049.552
A137: =ROW() -> 137 | D137: Volume per Customer [GJ per customer] | T137: =T136/T128 -> 7.632934251 | U137: =U136/U128 -> 9.531112305 | V137: 6.450138764 | W137: 15.89810174 | X137: 15.31348981 | Y137: 15.41278797 | Z137: 14.96315604 | AA137: 7.787686195 | AD137: 14.26228588 | AE137: 15.41402423 | AF137: 13.81560274 | AG137: 13.86310915 | AH137: 13.63664985 | AI137: =AI136/AI128 -> 13.23272038 | AJ137: 12.84902926 | AK137: 12.4854249 | AL137: 12.13776169 | AM137: 11.82132058
A138: =ROW() -> 138 | T138: Modelled - Estimate | AA138: Actual | AG138: Forecast | AI138: Forecast
A139: =ROW() -> 139 | D139: Modelled Band 1 | T139: =T$136*T149 -> 3008688.118 | W139: =W$136*W149 -> 6231552.577 | X139: 4913980.424 | Y139: 5016507.282 | Z139: 5081054.62 | AA139: 0 | AB139: 0 | AC139: 0 | AD139: 0 | AE139: 0 | AF139: 0 | AG139: 0 | AH139: 0 | AI139: =AI$136*AI149 -> 0 | AJ139: 0 | AK139: 0 | AL139: 0 | AM139: 0
A140: =ROW() -> 140 | D140: Modelled Band 2 | T140: =T$136*T150 -> 1249333.842 | W140: =W$136*W150 -> 2807463.131 | X140: 4731980.429 | Y140: 4889443.108 | Z140: 4759786.657 | AA140: 0 | AB140: 0 | AC140: 0 | AD140: 0 | AE140: 0 | AF140: 0 | AG140: 0 | AH140: 0 | AI140: =AI$136*AI150 -> 0 | AJ140: 0 | AK140: 0 | AL140: 0 | AM140: 0
A141: =ROW() -> 141 | D141: Modelled Band 3 | T141: =T$136*T151 -> 331249.2265 | W141: =W$136*W151 -> 730749.3655 | X141: 0 | Y141: 0 | Z141: 0 | AA141: 0 | AB141: 0 | AC141: 0 | AD141: 0 | AE141: 0 | AF141: 0 | AG141: 0 | AH141: 0 | AI141: =AI$136*AI151 -> 0 | AJ141: 0 | AK141: 0 | AL141: 0 | AM141: 0
A142: =ROW() -> 142 | D142: Modelled Band 1* | AA142: =AA$136*AA152 -> 0 | AD142: 288522.8556 | AE142: 1180420.566 | AF142: 1198474.251 | AG142: 1229905.561 | AH142: 1251997.877 | AI142: =AI$136*AI152 -> 1263570.96 | AJ142: 1281241.823 | AK142: 1310813.427 | AL142: 1328708.229 | AM142: 1348124.44
A143: =ROW() -> 143 | D143: Modelled Band 2* | AA143: 2658352.316 | AD143: 4884879.333 | AE143: 4166565.797 | AF143: 4166780.088 | AG143: 4252134.295 | AH143: 4283899.833 | AI143: =AI$136*AI153 -> 4273886.087 | AJ143: 4267621.681 | AK143: 4279268.54 | AL143: 4265820.183 | AM143: 4259216.16
A144: =ROW() -> 144 | D144: Modelled Band 3* | AA144: 2568594.692 | AD144: 4623497.475 | AE144: 5527792.696 | AF144: 4566927.535 | AG144: 4600184.904 | AH144: 4497006.261 | AI144: =AI$136*AI154 -> 4353723.51 | AJ144: 4209167.297 | AK144: 4044322.309 | AL144: 3923473.783 | AM144: 3813708.951
A145: =ROW() -> 145 | D145: ERA adjustment [GJ per Annum] | T145: 0 | U145: 0 | V145: 0 | W145: 0 | X145: 0 | Y145: 0 | Z145: 0 | AA145: 0 | AD145: 0 | AE145: 0 | AF145: 0 | AG145: 0 | AH145: 0
A146: =ROW() -> 146 | D146: Modelled Total [GJ per Annum] | O146: =O135 -> 10146740.26 | P146: =P135 -> 10493260.21 | Q146: =Q135 -> 10752262.76 | R146: =R135 -> 10946610.12 | S146: =S135 -> 11165226.69 | T146: =SUM(T139:T145) -> 4589271.187 | U146: =SUM(U139:U145) -> 0 | V146: 0 | W146: 9769765.074 | X146: 9645960.853 | Y146: 9905950.389 | Z146: 9840841.277 | AA146: 5226947.008 | AD146: =SUM(AD139:AD145) -> 9796899.664 | AE146: 10874779.06 | AF146: 9932181.873 | AG146: 10082224.76 | AH146: 10032903.97 | AI146: 9891180.557 | AJ146: 9758030.801 | AK146: 9634404.276 | AL146: 9518002.194 | AM146: 9421049.552
A147: =ROW() -> 147 | D147: Volume per Customer | O147: =O146/O128 -> 19.62600026 | P147: 19.56766876 | Q147: 19.44333733 | R147: 19.26355267 | S147: 19.12001214 | T147: 7.632934251 | U147: 0 | V147: 0 | W147: 15.89810174 | X147: 15.31348981 | Y147: 15.41278797 | Z147: 14.96315604 | AA147: 7.787686195 | AD147: =AD146/AD128 -> 14.26228588 | AE147: 15.41402423 | AF147: 13.81560274 | AG147: 13.86310915 | AH147: 13.63664985 | AI147: 13.23272038 | AJ147: 12.84902926 | AK147: 12.4854249 | AL147: 12.13776169 | AM147: 11.82132058
A148: =ROW() -> 148 | T148: =T138 -> Modelled - Estimate | AA148: Actual | AF148: Forecast | AI148: Forecast
A149: =ROW() -> 149 | D149: Modelled Band 1 | T149: =T129/T$135 -> 0.6555917041 | W149: =W129/W$135 -> 0.6378405755 | X149: 0.5094340003 | Y149: 0.5064135277 | Z149: 0.5163231961
A150: =ROW() -> 150 | D150: Modelled Band 2 | T150: =T130/T$135 -> 0.2722292477 | W150: 0.2873623992 | X150: 0.4905659997 | Y150: 0.4935864723 | Z150: 0.4836768039
A151: =ROW() -> 151 | D151: Modelled Band 3 | T151: =T131/T$135 -> 0.07217904827 | W151: 0.07479702531 | X151: 0 | Y151: 0 | Z151: 0
A152: =ROW() -> 152 | D152: Modelled Band 1* | AA152: =AA132/AA$135 -> 0 | AD152: =AD132/AD$135 -> 0.02945042467 | AE152: 0.1085466251 | AF152: 0.1206657577 | AG152: 0.1219875166 | AH152: 0.1247891817 | AI152: =AI132/AI$135 -> 0.1277472343 | AJ152: 0.1313012686 | AK152: 0.1360554726 | AL152: 0.1395994875 | AM152: 0.1430970544
A153: =ROW() -> 153 | D153: Modelled Band 2* | AA153: 0.5085860469 | AD153: 0.498614817 | AE153: 0.3831402711 | AF153: 0.4195231361 | AG153: 0.4217456361 | AH153: 0.426985033 | AI153: =AI133/AI$135 -> 0.4320905945 | AJ153: 0.4373445594 | AK153: 0.4441653493 | AL153: 0.4481844084 | AM153: 0.4520957179
A154: =ROW() -> 154 | D154: Modelled Band 3* | AA154: 0.4914139531 | AD154: 0.4719347583 | AE154: 0.5083131038 | AF154: 0.4598111063 | AG154: 0.4562668472 | AH154: 0.4482257853 | AI154: =AI134/AI$135 -> 0.4401621712 | AJ154: 0.4313541721 | AK154: 0.4197791782 | AL154: 0.412216104 | AM154: 0.4048072277
A155: =ROW() -> 155 | T155: =SUM(T149:T154) -> 1 | U155: =SUM(U149:U154) -> 0 | V155: 0 | W155: 1 | X155: 1 | Y155: 1 | Z155: 1 | AA155: 1 | AD155: 1 | AE155: 1 | AF155: 1 | AG155: 1 | AH155: 1 | AI155: =SUM(AI149:AI154) -> 1 | AJ155: 1 | AK155: 1 | AL155: 1 | AM155: 1
A156: Prudent Discounts
A157: =ROW() -> 157 | C157: Prudent Discounts | O157: Approved 2
A158: =ROW() -> 158 | D158: Discounted Revenue [k$ 31/12/2004] | O158: 3372.350687 | P158: 3367.643259 | Q158: 3361.38203 | R158: 3355.815836 | S158: 3367.626992
A159: =ROW() -> 159 | D159: ="Discounted Revenue [m$ "&Input!$G$34&"]" -> Discounted Revenue [m$ 31/12/2019] | O159: =O158*$N$12/1000 -> 4.808839914 | P159: =P158*$N$12/1000 -> 4.802127307 | Q159: =Q158*$N$12/1000 -> 4.793199039 | R159: =R158*$N$12/1000 -> 4.785261864 | S159: =S158*$N$12/1000 -> 4.802104111
A160: =ROW() -> 160 | C160: Prudent Discounts | O160: Actual [m$ Nominal] | AA160: $ m actual | AB160: $ m actual | AC160: $ m actual | AD160: $ m actual | AE160: $ m actual | AF160: $ m actual | AG160: Forecast $ nominal | AI160: Forecast $ nominal
A161: =ROW() -> 161 | D161: Discounted Revenue [$ OD] | O161: 4231.59836 | P161: 4558.284913 | Q161: 4561.407993 | R161: 3850.048486 | S161: 4029.130035 | AA161: 1.046801957 | AD161: 2.022598293 | AE161: 0.78735303 | AF161: 0.31370567 | AG161: 0.168199977 | AH161: 0.165982346 | AI161: 0.1637939532 | AJ161: 0.1616344134 | AK161: 0.1595033459 | AL161: 0.1574003755 | AM161: 0.1553251317
A162: =ROW() -> 162 | O162: ="Actual [m$ "&Input!$G$34&"]" -> Actual [m$ 31/12/2019] | T162: ="Post DD3 - Approved 3 [m$ "&Input!$G$34&"]" -> Post DD3 - Approved 3 [m$ 31/12/2019] | AA162: Actual [m$ 30/6/2019] | AG162: Forecast $ m 31/12/2019 | AI162: Forecast $ m 31/12/2019
A163: =ROW() -> 163 | D163: ="Discounted Revenue [m$ "&Input!$G$34&"]" -> Discounted Revenue [m$ 31/12/2019] | O163: =O161*O$12/1000 -> 5.869818634 | P163: 6.12373358 | Q163: 5.951861294 | R163: 4.845106471 | S163: 4.965772232 | T163: =1.61324818038973*$S$12 -> 1.988276116 | U163: =1.70281914185273*$S$12 -> 2.098669424 | V163: =1.56952494995037*$S$12 -> 1.934388651 | W163: =3.2723440918031*$S$12 -> 4.033058076 | X163: =3.28607519027924*$S$12 -> 4.04998121 | Y163: =3.25036818366509*$S$12 -> 4.005973481 | Z163: =3.16052965214769*$S$12 -> 3.895250401 | AA163: =AA161*AA12 -> 1.141693991 | AB163: 0 | AC163: 0 | AD163: 2.169315644 | AE163: 0.8321837131 | AF163: 0.3253562468 | AG163: 0.1712948566 | AH163: 0.165982346 | AI163: 0.1608345967 | AJ163: 0.1558464988 | AK163: 0.151013101 | AL163: 0.1463296054 | AM163: 0.141791363
A164: =ROW() -> 164 | C164: Volume | O164: Actual | T164: Actual 3 | AA164: Actual (TJ) | AG164: Forecast (TJ) | AI164: Forecast (TJ)
A165: =ROW() -> 165 | D165: Volume [TJ] | O165: =O72 -> 11677.13241 | P165: 11112.86454 | Q165: 10411.34365 | R165: 6993.026199 | S165: 6745.648528 | T165: 3094.701782 | U165: 2891.935041 | V165: 2664.301299 | W165: 5556.23634 | X165: 3582.567595 | Y165: 2875.102834 | Z165: 2735.771464 | AA165: 1389.280505 | AD165: =AD72 -> 2605.250539 | AE165: 1352.817209 | AF165: 1066.656258 | AG165: 989.4116295 | AH165: 958.7261792 | AI165: =AI72 -> 928.9924025 | AJ165: 900.1807842 | AK165: 872.2627248 | AL165: 845.2105114 | AM165: 818.997291
A166: =ROW() -> 166 | D166: ="Discounted Notional Tariff [$ per GJ, "&Input!$G$34&"]" -> Discounted Notional Tariff [$ per GJ, 31/12/2019] | O166: =1000*O163/O165 -> 0.5026763788 | P166: 0.5510490618 | Q166: 0.5716708133 | R166: 0.6928483225 | S166: 0.736144525 | T166: 0.6424774523 | U166: 0.7256972908 | V166: 0.7260397508 | W166: 0.7258615057 | X166: 1.130468889 | Y166: 1.393332243 | Z166: 1.423821563 | AA166: 0.8217879593 | AD166: =1000*AD163/AD165 -> 0.8326706439 | AE166: =1000*AE163/AE165 -> 0.6151486748 | AF166: 0.3050244579 | AG166: 0.173128 | AH166: 0.173128 | AI166: 0.173128 | AJ166: 0.173128 | AK166: 0.173128 | AL166: 0.173128 | AM166: 0.173128
A167: =ROW() -> 167 | O167: Actual [m$ Nominal] | T167: =T164&" [m$ Nominal]" -> Actual 3 [m$ Nominal] | AA167: Actual [m$ Nominal] | AG167: Forecast $ nominal | AI167: Forecast $ m Nominal
A168: =ROW() -> 168 | D168: Discounted Notional Tariff [$ per GJ, Nominal] | O168: =O166*O$13 -> 0.36238335 | P168: 0.410180912 | Q168: 0.4381190502 | R168: 0.5505554214 | S168: 0.5972932058 | T168: 0.5292898269 | U168: 0.6044488223 | V168: 0.619678642 | W168: 0.6195265089 | X168: 0.9762250194 | Y168: 1.231984966 | Z168: 1.296907889 | AA168: =AA166*AA$13 -> 0.7534849541 | AD168: 0.7763546204 | AE168: 0.5820099161 | AF168: 0.2941019355 | AG168: 0.17 | AH168: 0.173128 | AI168: =AI166*AI$13 -> 0.1763135552 | AJ168: 0.1795577246 | AK168: 0.1828615867 | AL168: 0.1862262399 | AM168: 0.1896528028
A169: Tariff Revenue
A170: =ROW() -> 170 | C170: Proposed Tariff Revenue [Real] | O170: Actual [m$ 31/12/2009] | T170: Approved 3 [m$ 31/12/2009] | AA170: Approved [m$ 30/6/2014] | AI170: Forecast [m$ 30/6/2019]
A171: =ROW() -> 171 | D171: A1 | O171: 4.80139987 | P171: 4.2922495 | Q171: 4.3136383 | R171: 4.545798883 | S171: 4.826820838 | T171: 2.768748194 | U171: 3.182541018 | V171: 3.179597933 | W171: 6.362138951 | X171: 7.008674989 | Y171: 7.512294084 | Z171: 7.924159466 | AA171: 4.094850881 | AB171: 4.815685591 | AC171: 3.180525157 | AE171: 7.878421387 | AF171: 7.226269581 | AG171: 6.577223067 | AH171: 5.988655881 | AI171: =Revenue!AI$110 -> 7.783030502 | AJ171: =Revenue!AJ$110 -> 8.109826921 | AK171: =Revenue!AK$110 -> 7.844332102 | AL171: =Revenue!AL$110 -> 7.565471891 | AM171: =Revenue!AM$110 -> 7.701791752
A172: =ROW() -> 172 | D172: A2 | O172: 4.41869984 | P172: 4.72661995 | Q172: 4.93738968 | R172: 4.918677475 | S172: 5.203813145 | T172: 2.607760183 | U172: 2.759398225 | V172: 3.57409815 | W172: 6.333496375 | X172: 7.817500234 | Y172: 8.45458036 | Z172: 9.10643868 | AA172: 3.125233004 | AB172: 4.595120053 | AC172: 1.454069924 | AE172: 5.608288214 | AF172: 5.315696163 | AG172: 5.040065608 | AH172: 4.671191358 | AI172: =Revenue!AI$118 -> 4.725487256 | AJ172: =Revenue!AJ$118 -> 4.775721013 | AK172: =Revenue!AK$118 -> 4.825702476 | AL172: =Revenue!AL$118 -> 4.875525929 | AM172: =Revenue!AM$118 -> 4.925284661
A173: =ROW() -> 173 | D173: B1 | O173: 8.59801223 | P173: 8.413272871 | Q173: 8.711606538 | R173: 7.658183152 | S173: 8.299208156 | T173: 4.017820159 | U173: 4.721702136 | V173: 4.861209307 | W173: 9.582911443 | X173: 11.04703331 | Y173: 12.10981779 | Z173: 13.23535228 | AA173: 5.276063572 | AB173: 7.544028389 | AC173: 2.192048269 | AE173: 8.828295417 | AF173: 8.243961957 | AG173: 7.717327216 | AH173: 7.228097872 | AI173: =Revenue!AI$124 -> 10.71421014 | AJ173: =Revenue!AJ$124 -> 11.2176534 | AK173: =Revenue!AK$124 -> 11.70669849 | AL173: =Revenue!AL$124 -> 12.18648355 | AM173: =Revenue!AM$124 -> 12.63607873
A174: =ROW() -> 174 | D174: B2 | O174: 6.26021071 | P174: 6.501671833 | Q174: 6.979974896 | R174: 7.371811049 | S174: 7.523205351 | T174: 3.66696144 | U174: 4.031464526 | V174: 4.941080427 | W174: 8.972544953 | X174: 10.83174427 | Y174: 11.7801164 | Z174: 12.85390142 | AA174: 5.733021665 | AB174: 7.926108625 | AC174: 2.466590787 | AE174: 9.143368074 | AF174: 8.320907832 | AG174: 7.566229981 | AH174: 6.734082658 | AI174: =Revenue!AI$129 -> 10.96625829 | AJ174: =Revenue!AJ$129 -> 11.43039602 | AK174: =Revenue!AK$129 -> 11.91822367 | AL174: =Revenue!AL$129 -> 12.40879996 | AM174: =Revenue!AM$129 -> 12.85413213
A175: =ROW() -> 175 | D175: B3 | O175: 87.52746275 | P175: 87.12634889 | Q175: 90.54797867 | R175: 94.38861393 | S175: 97.8627623 | T175: 45.89263033 | U175: 56.02774359 | V175: 63.86178671 | W175: 119.8895303 | X175: 151.5492519 | Y175: 166.3879097 | Z175: 183.0571263 | AA175: 79.58052432 | AB175: 108.3592022 | AC175: 31.93360483 | AE175: 127.4029613 | AF175: 118.679674 | AG175: 112.0611405 | AH175: 106.2312504 | AI175: =Revenue!AI$138 -> 150.3279439 | AJ175: =Revenue!AJ$138 -> 152.1751911 | AK175: =Revenue!AK$138 -> 154.1178688 | AL175: =Revenue!AL$138 -> 156.1184675 | AM175: =Revenue!AM$138 -> 158.2906799
A176: =ROW() -> 176 | D176: Total | O176: =SUM(O171:O175) -> 111.6057854 | P176: 111.060163 | Q176: 115.4905881 | R176: 118.8830845 | S176: 123.7158098 | T176: 58.9539203 | U176: 70.72284949 | V176: 80.41777252 | W176: 151.140622 | X176: 188.2542047 | Y176: 206.2447183 | Z176: 226.1769781 | AA176: =SUM(AA171:AA175) -> 97.80969344 | AB176: =SUM(AB171:AB175) -> 133.2401449 | AC176: =SUM(AC171:AC175) -> 41.22683897 | AE176: 158.8613343 | AF176: 147.7865096 | AG176: 138.9619864 | AH176: 130.8532781 | AI176: =SUM(AI171:AI175) -> 184.5169301 | AJ176: 187.7087884 | AK176: 190.4128256 | AL176: 193.1547488 | AM176: 196.4079672
A177: =ROW() -> 177 | C177: Proposed Tariff Revenue [Nominal] | O177: Actual [m$ Nominal] | T177: Approved 3 [m$ Nominal] | AA177: Approved [m$ Nominal] | AI177: Forecast [m$ Nominal]
A178: =ROW() -> 178 | D178: A1 | O178: =O171*O$13 -> 3.461366881 | P178: 3.194994669 | Q178: 3.305901003 | R178: 3.612210838 | S178: 3.916387603 | T178: 2.280967599 | U178: 2.650806603 | V178: 2.713803104 | W178: 5.430118146 | X178: 6.052394668 | Y178: 6.642373644 | Z178: 7.21783206 | AA178: =AA171*AA$12 -> 4.466046908 | AB178: 5.165010829 | AC178: 3.411237417 | AE178: =AE171*AE$12 -> 8.327006709 | AF178: 7.494642827 | AG178: 6.698243971 | AH178: 5.988655881 | AI178: =AI171*AI$13 -> 7.926238264 | AJ178: 8.411014214 | AK178: 8.285355432 | AL178: 8.137848203 | AM178: 8.436915993
A179: =ROW() -> 179 | D179: A2 | O179: =O172*O$13 -> 3.185475423 | P179: 3.518324259 | Q179: 3.783933737 | R179: 3.908509932 | S179: 4.222271755 | T179: =T172*T$13 -> 2.148341441 | U179: 2.298361905 | V179: 3.050511057 | W179: =W172*W$13 -> 5.405671561 | X179: 6.750861869 | Y179: 7.475543572 | Z179: 8.294727704 | AA179: 3.408533692 | AB179: 4.928445677 | AC179: 1.559546769 | AE179: 5.927615609 | AF179: 5.513113464 | AG179: 5.132802815 | AH179: 4.671191358 | AI179: =AI172*AI$13 -> 4.812436221 | AJ179: 4.953084414 | AK179: 5.097012684 | AL179: 5.244390633 | AM179: 5.395395548
A180: =ROW() -> 180 | D180: B1 | O180: 6.198374554 | P180: 6.262534824 | Q180: 6.676431074 | R180: 6.085392885 | S180: 6.733814457 | T180: 3.309985943 | U180: 3.932806876 | V180: 4.149067016 | W180: 8.179063947 | X180: 9.539749756 | Y180: 10.70750607 | Z180: 12.05560671 | AA180: 5.754335892 | AB180: 8.09126501 | AC180: 2.351057359 | AE180: 9.330965121 | AF180: 8.550130833 | AG180: 7.859326037 | AH180: 7.228097872 | AI180: =AI173*AI$13 -> 10.91135161 | AJ180: 11.6342609 | AK180: 12.36487143 | AL180: 13.10846893 | AM180: 13.84217312
A181: =ROW() -> 181 | D181: B2 | O181: 4.513035074 | P181: 4.839608425 | Q181: 5.349337242 | R181: 5.857834113 | S181: 6.104181026 | T181: 3.020939301 | U181: 3.357893182 | V181: 4.217237425 | W181: 7.658113025 | X181: 9.353835266 | Y181: 10.41598396 | Z181: 11.70815682 | AA181: 6.252716991 | AB181: 8.501060983 | AC181: 2.645514929 | AE181: 9.663977535 | AF181: 8.629934367 | AG181: 7.705448613 | AH181: 6.734082658 | AI181: =AI174*AI$13 -> 11.16803744 | AJ181: 11.85490447 | AK181: 12.58828897 | AL181: 13.347605 | AM181: 14.08103938
A182: =ROW() -> 182 | D182: B3 | O182: 63.09923542 | P182: 64.8536904 | Q182: 69.39447229 | R182: 75.00366448 | S182: 79.40392279 | T182: 37.80755616 | U182: 46.66670809 | V182: 54.5063617 | W182: 102.3263275 | X182: 130.8715108 | Y182: 147.120261 | Z182: 166.7401572 | AA182: 86.79445598 | AB182: 116.2194754 | AC182: 34.25003806 | AE182: 134.657092 | AF182: 123.0872662 | AG182: 114.1230655 | AH182: 106.2312504 | AI182: =AI175*AI$13 -> 153.0939781 | AJ182: 157.8267585 | AK182: 162.7826697 | AL182: 167.9298276 | AM182: 173.3992832
A183: =ROW() -> 183 | D183: Total | O183: =SUM(O178:O182) -> 80.45748735 | P183: 82.66915257 | Q183: 88.51007534 | R183: 94.46761225 | S183: 100.3805776 | T183: 48.56779044 | U183: 58.90657665 | V183: 68.6369803 | W183: 128.9992942 | X183: 162.5683523 | Y183: 182.3616682 | Z183: 206.0164805 | AA183: 106.6760895 | AB183: 142.9052579 | AC183: 44.21739453 | AE183: =SUM(AE178:AE182) -> 167.9066569 | AF183: 153.2750877 | AG183: 141.5188869 | AH183: 130.8532781 | AI183: 187.9120416 | AJ183: 194.6800225 | AK183: 201.1181982 | AL183: 207.7681404 | AM183: 215.1548072
A184: Ancillary Services (including special meter reads)
A185: =ROW() -> 185 | C185: Revenue | O185: AA2 [m$ OD] | T185: Approved 3 [m$ 31/12/2009] | AA185: Actual $ M Nominal | AG185: Forecast $ m nominal | AI185: Forecast $ M Nominal
A186: =ROW() -> 186 | D186: Revenue | O186: 0.53 | P186: 0.525 | Q186: 0.548 | R186: 0.709 | S186: 0.706 | T186: =0.77/2 -> 0.385 | U186: =T186 -> 0.385 | V186: =T186 -> 0.385 | W186: =U186+V186 -> 0.77 | X186: =$T$186*2 -> 0.77 | Y186: =$T$186*2 -> 0.77 | Z186: =$T$186*2 -> 0.77 | AA186: =AA188/AA12 -> 0.78939002 | AB186: 0 | AC186: 0 | AD186: 1.946567605 | AE186: 2.647984671 | AF186: 3.850051331 | AG186: 3.571840567 | AH186: 3.229667148 | AI186: 2.886736888 | AJ186: 2.986893859 | AK186: 3.091026778 | AL186: 3.199098 | AM186: 3.311245876
A187: =ROW() -> 187 | T187: ="Approved 3 [m$ "&Input!$G$34&"]" -> Approved 3 [m$ 31/12/2019] | AA187: ="Actual [m$ "&Input!$G$34&"]" -> Actual [m$ 31/12/2019] | AG187: ="Forecast [m$ "&Input!$G$34&"]" -> Forecast [m$ 31/12/2019] | AI187: ="Forecast [m$ "&Input!$G$34&"]" -> Forecast [m$ 31/12/2019]
A188: =ROW() -> 188 | T188: =T348/1000000 -> 0 | W188: =W348/1000000 -> 0 | X188: =X348/1000000 -> 0 | Y188: =Y348/1000000 -> 0 | Z188: =Z348/1000000 -> 0 | AA188: =AA348/1000000 -> 0.8609478001 | AB188: 0 | AC188: 0 | AD188: 2.087769762 | AE188: 2.798756888 | AF188: 3.993036693 | AG188: 3.637562433 | AH188: 3.229667148 | AI188: 2.834580605 | AJ188: 2.879937141 | AK188: 2.926493713 | AL188: 2.974089144 | AM188: 3.022730841
A189: =ROW() -> 189 | D189: Adjustment | O189: 0 | P189: 0 | Q189: 0 | R189: 0 | S189: 0 | T189: 0 | U189: 0 | V189: 0 | W189: 0 | X189: 0 | Y189: 0 | Z189: 0 | AA189: 0 | AD189: 0 | AE189: 0 | AF189: 0 | AG189: 0 | AH189: 0
A190: =ROW() -> 190 | D190: ="Revenue [m$ "&Input!$G$34&"]" -> Revenue [m$ 31/12/2019] | O190: =O186*O$12+O189 -> 0.7351841104 | P190: =P186*P$12+P189 -> 0.7053003905 | Q190: =Q186*Q$12+Q189 -> 0.7150467563 | R190: =R186*R$12+R189 -> 0.8922434355 | S190: =S186*S$12+S189 -> 0.870122127 | T190: =T188+T189 -> 0 | W190: =W188+W189 -> 0 | X190: =X188+X189 -> 0 | Y190: =Y188+Y189 -> 0 | Z190: =Z188+Z189 -> 0 | AA190: =AA188+AA189 -> 0.8609478001 | AD190: =AD188+AD189 -> 2.087769762 | AE190: =AE188+AE189 -> 2.798756888 | AF190: =AF188+AF189 -> 3.993036693 | AG190: 3.637562433 | AH190: 3.229667148 | AI190: =AI188+AI189 -> 2.834580605 | AJ190: =AJ188+AJ189 -> 2.879937141 | AK190: =AK188+AK189 -> 2.926493713 | AL190: =AL188+AL189 -> 2.974089144 | AM190: =AM188+AM189 -> 3.022730841
A191: =ROW() -> 191 | O191: Actual [m$ Nominal] | T191: Approved 3 [m$ Nominal] | AA191: Actual $ M Nominal | AG191: Forecast $ m nominal | AI191: Forecast $ M Nominal
A192: =ROW() -> 192 | D192: Revenue [m$ Nominal] | O192: =O190*O$13 -> 0.53 | P192: 0.525 | Q192: 0.548 | R192: 0.709 | S192: 0.706 | T192: 0 | W192: =W190*W$13 -> 0 | X192: =X190*X$13 -> 0 | Y192: =Y190*Y$13 -> 0 | Z192: =Z190*Z$13 -> 0 | AA192: =AA190*AA$13 -> 0.78939002 | AD192: =AD190*AD$13 -> 1.946567605 | AE192: 2.647984671 | AF192: 3.850051331 | AG192: 3.571840567 | AH192: 3.229667148 | AI192: 2.886736888 | AJ192: 2.986893859 | AK192: 3.091026778 | AL192: 3.199098 | AM192: 3.311245876
A193: Tariffs Excluding GST
A194: =ROW() -> 194 | C194: A1 | J194: Actual 1 (FA1) [$ OD] | O194: Actual 2 [$ OD] | T194: Actual 3 [$ Nominal] | AA194: Actual 4 [$ Nominal] | AH194: Forecast 9$ Nominal) | AI194: Forecast 5 ($ Nominal)
A195: =ROW() -> 195 | D195: Fixed [$/year] | J195: 43720 | K195: 44069.76364 | L195: 44056.54545 | M195: 44342.90909 | N195: 44365.08182 | O195: 44263.04545 | P195: 44734.3 | Q195: 44286.96 | R195: 44286.96 | S195: 44286.96 | T195: 44286.96 | W195: 44286.96 | X195: 41283.45 | Y195: 45308.99444 | Z195: 46738.99 | AA195: 46742.47 | AB195: 46742.47 | AC195: 46027.88148 | AE195: 42220.77 | AF195: 38925.9 | AG195: 35827.4 | AH195: 32450.59 | AI195: =Revenue!AI68*AI$13 -> 40443.61736 | AJ195: =Revenue!AJ68*AJ$13 -> 42135.10228 | AK195: =Revenue!AK68*AK$13 -> 43897.32191 | AL195: =Revenue!AL68*AL$13 -> 45733.25258 | AM195: =Revenue!AM68*AM$13 -> 47645.96158
A196: =ROW() -> 196 | D196: Demand 1 (<=10km) [$/GJ*km*year], | J196: 180.4818182 | K196: 181.9272727 | L196: 181.8727273 | M196: 183.0545455 | N196: 183.1454545 | O196: 182.7272727 | P196: 184.71 | Q196: 182.86 | R196: 182.86 | S196: 182.86 | T196: 182.86 | W196: 182.86 | X196: 174.02 | Y196: 190.9826186 | Z196: 197.0028843 | AA196: 197.0028843 | AB196: 197.0028843 | AC196: 193.9929687 | AE196: 177.94 | AF196: 164.05 | AG196: 151.04 | AH196: 136.8 | AI196: =Revenue!AI69*AI$13 -> 170.500528 | AJ196: =Revenue!AJ69*AJ$13 -> 177.6307212 | AK196: =Revenue!AK69*AK$13 -> 185.0606408 | AL196: =Revenue!AL69*AL$13 -> 192.8006518 | AM196: =Revenue!AM69*AM$13 -> 200.8614315
A197: =ROW() -> 197 | D197: Demand 2 (>10km) [$/GJ*km*year], | J197: 90.24545455 | K197: 90.96363636 | L197: 90.93636364 | M197: 91.52727273 | N197: 91.57272727 | O197: 91.36363636 | P197: 92.35 | Q197: 91.43 | R197: 91.43 | S197: 91.43 | T197: 91.43 | W197: 91.43 | X197: 91.59 | Y197: 100.5221915 | Z197: 103.6909149 | AA197: 103.6909149 | AB197: 103.6909149 | AC197: 102.1086719 | AE197: 93.66 | AF197: 86.35 | AG197: 79.5 | AH197: 72.01 | AI197: =Revenue!AI70*AI$13 -> 89.751592 | AJ197: =Revenue!AJ70*AJ$13 -> 93.50841257 | AK197: =Revenue!AK70*AK$13 -> 97.41534671 | AL197: =Revenue!AL70*AL$13 -> 101.4881806 | AM197: =Revenue!AM70*AM$13 -> 105.7326863
A198: =ROW() -> 198 | D198: Usage 1 (<=10km) [$/GJ*km] | J198: 0.04398181818 | K198: 0.04433636364 | L198: 0.04432727273 | M198: 0.04461818182 | N198: 0.04463636364 | O198: 0.04453636364 | P198: 0.04502 | Q198: 0.0446 | R198: 0.0446 | S198: 0.0446 | T198: 0.0446 | W198: 0.0446 | X198: 0.03691 | Y198: 0.04051864027 | Z198: 0.0417958996 | AA198: 0.0417958996 | AB198: 0.0417958996 | AC198: 0.04115726563 | AE198: 0.03776 | AF198: 0.0347 | AG198: 0.03195 | AH198: 0.02894 | AI198: =Revenue!AI71*AI$13 -> 0.036071728 | AJ198: =Revenue!AJ71*AJ$13 -> 0.03757553003 | AK198: =Revenue!AK71*AK$13 -> 0.03914358397 | AL198: =Revenue!AL71*AL$13 -> 0.04077813384 | AM198: =Revenue!AM71*AM$13 -> 0.04248149168
A199: =ROW() -> 199 | D199: Usage 2 (>10km) [$/GJ*km] | J199: 0.02199090909 | K199: 0.02216363636 | L199: 0.02215454545 | M199: 0.0223 | N199: 0.02230909091 | O199: 0.02225454545 | P199: 0.02249 | Q199: 0.0223 | R199: 0.0223 | S199: 0.0223 | T199: 0.0223 | W199: 0.0223 | X199: 0.01845 | Y199: 0.02024331861 | Z199: 0.02088143965 | AA199: 0.02088143965 | AB199: 0.02088143965 | AC199: 0.02056304687 | AE199: 0.01896 | AF199: 0.01749 | AG199: 0.0161 | AH199: 0.01458 | AI199: =Revenue!AI72*AI$13 -> 0.018168256 | AJ199: =Revenue!AJ72*AJ$13 -> 0.01892777872 | AK199: =Revenue!AK72*AK$13 -> 0.01971966305 | AL199: =Revenue!AL72*AL$13 -> 0.0205450371 | AM199: =Revenue!AM72*AM$13 -> 0.02140506311
A200: =ROW() -> 200 | C200: A2
A201: =ROW() -> 201 | D201: Fixed [$/year] | J201: 496.8181818 | K201: 500.7909091 | L201: 500.6363636 | M201: 503.8909091 | N201: 504.1454545 | O201: 502.9818182 | P201: 508.18 | Q201: 526.04 | R201: 526.04 | S201: 556.13 | T201: 556.13 | W201: 556.13 | X201: 22854.58 | Y201: 25083.20134 | Z201: 25875.63257 | AA201: 25879.11 | AB201: 25879.11 | AC201: 25483.47539 | AE201: 23375.64 | AF201: 21551.35 | AG201: 19827.7 | AH201: 17958.8 | AI201: =Revenue!AI74*AI$13 -> 22382.29336 | AJ201: =Revenue!AJ74*AJ$13 -> 23318.39073 | AK201: =Revenue!AK74*AK$13 -> 24293.64259 | AL201: =Revenue!AL74*AL$13 -> 25309.6786 | AM201: =Revenue!AM74*AM$13 -> 26368.21149
... 178 more rows

Sheet Calc >>

Sheet Price_path_AA5
A1: Smoothing parameters | E1: Annual price movements (% change) | I1: Price path button to run macro
A2: Rounding decimal places A1 usage tariff | B2: 5 | E2: Tariff class | F2: P0 | G2: X-factor
A3: Rounding decimal places all other tariffs | B3: 2 | E3: A1 - B2 | F3: 0.2237957896 | G3: 0.023
A4: B3 tariff smoothing (0=Same as A1-B2; 1=Fixed in 2020 = 2019) | B4: 1 | C4: B3 target revenue | E4: B3 | F4: 1.953841282 | G4: =G3 -> 0.023
A5: NPV of AA5 B3 revenue under B3 revenue smoothing same as A1-B2 | B5: 683.6507929 | C5: =Revenue!F247*81% -> 683.6951618
C6: =Revenue!F246/Revenue!F247 -> 0.8098958175
A8: Conditional formatting key | B8: X
C9: AA5 | E9: 2019 | F9: 2020 | G9: 2021 | H9: 2022 | I9: 2023 | J9: 2024
A10: WACC | B10: Real post tax | F10: =CoS!AI14 -> 0.04113364101 | G10: =CoS!AJ14 -> 0.04113364101 | H10: =CoS!AK14 -> 0.04113364101 | I10: =CoS!AL14 -> 0.04113364101 | J10: =CoS!AM14 -> 0.04113364101
A11: Discount factor | B11: Real post tax | F11: =CoS!AI15 -> 0.9604914879 | G11: =CoS!AJ15 -> 0.9225438984 | H11: =CoS!AK15 -> 0.8860955617 | I11: =CoS!AL15 -> 0.8510872445 | J11: =CoS!AM15 -> 0.8174620538
A12: X factor | B12: % | F12: =F3 -> 0.2237957896 | G12: =$G$3 -> 0.023 | H12: =$G$3 -> 0.023 | I12: 0.023 | J12: 0.023
A13: CPI | B13: % | F13: =Input!AI31 -> 0.0184 | G13: =Input!AJ31 -> 0.0184 | H13: =Input!AK31 -> 0.0184 | I13: =Input!AL31 -> 0.0184 | J13: =Input!AM31 -> 0.0184
A14: B3 X factor | C14: =ROUND(Revenue!F246-Price_path_AA5!B5,6) -> -0.043568 | F14: =$F$4 -> 1.953841282 | G14: =$G$4 -> 0.023 | H14: =$G$4 -> 0.023 | I14: 0.023 | J14: 0.023
A16: Cost of service | C16: PV
A17: OPEX | B17: $ m real | C17: =SUMPRODUCT($F$11:$J$11,$F17:$J17) -> 316.488162 | F17: =CoS!AI65 -> 67.55239644 | G17: =CoS!AJ65 -> 69.24608072 | H17: =CoS!AK65 -> 72.04637111 | I17: =CoS!AL65 -> 73.68674431 | J17: =CoS!AM65 -> 74.82707338
A18: Depreciation | B18: $ m real | C18: 259.9283211 | F18: =CoS!AI66 -> 48.52927181 | G18: =CoS!AJ66 -> 58.36370265 | H18: =CoS!AK66 -> 60.45872633 | I18: =CoS!AL66 -> 62.24152491 | J18: =CoS!AM66 -> 64.74687551
A19: Asset Disposal | B19: $ m real | C19: 0 | F19: =CoS!AI67 -> 0 | G19: =CoS!AJ67 -> 0 | H19: =CoS!AK67 -> 0 | I19: =CoS!AL67 -> 0 | J19: =CoS!AM67 -> 0
A20: Return on Asset | B20: $ m real | C20: 262.5012268 | F20: =CoS!AI68 -> 55.42914339 | G20: =CoS!AJ68 -> 57.68416869 | H20: =CoS!AK68 -> 59.4858156 | I20: =CoS!AL68 -> 61.12690896 | J20: =CoS!AM68 -> 62.76912618
A21: Return on Working Capital | B21: $ m real | C21: 5.122307889 | F21: =CoS!AI69 -> 0.07887660531 | G21: =CoS!AJ69 -> 1.413421875 | H21: =CoS!AK69 -> 1.443740245 | I21: =CoS!AL69 -> 1.467341798 | J21: =CoS!AM69 -> 1.48566669
A22: Tax | B22: $ m real | C22: 20.72057769 | F22: =CoS!AI70 -> 6.595137684 | G22: =CoS!AJ70 -> 5.297866198 | H22: =CoS!AK70 -> 4.289670149 | I22: =CoS!AL70 -> 3.697606814 | J22: =CoS!AM70 -> 3.119956769
A23: Imputation Credits | B23: $ m real | C23: -7.044996414 | F23: =CoS!AI71 -> -2.242346813 | G23: =CoS!AJ71 -> -1.801274507 | H23: =CoS!AK71 -> -1.458487851 | I23: =CoS!AL71 -> -1.257186317 | J23: =CoS!AM71 -> -1.060785302
A24: Net Cost of Service | B24: $ m real | C24: 857.715599 | F24: =SUM(F17:F23) -> 175.9424791 | G24: =SUM(G17:G23) -> 190.2039656 | H24: =SUM(H17:H23) -> 196.2658356 | I24: =SUM(I17:I23) -> 200.9629405 | J24: =SUM(J17:J23) -> 205.8879132
A25: Total Tariff Revenue | B25: $ m real | C25: 857.715406 | F25: =CoS!AI73 -> 187.5123453 | G25: =CoS!AJ73 -> 190.7445721 | H25: =CoS!AK73 -> 193.4903324 | I25: =CoS!AL73 -> 196.2751676 | J25: =CoS!AM73 -> 199.5724894
A26: Check CoS - Revenue rounded to nearest $100k (should be 0) | B26: $ m real | C26: =ROUND(C24-C25,6) -> 0.000193
E28: AAP4 closing tariff | F28: Fixed $ Increments
A29: Charging parameter ($ real at 31 December 2019) | B29: Units | E29: 2019 | F29: 2020 | G29: 2021 | H29: 2022 | I29: 2023 | J29: 2024
A30: Reference tariff A1
A31: Standing charge | B31: $/year | E31: =Load_Tariffs!AH195 -> 32450.59
A32: Demand charge
A33: First 10 km | B33: $/GJ km | E33: =Load_Tariffs!AH196 -> 136.8
A34: Distance > 10 km | B34: $/GJ km | E34: =Load_Tariffs!AH197 -> 72.01
A35: Usage charge
A36: First 10 km | B36: $/GJ km | E36: =Load_Tariffs!AH198 -> 0.02894
A37: Distance > 10 km | B37: $/GJ km | E37: =Load_Tariffs!AH199 -> 0.01458
A38: Reference tariff A2
A39: Standing charge | B39: $/Year | E39: =Load_Tariffs!AH201 -> 17958.8
A40: First 10 TJ | B40: $/GJ | E40: =Load_Tariffs!AH205 -> 1.74
A41: Volume > 10 TJ | B41: $/GJ | E41: =Load_Tariffs!AH206 -> 0.93
A42: Reference tariff B1
A43: Standing charge | B43: $/Year | E43: =Load_Tariffs!AH208 -> 910.38
A44: First 5 TJ | B44: $/GJ | E44: =Load_Tariffs!AH209 -> 3.45
A45: Volume > 5 TJ | B45: $/GJ | E45: =Load_Tariffs!AH211 -> 2.97
A46: Reference tariff B2
A47: Standing charge | B47: $/Year | E47: =Load_Tariffs!AH213 -> 226.83
A48: First 100 GJ | B48: $/GJ | E48: =Load_Tariffs!AH214 -> 5.77
A49: Volume > 100 GJ | B49: $/GJ | E49: =Load_Tariffs!AH215 -> 3.44
A50: Reference tariff B3
A51: Standing charge | B51: $/Year | E51: =Load_Tariffs!AH217 -> 116.9719082
A52: First 1.825 GJ | B52: $/GJ | E52: =Load_Tariffs!AH221 -> 0
A53: Volume > 1.825 <9.855 GJ | B53: $/GJ | E53: =Load_Tariffs!AH222 -> 4.88346387 | F53: 3.5
A54: Volume > 9.855 GJ | B54: $/GJ | E54: =Load_Tariffs!AH223 -> 2.105483136
E56: AAP4 closing tariff | F56: Tariffs to which X factor applied (X Factor will be applied to any cell containing "X")
A57: Charging parameter ($ real at 30 June 2019) | B57: Units $ real | E57: 2019 | F57: 2020 | G57: 2021 | H57: 2022 | I57: 2023 | J57: 2024
A58: Reference tariff A1
A59: Standing charge | B59: $/year | E59: =E31 -> 32450.59 | F59: =IF(F31<>0,0,"x") -> x | G59: =IF(G31<>0,0,"x") -> x | H59: =IF(H31<>0,0,"x") -> x | I59: =IF(I31<>0,0,"x") -> x | J59: =IF(J31<>0,0,"x") -> x
A60: Demand charge
A61: First 10 km | B61: $/GJ km | E61: 136.8 | F61: =IF(F33<>0,0,"x") -> x | G61: x | H61: x | I61: x | J61: x
A62: Distance > 10 km | B62: $/GJ km | E62: 72.01 | F62: x | G62: x | H62: x | I62: x | J62: x
A63: Usage charge | E63: 0
A64: First 10 km | B64: $/GJ km | E64: 0.02894 | F64: =IF(F36<>0,0,"x") -> x | G64: x | H64: x | I64: x | J64: x
A65: Distance > 10 km | B65: $/GJ km | E65: 0.01458 | F65: x | G65: x | H65: x | I65: x | J65: x
A66: Reference tariff A2 | E66: 0
A67: Standing charge | B67: $/Year | E67: 17958.8 | F67: =IF(F39<>0,0,"x") -> x | G67: x | H67: x | I67: x | J67: x
A68: First 10 TJ | B68: $/GJ | E68: 1.74 | F68: x | G68: x | H68: x | I68: x | J68: x
A69: Volume > 10 TJ | B69: $/GJ | E69: 0.93 | F69: x | G69: x | H69: x | I69: x | J69: x
A70: Reference tariff B1 | E70: 0
A71: Standing charge | B71: $/Year | E71: 910.38 | F71: =IF(F43<>0,0,"x") -> x | G71: x | H71: x | I71: x | J71: x
A72: First 5 TJ | B72: $/GJ | E72: 3.45 | F72: x | G72: x | H72: x | I72: x | J72: x
A73: Volume > 5 TJ | B73: $/GJ | E73: 2.97 | F73: x | G73: x | H73: x | I73: x | J73: x
A74: Reference tariff B2 | E74: 0
A75: Standing charge | B75: $/Year | E75: 226.83 | F75: =IF(F47<>0,0,"x") -> x | G75: x | H75: x | I75: x | J75: x
A76: First 100 GJ | B76: $/GJ | E76: 5.77 | F76: x | G76: x | H76: x | I76: x | J76: x
A77: Volume > 100 GJ | B77: $/GJ | E77: 3.44 | F77: x | G77: x | H77: x | I77: x | J77: x
A78: Reference tariff B3 | E78: 0
A79: Standing charge | B79: $/Year | E79: 116.9719082 | F79: =IF(F51<>0,0,"x") -> x | G79: x | H79: x | I79: x | J79: x
A80: First 1.825 GJ | B80: $/GJ | E80: 0 | F80: x | G80: x | H80: x | I80: x | J80: x
A81: Volume > 1.825 <9.855 GJ | B81: $/GJ | E81: 4.88346387 | F81: 0 | G81: x | H81: x | I81: x | J81: x
A82: Volume > 9.855 GJ | B82: $/GJ | E82: 2.105483136 | F82: x | G82: x | H82: x | I82: x | J82: x
A84: Manual tariff adjustment to balance NPV = 0 (necessary due to tariff rounding)
E85: AAP4 closing tariff | F85: Forecast tariffs ($ real)
A86: Charging parameter ($ real at 30 June 2019) | B86: Units $ real | E86: 2019 | F86: 2020 | G86: 2021 | H86: 2022 | I86: 2023 | J86: 2024
A87: Reference tariff A1
A88: Standing charge | B88: $/year
A89: Demand charge
A90: First 10 km | B90: $/GJ km
A91: Distance > 10 km | B91: $/GJ km
A92: Usage charge
A93: First 10 km | B93: $/GJ km
A94: Distance > 10 km | B94: $/GJ km
A95: Reference tariff A2
A96: Standing charge | B96: $/Year
A97: First 10 TJ | B97: $/GJ
A98: Volume > 10 TJ | B98: $/GJ
A99: Reference tariff B1
A100: Standing charge | B100: $/Year
A101: First 5 TJ | B101: $/GJ
A102: Volume > 5 TJ | B102: $/GJ
A103: Reference tariff B2
A104: Standing charge | B104: $/Year | F104: 0.11
A105: First 100 GJ | B105: $/GJ | F105: 0.02
A106: Volume > 100 GJ | B106: $/GJ
A107: Reference tariff B3
A108: Standing charge | B108: $/Year
A109: First 1.81.8255 GJ | B109: $/GJ
A110: Volume > 1.825 <9.855 GJ | B110: $/GJ
A111: Volume > 9.855 GJ | B111: $/GJ
A113: Proposed tariffs ($ real December 2019)
E114: AAP4 closing tariff | F114: Forecast tariffs ($ real)
A115: Charging parameter ($ real at 30 June 2019) | B115: Units $ real | E115: 2019 | F115: 2020 | G115: 2021 | H115: 2022 | I115: 2023 | J115: 2024
A116: Reference tariff A1
A117: Standing charge | B117: $/year | E117: =E59 -> 32450.59 | F117: =ROUND(IF(F31<>0,E117+F31,E117*(1+F$12)),$B$3)+F88 -> 39712.9 | G117: 40626.3 | H117: 41560.7 | I117: 42516.6 | J117: 43494.48
A118: Demand charge
A119: First 10 km | B119: $/GJ km | E119: =E61 -> 136.8 | F119: =ROUND(IF(F33<>0,E119+F33,E119*(1+F$12)),$B$3)+F90 -> 167.42 | G119: 171.27 | H119: 175.21 | I119: 179.24 | J119: 183.36
A120: Distance > 10 km | B120: $/GJ km | E120: =E62 -> 72.01 | F120: 88.13 | G120: 90.16 | H120: 92.23 | I120: 94.35 | J120: 96.52
A121: Usage charge
A122: First 10 km | B122: $/GJ km | E122: =E64 -> 0.02894 | F122: =ROUND(IF(F36<>0,E122+F36,E122*(1+F$12)),$B$2)+F93 -> 0.03542 | G122: 0.03623 | H122: 0.03706 | I122: 0.03791 | J122: 0.03878
A123: Distance > 10 km | B123: $/GJ km | E123: =E65 -> 0.01458 | F123: 0.01784 | G123: 0.01825 | H123: 0.01867 | I123: 0.0191 | J123: 0.01954
A124: Reference tariff A2
A125: Standing charge | B125: $/Year | E125: =E67 -> 17958.8 | F125: =ROUND(IF(F39<>0,E125+F39,E125*(1+F$12)),$B$3)+F96 -> 21977.9 | G125: 22483.39 | H125: 23000.51 | I125: 23529.52 | J125: 24070.7
A126: First 10 TJ | B126: $/GJ | E126: 1.74 | F126: 2.13 | G126: 2.18 | H126: 2.23 | I126: 2.28 | J126: 2.33
A127: Volume > 10 TJ | B127: $/GJ | E127: 0.93 | F127: 1.14 | G127: 1.17 | H127: 1.2 | I127: 1.23 | J127: 1.26
A128: Reference tariff B1 | E128: 0
A129: Standing charge | B129: $/Year | E129: 910.38 | F129: =ROUND(IF(F43<>0,E129+F43,E129*(1+F$12)),$B$3)+F100 -> 1114.12 | G129: 1139.74 | H129: 1165.95 | I129: 1192.77 | J129: 1220.2
A130: First 5 TJ | B130: $/GJ | E130: 3.45 | F130: =ROUND(IF(F44<>0,E130+F44,E130*(1+F$12)),$B$3)+F101 -> 4.22 | G130: 4.32 | H130: 4.42 | I130: 4.52 | J130: 4.62
A131: Volume > 5 TJ | B131: $/GJ | E131: 2.97 | F131: =ROUND(IF(F45<>0,E131+F45,E131*(1+F$12)),$B$3)+F102 -> 3.63 | G131: 3.71 | H131: 3.8 | I131: 3.89 | J131: 3.98
A132: Reference tariff B2
A133: Standing charge | B133: $/Year | E133: =E75 -> 226.83 | F133: =ROUND(IF(F47<>0,E133+F47,E133*(1+F$12)),$B$3)+F104 -> 277.7 | G133: 284.09 | H133: 290.62 | I133: 297.3 | J133: 304.14
A134: First 100 GJ | B134: $/GJ | E134: =E76 -> 5.77 | F134: =ROUND(IF(F48<>0,E134+F48,E134*(1+F$12)),$B$3)+F105 -> 7.08 | G134: 7.24 | H134: 7.41 | I134: 7.58 | J134: 7.75
A135: Volume > 100 GJ | B135: $/GJ | E135: =E77 -> 3.44 | F135: =ROUND(IF(F49<>0,E135+F49,E135*(1+F$12)),$B$3)+F106 -> 4.21 | G135: 4.31 | H135: 4.41 | I135: 4.51 | J135: 4.61
A136: Reference tariff B3
A137: Standing charge | B137: $/Year | E137: =E79 -> 116.9719082 | F137: =ROUND(IF(F51<>0,E137+F51,IF($B$4=0,E137*(1+F$12),$E$137)),$B$3) -> 116.97 | G137: =ROUND(IF(G51<>0,F137+G51,IF($B$4=0,F137*(1+G$12),$E$137)),$B$3) -> 116.97 | H137: 116.97 | I137: 116.97 | J137: 116.97
A138: First 1.81.8255 GJ | B138: $/GJ | E138: =E80 -> 0 | F138: =ROUND(IF(F52<>0,E138+F52,E138*(1+IF($B$4=0,F$12,F$14))),$B$3) -> 0 | G138: =ROUND(IF(G52<>0,F138+G52,F138*(1+IF($B$4=0,G$12,G$14))),$B$3) -> 0 | H138: 0 | I138: 0 | J138: 0
A139: Volume > 1.825 <9.855 GJ | B139: $/GJ | E139: =E81 -> 4.88346387 | F139: =ROUND(IF(F53<>0,E139+F53,E139*(1+IF($B$4=0,F$12,F$14))),$B$3)+F110 -> 8.38 | G139: 8.57 | H139: 8.77 | I139: 8.97 | J139: 9.18
A140: Volume > 9.855 GJ | B140: $/GJ | E140: =E82 -> 2.105483136 | F140: =ROUND(IF(F54<>0,E140+F54,E140*(1+IF($B$4=0,F$12,F$14))),$B$3)+F111 -> 6.22 | G140: 6.36 | H140: 6.51 | I140: 6.66 | J140: 6.81
A142: X factor calculation
E143: AAP4 closing tariff | F143: Weighted average tariffs ($ real)
A144: Charging parameter ($ real at 30 June 2019) | B144: Units $ real | E144: 2019 | F144: 2020 | G144: 2021 | H144: 2022 | I144: 2023 | J144: 2024
A145: Reference tariff A1
A146: Standing charge | B146: $/year | E146: =E117 -> 32450.59 | F146: =F117 -> 39712.9 | G146: =F146*(1+G$232) -> 40576.6464 | H146: =G146*(1+H$232) -> 41046.74732 | I146: =H146*(1+I$232) -> 41511.11614 | J146: =I146*(1+J$232) -> 41983.49747
A147: Demand charge | E147: 0 | F147: 0
A148: First 10 km | B148: $/GJ km | E148: 136.8 | F148: 167.42 | G148: =F148*(1+G$232) -> 171.0613463 | H148: 173.0431783 | I148: 175.0008452 | J148: 176.9922908
A149: Distance > 10 km | B149: $/GJ km | E149: 72.01 | F149: 88.13 | G149: 90.04680714 | H149: 91.09004484 | I149: 92.12056197 | J149: 93.16886031
A150: Usage charge | E150: 0 | F150: 0
A151: First 10 km | B151: $/GJ km | E151: 0.02894 | F151: 0.03542 | G151: =F151*(1+G$232) -> 0.03619037682 | H151: 0.03660966059 | I151: 0.0370238319 | J151: 0.03744514957
A152: Distance > 10 km | B152: $/GJ km | E152: 0.01458 | F152: 0.01784 | G152: 0.01822801588 | H152: 0.01843919664 | I152: 0.0186478024 | J152: 0.01886000758
A153: Reference tariff A2 | E153: 0 | F153: 0
A154: Standing charge | B154: $/Year | E154: 17958.8 | F154: 21977.9 | G154: =F154*(1+G$232) -> 22455.91425 | H154: 22716.07734 | I154: 22973.06818 | J154: 23234.4933
A155: First 10 TJ | B155: $/GJ | E155: 1.74 | F155: 2.13 | G155: 2.176327008 | H155: 2.201540854 | I155: 2.22644726 | J155: 2.251783416
A156: Volume > 10 TJ | B156: $/GJ | E156: 0.93 | F156: 1.14 | G156: 1.164794737 | H156: 1.178289471 | I156: 1.19161966 | J156: 1.205179856
A157: Reference tariff B1 | E157: 0 | F157: 0
A158: Standing charge | B158: $/Year | E158: 910.38 | F158: 1114.12 | G158: =F158*(1+G$232) -> 1138.351853 | H158: 1151.540233 | I158: 1164.567803 | J158: 1177.820159
A159: First 5 TJ | B159: $/GJ | E159: 3.45 | F159: 4.22 | G159: 4.311784025 | H159: 4.361738219 | I159: 4.411083303 | J159: 4.461279819
A160: Volume > 5 TJ | B160: $/GJ | E160: 2.97 | F160: 3.63 | G160: 3.708951661 | H160: 3.751921738 | I160: 3.794367865 | J160: 3.837546385
A161: Reference tariff B2 | E161: 0 | F161: 0
A162: Standing charge | B162: $/Year | E162: 226.83 | F162: 277.7 | G162: =F162*(1+G$232) -> 283.7399108 | H162: 287.0271809 | I162: 290.2743681 | J162: 293.5775843
A163: First 100 GJ | B163: $/GJ | E163: 5.77 | F163: 7.08 | G163: 7.233988364 | H163: 7.31779777 | I163: 7.400585258 | J163: 7.484801214
A164: Volume > 100 GJ | B164: $/GJ | E164: 3.44 | F164: 4.21 | G164: 4.301566527 | H164: 4.351402346 | I164: 4.400630499 | J164: 4.450708066
A165: Reference tariff B3 | E165: 0 | F165: 0
A166: Standing charge | B166: $/Year | E166: 116.9719082 | F166: 116.97 | G166: =F166*(1+G$232) -> 119.5140705 | H166: 120.8987013 | I166: 122.2664488 | J166: 123.6577963
A167: First 1.81.8255 GJ | B167: $/GJ | E167: 0 | F167: 0 | G167: 0 | H167: 0 | I167: 0 | J167: 0
A168: Volume > 1.825 <9.855 GJ | B168: $/GJ | E168: 4.88346387 | F168: 8.38 | G168: 8.562263064 | H168: 8.661461202 | I168: 8.759449782 | J168: 8.85912912
A169: Volume > 9.855 GJ | B169: $/GJ | E169: 2.105483136 | F169: 6.22 | G169: 6.355283563 | H169: 6.42891273 | I169: 6.50164411 | J169: 6.575630445
F171: Forecast Customer base and consumption
A172: Customer base and consumption | B172: Units $ real | F172: 2020 | G172: 2021 | H172: 2022 | I172: 2023 | J172: 2024
A173: Reference tariff A1
A174: Standing charge | B174: Number | F174: =Load_Tariffs!AI$32 -> 70 | G174: =Load_Tariffs!AJ$32 -> 70 | H174: =Load_Tariffs!AK$32 -> 69 | I174: =Load_Tariffs!AL$32 -> 67.5 | J174: =Load_Tariffs!AM$32 -> 67
A175: Demand charge
A176: First 10 km | B176: GJ Km | F176: =Load_Tariffs!AI91 -> 16630.842 | G176: =Load_Tariffs!AJ91 -> 16646.029 | H176: =Load_Tariffs!AK91 -> 14733.029 | I176: =Load_Tariffs!AL91 -> 13023.229 | J176: =Load_Tariffs!AM91 -> 13043.229
A177: Distance > 10 km | B177: GJ Km | F177: =Load_Tariffs!AI92 -> 6488.14 | G177: =Load_Tariffs!AJ92 -> 6493.34 | H177: =Load_Tariffs!AK92 -> 6493.34 | I177: =Load_Tariffs!AL92 -> 6090.24 | J177: =Load_Tariffs!AM92 -> 6095.44
A178: Usage charge
A179: First 10 km | B179: TJKm | F179: =Load_Tariffs!AI93 -> 37240.58199 | G179: =Load_Tariffs!AJ93 -> 40662.39316 | H179: =Load_Tariffs!AK93 -> 38691.19088 | I179: =Load_Tariffs!AL93 -> 37533.07076 | J179: =Load_Tariffs!AM93 -> 37113.48222
A180: Distance > 10 km | B180: TJKm | F180: =Load_Tariffs!AI94 -> 18381.76806 | G180: =Load_Tariffs!AJ94 -> 19527.80797 | H180: =Load_Tariffs!AK94 -> 19415.828 | I180: =Load_Tariffs!AL94 -> 19048.42767 | J180: =Load_Tariffs!AM94 -> 18856.82771
A181: Reference tariff A2
A182: Standing charge | B182: Number | F182: =Load_Tariffs!AI$33 -> 96 | G182: =Load_Tariffs!AJ$33 -> 96 | H182: =Load_Tariffs!AK$33 -> 96 | I182: =Load_Tariffs!AL$33 -> 96 | J182: =Load_Tariffs!AM$33 -> 96
A183: First 10 TJ | B183: GJ | F183: =Load_Tariffs!AI104 -> 720225.1262 | G183: =Load_Tariffs!AJ104 -> 703357.9022 | H183: =Load_Tariffs!AK104 -> 686923.944 | I183: =Load_Tariffs!AL104 -> 670911.1925 | J183: =Load_Tariffs!AM104 -> 655307.9418
A184: Volume > 10 TJ | B184: GJ | F184: =Load_Tariffs!AI105 -> 948709.9447 | G184: =Load_Tariffs!AJ105 -> 926491.7485 | H184: =Load_Tariffs!AK105 -> 904844.2677 | I184: =Load_Tariffs!AL105 -> 883751.6176 | J184: =Load_Tariffs!AM105 -> 863198.3786
A185: Reference tariff B1
A186: Standing charge | B186: Number | F186: =Load_Tariffs!AI$34 -> 1816.131496 | G186: =Load_Tariffs!AJ$34 -> 1885.458649 | H186: =Load_Tariffs!AK$34 -> 1949.254309 | I186: =Load_Tariffs!AL$34 -> 2009.576465 | J186: =Load_Tariffs!AM$34 -> 2068.688606
A187: First 5 TJ | B187: GJ | F187: =Load_Tariffs!AI112 -> 1846691.104 | G187: =Load_Tariffs!AJ112 -> 1892339.618 | H187: =Load_Tariffs!AK112 -> 1927555.553 | I187: =Load_Tariffs!AL112 -> 1957058.15 | J187: =Load_Tariffs!AM112 -> 1978539.77
A188: Volume > 5 TJ | B188: GJ | F188: =Load_Tariffs!AI114 -> 247323.7629 | G188: =Load_Tariffs!AJ114 -> 240920.1111 | H188: =Load_Tariffs!AK114 -> 240571.021 | I188: =Load_Tariffs!AL114 -> 242575.3702 | J188: =Load_Tariffs!AM114 -> 243972.6539
A189: Reference tariff B2
A190: Standing charge | B190: Number | F190: =Load_Tariffs!AI$35 -> 12527.29492 | G190: =Load_Tariffs!AJ$35 -> 12850.49669 | H190: =Load_Tariffs!AK$35 -> 13189.96324 | I190: =Load_Tariffs!AL$35 -> 13527.58584 | J190: =Load_Tariffs!AM$35 -> 13850.06039
A191: First 100 GJ | B191: GJ | F191: =Load_Tariffs!AI121 -> 527736.289 | G191: =Load_Tariffs!AJ121 -> 543080.6255 | H191: =Load_Tariffs!AK121 -> 558795.2475 | I191: =Load_Tariffs!AL121 -> 573853.3317 | J191: =Load_Tariffs!AM121 -> 583261.5202
A192: Volume > 100 GJ | B192: GJ | F192: =Load_Tariffs!AI122 -> 890987.0695 | G192: =Load_Tariffs!AJ122 -> 892759.7875 | H192: =Load_Tariffs!AK122 -> 894395.4133 | I192: =Load_Tariffs!AL122 -> 895175.2627 | J192: =Load_Tariffs!AM122 -> 894034.2702
A193: Reference tariff B3
A194: Standing charge | B194: Number | F194: =Load_Tariffs!AI$36 -> 747478.9968 | G194: =Load_Tariffs!AJ$36 -> 759437.1999 | H194: =Load_Tariffs!AK$36 -> 771652.0947 | I194: =Load_Tariffs!AL$36 -> 784164.53 | J194: =Load_Tariffs!AM$36 -> 796954.0703
A195: First 1.81.8255 GJ | B195: GJ | F195: =Load_Tariffs!AI132 -> 1263570.96 | G195: =Load_Tariffs!AJ132 -> 1281241.823 | H195: =Load_Tariffs!AK132 -> 1310813.427 | I195: =Load_Tariffs!AL132 -> 1328708.229 | J195: =Load_Tariffs!AM132 -> 1348124.44
A196: Volume > 1.825 <9.855 GJ | B196: GJ | F196: =Load_Tariffs!AI133 -> 4273886.087 | G196: =Load_Tariffs!AJ133 -> 4267621.681 | H196: =Load_Tariffs!AK133 -> 4279268.54 | I196: =Load_Tariffs!AL133 -> 4265820.183 | J196: =Load_Tariffs!AM133 -> 4259216.16
A197: Volume > 9.855 GJ | B197: GJ | F197: =Load_Tariffs!AI134 -> 4353723.51 | G197: =Load_Tariffs!AJ134 -> 4209167.297 | H197: =Load_Tariffs!AK134 -> 4044322.309 | I197: =Load_Tariffs!AL134 -> 3923473.783 | J197: =Load_Tariffs!AM134 -> 3813708.951
F199: Forecast haulage revenue $ real
A200: Revenue | B200: Units $ real | F200: 2020 | G200: 2021 | H200: 2022 | I200: 2023 | J200: 2024
A201: Reference tariff A1
A202: Standing charge | B202: $ real 2019 | F202: =F146*F174 -> 2779903 | G202: 2840365.248 | H202: 2832225.565 | I202: 2802000.339 | J202: 2812894.331
A203: Demand charge
A204: First 10 km | B204: $ real 2019 | F204: 2784335.568 | G204: 2847492.132 | H204: 2549450.165 | I204: 2279076.082 | J204: 2308550.981
A205: Distance > 10 km | B205: $ real 2019 | F205: 571799.7782 | G205: 584704.5346 | H205: 591478.6317 | I205: 561036.3313 | J205: 567905.1979
A206: Usage charge
A207: First 10 km | B207: $ real 2019 | F207: =F151*F179*1000 -> 1319061.414 | G207: 1471.587331 | H207: 1416.471366 | I207: 1389.618102 | J207: 1389.719893
A208: Distance > 10 km | B208: $ real 2019 | F208: =F152*F180*1000 -> 327930.7422 | G208: 355.9531938 | H208: 358.0122705 | I208: 355.2113152 | J208: 355.6399136
A209: Reference tariff A2
... 30 more rows

Sheet CoS
A1: =Main!A1 -> 0
A2: Building Block of Total Revenue Required
A3: Ref | C3: =COLUMN() -> 3 | D3: =COLUMN() -> 4 | E3: =COLUMN() -> 5 | F3: =COLUMN() -> 6 | G3: =COLUMN() -> 7 | H3: =COLUMN() -> 8 | I3: =COLUMN() -> 9 | J3: =COLUMN() -> 10 | K3: =COLUMN() -> 11 | L3: =COLUMN() -> 12 | M3: =COLUMN() -> 13 | N3: =COLUMN() -> 14 | O3: =COLUMN() -> 15 | P3: =COLUMN() -> 16 | Q3: =COLUMN() -> 17 | R3: =COLUMN() -> 18 | S3: =COLUMN() -> 19 | T3: =COLUMN() -> 20 | W3: =COLUMN() -> 23 | X3: =COLUMN() -> 24 | Y3: =COLUMN() -> 25 | Z3: =COLUMN() -> 26 | AA3: =COLUMN() -> 27 | AB3: =COLUMN() -> 28 | AC3: =COLUMN() -> 29 | AD3: =COLUMN() -> 30 | AE3: =COLUMN() -> 31 | AF3: =COLUMN() -> 32 | AG3: =COLUMN() -> 33 | AH3: =COLUMN() -> 34
A4: Regulatory Period | J4: 1 | K4: 1 | L4: 1 | M4: 1 | N4: 1 | O4: 2 | P4: 2 | Q4: 2 | R4: 2 | S4: 2 | T4: 3 | W4: 3 | X4: 3 | Y4: 3 | Z4: 3 | AA4: 4 | AB4: 4 | AC4: 4 | AD4: 4 | AE4: 4 | AF4: 4 | AG4: 4 | AH4: 4 | AI4: 5 | AJ4: 5 | AK4: 5 | AL4: 5 | AM4: 5
A5: Year ending | I5: 1999 | J5: 2000 | K5: 2001 | L5: 2002 | M5: 2003 | N5: 2004 | O5: 2005 | P5: 2006 | Q5: 2007 | R5: 2008 | S5: =1+R5 -> 2009 | T5: =1+S5 -> 2010 | W5: =T5+1 -> 2011 | X5: =W5+1 -> 2012 | Y5: =X5+1 -> 2013 | Z5: =Y5+1 -> 2014 | AA5: 2014 | AB5: =Load_Tariffs!AB6 -> 2015 | AC5: =Load_Tariffs!AC6 -> 2015 | AD5: =AA5+1 -> 2015 | AE5: =AD5+1 -> 2016 | AF5: =AE5+1 -> 2017 | AG5: =AF5+1 -> 2018 | AH5: =AG5+1 -> 2019 | AI5: 2020 | AJ5: 2021 | AK5: =Load_Tariffs!AK6 -> 2022 | AL5: 2023 | AM5: 2024
A6: Months | I6: 1 to 12 | J6: 1 to 12 | K6: 1 to 12 | L6: 1 to 12 | M6: 1 to 12 | N6: 1 to 12 | O6: 1 to 12 | P6: 1 to 12 | Q6: 1 to 12 | R6: 1 to 12 | S6: 1 to 12 | T6: 1 to 6 | W6: 7 to 6 | X6: 7 to 6 | Y6: 7 to 6 | Z6: 7 to 6 | AA6: 7 to 12 | AB6: =Load_Tariffs!AB7 -> 1 to 9 | AC6: =Load_Tariffs!AC7 -> 10 to 12 | AD6: 1 to 12 | AE6: 1 to 12 | AF6: 1 to 12 | AG6: 1 to 12 | AH6: 1 to 12 | AI6: 1 to 12 | AJ6: 1 to 12 | AK6: 1 to 12 | AL6: 1 to 12 | AM6: 1 to 12
A7: Days | I7: =Input!I$8 -> 365 | J7: =Input!J$8 -> 366 | K7: =Input!K$8 -> 365 | L7: =Input!L$8 -> 365 | M7: =Input!M$8 -> 365 | N7: =Input!N$8 -> 366 | O7: =Input!O$8 -> 365 | P7: =Input!P$8 -> 365 | Q7: =Input!Q$8 -> 365 | R7: =Input!R$8 -> 366 | S7: =Input!S$8 -> 365 | T7: =Input!T$8 -> 181 | W7: =Input!W$8 -> 365 | X7: =Input!X$8 -> 366 | Y7: =Input!Y$8 -> 365 | Z7: =Input!Z$8 -> 365 | AA7: =Input!AA$8 -> 184 | AB7: =Input!AB$8 -> 273 | AC7: =Input!AC$8 -> 92 | AD7: =Input!AD$8 -> 365 | AE7: =Input!AE$8 -> 366 | AF7: =Input!AF$8 -> 365 | AG7: =Input!AG$8 -> 365 | AH7: =Input!AH$8 -> 365 | AI7: =Input!AI$8 -> 366 | AJ7: =Input!AJ$8 -> 365 | AK7: =Input!AK$8 -> 365 | AL7: =Input!AL$8 -> 365 | AM7: =Input!AM$8 -> 365
A8: Year portion | I8: =Input!I$9 -> 1 | J8: =Input!J$9 -> 1 | K8: =Input!K$9 -> 1 | L8: =Input!L$9 -> 1 | M8: =Input!M$9 -> 1 | N8: =Input!N$9 -> 1 | O8: =Input!O$9 -> 1 | P8: =Input!P$9 -> 1 | Q8: =Input!Q$9 -> 1 | R8: =Input!R$9 -> 1 | S8: =Input!S$9 -> 1 | T8: =Input!T$9 -> 0.495890411 | W8: =Input!W$9 -> 1 | X8: =Input!X$9 -> 1 | Y8: =Input!Y$9 -> 1 | Z8: =Input!Z$9 -> 1 | AA8: =Input!AA$9 -> 0.504109589 | AB8: =Input!AB$9 -> 0.7479452055 | AC8: =Input!AC$9 -> 0.2520547945 | AD8: =Input!AD$9 -> 1 | AE8: =Input!AE$9 -> 1 | AF8: =Input!AF$9 -> 1 | AG8: =Input!AG$9 -> 1 | AH8: =Input!AH$9 -> 1 | AI8: =Input!AK$9 -> 1 | AJ8: =Input!AL$9 -> 1 | AK8: =Input!AM$9 -> 1 | AL8: =Input!AL$9 -> 1 | AM8: =Input!AM$9 -> 1
A9: Financial Parameters
A10: =ROW() -> 10 | C10: Modelled Inflation | J10: ACTUAL 1 | O10: ACTUAL 2 | T10: ACTUAL 3 | AA10: Actual | AG10: Forecast | AI10: FORECAST
A11: =ROW() -> 11 | D11: Inflation | J11: =Input!J$31 -> 0.05801772764 | K11: =Input!K$31 -> 0.03122619954 | L11: =Input!L$31 -> 0.03028064993 | M11: =Input!M$31 -> 0.02365591398 | N11: =Input!N$31 -> 0.02591036415 | O11: =Input!O$31 -> 0.02798634812 | P11: =Input!P$31 -> 0.03253652058 | Q11: =Input!Q$31 -> 0.02958199357 | R11: =Input!R$31 -> 0.03685196752 | S11: =Input!S$31 -> 0.02108433735 | T11: =Input!T31 -> 0.01533923304 | W11: =Input!W31 -> 0.03602556653 | X11: =Input!X31 -> 0.01177790241 | Y11: =Input!Y31 -> 0.02390438247 | Z11: =Input!Z31 -> 0.03015564202 | AA11: =Input!AA31 -> 0.006610009443 | AD11: =Input!AD31 -> 0.01688555347 | AE11: =Input!AE31 -> 0.0147601476 | AF11: =Input!AF31 -> 0.01909090909 | AG11: =Input!AG31 -> 0.0184 | AH11: =Input!AH31 -> 0.0184 | AI11: =Input!AI31 -> 0.0184 | AJ11: =Input!AJ31 -> 0.0184 | AK11: =Input!AK31 -> 0.0184 | AL11: =Input!AL31 -> 0.0184 | AM11: =Input!AM31 -> 0.0184
A12: =ROW() -> 12 | D12: Inflation Factor (convert to nominal $) | J12: =Input!J$35 -> 0.6285205933 | K12: =Input!K$35 -> 0.6481469028 | L12: =Input!L$35 -> 0.6677732122 | M12: =Input!M$35 -> 0.6835699979 | N12: =Input!N$35 -> 0.7012815455 | O12: =Input!O$35 -> 0.7209078549 | P12: =Input!P$35 -> 0.7443636882 | Q12: =Input!Q$35 -> 0.76638345 | R12: =Input!R$35 -> 0.7946261881 | S12: =Input!S$35 -> 0.8113803547 | T12: =Load_Tariffs!T13 -> 0.823826307 | W12: =Load_Tariffs!W13 -> 0.8535051164 | X12: =Load_Tariffs!X13 -> 0.8635576164 | Y12: =Load_Tariffs!Y13 -> 0.884200428 | Z12: =Load_Tariffs!Z13 -> 0.9108640595 | AA12: =Load_Tariffs!AA13 -> 0.9168848796 | AD12: =Load_Tariffs!AD13 -> 0.9323669882 | AE12: =Load_Tariffs!AE13 -> 0.9461288626 | AF12: =Load_Tariffs!AF13 -> 0.9641913227 | AG12: =Load_Tariffs!AG13 -> 0.981932443 | AH12: =Load_Tariffs!AH13 -> 1 | AI12: =Load_Tariffs!AI13 -> 1.0184 | AJ12: =Load_Tariffs!AJ13 -> 1.03713856 | AK12: =Load_Tariffs!AK13 -> 1.05622191 | AL12: =Load_Tariffs!AL13 -> 1.075656393 | AM12: =Load_Tariffs!AM13 -> 1.09544847
A13: =ROW() -> 13 | C13: Real Post Tax WACC
A14: =ROW() -> 14 | D14: WACC | T14: =Input!T38 -> 0 | W14: =Input!W38 -> 0 | X14: =Input!X38 -> 0 | Y14: =Input!Y38 -> 0 | Z14: =Input!Z38 -> 0 | AA14: =Input!AA38 -> 0.0198101078 | AD14: =Input!AD38 -> 0.04010991168 | AE14: =Input!AE38 -> 0.04113444553 | AF14: =Input!AF38 -> 0.04177625123 | AG14: =Input!AG38 -> 0.04071638862 | AH14: =Input!AH38 -> 0.04071638862 | AI14: =Input!AI38 -> 0.04113364101 | AJ14: =Input!AJ38 -> 0.04113364101 | AK14: =Input!AK38 -> 0.04113364101 | AL14: =Input!AL38 -> 0.04113364101 | AM14: =Input!AM38 -> 0.04113364101
A15: =ROW() -> 15 | D15: Discounting Factor | T15: =Input!T39 -> 1 | W15: =Input!W39 -> 1 | X15: =Input!X39 -> 1 | Y15: =Input!Y39 -> 1 | Z15: =Input!Z39 -> 1 | AA15: =Input!AA39 -> 0.9805747093 | AD15: =Input!AD39 -> 0.9427606624 | AE15: =Input!AE39 -> 0.9055128917 | AF15: =Input!AF39 -> 0.869200935 | AG15: =Input!AG39 -> 0.8351948183 | AH15: =Input!AH39 -> 0.8025191372 | AI15: =Input!AI39 -> 0.9604914879 | AJ15: =Input!AJ39 -> 0.9225438984 | AK15: =Input!AK39 -> 0.8860955617 | AL15: =Input!AL39 -> 0.8510872445 | AM15: =Input!AM39 -> 0.8174620538
A16: =ROW() -> 16 | C16: Nominal Post Tax WACC
A17: =ROW() -> 17 | D17: WACC | T17: =Input!T41 -> 0 | W17: =Input!W41 -> 0 | X17: =Input!X41 -> 0 | Y17: =Input!Y41 -> 0 | Z17: =Input!Z41 -> 0 | AA17: =Input!AA41 -> 0.02953234787 | AD17: =Input!AD41 -> 0.059872 | AE17: =Input!AE41 -> 0.060916 | AF17: =Input!AF41 -> 0.06157 | AG17: =Input!AG41 -> 0.06049 | AH17: =Input!AH41 -> 0.06049 | AI17: =Input!AI41 -> 0.0602905 | AJ17: =Input!AJ41 -> 0.0602905 | AK17: =Input!AK41 -> 0.0602905 | AL17: =Input!AL41 -> 0.0602905 | AM17: =Input!AM41 -> 0.0602905
A18: =ROW() -> 18 | D18: Discounting Factor | T18: =Input!T42 -> 1 | W18: =Input!W42 -> 1 | X18: =Input!X42 -> 1 | Y18: =Input!Y42 -> 1 | Z18: =Input!Z42 -> 1 | AA18: =Input!AA42 -> 0.9713147936 | AD18: =Input!AD42 -> 0.9164453761 | AE18: =Input!AE42 -> 0.8638246346 | AF18: =Input!AF42 -> 0.8137236684 | AG18: =Input!AG42 -> 0.7673091386 | AH18: =Input!AH42 -> 0.7235420783 | AI18: =Input!AI42 -> 0.9431377533 | AJ18: =Input!AJ42 -> 0.8895088217 | AK18: =Input!AK42 -> 0.8389293516 | AL18: =Input!AL42 -> 0.7912259438 | AM18: =Input!AM42 -> 0.746235059
A19: ="Capital Base [m$ "&Input!$G$34&"]" -> Capital Base [m$ 31/12/2019]
A20: =ROW() -> 20 | C20: Asset Account
A21: =ROW() -> 21 | D21: Opening Value | O21: =Asset!O$16 -> 947.753979 | P21: =Asset!P$16 -> 937.7771025 | Q21: =Asset!Q$16 -> 941.0819106 | R21: =Asset!R$16 -> 944.3945813 | S21: =Asset!S$16 -> 946.8193552 | T21: =Asset!T$16 -> 963.6164324 | W21: =Asset!W$16 -> 984.1685899 | X21: =Asset!X$16 -> 1000.401249 | Y21: =Asset!Y$16 -> 1011.03176 | Z21: =Asset!Z$16 -> 1063.620085 | AA21: =Asset!AA$16 -> 1103.790337 | AD21: =Asset!AD$16 -> 1129.560382 | AE21: =Asset!AE$16 -> 1170.61011 | AF21: =Asset!AF$16 -> 1219.030342 | AG21: =Asset!AG$16 -> 1263.940032 | AH21: =Asset!AH$16 -> 1312.133064 | AI21: =Asset!AI$16 -> 1347.537977 | AJ21: =Asset!AJ$16 -> 1402.3599 | AK21: =Asset!AK$16 -> 1446.159741 | AL21: =Asset!AL$16 -> 1486.056363 | AM21: =Asset!AM$16 -> 1525.980308
A22: =ROW() -> 22 | D22: Capex | O22: =Asset!O$18 -> 33.92773012 | P22: =Asset!P$18 -> 40.87809893 | Q22: =Asset!Q$18 -> 42.96230552 | R22: =Asset!R$18 -> 43.76219819 | S22: =Asset!S$18 -> 52.29811085 | T22: =Asset!T$18 -> 30.40114047 | W22: =Asset!W$18 -> 45.47035148 | X22: =Asset!X$18 -> 42.50296237 | Y22: =Asset!Y$18 -> 87.05166805 | Z22: =Asset!Z$18 -> 77.16953292 | AA22: =Asset!AA$18 -> 43.87047393 | AD22: =Asset!AD$18 -> 80.94894931 | AE22: =Asset!AE$18 -> 92.88157737 | AF22: =Asset!AF$18 -> 92.42632801 | AG22: =Asset!AG$18 -> 98.31875477 | AH22: =Asset!AH$18 -> 88.64003083 | AI22: =Asset!AI$18 -> 103.3511948 | AJ22: =Asset!AJ$18 -> 102.1635431 | AK22: =Asset!AK$18 -> 100.3553491 | AL22: =Asset!AL$18 -> 102.1654698 | AM22: =Asset!AM$18 -> 101.2658269
A23: =ROW() -> 23 | D23: Depreciation | O23: =Asset!O$22 -> -35.32372245 | P23: =Asset!P$22 -> -37.57329083 | Q23: =Asset!Q$22 -> -39.6496348 | R23: =Asset!R$22 -> -41.33742427 | S23: =Asset!S$22 -> -43.49467855 | T23: =Asset!T$22 -> -13.49265914 | W23: =Asset!W$22 -> -29.23769264 | X23: =Asset!X$22 -> -31.87245103 | Y23: =Asset!Y$22 -> -34.46334343 | Z23: =Asset!Z$22 -> -36.9992802 | AA23: =Asset!AA$22 -> -18.05790495 | AD23: =Asset!AD$22 -> -39.88373813 | AE23: =Asset!AE$22 -> -44.25825557 | AF23: =Asset!AF$22 -> -47.30279899 | AG23: =Asset!AG$22 -> -50.12572244 | AH23: =Asset!AH$22 -> -53.23511763 | AI23: =Asset!AI$22 -> -48.52927181 | AJ23: =Asset!AJ$22 -> -58.36370265 | AK23: =Asset!AK$22 -> -60.45872633 | AL23: =Asset!AL$22 -> -62.24152491 | AM23: =Asset!AM$22 -> -64.74687551
A24: =ROW() -> 24 | D24: Asset Adjustment, Redundant Assets & Asset Disposal | O24: =Asset!O$21 -> 0 | P24: =Asset!P$21 -> 0 | Q24: =Asset!Q$21 -> 0 | R24: =Asset!R$21 -> 0 | S24: =Asset!S$21 -> -5.434463125 | T24: =Asset!T$21 -> 0 | W24: =Asset!W$21 -> 0 | X24: =Asset!X$21 -> 0 | Y24: =Asset!Y$21 -> 0 | Z24: =Asset!Z$21 -> 0 | AA24: =Asset!AA$21 -> -0.04252402058 | AD24: =Asset!AD$21 -> -0.01548359777 | AE24: =Asset!AE$21 -> -0.2030900724 | AF24: =Asset!AF$21 -> -0.2138391263 | AG24: =Asset!AG$21 -> 0 | AH24: =Asset!AH$21 -> 0 | AI24: =Asset!AI$21 -> 0 | AJ24: =Asset!AJ$21 -> 0 | AK24: =Asset!AK$21 -> 0 | AL24: =Asset!AL$21 -> 0 | AM24: =Asset!AM$21 -> 0
A25: =ROW() -> 25 | D25: Closing Value | N25: =Asset!N$25 -> 947.753979 | O25: =Asset!O$25 -> 937.7771025 | P25: =Asset!P$25 -> 941.0819106 | Q25: =Asset!Q$25 -> 944.3945813 | R25: =Asset!R$25 -> 946.8193552 | S25: =Asset!S$25 -> 963.6164324 | T25: =Asset!T$25 -> 984.1685899 | W25: =Asset!W$25 -> 1000.401249 | X25: =Asset!X$25 -> 1011.03176 | Y25: =Asset!Y$25 -> 1063.620085 | Z25: =Asset!Z$25 -> 1103.790337 | AA25: =Asset!AA$25 -> 1129.560382 | AD25: =Asset!AD$25 -> 1170.61011 | AE25: =Asset!AE$25 -> 1219.030342 | AF25: =Asset!AF$25 -> 1263.940032 | AG25: =Asset!AG$25 -> 1312.133064 | AH25: =Asset!AH$25 -> 1347.537977 | AI25: =Asset!AI$25 -> 1402.3599 | AJ25: =Asset!AJ$25 -> 1446.159741 | AK25: =Asset!AK$25 -> 1486.056363 | AL25: =Asset!AL$25 -> 1525.980308 | AM25: =Asset!AM$25 -> 1562.49926
A26: Capital Base [m$ nominal]
A27: =ROW() -> 27 | C27: Asset Account
A28: =ROW() -> 28 | D28: Opening Value (start period) | O28: =N34 -> 664.6423751 | P28: 676.0508794 | Q28: 700.5072018 | R28: 723.7683774 | S28: 752.367455 | T28: 781.8594427 | W28: =T34 -> 810.7839749 | X28: 853.8475843 | Y28: 873.0841768 | Z28: 940.453334 | AA28: =Z34 -> 1005.402948 | AD28: =AA34 -> 1035.676835 | AE28: 1091.438223 | AF28: 1153.359791 | AG28: 1218.680011 | AH28: 1288.426025 | AI28: =AH34 -> 1347.537977 | AJ28: 1428.163322 | AK28: 1499.868031 | AL28: 1569.60529 | AM28: 1641.430473
A29: =ROW() -> 29 | D29: Inflation on Opening Value (start period) | O29: =O28*O$11 -> 18.60091289 | P29: 21.99634335 | Q29: 20.72239954 | R29: 26.67228874 | S29: 15.86316923 | T29: 11.99312419 | W29: 29.20895203 | X29: 10.05653352 | Y29: 20.87053809 | Z29: 28.35997408 | AA29: 6.645722978 | AD29: 17.48797658 | AE29: 16.10978926 | AF29: 22.01868691 | AG29: 22.4237122 | AH29: 23.70703886 | AI29: =AI28*AI$11 -> 24.79469878 | AJ29: 26.27820513 | AK29: 27.59757177 | AL29: 28.88073733 | AM29: 30.20232071
A30: =ROW() -> 30 | D30: Opening Value (end period) | O30: =SUM(O28:O29) -> 683.243288 | P30: 698.0472227 | Q30: 721.2296014 | R30: 750.4406661 | S30: 768.2306242 | T30: 793.8525669 | W30: 839.9929269 | X30: 863.9041178 | Y30: 893.9547149 | Z30: =SUM(Z28:Z29) -> 968.8133081 | AA30: 1012.048671 | AD30: 1053.164812 | AE30: 1107.548012 | AF30: 1175.378478 | AG30: 1241.103723 | AH30: 1312.133064 | AI30: =SUM(AI28:AI29) -> 1372.332676 | AJ30: 1454.441527 | AK30: 1527.465603 | AL30: 1598.486027 | AM30: 1671.632794
A31: =ROW() -> 31 | D31: Capex | O31: =O22*O$12 -> 24.45876715 | P31: 30.42817248 | Q31: 32.92559992 | R31: 34.77458873 | S31: 42.43365973 | T31: 25.04525929 | W31: 38.80917763 | X31: 36.70375687 | Y31: 76.97112215 | Z31: 70.29095403 | AA31: 40.22417421 | AD31: =AD22*AD$12 -> 75.47412807 | AE31: 87.87794115 | AF31: 89.11666346 | AG31: 96.54237507 | AH31: 88.64003083 | AI31: =AI22*AI$12 -> 105.2528568 | AJ31: 105.95775 | AK31: 105.9975184 | AL31: 109.8949407 | AM31: 110.9314952
A32: =ROW() -> 32 | D32: Depreciation | O32: =O23*O$12 -> -25.46514898 | P32: -27.96819334 | Q32: -30.38682391 | R32: -32.84779987 | S32: -35.29072771 | T32: -11.11560755 | W32: -24.95452027 | X32: -27.52369784 | Y32: -30.47250301 | Z32: -33.70131456 | AA32: -16.55702001 | AD32: -37.1862808 | AE32: -41.87401301 | AF32: -45.60894832 | AG32: -49.22007309 | AH32: -53.23511763 | AI32: =AI23*AI$12 -> -49.42221041 | AJ32: -60.53124652 | AK32: -63.85783137 | AL32: -66.95049416 | AM32: -70.92686573
A33: =ROW() -> 33 | D33: Asset Adjustment, Redundant Assets & Asset Disposal | O33: =O24*O$12 -> 0 | P33: 0 | Q33: 0 | R33: 0 | S33: -4.409416618 | T33: 0 | W33: 0 | X33: 0 | Y33: 0 | Z33: 0 | AA33: -0.03898963149 | AD33: -0.01443639542 | AE33: -0.1921493792 | AF33: -0.20618183 | AG33: 0 | AH33: 0 | AI33: =AI24*AI$12 -> 0 | AJ33: 0 | AK33: 0 | AL33: 0 | AM33: 0
A34: =ROW() -> 34 | D34: Closing Value | N34: =Asset!N25*N$12 -> 664.6423751 | O34: =Asset!O25*O$12 -> 676.0508794 | P34: =Asset!P25*P$12 -> 700.5072018 | Q34: =Asset!Q25*Q$12 -> 723.7683774 | R34: =Asset!R25*R$12 -> 752.367455 | S34: =Asset!S25*S$12 -> 781.8594427 | T34: =Asset!T25*T$12 -> 810.7839749 | W34: =Asset!W25*W$12 -> 853.8475843 | X34: =Asset!X25*X$12 -> 873.0841768 | Y34: =Asset!Y25*Y$12 -> 940.453334 | Z34: =Asset!Z25*Z$12 -> 1005.402948 | AA34: =Asset!AA25*AA$12 -> 1035.676835 | AD34: =Asset!AD25*AD$12 -> 1091.438223 | AE34: =Asset!AE25*AE$12 -> 1153.359791 | AF34: =Asset!AF25*AF$12 -> 1218.680011 | AG34: =Asset!AG25*AG$12 -> 1288.426025 | AH34: =Asset!AH25*AH$12 -> 1347.537977 | AI34: =Asset!AI25*AI$12 -> 1428.163322 | AJ34: =Asset!AJ25*AJ$12 -> 1499.868031 | AK34: =Asset!AK25*AK$12 -> 1569.60529 | AL34: =Asset!AL25*AL$12 -> 1641.430473 | AM34: =Asset!AM25*AM$12 -> 1711.637424
A35: =ROW() -> 35
A36: Cost of Service, Allowable Revenue [m$ nominal]
A37: =ROW() -> 37 | C37: Cost of Service | F37: PV AAP5
A38: =ROW() -> 38 | D38: OPEX | F38: =SUMPRODUCT($AI$18:$AM$18,AI38:AM38) -> 316.488162 | AI38: =Input!AI$1523*AI$12 -> 68.79536054 | AJ38: =Input!AJ$1523*AJ$12 -> 71.81778045 | AK38: =Input!AK$1523*AK$12 -> 76.09695567 | AL38: =Input!AL$1523*AL$12 -> 79.26161757 | AM38: =Input!AM$1523*AM$12 -> 81.96920307
A39: =ROW() -> 39 | D39: Depreciation | F39: =SUMPRODUCT($AI$18:$AM$18,AI39:AM39) -> 259.9283211 | AI39: =-AI$32 -> 49.42221041 | AJ39: 60.53124652 | AK39: 63.85783137 | AL39: 66.95049416 | AM39: 70.92686573
A40: =ROW() -> 40 | D40: Inflationary Gain in Return on Asset | F40: -115.301144 | AI40: =-AI$29 -> -24.79469878 | AJ40: -26.27820513 | AK40: -27.59757177 | AL40: -28.88073733 | AM40: -30.20232071
A41: =ROW() -> 41 | D41: Asset Disposal | F41: 0 | AI41: =-Asset!AI$21*AI$12 -> 0 | AJ41: =-Asset!AJ$21*AJ$12 -> 0 | AK41: =-Asset!AK$21*AK$12 -> 0 | AL41: =-Asset!AL$21*AL$12 -> 0 | AM41: =-Asset!AM$21*AM$12 -> 0
A42: =ROW() -> 42 | D42: Return on Asset | F42: 377.8023708 | AI42: =AI$17*AI$28 -> 81.24373841 | AJ42: 86.10468078 | AK42: 90.42779351 | AL42: 94.63228771 | AM42: 98.96266396
A43: =ROW() -> 43 | D43: Return on Working Capital (opening balance) | F43: 5.122307889 | AI43: =Working_Capital!AI$35 -> 0.08032793484 | AJ43: =Working_Capital!AJ$35 -> 1.465914328 | AK43: =Working_Capital!AK$35 -> 1.524910078 | AL43: =Working_Capital!AL$35 -> 1.578355586 | AM43: =Working_Capital!AM$35 -> 1.627471303
A44: =ROW() -> 44 | D44: Tax | F44: 20.72057769 | AI44: =-Tax_CoRE!AI$46 -> 6.716488218 | AJ44: =-Tax_CoRE!AJ$46 -> 5.49462132 | AK44: =-Tax_CoRE!AK$46 -> 4.530843596 | AL44: =-Tax_CoRE!AL$46 -> 3.977354407 | AM44: =-Tax_CoRE!AM$46 -> 3.41775187
A45: =ROW() -> 45 | D45: Imputation Credits | F45: -7.044996414 | AI45: =-AI44*WACC!AI$24 -> -2.283605994 | AJ45: =-AJ44*WACC!AJ$24 -> -1.868171249 | AK45: =-AK44*WACC!AK$24 -> -1.540486823 | AL45: =-AL44*WACC!AL$24 -> -1.352300499 | AM45: =-AM44*WACC!AM$24 -> -1.162035636
A46: =ROW() -> 46 | D46: Net Cost of Service | F46: =SUMPRODUCT($AI$18:$AM$18,AI46:AM46) -> 857.715599 | AI46: =SUM(AI38:AI45) -> 179.1798207 | AJ46: 197.267867 | AK46: 207.3002756 | AL46: 216.1670716 | AM46: 225.5395996
A47: =ROW() -> 47 | D47: Total Revenue | F47: 857.715406 | AI47: =Revenue!AI$239 -> 190.9625724 | AJ47: =Revenue!AJ$239 -> 197.8285508 | AK47: =Revenue!AK$239 -> 204.3687284 | AL47: =Revenue!AL$239 -> 211.1246387 | AM47: =Revenue!AM$239 -> 218.6213782
A48: =ROW() -> 48 | D48: Check CoS - Revenue (should be 0) | F48: =ROUND(F46-F47,5) -> 0.00019
A49: =ROW() -> 49
A50: =ROW() -> 50 | C50: Cost of Service | F50: PV | AI50: PV | AJ50: PV | AK50: PV | AL50: PV | AM50: PV
A51: =ROW() -> 51 | D51: OPEX | F51: =SUM(AI51:AM51) -> 316.488162 | AI51: =AI38*AI$18 -> 64.88350178 | AJ51: 63.88254926 | AK51: 63.83996968 | AL51: 62.71384817 | AM51: 61.16829309
A52: =ROW() -> 52 | D52: Depreciation | F52: 259.9283211 | AI52: =AI39*AI$18 -> 46.61195249 | AJ52: 53.84307777 | AK52: 53.57220907 | AL52: 52.97296793 | AM52: 52.92811383
A53: =ROW() -> 53 | D53: Inflationary Gain in Return on Asset | F53: -115.301144 | AI53: =AI40*AI$18 -> -23.3848165 | AJ53: -23.37469528 | AK53: -23.15241299 | AL53: -22.85118865 | AM53: -22.53803058
A54: =ROW() -> 54 | D54: Asset Disposal | F54: 0 | AI54: =AI41*AI$18 -> 0 | AJ54: 0 | AK54: 0 | AL54: 0 | AM54: 0
A55: =ROW() -> 55 | D55: Return on Asset | F55: 377.8023708 | AI55: =AI42*AI$18 -> 76.62403691 | AJ55: 76.59087314 | AK55: 75.86253018 | AL55: 74.87552116 | AM55: 73.84940938
A56: =ROW() -> 56 | D56: Return on Working Capital | F56: 5.122307889 | AI56: =AI43*AI$18 -> 0.07576030799 | AJ56: 1.303943727 | AK56: 1.279291823 | AL56: 1.248835888 | AM56: 1.214476144
A57: =ROW() -> 57 | D57: Tax | F57: 20.72057769 | AI57: =AI44*AI$18 -> 6.334573608 | AJ57: 4.887514136 | AK57: 3.80105768 | AL57: 3.146985995 | AM57: 2.550446269
A58: =ROW() -> 58 | D58: Imputation Credits | F58: -7.044996414 | AI58: =AI45*AI$18 -> -2.153755027 | AJ58: -1.661754806 | AK58: -1.292359611 | AL58: -1.069975238 | AM58: -0.8671517314
A59: =ROW() -> 59 | D59: Net Cost of Service | F59: =SUM(AI59:AM59) -> 857.715599 | AI59: =AI46*AI$18 -> 168.9912536 | AJ59: 175.4715079 | AK59: 173.9102858 | AL59: 171.0369953 | AM59: 168.3055564
A60: =ROW() -> 60 | D60: Total Revenue | F60: =SUM(AI60:AM60) -> 857.715406 | AI60: =AI47*AI$18 -> 180.1040115 | AJ60: 175.9702411 | AK60: 171.4509248 | AL60: 167.0472915 | AM60: 163.1429371
A61: =ROW() -> 61 | D61: Check CoS - Revenue (should be 0) | F61: =ROUND(F59-F60,5) -> 0.00019
A62: =ROW() -> 62
A63: ="CHECK -- Cost of Service, Allowable Revenue [m$ "&Input!$G$34&"]" -> CHECK -- Cost of Service, Allowable Revenue [m$ 31/12/2019]
A64: =ROW() -> 64 | C64: Cost of Service | F64: PV
A65: =ROW() -> 65 | D65: OPEX | F65: =SUMPRODUCT($AI$15:$AM$15,AI65:AM65) -> 316.488162 | AI65: =Input!AI1523 -> 67.55239644 | AJ65: =Input!AJ1523 -> 69.24608072 | AK65: =Input!AK1523 -> 72.04637111 | AL65: =Input!AL1523 -> 73.68674431 | AM65: =Input!AM1523 -> 74.82707338
A66: =ROW() -> 66 | D66: Depreciation | F66: 259.9283211 | AI66: =-AI23 -> 48.52927181 | AJ66: 58.36370265 | AK66: 60.45872633 | AL66: 62.24152491 | AM66: 64.74687551
A67: =ROW() -> 67 | D67: Asset Disposal | F67: 0 | AI67: =Asset!AI169 -> 0 | AJ67: =Asset!AJ169 -> 0 | AK67: =Asset!AK169 -> 0 | AL67: =Asset!AL169 -> 0 | AM67: =Asset!AM169 -> 0
A68: =ROW() -> 68 | D68: Return on Asset | F68: 262.5012268 | AI68: =AI$14*AI$21 -> 55.42914339 | AJ68: 57.68416869 | AK68: 59.4858156 | AL68: 61.12690896 | AM68: 62.76912618
A69: =ROW() -> 69 | D69: Return on Working Capital | F69: 5.122307889 | AI69: =AI43/AI$12 -> 0.07887660531 | AJ69: 1.413421875 | AK69: 1.443740245 | AL69: 1.467341798 | AM69: 1.48566669
A70: =ROW() -> 70 | D70: Tax | F70: 20.72057769 | AI70: =AI44/AI$12 -> 6.595137684 | AJ70: 5.297866198 | AK70: 4.289670149 | AL70: 3.697606814 | AM70: 3.119956769
A71: =ROW() -> 71 | D71: Imputation Credits | F71: -7.044996414 | AI71: =-AI70*WACC!AI$24 -> -2.242346813 | AJ71: =-AJ70*WACC!AJ$24 -> -1.801274507 | AK71: =-AK70*WACC!AK$24 -> -1.458487851 | AL71: =-AL70*WACC!AL$24 -> -1.257186317 | AM71: =-AM70*WACC!AM$24 -> -1.060785302
A72: =ROW() -> 72 | D72: Net Cost of Service | F72: =SUMPRODUCT($AI$15:$AM$15,AI72:AM72) -> 857.715599 | AI72: =SUM(AI65:AI71) -> 175.9424791 | AJ72: 190.2039656 | AK72: 196.2658356 | AL72: 200.9629405 | AM72: 205.8879132
A73: =ROW() -> 73 | D73: Total Revenue | F73: =SUMPRODUCT($AI$15:$AM$15,AI73:AM73) -> 857.715406 | AI73: =Revenue!AI148 -> 187.5123453 | AJ73: =Revenue!AJ148 -> 190.7445721 | AK73: =Revenue!AK148 -> 193.4903324 | AL73: =Revenue!AL148 -> 196.2751676 | AM73: =Revenue!AM148 -> 199.5724894
A74: =ROW() -> 74 | D74: Check CoS - Revenue (should be 0) | F74: =ROUND(F72-F73,5) -> 0.00019
A75: =ROW() -> 75
A76: =ROW() -> 76 | C76: Cost of Service | F76: PV | AI76: PV | AJ76: PV | AK76: PV | AL76: PV | AM76: PV
A77: =ROW() -> 77 | D77: OPEX | F77: =SUM(AI77:AM77) -> 316.488162 | AI77: =AI65*AI$15 -> 64.88350178 | AJ77: 63.88254926 | AK77: 63.83996968 | AL77: 62.71384817 | AM77: 61.16829309
A78: =ROW() -> 78 | D78: Depreciation | F78: 259.9283211 | AI78: =AI66*AI$15 -> 46.61195249 | AJ78: 53.84307777 | AK78: 53.57220907 | AL78: 52.97296793 | AM78: 52.92811383
A79: =ROW() -> 79 | D79: Asset Disposal | F79: 0 | AI79: =AI67*AI$15 -> 0 | AJ79: 0 | AK79: 0 | AL79: 0 | AM79: 0
A80: =ROW() -> 80 | D80: Return on Asset | F80: 262.5012268 | AI80: =AI68*AI$15 -> 53.23922041 | AJ80: 53.21617786 | AK80: 52.71011719 | AL80: 52.02433251 | AM80: 51.3113788
A81: =ROW() -> 81 | D81: Return on Working Capital | F81: 5.122307889 | AI81: =AI69*AI$15 -> 0.07576030799 | AJ81: 1.303943727 | AK81: 1.279291823 | AL81: 1.248835888 | AM81: 1.214476144
A82: =ROW() -> 82 | D82: Tax | F82: 20.72057769 | AI82: =AI70*AI$15 -> 6.334573608 | AJ82: 4.887514136 | AK82: 3.80105768 | AL82: 3.146985995 | AM82: 2.550446269
A83: =ROW() -> 83 | D83: Imputation Credits | F83: -7.044996414 | AI83: =AI71*AI$15 -> -2.153755027 | AJ83: -1.661754806 | AK83: -1.292359611 | AL83: -1.069975238 | AM83: -0.8671517314
A84: =ROW() -> 84 | D84: Net Cost of Service | F84: =SUM(AI84:AM84) -> 857.715599 | AI84: =AI72*AI$15 -> 168.9912536 | AJ84: 175.4715079 | AK84: 173.9102858 | AL84: 171.0369953 | AM84: 168.3055564
A85: =ROW() -> 85 | D85: Total Revenue | F85: =SUM(AI85:AM85) -> 857.715406 | AI85: =AI73*AI$15 -> 180.1040115 | AJ85: 175.9702411 | AK85: 171.4509248 | AL85: 167.0472915 | AM85: 163.1429371
A86: =ROW() -> 86 | D86: Check CoS - Revenue (should be 0) | F86: =ROUND(F84-F85,5) -> 0.00019
A87: =ROW() -> 87
A88: Credit Foncier Check
A89: =ROW() -> 89 | C89: Net Cash Flow | F89: PV
A90: =ROW() -> 90 | D90: Total Smoothed Revenue | F90: =AH90+SUMPRODUCT($AI$18:$AM$18,AI90:AM90) -> 857.715406 | AI90: =AI$47 -> 190.9625724 | AJ90: =AJ$47 -> 197.8285508 | AK90: =AK$47 -> 204.3687284 | AL90: =AL$47 -> 211.1246387 | AM90: =AM$47 -> 218.6213782
A91: =ROW() -> 91 | D91: Opex | F91: =AH91+SUMPRODUCT($AI$18:$AM$18,AI91:AM91) -> -316.488162 | AI91: =-AI$38 -> -68.79536054 | AJ91: =-AJ$38 -> -71.81778045 | AK91: =-AK$38 -> -76.09695567 | AL91: =-AL$38 -> -79.26161757 | AM91: =-AM$38 -> -81.96920307
A92: =ROW() -> 92 | D92: Tax | F92: -20.72057769 | AI92: =-AI$44 -> -6.716488218 | AJ92: =-AJ$44 -> -5.49462132 | AK92: =-AK$44 -> -4.530843596 | AL92: =-AL$44 -> -3.977354407 | AM92: =-AM$44 -> -3.41775187
A93: =ROW() -> 93 | D93: Imputation Credits | F93: 7.044996414 | AI93: =-AI$45 -> 2.283605994 | AJ93: =-AJ$45 -> 1.868171249 | AK93: =-AK$45 -> 1.540486823 | AL93: =-AL$45 -> 1.352300499 | AM93: =-AM$45 -> 1.162035636
A94: =ROW() -> 94 | D94: Asset Opening Value | F94: -1347.537977 | AH94: =-AH34 -> -1347.537977
A95: =ROW() -> 95 | D95: Capex | F95: -452.1754246 | AI95: =-AI$31 -> -105.2528568 | AJ95: =-AJ$31 -> -105.95775 | AK95: =-AK$31 -> -105.9975184 | AL95: =-AL$31 -> -109.8949407 | AM95: =-AM$31 -> -110.9314952
A96: =ROW() -> 96 | D96: Asset Residual Value | F96: 1277.283854 | AM96: =AM34 -> 1711.637424
A97: =ROW() -> 97 | D97: Working Capital Opening Value | F97: -1.332348129 | AH97: =-Working_Capital!AI29 -> -1.332348129
A98: =ROW() -> 98 | D98: Working Capital Variation | F98: -24.745412 | AI98: =-Working_Capital!AI30 -> -22.98183617 | AJ98: =-Working_Capital!AJ30 -> -0.9785248101 | AK98: =-Working_Capital!AK30 -> -0.8864664815 | AL98: =-Working_Capital!AL30 -> -0.8146510145 | AM98: =-Working_Capital!AM30 -> -1.08774366
A99: =ROW() -> 99
A100: =ROW() -> 100 | D100: Working Capital Residual Value | F100: 20.95545224 | AM100: =Working_Capital!AM31 -> 28.08157026
A101: =ROW() -> 101 | D101: Net Cash Flow (should be 0) | F101: -0.0001929626676 | AH101: =SUM(AH90:AH100) -> -1348.870325 | AI101: -10.50036326 | AJ101: 15.44804552 | AK101: 18.39743101 | AL101: 18.52837555 | AM101: 1762.096214
A102: =ROW() -> 102
A103: =ROW() -> 103
A104: =ROW() -> 104
A105: =ROW() -> 105 | D105: Credit Foncier Check AA5 | F105: (A)
A106: =ROW() -> 106
A107: =ROW() -> 107 | F107: PV
A108: =ROW() -> 108 | D108: Total Smoothed Revenue | F108: =F90 -> 857.715406
A109: =ROW() -> 109
A110: =ROW() -> 110 | D110: Asset Opening Value | F110: =F94 -> -1347.537977
A111: =ROW() -> 111 | D111: Capex | F111: =F95 -> -452.1754246
A112: =ROW() -> 112 | D112: Asset Residual Value | F112: =F96 -> 1277.283854
A113: =ROW() -> 113 | F113: =SUM(F110:F112) -> -522.4295479
A114: =ROW() -> 114
A115: =ROW() -> 115 | D115: Opex | F115: =F91 -> -316.488162
A116: =ROW() -> 116 | D116: Tax | F116: =F92 -> -20.72057769
A117: =ROW() -> 117 | D117: Imputation Credits | F117: =F93 -> 7.044996414
A118: =ROW() -> 118 | F118: =SUM(F115:F117) -> -330.1637432
A119: =ROW() -> 119
A120: =ROW() -> 120 | D120: Working Capital Opening Value | F120: =F97 -> -1.332348129
A121: =ROW() -> 121 | D121: Working Capital Residual Value | F121: =F100 -> 20.95545224
A122: =ROW() -> 122 | D122: Working Capital Variation | F122: =F98 -> -24.745412
A123: =ROW() -> 123
A124: =ROW() -> 124 | F124: =SUM(F120:F123) -> -5.122307889
A125: =ROW() -> 125
A126: =ROW() -> 126 | D126: Net Cash Flow (should be 0) | F126: =ROUND(F108+F113+F118+F124,0.00001) -> 0
A127: =ROW() -> 127

Sheet Revenue
A1: =Main!A1 -> 0
A2: Revenue
A3: Ref | C3: =COLUMN() -> 3 | D3: =COLUMN() -> 4 | E3: =COLUMN() -> 5 | F3: =COLUMN() -> 6 | G3: =COLUMN() -> 7 | H3: =COLUMN() -> 8 | I3: =COLUMN() -> 9 | J3: =COLUMN() -> 10 | K3: =COLUMN() -> 11 | L3: =COLUMN() -> 12 | M3: =COLUMN() -> 13 | N3: =COLUMN() -> 14 | O3: =COLUMN() -> 15 | P3: =COLUMN() -> 16 | Q3: =COLUMN() -> 17 | R3: =COLUMN() -> 18 | S3: =COLUMN() -> 19 | T3: =COLUMN() -> 20 | U3: =COLUMN() -> 21 | V3: =COLUMN() -> 22 | W3: =COLUMN() -> 23 | X3: =COLUMN() -> 24 | Y3: =COLUMN() -> 25 | Z3: =COLUMN() -> 26 | AA3: =COLUMN() -> 27 | AD3: =COLUMN() -> 30 | AE3: =COLUMN() -> 31 | AF3: =COLUMN() -> 32 | AG3: =COLUMN() -> 33 | AH3: =COLUMN() -> 34
A4: =ROW() -> 4 | J4: Year ending 31 December | O4: Year ending 31 December | T4: Year Ending 30 June | AA4: Year Ending 31 December | AI4: Year Ending 31 December
A5: Regulatory Period | J5: 1 | K5: 1 | L5: 1 | M5: 1 | N5: 1 | O5: 2 | P5: 2 | Q5: 2 | R5: 2 | S5: 2 | T5: 3 | U5: 3 | V5: 3 | W5: 3 | X5: 3 | Y5: 3 | Z5: 3 | AA5: 4 | AB5: 4 | AC5: 4 | AD5: 4 | AE5: 4 | AF5: 4 | AG5: 4 | AH5: 4 | AI5: 4 | AJ5: 4 | AK5: 4 | AL5: 4 | AM5: 4
A6: Year ending | I6: =Load_Tariffs!I6 -> 1999 | J6: =Load_Tariffs!J6 -> 2000 | K6: =Load_Tariffs!K6 -> 2001 | L6: =Load_Tariffs!L6 -> 2002 | M6: =Load_Tariffs!M6 -> 2003 | N6: =Load_Tariffs!N6 -> 2004 | O6: =Load_Tariffs!O6 -> 2005 | P6: =Load_Tariffs!P6 -> 2006 | Q6: =Load_Tariffs!Q6 -> 2007 | R6: =Load_Tariffs!R6 -> 2008 | S6: =Load_Tariffs!S6 -> 2009 | T6: =Load_Tariffs!T6 -> 2010 | U6: =Load_Tariffs!U6 -> 2010 | V6: =Load_Tariffs!V6 -> 2011 | W6: =Load_Tariffs!W6 -> 2011 | X6: =Load_Tariffs!X6 -> 2012 | Y6: =Load_Tariffs!Y6 -> 2013 | Z6: =Load_Tariffs!Z6 -> 2014 | AA6: =Load_Tariffs!AA6 -> 2014 | AB6: =Load_Tariffs!AB6 -> 2015 | AC6: =Load_Tariffs!AC6 -> 2015 | AD6: =Load_Tariffs!AD6 -> 2015 | AE6: =Load_Tariffs!AE6 -> 2016 | AF6: =Load_Tariffs!AF6 -> 2017 | AG6: =Load_Tariffs!AG6 -> 2018 | AH6: =Load_Tariffs!AH6 -> 2019 | AI6: =Load_Tariffs!AI6 -> 2020 | AJ6: =Load_Tariffs!AJ6 -> 2021 | AK6: =Load_Tariffs!AK6 -> 2022 | AL6: =Load_Tariffs!AL6 -> 2023 | AM6: =Load_Tariffs!AM6 -> 2024
A7: Months | I7: =Load_Tariffs!I7 -> 1 to 12 | J7: =Load_Tariffs!J7 -> 1 to 12 | K7: =Load_Tariffs!K7 -> 1 to 12 | L7: =Load_Tariffs!L7 -> 1 to 12 | M7: =Load_Tariffs!M7 -> 1 to 12 | N7: =Load_Tariffs!N7 -> 1 to 12 | O7: =Load_Tariffs!O7 -> 1 to 12 | P7: =Load_Tariffs!P7 -> 1 to 12 | Q7: =Load_Tariffs!Q7 -> 1 to 12 | R7: =Load_Tariffs!R7 -> 1 to 12 | S7: =Load_Tariffs!S7 -> 1 to 12 | T7: =Load_Tariffs!T7 -> 1 to 6 | U7: =Load_Tariffs!U7 -> 7 to 12 | V7: =Load_Tariffs!V7 -> 1 to 6 | W7: =Load_Tariffs!W7 -> 7 to 6 | X7: =Load_Tariffs!X7 -> 7 to 6 | Y7: =Load_Tariffs!Y7 -> 7 to 6 | Z7: =Load_Tariffs!Z7 -> 7 to 6 | AA7: =Load_Tariffs!AA7 -> 7 to 12 | AB7: =Load_Tariffs!AB7 -> 1 to 9 | AC7: =Load_Tariffs!AC7 -> 10 to 12 | AD7: =Load_Tariffs!AD7 -> 1 to 12 | AE7: =Load_Tariffs!AE7 -> 1 to 12 | AF7: =Load_Tariffs!AF7 -> 1 to 12 | AG7: =Load_Tariffs!AG7 -> 1 to 12 | AH7: =Load_Tariffs!AH7 -> 1 to 12 | AI7: 1 to 12 | AJ7: 1 to 12 | AK7: 1 to 12 | AL7: 1 to 12 | AM7: 1 to 12
A8: Days | I8: =Load_Tariffs!I8 -> 365 | J8: =Load_Tariffs!J8 -> 366 | K8: =Load_Tariffs!K8 -> 365 | L8: =Load_Tariffs!L8 -> 365 | M8: =Load_Tariffs!M8 -> 365 | N8: =Load_Tariffs!N8 -> 366 | O8: =Load_Tariffs!O8 -> 365 | P8: =Load_Tariffs!P8 -> 365 | Q8: =Load_Tariffs!Q8 -> 365 | R8: =Load_Tariffs!R8 -> 366 | S8: =Load_Tariffs!S8 -> 365 | T8: =Load_Tariffs!T8 -> 181 | U8: =Load_Tariffs!U8 -> 184 | V8: =Load_Tariffs!V8 -> 181 | W8: =Load_Tariffs!W8 -> 365 | X8: =Load_Tariffs!X8 -> 366 | Y8: =Load_Tariffs!Y8 -> 365 | Z8: =Load_Tariffs!Z8 -> 365 | AA8: =Load_Tariffs!AA8 -> 184 | AB8: =Load_Tariffs!AB8 -> 273 | AC8: =Load_Tariffs!AC8 -> 92 | AD8: =Load_Tariffs!AD8 -> 365 | AE8: =Load_Tariffs!AE8 -> 366 | AF8: =Load_Tariffs!AF8 -> 365 | AG8: =Load_Tariffs!AG8 -> 365 | AH8: =Load_Tariffs!AH8 -> 365 | AI8: 365 | AJ8: 365 | AK8: 365 | AL8: 365 | AM8: 365
A9: Year portion | I9: =Load_Tariffs!I9 -> 1 | J9: =Load_Tariffs!J9 -> 1 | K9: =Load_Tariffs!K9 -> 1 | L9: =Load_Tariffs!L9 -> 1 | M9: =Load_Tariffs!M9 -> 1 | N9: =Load_Tariffs!N9 -> 1 | O9: =Load_Tariffs!O9 -> 1 | P9: =Load_Tariffs!P9 -> 1 | Q9: =Load_Tariffs!Q9 -> 1 | R9: =Load_Tariffs!R9 -> 1 | S9: =Load_Tariffs!S9 -> 1 | T9: =Load_Tariffs!T9 -> 0.495890411 | U9: =Load_Tariffs!U9 -> 0.5 | V9: =Load_Tariffs!V9 -> 0.5 | W9: =Load_Tariffs!W9 -> 1 | X9: =Load_Tariffs!X9 -> 1 | Y9: =Load_Tariffs!Y9 -> 1 | Z9: =Load_Tariffs!Z9 -> 1 | AA9: =Load_Tariffs!AA9 -> 0.504109589 | AB9: =Load_Tariffs!AB9 -> 0.7479452055 | AC9: =Load_Tariffs!AC9 -> 0.2520547945 | AD9: =Load_Tariffs!AD9 -> 1 | AE9: =Load_Tariffs!AE9 -> 1 | AF9: =Load_Tariffs!AF9 -> 1 | AG9: =Load_Tariffs!AG9 -> 1 | AH9: =Load_Tariffs!AH9 -> 1 | AI9: =Load_Tariffs!AI9 -> 1 | AJ9: =Load_Tariffs!AJ9 -> 1 | AK9: =Load_Tariffs!AK9 -> 1 | AL9: =Load_Tariffs!AL9 -> 1 | AM9: =Load_Tariffs!AM9 -> 1
A10: Financial Parameters
A11: =ROW() -> 11 | C11: Inflation factor | J11: Actual 1 | O11: Actual 2 | T11: Actual 3 | Y11: FORECAST | AA11: Actual | AG11: Forecast | AI11: Forecast
A12: =ROW() -> 12 | D12: ="Inflation Factor (convert to real "&Input!$G$34&" $)" -> Inflation Factor (convert to real 31/12/2019 $) | T12: =Input!T34 -> 1.213848103 | U12: =Input!U34 -> 1.20059344 | V12: =Input!V34 -> 1.171639139 | W12: =Input!W34 -> 1.171639139 | X12: =Input!X34 -> 1.158000324 | Y12: =Input!Y34 -> 1.130965297 | Z12: =Input!Z34 -> 1.097858665 | AA12: =Input!AA34 -> 1.090649461 | AB12: =Input!AB34 -> 1.072539046 | AC12: =Input!AC34 -> 1.072539046 | AD12: =Input!AD34 -> 1.072539046 | AE12: =Input!AE34 -> 1.056938478 | AF12: =Input!AF34 -> 1.03713856 | AG12: =Input!AG34 -> 1.0184 | AH12: =Input!AH34 -> 1 | AI12: =Input!AI34 -> 0.981932443 | AJ12: =Input!AJ34 -> 0.9641913227 | AK12: =Input!AK34 -> 0.9467707411 | AL12: =Input!AL34 -> 0.9296649068 | AM12: =Input!AM34 -> 0.9128681331
A13: =ROW() -> 13 | D13: ="Inflation Factor (convert " &Input!$G$34& " $ to nominal $)" -> Inflation Factor (convert 31/12/2019 $ to nominal $) | T13: =Input!T35 -> 0.823826307 | U13: =Input!U35 -> 0.832921426 | V13: =Input!V35 -> 0.8535051164 | W13: =Input!W35 -> 0.8535051164 | X13: =Input!X35 -> 0.8635576164 | Y13: =Input!Y35 -> 0.884200428 | Z13: =Input!Z35 -> 0.9108640595 | AA13: =Input!AA35 -> 0.9168848796 | AB13: =Input!AB35 -> 0.9323669882 | AC13: =Input!AC35 -> 0.9323669882 | AD13: =Input!AD35 -> 0.9323669882 | AE13: =Input!AE35 -> 0.9461288626 | AF13: =Input!AF35 -> 0.9641913227 | AG13: =Input!AG35 -> 0.981932443 | AH13: =Input!AH35 -> 1 | AI13: =Input!AI35 -> 1.0184 | AJ13: =Input!AJ35 -> 1.03713856 | AK13: =Input!AK35 -> 1.05622191 | AL13: =Input!AL35 -> 1.075656393 | AM13: =Input!AM35 -> 1.09544847
A14: =ROW() -> 14 | J14: Approved 1 | O14: Approved 2 | T14: Approved 3 | AA14: Actual | AG14: Forecast | AI14: Forecast
A15: =ROW() -> 15 | C15: Real Post-tax WACC
A16: =ROW() -> 16 | D16: Discounting Factor | T16: =Input!T39 -> 1 | W16: =Input!W39 -> 1 | X16: =Input!X39 -> 1 | Y16: =Input!Y39 -> 1 | Z16: =Input!Z39 -> 1 | AA16: =Input!AA39 -> 0.9805747093 | AD16: =Input!AD39 -> 0.9427606624 | AE16: =Input!AE39 -> 0.9055128917 | AF16: =Input!AF39 -> 0.869200935 | AG16: =Input!AG39 -> 0.8351948183 | AH16: =Input!AH39 -> 0.8025191372 | AI16: =Input!AI39 -> 0.9604914879 | AJ16: =Input!AJ39 -> 0.9225438984 | AK16: =Input!AK39 -> 0.8860955617 | AL16: =Input!AL39 -> 0.8510872445 | AM16: =Input!AM39 -> 0.8174620538
A17: =ROW() -> 17 | C17: Nominal Post Tax WACC
A18: =ROW() -> 18 | D18: Discounting Factor | T18: =Input!T42 -> 1 | W18: =Input!W42 -> 1 | X18: =Input!X42 -> 1 | Y18: =Input!Y42 -> 1 | Z18: =Input!Z42 -> 1 | AA18: =Input!AA42 -> 0.9713147936 | AD18: =Input!AD42 -> 0.9164453761 | AE18: =Input!AE42 -> 0.8638246346 | AF18: =Input!AF42 -> 0.8137236684 | AG18: =Input!AG42 -> 0.7673091386 | AH18: =Input!AH42 -> 0.7235420783 | AI18: =Input!AI42 -> 0.9431377533 | AJ18: =Input!AJ42 -> 0.8895088217 | AK18: =Input!AK42 -> 0.8389293516 | AL18: =Input!AL42 -> 0.7912259438 | AM18: =Input!AM42 -> 0.746235059
A19: Modelled Volume & Customer # (excluding prudent discount)
A20: =ROW() -> 20 | T20: Actual | AA20: Actual | AG20: Forecast | AI20: =AI$14 -> Forecast
A21: =ROW() -> 21 | C21: A1
A22: =ROW() -> 22 | D22: Customers | T22: =Load_Tariffs!T90 -> 50.33333333 | W22: =Load_Tariffs!W90 -> 53.16666667 | X22: =Load_Tariffs!X90 -> 55.91666667 | Y22: =Load_Tariffs!Y90 -> 62.66666667 | Z22: =Load_Tariffs!Z90 -> 64.5 | AA22: =Load_Tariffs!AA90 -> 64.5 | AD22: =Load_Tariffs!AD90 -> 66.5 | AE22: =Load_Tariffs!AE90 -> 72 | AF22: =Load_Tariffs!AF90 -> 72.5 | AG22: =Load_Tariffs!AG90 -> 71 | AH22: =Load_Tariffs!AH90 -> 70 | AI22: =Load_Tariffs!AI90 -> 70 | AJ22: =Load_Tariffs!AJ90 -> 70 | AK22: =Load_Tariffs!AK90 -> 69 | AL22: =Load_Tariffs!AL90 -> 67.5 | AM22: =Load_Tariffs!AM90 -> 67
A23: =ROW() -> 23 | D23: Demand 1 [GJ km] | T23: =Load_Tariffs!T91 -> 4810.674978 | W23: =Load_Tariffs!W91 -> 9941.092845 | X23: =Load_Tariffs!X91 -> 11680.59719 | Y23: =Load_Tariffs!Y91 -> 12196.77594 | Z23: =Load_Tariffs!Z91 -> 12836.93546 | AA23: =Load_Tariffs!AA91 -> 6908.508355 | AD23: =Load_Tariffs!AD91 -> 13355.22104 | AE23: =Load_Tariffs!AE91 -> 15366.25762 | AF23: =Load_Tariffs!AF91 -> 15901.48185 | AG23: =Load_Tariffs!AG91 -> 16147.655 | AH23: =Load_Tariffs!AH91 -> 16025.655 | AI23: =Load_Tariffs!AI91 -> 16630.842 | AJ23: =Load_Tariffs!AJ91 -> 16646.029 | AK23: =Load_Tariffs!AK91 -> 14733.029 | AL23: =Load_Tariffs!AL91 -> 13023.229 | AM23: =Load_Tariffs!AM91 -> 13043.229
A24: =ROW() -> 24 | D24: Demand 2 [GJ km] | T24: =Load_Tariffs!T92 -> 1022.982247 | W24: =Load_Tariffs!W92 -> 2395.216712 | X24: =Load_Tariffs!X92 -> 6559.023452 | Y24: =Load_Tariffs!Y92 -> 5974.018389 | Z24: =Load_Tariffs!Z92 -> 6077.220082 | AA24: =Load_Tariffs!AA92 -> 3742.059419 | AD24: =Load_Tariffs!AD92 -> 7362.087342 | AE24: =Load_Tariffs!AE92 -> 7594.702027 | AF24: =Load_Tariffs!AF92 -> 6938.869589 | AG24: =Load_Tariffs!AG92 -> 6356.14 | AH24: =Load_Tariffs!AH92 -> 6308.14 | AI24: =Load_Tariffs!AI92 -> 6488.14 | AJ24: =Load_Tariffs!AJ92 -> 6493.34 | AK24: =Load_Tariffs!AK92 -> 6493.34 | AL24: =Load_Tariffs!AL92 -> 6090.24 | AM24: =Load_Tariffs!AM92 -> 6095.44
A25: =ROW() -> 25 | D25: Usage 1 [TJ km] | T25: =Load_Tariffs!T93 -> 10466.01377 | W25: =Load_Tariffs!W93 -> 23453.57172 | X25: =Load_Tariffs!X93 -> 30807.77556 | Y25: =Load_Tariffs!Y93 -> 28099.35376 | Z25: =Load_Tariffs!Z93 -> 29939.8747 | AA25: =Load_Tariffs!AA93 -> 16267.79064 | AD25: =Load_Tariffs!AD93 -> 31828.34975 | AE25: =Load_Tariffs!AE93 -> 37584.49962 | AF25: =Load_Tariffs!AF93 -> 37057.85173 | AG25: =Load_Tariffs!AG93 -> 39956.21185 | AH25: =Load_Tariffs!AH93 -> 38200.76597 | AI25: =Load_Tariffs!AI93 -> 37240.58199 | AJ25: =Load_Tariffs!AJ93 -> 40662.39316 | AK25: =Load_Tariffs!AK93 -> 38691.19088 | AL25: =Load_Tariffs!AL93 -> 37533.07076 | AM25: =Load_Tariffs!AM93 -> 37113.48222
A26: =ROW() -> 26 | D26: Usage 2 [TJ km] | T26: =Load_Tariffs!T94 -> 1432.245102 | W26: =Load_Tariffs!W94 -> 2792.582836 | X26: =Load_Tariffs!X94 -> 22417.44889 | Y26: =Load_Tariffs!Y94 -> 10456.27511 | Z26: =Load_Tariffs!Z94 -> 9608.150919 | AA26: =Load_Tariffs!AA94 -> 5860.346571 | AD26: =Load_Tariffs!AD94 -> 14173.39355 | AE26: =Load_Tariffs!AE94 -> 17215.38124 | AF26: =Load_Tariffs!AF94 -> 18631.62799 | AG26: =Load_Tariffs!AG94 -> 19169.47691 | AH26: =Load_Tariffs!AH94 -> 18609.32003 | AI26: =Load_Tariffs!AI94 -> 18381.76806 | AJ26: =Load_Tariffs!AJ94 -> 19527.80797 | AK26: =Load_Tariffs!AK94 -> 19415.828 | AL26: =Load_Tariffs!AL94 -> 19048.42767 | AM26: =Load_Tariffs!AM94 -> 18856.82771
A27: =ROW() -> 27 | D27: Total Volume [GJ per Annum] | T27: =Load_Tariffs!T74*1000 -> 2989027.059 | W27: =Load_Tariffs!W74*1000 -> 7061772.958 | X27: =Load_Tariffs!X74*1000 -> 8562532.485 | Y27: =Load_Tariffs!Y74*1000 -> 8478528.824 | Z27: =Load_Tariffs!Z74*1000 -> 8669858.249 | AA27: =Load_Tariffs!AA74*1000 -> 4660411.482 | AD27: =Load_Tariffs!AD74*1000 -> 8842923.473 | AE27: =Load_Tariffs!AE74*1000 -> 9474734.76 | AF27: =Load_Tariffs!AF74*1000 -> 9292616.66 | AG27: =Load_Tariffs!AG74*1000 -> 9195008.39 | AH27: =Load_Tariffs!AH74*1000 -> 9060795.412 | AI27: =Load_Tariffs!AI74*1000 -> 8899465.893 | AJ27: =Load_Tariffs!AJ74*1000 -> 9165543.247 | AK27: =Load_Tariffs!AK74*1000 -> 8776530.882 | AL27: =Load_Tariffs!AL74*1000 -> 8424735.111 | AM27: =Load_Tariffs!AM74*1000 -> 8323965.067
A28: =ROW() -> 28 | C28: A2
A29: =ROW() -> 29 | D29: A2 Customers | T29: =Load_Tariffs!T40 -> 97.16666667 | W29: =Load_Tariffs!W40 -> 101 | X29: =Load_Tariffs!X40 -> 109.5 | Y29: =Load_Tariffs!Y40 -> 106.5833333 | Z29: =Load_Tariffs!Z40 -> 104.5 | AA29: =Load_Tariffs!AA40 -> 103 | AD29: =Load_Tariffs!AD40 -> 102.5 | AE29: =Load_Tariffs!AE40 -> 98.5 | AF29: =Load_Tariffs!AF40 -> 97 | AG29: =Load_Tariffs!AG40 -> 98 | AH29: =Load_Tariffs!AH40 -> 96.5 | AI29: =Load_Tariffs!AI40 -> 96 | AJ29: =Load_Tariffs!AJ40 -> 96 | AK29: =Load_Tariffs!AK40 -> 96 | AL29: =Load_Tariffs!AL40 -> 96 | AM29: =Load_Tariffs!AM40 -> 96
A30: =ROW() -> 30 | D30: GJ Band 1 | T30: =Load_Tariffs!T101 -> 228196.5464 | W30: =Load_Tariffs!W101 -> 439801.477 | X30: =Load_Tariffs!X101 -> 851175.004 | Y30: =Load_Tariffs!Y101 -> 838543.447 | Z30: =Load_Tariffs!Z101 -> 815846.866 | AA30: =Load_Tariffs!AA101 -> 0 | AD30: =Load_Tariffs!AD101 -> 0 | AE30: =Load_Tariffs!AE101 -> 0 | AF30: =Load_Tariffs!AF101 -> 0 | AG30: =Load_Tariffs!AG101 -> 0 | AH30: =Load_Tariffs!AH101 -> 0 | AI30: =Load_Tariffs!AI101 -> 0 | AJ30: =Load_Tariffs!AJ101 -> 0 | AK30: =Load_Tariffs!AK101 -> 0 | AL30: =Load_Tariffs!AL101 -> 0 | AM30: =Load_Tariffs!AM101 -> 0
A31: =ROW() -> 31 | D31: GJ Band 2 | T31: =Load_Tariffs!T102 -> 203649.7527 | W31: =Load_Tariffs!W102 -> 383576.215 | X31: =Load_Tariffs!X102 -> 1168877.416 | Y31: =Load_Tariffs!Y102 -> 1144950.279 | Z31: =Load_Tariffs!Z102 -> 1068670.536 | AA31: =Load_Tariffs!AA102 -> 0 | AD31: =Load_Tariffs!AD102 -> 0 | AE31: =Load_Tariffs!AE102 -> 0 | AF31: =Load_Tariffs!AF102 -> 0 | AG31: =Load_Tariffs!AG102 -> 0 | AH31: =Load_Tariffs!AH102 -> 0 | AI31: =Load_Tariffs!AI102 -> 0 | AJ31: =Load_Tariffs!AJ102 -> 0 | AK31: =Load_Tariffs!AK102 -> 0 | AL31: =Load_Tariffs!AL102 -> 0 | AM31: =Load_Tariffs!AM102 -> 0
A32: =ROW() -> 32 | D32: GJ Band 3 | T32: =Load_Tariffs!T103 -> 455151.0385 | W32: =Load_Tariffs!W103 -> 992837.4724 | X32: =Load_Tariffs!X103 -> 0 | Y32: =Load_Tariffs!Y103 -> 0 | Z32: =Load_Tariffs!Z103 -> 0 | AA32: =Load_Tariffs!AA103 -> 0 | AD32: =Load_Tariffs!AD103 -> 0 | AE32: =Load_Tariffs!AE103 -> 0 | AF32: =Load_Tariffs!AF103 -> 0 | AG32: =Load_Tariffs!AG103 -> 0 | AH32: =Load_Tariffs!AH103 -> 0 | AI32: =Load_Tariffs!AI103 -> 0 | AJ32: =Load_Tariffs!AJ103 -> 0 | AK32: =Load_Tariffs!AK103 -> 0 | AL32: =Load_Tariffs!AL103 -> 0 | AM32: =Load_Tariffs!AM103 -> 0
A33: =ROW() -> 33 | D33: GJ Band 1* | AA33: =Load_Tariffs!AA104 -> 405625.606 | AD33: =Load_Tariffs!AD104 -> 785654.977 | AE33: =Load_Tariffs!AE104 -> 762671.7419 | AF33: =Load_Tariffs!AF104 -> 768684.569 | AG33: =Load_Tariffs!AG104 -> 763938.3887 | AH33: =Load_Tariffs!AH104 -> 741204.4078 | AI33: =Load_Tariffs!AI104 -> 720225.1262 | AJ33: =Load_Tariffs!AJ104 -> 703357.9022 | AK33: =Load_Tariffs!AK104 -> 686923.944 | AL33: =Load_Tariffs!AL104 -> 670911.1925 | AM33: =Load_Tariffs!AM104 -> 655307.9418
A34: =ROW() -> 34 | D34: GJ Band 2* | AA34: =Load_Tariffs!AA105 -> 542794.279 | AD34: =Load_Tariffs!AD105 -> 1018804.015 | AE34: =Load_Tariffs!AE105 -> 1008052.483 | AF34: =Load_Tariffs!AF105 -> 1025065.958 | AG34: =Load_Tariffs!AG105 -> 1006290.839 | AH34: =Load_Tariffs!AH105 -> 976344.711 | AI34: =Load_Tariffs!AI105 -> 948709.9447 | AJ34: =Load_Tariffs!AJ105 -> 926491.7485 | AK34: =Load_Tariffs!AK105 -> 904844.2677 | AL34: =Load_Tariffs!AL105 -> 883751.6176 | AM34: =Load_Tariffs!AM105 -> 863198.3786
A35: =ROW() -> 35 | D35: Total Volume [GJ per Annum] | T35: =SUM(T30:T34) -> 886997.3376 | W35: 1816215.164 | X35: 2020052.42 | Y35: 1983493.726 | Z35: 1884517.402 | AA35: =SUM(AA30:AA34) -> 948419.885 | AD35: =SUM(AD30:AD34) -> 1804458.992 | AE35: 1770724.225 | AF35: 1793750.527 | AG35: 1770229.228 | AH35: 1717549.119 | AI35: =SUM(AI30:AI34) -> 1668935.071 | AJ35: 1629849.651 | AK35: 1591768.212 | AL35: 1554662.81 | AM35: 1518506.32
A36: =ROW() -> 36 | C36: B1
A37: =ROW() -> 37 | D37: Customers | T37: =Load_Tariffs!T41 -> 1222.166667 | W37: =Load_Tariffs!W41 -> 1256.333333 | X37: =Load_Tariffs!X41 -> 1297.416667 | Y37: =Load_Tariffs!Y41 -> 1334.416667 | Z37: =Load_Tariffs!Z41 -> 1364 | AA37: =Load_Tariffs!AA41 -> 1399 | AD37: =Load_Tariffs!AD41 -> 1444 | AE37: =Load_Tariffs!AE41 -> 1518.5 | AF37: =Load_Tariffs!AF41 -> 1599.5 | AG37: =Load_Tariffs!AG41 -> 1672.241222 | AH37: =Load_Tariffs!AH41 -> 1743.818606 | AI37: =Load_Tariffs!AI41 -> 1816.131496 | AJ37: =Load_Tariffs!AJ41 -> 1885.458649 | AK37: =Load_Tariffs!AK41 -> 1949.254309 | AL37: =Load_Tariffs!AL41 -> 2009.576465 | AM37: =Load_Tariffs!AM41 -> 2068.688606
A38: =ROW() -> 38 | D38: GJ Band 1 | T38: =Load_Tariffs!T112 -> 649493.4631 | W38: =Load_Tariffs!W112 -> 1389540.322 | X38: =Load_Tariffs!X112 -> 1385587.464 | Y38: =Load_Tariffs!Y112 -> 1463332.441 | Z38: =Load_Tariffs!Z112 -> 1472170.211 | AA38: =Load_Tariffs!AA112 -> 791288.4815 | AD38: =Load_Tariffs!AD112 -> 1523036.72 | AE38: =Load_Tariffs!AE112 -> 1664051.405 | AF38: =Load_Tariffs!AF112 -> 1632990.466 | AG38: =Load_Tariffs!AG112 -> 1741093.915 | AH38: =Load_Tariffs!AH112 -> 1792671.474 | AI38: =Load_Tariffs!AI112 -> 1846691.104 | AJ38: =Load_Tariffs!AJ112 -> 1892339.618 | AK38: =Load_Tariffs!AK112 -> 1927555.553 | AL38: =Load_Tariffs!AL112 -> 1957058.15 | AM38: =Load_Tariffs!AM112 -> 1978539.77
A39: =ROW() -> 39 | D39: GJ Band 2 | T39: =Load_Tariffs!T113 -> 94260.5628 | W39: =Load_Tariffs!W113 -> 202653.3169 | X39: =Load_Tariffs!X113 -> 168076.3819 | Y39: =Load_Tariffs!Y113 -> 176654.1947 | Z39: =Load_Tariffs!Z113 -> 175019.4857 | AA39: =Load_Tariffs!AA113 -> 0 | AD39: =Load_Tariffs!AD113 -> 0 | AE39: =Load_Tariffs!AE113 -> 0 | AF39: =Load_Tariffs!AF113 -> 0 | AG39: =Load_Tariffs!AG113 -> 0 | AH39: =Load_Tariffs!AH113 -> 0 | AI39: =Load_Tariffs!AI113 -> 0 | AJ39: =Load_Tariffs!AJ113 -> 0 | AK39: =Load_Tariffs!AK113 -> 0 | AL39: =Load_Tariffs!AL113 -> 0 | AM39: =Load_Tariffs!AM113 -> 0
A40: =ROW() -> 40 | D40: GJ Band 2* | AA40: =Load_Tariffs!AA114 -> 97970.16121 | AD40: =Load_Tariffs!AD114 -> 197766.1523 | AE40: =Load_Tariffs!AE114 -> 266373.9094 | AF40: =Load_Tariffs!AF114 -> 241805.8528 | AG40: =Load_Tariffs!AG114 -> 244760.7432 | AH40: =Load_Tariffs!AH114 -> 248883.1224 | AI40: =Load_Tariffs!AI114 -> 247323.7629 | AJ40: =Load_Tariffs!AJ114 -> 240920.1111 | AK40: =Load_Tariffs!AK114 -> 240571.021 | AL40: =Load_Tariffs!AL114 -> 242575.3702 | AM40: =Load_Tariffs!AM114 -> 243972.6539
A41: =ROW() -> 41 | D41: Total Volume [GJ per Annum] | T41: =SUM(T38:T40) -> 743754.0259 | W41: =SUM(W38:W40) -> 1592193.639 | X41: 1553663.846 | Y41: 1639986.635 | Z41: 1647189.697 | AA41: 889258.6427 | AD41: 1720802.873 | AE41: 1930425.315 | AF41: 1874796.319 | AG41: 1985854.659 | AH41: 2041554.597 | AI41: =SUM(AI38:AI40) -> 2094014.867 | AJ41: 2133259.729 | AK41: 2168126.574 | AL41: 2199633.52 | AM41: 2222512.423
A42: =ROW() -> 42 | C42: B2
A43: =ROW() -> 43 | D43: Modelled B2 Customers | T43: =Load_Tariffs!T42 -> 7697.5 | W43: =Load_Tariffs!W42 -> 8105.083333 | X43: =Load_Tariffs!X42 -> 8708.75 | Y43: =Load_Tariffs!Y42 -> 9262.25 | Z43: =Load_Tariffs!Z42 -> 9797 | AA43: =Load_Tariffs!AA42 -> 10221.5 | AD43: =Load_Tariffs!AD42 -> 10622.5 | AE43: =Load_Tariffs!AE42 -> 11112.5 | AF43: =Load_Tariffs!AF42 -> 11494.5 | AG43: =Load_Tariffs!AG42 -> 11829.87933 | AH43: =Load_Tariffs!AH42 -> 12192.67811 | AI43: =Load_Tariffs!AI42 -> 12527.29492 | AJ43: =Load_Tariffs!AJ42 -> 12850.49669 | AK43: =Load_Tariffs!AK42 -> 13189.96324 | AL43: =Load_Tariffs!AL42 -> 13527.58584 | AM43: =Load_Tariffs!AM42 -> 13850.06039
A44: =ROW() -> 44 | D44: GJ Band 1 | T44: =Load_Tariffs!T121 -> 185987.7142 | W44: =Load_Tariffs!W121 -> 389585.8249 | X44: =Load_Tariffs!X121 -> 403522.1127 | Y44: =Load_Tariffs!Y121 -> 418531.9016 | Z44: =Load_Tariffs!Z121 -> 430255.2483 | AA44: =Load_Tariffs!AA121 -> 228811.0652 | AD44: =Load_Tariffs!AD121 -> 454358.7074 | AE44: =Load_Tariffs!AE121 -> 481672.4814 | AF44: =Load_Tariffs!AF121 -> 480578.9736 | AG44: =Load_Tariffs!AG121 -> 496039.3116 | AH44: =Load_Tariffs!AH121 -> 511642.5087 | AI44: =Load_Tariffs!AI121 -> 527736.289 | AJ44: =Load_Tariffs!AJ121 -> 543080.6255 | AK44: =Load_Tariffs!AK121 -> 558795.2475 | AL44: =Load_Tariffs!AL121 -> 573853.3317 | AM44: =Load_Tariffs!AM121 -> 583261.5202
A45: =ROW() -> 45 | D45: GJ Band 2 | T45: =Load_Tariffs!T122 -> 366118.5915 | W45: =Load_Tariffs!W122 -> 777541.4461 | X45: =Load_Tariffs!X122 -> 784946.1842 | Y45: =Load_Tariffs!Y122 -> 812884.7301 | Z45: =Load_Tariffs!Z122 -> 825273.9552 | AA45: =Load_Tariffs!AA122 -> 434199.1841 | AD45: =Load_Tariffs!AD122 -> 837277.7577 | AE45: =Load_Tariffs!AE122 -> 886844.8449 | AF45: =Load_Tariffs!AF122 -> 862170.8128 | AG45: =Load_Tariffs!AG122 -> 876243.2066 | AH45: =Load_Tariffs!AH122 -> 887387.2942 | AI45: =Load_Tariffs!AI122 -> 890987.0695 | AJ45: =Load_Tariffs!AJ122 -> 892759.7875 | AK45: =Load_Tariffs!AK122 -> 894395.4133 | AL45: =Load_Tariffs!AL122 -> 895175.2627 | AM45: =Load_Tariffs!AM122 -> 894034.2702
A46: =ROW() -> 46 | D46: Total Volume [GJ per Annum] | T46: =SUM(T44:T45) -> 552106.3057 | W46: =SUM(W44:W45) -> 1167127.271 | X46: 1188468.297 | Y46: 1231416.632 | Z46: 1255529.203 | AA46: =SUM(AA44:AA45) -> 663010.2493 | AD46: 1291636.465 | AE46: 1368517.326 | AF46: 1342749.786 | AG46: =SUM(AG44:AG45) -> 1372282.518 | AH46: 1399029.803 | AI46: 1418723.358 | AJ46: 1435840.413 | AK46: 1453190.661 | AL46: 1469028.594 | AM46: 1477295.79
A47: =ROW() -> 47 | C47: B3
A48: =ROW() -> 48 | D48: Modelled B3 Customers | T48: =Load_Tariffs!T43 -> 601246 | W48: =Load_Tariffs!W43 -> 614524 | X48: =Load_Tariffs!X43 -> 629899.5833 | Y48: =Load_Tariffs!Y43 -> 642709.8333 | Z48: =Load_Tariffs!Z43 -> 657671.5 | AA48: =Load_Tariffs!AA43 -> 671181 | AD48: =Load_Tariffs!AD43 -> 686909.5 | AE48: =Load_Tariffs!AE43 -> 705512 | AF48: =Load_Tariffs!AF43 -> 718910.5 | AG48: =Load_Tariffs!AG43 -> 727270.0987 | AH48: =Load_Tariffs!AH43 -> 735730.8491 | AI48: =Load_Tariffs!AI43 -> 747478.9968 | AJ48: =Load_Tariffs!AJ43 -> 759437.1999 | AK48: =Load_Tariffs!AK43 -> 771652.0947 | AL48: =Load_Tariffs!AL43 -> 784164.53 | AM48: =Load_Tariffs!AM43 -> 796954.0703
A49: =ROW() -> 49 | D49: GJ Band 1 | T49: =Load_Tariffs!T139 -> 3008688.118 | W49: =Load_Tariffs!W139 -> 6231552.577 | X49: =Load_Tariffs!X139 -> 4913980.424 | Y49: =Load_Tariffs!Y139 -> 5016507.282 | Z49: =Load_Tariffs!Z139 -> 5081054.62 | AA49: =Load_Tariffs!AA139 -> 0 | AD49: =Load_Tariffs!AD139 -> 0 | AE49: =Load_Tariffs!AE139 -> 0 | AF49: =Load_Tariffs!AF139 -> 0 | AG49: =Load_Tariffs!AG139 -> 0 | AH49: =Load_Tariffs!AH139 -> 0 | AI49: =Load_Tariffs!AI139 -> 0 | AJ49: =Load_Tariffs!AJ139 -> 0 | AK49: =Load_Tariffs!AK139 -> 0 | AL49: =Load_Tariffs!AL139 -> 0 | AM49: =Load_Tariffs!AM139 -> 0
A50: =ROW() -> 50 | D50: GJ Band 2 | T50: =Load_Tariffs!T140 -> 1249333.842 | W50: =Load_Tariffs!W140 -> 2807463.131 | X50: =Load_Tariffs!X140 -> 4731980.429 | Y50: =Load_Tariffs!Y140 -> 4889443.108 | Z50: =Load_Tariffs!Z140 -> 4759786.657 | AA50: =Load_Tariffs!AA140 -> 0 | AD50: =Load_Tariffs!AD140 -> 0 | AE50: =Load_Tariffs!AE140 -> 0 | AF50: =Load_Tariffs!AF140 -> 0 | AG50: =Load_Tariffs!AG140 -> 0 | AH50: =Load_Tariffs!AH140 -> 0 | AI50: =Load_Tariffs!AI140 -> 0 | AJ50: =Load_Tariffs!AJ140 -> 0 | AK50: =Load_Tariffs!AK140 -> 0 | AL50: =Load_Tariffs!AL140 -> 0 | AM50: =Load_Tariffs!AM140 -> 0
A51: =ROW() -> 51 | D51: GJ Band 3 | T51: =Load_Tariffs!T141 -> 331249.2265 | W51: =Load_Tariffs!W141 -> 730749.3655 | X51: =Load_Tariffs!X141 -> 0 | Y51: =Load_Tariffs!Y141 -> 0 | Z51: =Load_Tariffs!Z141 -> 0 | AA51: =Load_Tariffs!AA141 -> 0 | AD51: =Load_Tariffs!AD141 -> 0 | AE51: =Load_Tariffs!AE141 -> 0 | AF51: =Load_Tariffs!AF141 -> 0 | AG51: =Load_Tariffs!AG141 -> 0 | AH51: =Load_Tariffs!AH141 -> 0 | AI51: =Load_Tariffs!AI141 -> 0 | AJ51: =Load_Tariffs!AJ141 -> 0 | AK51: =Load_Tariffs!AK141 -> 0 | AL51: =Load_Tariffs!AL141 -> 0 | AM51: =Load_Tariffs!AM141 -> 0
A52: =ROW() -> 52 | D52: GJ Band 1* | AA52: =Load_Tariffs!AA142 -> 0 | AD52: =Load_Tariffs!AD142 -> 288522.8556 | AE52: =Load_Tariffs!AE142 -> 1180420.566 | AF52: =Load_Tariffs!AF142 -> 1198474.251 | AG52: =Load_Tariffs!AG142 -> 1229905.561 | AH52: =Load_Tariffs!AH142 -> 1251997.877 | AI52: =Load_Tariffs!AI142 -> 1263570.96 | AJ52: =Load_Tariffs!AJ142 -> 1281241.823 | AK52: =Load_Tariffs!AK142 -> 1310813.427 | AL52: =Load_Tariffs!AL142 -> 1328708.229 | AM52: =Load_Tariffs!AM142 -> 1348124.44
A53: =ROW() -> 53 | D53: GJ Band 2* | AA53: =Load_Tariffs!AA143 -> 2658352.316 | AD53: =Load_Tariffs!AD143 -> 4884879.333 | AE53: =Load_Tariffs!AE143 -> 4166565.797 | AF53: =Load_Tariffs!AF143 -> 4166780.088 | AG53: =Load_Tariffs!AG143 -> 4252134.295 | AH53: =Load_Tariffs!AH143 -> 4283899.833 | AI53: =Load_Tariffs!AI143 -> 4273886.087 | AJ53: =Load_Tariffs!AJ143 -> 4267621.681 | AK53: =Load_Tariffs!AK143 -> 4279268.54 | AL53: =Load_Tariffs!AL143 -> 4265820.183 | AM53: =Load_Tariffs!AM143 -> 4259216.16
A54: =ROW() -> 54 | D54: GJ Band 3* | AA54: =Load_Tariffs!AA144 -> 2568594.692 | AD54: =Load_Tariffs!AD144 -> 4623497.475 | AE54: =Load_Tariffs!AE144 -> 5527792.696 | AF54: =Load_Tariffs!AF144 -> 4566927.535 | AG54: =Load_Tariffs!AG144 -> 4600184.904 | AH54: =Load_Tariffs!AH144 -> 4497006.261 | AI54: =Load_Tariffs!AI144 -> 4353723.51 | AJ54: =Load_Tariffs!AJ144 -> 4209167.297 | AK54: =Load_Tariffs!AK144 -> 4044322.309 | AL54: =Load_Tariffs!AL144 -> 3923473.783 | AM54: =Load_Tariffs!AM144 -> 3813708.951
A55: =ROW() -> 55 | D55: Total Volume [GJ per Annum] | T55: =SUM(T49:T54) -> 4589271.187 | U55: 0 | V55: 0 | W55: 9769765.074 | X55: 9645960.853 | Y55: 9905950.389 | Z55: 9840841.277 | AA55: =SUM(AA49:AA54) -> 5226947.008 | AD55: =SUM(AD49:AD54) -> 9796899.664 | AE55: 10874779.06 | AF55: 9932181.873 | AG55: 10082224.76 | AH55: 10032903.97 | AI55: =SUM(AI49:AI54) -> 9891180.557 | AJ55: 9758030.801 | AK55: 9634404.276 | AL55: 9518002.194 | AM55: 9421049.552
A56: =ROW() -> 56
A57: X-Factor
A58: =ROW() -> 58
A59: =ROW() -> 59
A60: =ROW() -> 60
A61: =ROW() -> 61
A62: =ROW() -> 62
A63: =ROW() -> 63
A64: =ROW() -> 64
A65: ="Tariffs Excluding GST [$ "&Input!$G$34&"]" -> Tariffs Excluding GST [$ 31/12/2019]
A66: =ROW() -> 66 | T66: ="Actual 3 and est 2013/14 [$ "&Input!$G$34&"]" -> Actual 3 and est 2013/14 [$ 31/12/2019] | AA66: ="Forecast [$ "&Input!$G$34&"]" -> Forecast [$ 31/12/2019] | AI66: ="Forecast [$ "&Input!$G$34&"]" -> Forecast [$ 31/12/2019]
A67: =ROW() -> 67 | C67: A1
A68: =ROW() -> 68 | D68: Fixed [$/year] | AA68: =Load_Tariffs!AA226 -> 50979.64973 | AB68: =Load_Tariffs!AB226 -> 50133.12418 | AC68: =Load_Tariffs!AC226 -> 49366.70009 | AE68: =Load_Tariffs!AE226 -> 44624.75638 | AF68: =Load_Tariffs!AF226 -> 40371.55187 | AG68: =Load_Tariffs!AG226 -> 36486.62416 | AH68: =Load_Tariffs!AH226 -> 32450.59 | AI68: =Price_path_AA5!F117 -> 39712.9 | AJ68: =Price_path_AA5!G117 -> 40626.3 | AK68: =Price_path_AA5!H117 -> 41560.7 | AL68: =Price_path_AA5!I117 -> 42516.6 | AM68: =Price_path_AA5!J117 -> 43494.48
A69: =ROW() -> 69 | D69: Demand 1 (<=10km) [$/GJ*km*year] | AA69: =Load_Tariffs!AA227 -> 214.8610896 | AB69: =Load_Tariffs!AB227 -> 211.2932856 | AC69: =Load_Tariffs!AC227 -> 208.0650336 | AE69: =Load_Tariffs!AE227 -> 188.0716328 | AF69: =Load_Tariffs!AF227 -> 170.1425808 | AG69: =Load_Tariffs!AG227 -> 153.819136 | AH69: =Load_Tariffs!AH227 -> 136.8 | AI69: =Price_path_AA5!F119 -> 167.42 | AJ69: =Price_path_AA5!G119 -> 171.27 | AK69: =Price_path_AA5!H119 -> 175.21 | AL69: =Price_path_AA5!I119 -> 179.24 | AM69: =Price_path_AA5!J119 -> 183.36
A70: =ROW() -> 70 | D70: Demand 2 (>10km) [$/GJ*km*year] | AA70: =Load_Tariffs!AA228 -> 113.0904405 | AB70: =Load_Tariffs!AB228 -> 111.212555 | AC70: =Load_Tariffs!AC228 -> 109.5155375 | AE70: =Load_Tariffs!AE228 -> 98.99285785 | AF70: =Load_Tariffs!AF228 -> 89.55691466 | AG70: =Load_Tariffs!AG228 -> 80.9628 | AH70: =Load_Tariffs!AH228 -> 72.01 | AI70: =Price_path_AA5!F120 -> 88.13 | AJ70: =Price_path_AA5!G120 -> 90.16 | AK70: =Price_path_AA5!H120 -> 92.23 | AL70: =Price_path_AA5!I120 -> 94.35 | AM70: =Price_path_AA5!J120 -> 96.52
A71: =ROW() -> 71 | D71: Usage 1 (<=10km) [$/GJ*km] | AA71: =Load_Tariffs!AA229 -> 0.04558467539 | AB71: =Load_Tariffs!AB229 -> 0.04482773428 | AC71: =Load_Tariffs!AC229 -> 0.04414277441 | AE71: =Load_Tariffs!AE229 -> 0.03990999693 | AF71: =Load_Tariffs!AF229 -> 0.03598870803 | AG71: =Load_Tariffs!AG229 -> 0.03253788 | AH71: =Load_Tariffs!AH229 -> 0.02894 | AI71: =Price_path_AA5!F122 -> 0.03542 | AJ71: =Price_path_AA5!G122 -> 0.03623 | AK71: =Price_path_AA5!H122 -> 0.03706 | AL71: =Price_path_AA5!I122 -> 0.03791 | AM71: =Price_path_AA5!J122 -> 0.03878
A72: =ROW() -> 72 | D72: Usage 2 (>10km) [$/GJ*km] | AA72: =Load_Tariffs!AA230 -> 0.0227743309 | AB72: =Load_Tariffs!AB230 -> 0.02239615935 | AC72: =Load_Tariffs!AC230 -> 0.02205467068 | AE72: =Load_Tariffs!AE230 -> 0.02003955354 | AF72: =Load_Tariffs!AF230 -> 0.01813955341 | AG72: =Load_Tariffs!AG230 -> 0.01639624 | AH72: =Load_Tariffs!AH230 -> 0.01458 | AI72: =Price_path_AA5!F123 -> 0.01784 | AJ72: =Price_path_AA5!G123 -> 0.01825 | AK72: =Price_path_AA5!H123 -> 0.01867 | AL72: =Price_path_AA5!I123 -> 0.0191 | AM72: =Price_path_AA5!J123 -> 0.01954
A73: =ROW() -> 73 | C73: A2
A74: =ROW() -> 74 | D74: Fixed [$/year] | AA74: =Load_Tariffs!AA232 -> 28225.03738 | AB74: =Load_Tariffs!AB232 -> 27756.35595 | AC74: =Load_Tariffs!AC232 -> 27332.02238 | AE74: =Load_Tariffs!AE232 -> 24706.61336 | AF74: =Load_Tariffs!AF232 -> 22351.73611 | AG74: =Load_Tariffs!AG232 -> 20192.52968 | AH74: =Load_Tariffs!AH232 -> 17958.8 | AI74: =Price_path_AA5!F125 -> 21977.9 | AJ74: =Price_path_AA5!G125 -> 22483.39 | AK74: =Price_path_AA5!H125 -> 23000.51 | AL74: =Price_path_AA5!I125 -> 23529.52 | AM74: =Price_path_AA5!J125 -> 24070.7
A75: =ROW() -> 75 | D75: Usage 1 (Q<=5TJ/year) [$/GJ] | AA75: =Load_Tariffs!AA233 -> 0 | AB75: =Load_Tariffs!AB233 -> 0 | AC75: =Load_Tariffs!AC233 -> 0 | AE75: =Load_Tariffs!AE233 -> 0 | AF75: =Load_Tariffs!AF233 -> 0 | AG75: =Load_Tariffs!AG233 -> 0 | AH75: =Load_Tariffs!AH233 -> 0
A76: =ROW() -> 76 | D76: Usage 2 (5<Q<=10TJ/year) [$/GJ] | AA76: =Load_Tariffs!AA234 -> 0 | AB76: =Load_Tariffs!AB234 -> 0 | AC76: =Load_Tariffs!AC234 -> 0 | AE76: =Load_Tariffs!AE234 -> 0 | AF76: =Load_Tariffs!AF234 -> 0 | AG76: =Load_Tariffs!AG234 -> 0 | AH76: =Load_Tariffs!AH234 -> 0
A77: =ROW() -> 77 | D77: Usage 3 (Q>10TJ/year) [$/GJ] | AA77: =Load_Tariffs!AA235 -> 0 | AB77: =Load_Tariffs!AB235 -> 0 | AC77: =Load_Tariffs!AC235 -> 0 | AE77: =Load_Tariffs!AE235 -> 0 | AF77: =Load_Tariffs!AF235 -> 0 | AG77: =Load_Tariffs!AG235 -> 0 | AH77: =Load_Tariffs!AH235 -> 0
A78: =ROW() -> 78 | D78: Usage 1* (Q<=10TJ/year) [$/GJ] | AA78: =Load_Tariffs!AA236 -> 2.726623653 | AB78: =Load_Tariffs!AB236 -> 2.681347615 | AC78: =Load_Tariffs!AC236 -> 2.641211193 | AE78: =Load_Tariffs!AE236 -> 2.38868096 | AF78: =Load_Tariffs!AF236 -> 2.157248205 | AG78: =Load_Tariffs!AG236 -> 1.955328 | AH78: =Load_Tariffs!AH236 -> 1.74 | AI78: =Price_path_AA5!F126 -> 2.13 | AJ78: =Price_path_AA5!G126 -> 2.18 | AK78: =Price_path_AA5!H126 -> 2.23 | AL78: =Price_path_AA5!I126 -> 2.28 | AM78: =Price_path_AA5!J126 -> 2.33
A79: =ROW() -> 79 | D79: Usage 2* (Q>10TJ/year) [$/GJ] | AA79: =Load_Tariffs!AA237 -> 1.461470278 | AB79: =Load_Tariffs!AB237 -> 1.437202322 | AC79: =Load_Tariffs!AC237 -> 1.41533258 | AE79: =Load_Tariffs!AE237 -> 1.278895558 | AF79: =Load_Tariffs!AF237 -> 1.161595187 | AG79: =Load_Tariffs!AG237 -> 1.048952 | AH79: =Load_Tariffs!AH237 -> 0.93 | AI79: =Price_path_AA5!F127 -> 1.14 | AJ79: =Price_path_AA5!G127 -> 1.17 | AK79: =Price_path_AA5!H127 -> 1.2 | AL79: =Price_path_AA5!I127 -> 1.23 | AM79: =Price_path_AA5!J127 -> 1.26
A80: =ROW() -> 80 | C80: B1
A81: =ROW() -> 81 | D81: Fixed [$/year] | AA81: =Load_Tariffs!AA239 -> 1421.82517 | AB81: =Load_Tariffs!AB239 -> 1398.215527 | AC81: =Load_Tariffs!AC239 -> 1376.839992 | AE81: =Load_Tariffs!AE239 -> 1247.747581 | AF81: =Load_Tariffs!AF239 -> 1129.516492 | AG81: =Load_Tariffs!AG239 -> 1020.823792 | AH81: =Load_Tariffs!AH239 -> 910.38 | AI81: =Price_path_AA5!F129 -> 1114.12 | AJ81: =Price_path_AA5!G129 -> 1139.74 | AK81: =Price_path_AA5!H129 -> 1165.95 | AL81: =Price_path_AA5!I129 -> 1192.77 | AM81: =Price_path_AA5!J129 -> 1220.2
A82: =ROW() -> 82 | D82: Usage 1 (Q<=5TJ/year) [$/GJ], | AA82: =Load_Tariffs!AA240 -> 5.431434317 | AB82: =Load_Tariffs!AB240 -> 5.341244449 | AC82: =Load_Tariffs!AC240 -> 5.260133683 | AE82: =Load_Tariffs!AE240 -> 4.745653766 | AF82: =Load_Tariffs!AF240 -> 4.293753638 | AG82: =Load_Tariffs!AG240 -> 3.880104 | AH82: =Load_Tariffs!AH240 -> 3.45 | AI82: =Price_path_AA5!F130 -> 4.22 | AJ82: =Price_path_AA5!G130 -> 4.32 | AK82: =Price_path_AA5!H130 -> 4.42 | AL82: =Price_path_AA5!I130 -> 4.52 | AM82: =Price_path_AA5!J130 -> 4.62
A83: =ROW() -> 83 | D83: Usage 2 (Q>5TJ/year) [$/GJ] | AA83: =Load_Tariffs!AA241 -> 0 | AB83: =Load_Tariffs!AB241 -> 0 | AC83: =Load_Tariffs!AC241 -> 0 | AE83: =Load_Tariffs!AE241 -> 0 | AF83: =Load_Tariffs!AF241 -> 0 | AG83: =Load_Tariffs!AG241 -> 0 | AH83: =Load_Tariffs!AH241 -> 0 | AI83: =AH83*(1+AI$63) -> 0 | AJ83: 0 | AK83: 0 | AL83: 0 | AM83: 0
A84: =ROW() -> 84 | D84: Usage 2* (Q>5TJ/year) [$/GJ] | AA84: =Load_Tariffs!AA242 -> 4.6570732 | AB84: =Load_Tariffs!AB242 -> 4.579741726 | AC84: =Load_Tariffs!AC242 -> 4.513462165 | AE84: =Load_Tariffs!AE242 -> 4.079782525 | AF84: =Load_Tariffs!AF242 -> 3.692213274 | AG84: =Load_Tariffs!AG242 -> 3.340352 | AH84: =Load_Tariffs!AH242 -> 2.97 | AI84: =Price_path_AA5!F131 -> 3.63 | AJ84: =Price_path_AA5!G131 -> 3.71 | AK84: =Price_path_AA5!H131 -> 3.8 | AL84: =Price_path_AA5!I131 -> 3.89 | AM84: =Price_path_AA5!J131 -> 3.98
A85: =ROW() -> 85 | C85: B2
A86: =ROW() -> 86 | D86: Fixed [$/year] | AA86: =Load_Tariffs!AA244 -> 356.2824595 | AB86: =Load_Tariffs!AB244 -> 350.3663301 | AC86: =Load_Tariffs!AC244 -> 345.006819 | AE86: =Load_Tariffs!AE244 -> 311.8708367 | AF86: =Load_Tariffs!AF244 -> 282.1431739 | AG86: =Load_Tariffs!AG244 -> 255.048096 | AH86: =Load_Tariffs!AH244 -> 226.83 | AI86: =Price_path_AA5!F133 -> 277.7 | AJ86: =Price_path_AA5!G133 -> 284.09 | AK86: =Price_path_AA5!H133 -> 290.62 | AL86: =Price_path_AA5!I133 -> 297.3 | AM86: =Price_path_AA5!J133 -> 304.14
A87: =ROW() -> 87 | D87: Usage 1 (Q<=100GJ/year) [$/GJ] | AA87: =Load_Tariffs!AA245 -> 9.063297024 | AB87: =Load_Tariffs!AB245 -> 8.912799471 | AC87: =Load_Tariffs!AC245 -> 8.781748607 | AE87: =Load_Tariffs!AE245 -> 7.93760797 | AF87: =Load_Tariffs!AF245 -> 7.176998835 | AG87: =Load_Tariffs!AG245 -> 6.487208 | AH87: =Load_Tariffs!AH245 -> 5.77 | AI87: =Price_path_AA5!F134 -> 7.08 | AJ87: =Price_path_AA5!G134 -> 7.24 | AK87: =Price_path_AA5!H134 -> 7.41 | AL87: =Price_path_AA5!I134 -> 7.58 | AM87: =Price_path_AA5!J134 -> 7.75
A88: =ROW() -> 88 | D88: Usage 2 (Q>100GJ/year) [$/GJ] | AA88: =Load_Tariffs!AA246 -> 5.398714834 | AB88: =Load_Tariffs!AB246 -> 5.309068277 | AC88: =Load_Tariffs!AC246 -> 5.22670063 | AE88: =Load_Tariffs!AE246 -> 4.724514996 | AF88: =Load_Tariffs!AF246 -> 4.273010867 | AG88: =Load_Tariffs!AG246 -> 3.859736 | AH88: =Load_Tariffs!AH246 -> 3.44 | AI88: =Price_path_AA5!F135 -> 4.21 | AJ88: =Price_path_AA5!G135 -> 4.31 | AK88: =Price_path_AA5!H135 -> 4.41 | AL88: =Price_path_AA5!I135 -> 4.51 | AM88: =Price_path_AA5!J135 -> 4.61
A89: =ROW() -> 89 | C89: B3
A90: =ROW() -> 90 | D90: Fixed [$/year] | AA90: =Load_Tariffs!AA248 -> 77.41429876 | AB90: =Load_Tariffs!AB248 -> 76.12882148 | AC90: =Load_Tariffs!AC248 -> 84.48532511 | AE90: =Load_Tariffs!AE248 -> 87.06002243 | AF90: =Load_Tariffs!AF248 -> 96.61982825 | AG90: =Load_Tariffs!AG248 -> 106.697768 | AH90: =Load_Tariffs!AH248 -> 116.9719082 | AI90: =Price_path_AA5!F137 -> 116.97 | AJ90: =Price_path_AA5!G137 -> 116.97 | AK90: =Price_path_AA5!H137 -> 116.97 | AL90: =Price_path_AA5!I137 -> 116.97 | AM90: =Price_path_AA5!J137 -> 116.97
A91: =ROW() -> 91 | D91: Usage 1 (Q<=10GJ/year) [$/GJ] | AA91: =Load_Tariffs!AA249 -> 0 | AB91: =Load_Tariffs!AB249 -> 0 | AC91: =Load_Tariffs!AC249 -> 0 | AE91: =Load_Tariffs!AE249 -> 0 | AF91: =Load_Tariffs!AF249 -> 0 | AG91: =Load_Tariffs!AG249 -> 0 | AH91: =Load_Tariffs!AH249 -> 0 | AI91: =AH91*(1+AI$63) -> 0 | AJ91: 0 | AK91: 0 | AL91: 0 | AM91: 0
A92: =ROW() -> 92 | D92: Usage 2 (10<Q<=15GJ/year) [$/GJ] | AA92: =Load_Tariffs!AA250 -> 0 | AB92: =Load_Tariffs!AB250 -> 0 | AC92: =Load_Tariffs!AC250 -> 0 | AE92: =Load_Tariffs!AE250 -> 0 | AF92: =Load_Tariffs!AF250 -> 0 | AG92: =Load_Tariffs!AG250 -> 0 | AH92: =Load_Tariffs!AH250 -> 0 | AI92: =AH92*(1+AI$63) -> 0 | AJ92: 0 | AK92: 0 | AL92: 0 | AM92: 0
A93: =ROW() -> 93 | D93: Usage 3 (Q>15GJ/year) [$/GJ] | AA93: =Load_Tariffs!AA251 -> 0 | AB93: =Load_Tariffs!AB251 -> 0 | AC93: =Load_Tariffs!AC251 -> 0 | AE93: =Load_Tariffs!AE251 -> 0 | AF93: =Load_Tariffs!AF251 -> 0 | AG93: =Load_Tariffs!AG251 -> 0 | AH93: =Load_Tariffs!AH251 -> 0 | AI93: =AH93*(1+AI$63) -> 0 | AJ93: 0 | AK93: 0 | AL93: 0 | AM93: 0
A94: =ROW() -> 94 | D94: Usage 1* (Q<=2GJ/year to 2016); (Q<=1.825GJ/year, 2017 onwards) [$/GJ] | AA94: =Load_Tariffs!AA252 -> 15.21455999 | AB94: =Load_Tariffs!AB252 -> 14.96191969 | AC94: =Load_Tariffs!AC252 -> 0 | AE94: =Load_Tariffs!AE252 -> 0 | AF94: =Load_Tariffs!AF252 -> 0 | AG94: =Load_Tariffs!AG252 -> 0 | AH94: =Load_Tariffs!AH252 -> 0 | AI94: =Price_path_AA5!F138 -> 0 | AJ94: =Price_path_AA5!G138 -> 0 | AK94: =Price_path_AA5!H138 -> 0 | AL94: =Price_path_AA5!I138 -> 0 | AM94: =Price_path_AA5!J138 -> 0
A95: =ROW() -> 95 | D95: Usage 2* (2<Q<=10GJ/year to 2016); (1.825<Q<=9.855GJ/year, 2017 onwards) [$/GJ] | AA95: =Load_Tariffs!AA253 -> 15.21455999 | AB95: =Load_Tariffs!AB253 -> 14.96191969 | AC95: =Load_Tariffs!AC253 -> 16.69423783 | AE95: =Load_Tariffs!AE253 -> 14.04671237 | AF95: =Load_Tariffs!AF253 -> 10.84846934 | AG95: =Load_Tariffs!AG253 -> 7.912968 | AH95: =Load_Tariffs!AH253 -> 4.88346387 | AI95: =Price_path_AA5!F139 -> 8.38 | AJ95: =Price_path_AA5!G139 -> 8.57 | AK95: =Price_path_AA5!H139 -> 8.77 | AL95: =Price_path_AA5!I139 -> 8.97 | AM95: =Price_path_AA5!J139 -> 9.18
A96: =ROW() -> 96 | D96: Usage 3* (Q>10GJ/year to 2016); (Q>9.855GJ/year, 2017 onwards) [$/GJ] | AA96: =Load_Tariffs!AA254 -> 6.565709757 | AB96: =Load_Tariffs!AB254 -> 6.456685056 | AC96: =Load_Tariffs!AC254 -> 7.210395112 | AE96: =Load_Tariffs!AE254 -> 6.056257479 | AF96: =Load_Tariffs!AF254 -> 4.677494906 | AG96: =Load_Tariffs!AG254 -> 3.41164 | AH96: =Load_Tariffs!AH254 -> 2.105483136 | AI96: =Price_path_AA5!F140 -> 6.22 | AJ96: =Price_path_AA5!G140 -> 6.36 | AK96: =Price_path_AA5!H140 -> 6.51 | AL96: =Price_path_AA5!I140 -> 6.66 | AM96: =Price_path_AA5!J140 -> 6.81
A97: =ROW() -> 97
A98: =ROW() -> 98
A99: ="Revenue [m$ "&Input!$G$34&"]" -> Revenue [m$ 31/12/2019]
A100: =ROW() -> 100 | AI100: Forecast [m$ 31/12/2019]
A101: =ROW() -> 101 | C101: PV of Tariff Revenue
A102: =ROW() -> 102 | D102: Discounting Factor Real Pre-tax (1 Half a Year & 5 Years)
A103: =ROW() -> 103 | D103: Discounting Factor Real Post-tax (1 Half a Year & 5 Years) | AI103: =AI$16 -> 0.9604914879 | AJ103: =AJ$16 -> 0.9225438984 | AK103: 0.8860955617 | AL103: 0.8510872445 | AM103: 0.8174620538
A104: =ROW() -> 104 | C104: A1 | F104: PV AA5
A105: =ROW() -> 105 | D105: Fixed | E105: =F105/$F$110 -> 0.3654258949 | F105: =SUMPRODUCT($AI$103:$AM$103,AI105:AM105) -> 12.65938821 | AI105: =AI$9*AI22*AI68/1000000 -> 2.779903 | AJ105: =(AJ$9)*AJ22*AJ68/1000000 -> 2.843841 | AK105: =AK$9*AK22*AK68/1000000 -> 2.8676883 | AL105: =(AL$9)*AL22*AL68/1000000 -> 2.8698705 | AM105: =AM$9*AM22*AM68/1000000 -> 2.91413016
A106: =ROW() -> 106 | D106: Demand 1 (<=10km) | E106: 0.3329272157 | F106: =SUMPRODUCT($AI$103:$AM$103,AI106:AM106) -> 11.53354189 | AI106: =AI23*AI69/1000000 -> 2.784335568 | AJ106: 2.850965387 | AK106: 2.581374011 | AL106: 2.334283566 | AM106: 2.391606469
A107: =ROW() -> 107 | D107: Demand 2 (>10km) | E107: 0.07476160562 | F107: 2.589953809 | AI107: =AI24*AI70/1000000 -> 0.5717997782 | AJ107: 0.5854395344 | AK107: 0.5988807482 | AL107: 0.574614144 | AM107: 0.5883318688
A108: =ROW() -> 108 | D108: Usage 1 (<=10km) | E108: 0.1813980135 | F108: 6.284141065 | AI108: =AI25*AI71/1000 -> 1.319061414 | AJ108: 1.473198504 | AK108: 1.433895534 | AL108: 1.422878712 | AM108: 1.43926084
A109: =ROW() -> 109 | D109: Usage 2 (>10km) | E109: 0.04548727032 | F109: 1.575807904 | AI109: =AI26*AI72/1000 -> 0.3279307422 | AJ109: 0.3563824955 | AK109: 0.3624935088 | AL109: 0.3638249685 | AM109: 0.3684624135
A110: =ROW() -> 110 | D110: Total | E110: 1 | F110: 34.64283288 | AI110: =SUM(AI105:AI109) -> 7.783030502 | AJ110: 8.109826921 | AK110: 7.844332102 | AL110: 7.565471891 | AM110: 7.701791752
A111: =ROW() -> 111 | C111: A2
A112: =ROW() -> 112 | D112: Fixed | E112: =F112/$F$118 -> 0.4573548313 | F112: =SUMPRODUCT($AI$103:$AM$103,AI112:AM112) -> 9.785731984 | AI112: =AI$9*AI29*AI74/1000000 -> 2.1098784 | AJ112: =(AJ$9)*AJ29*AJ74/1000000 -> 2.15840544 | AK112: =AK$9*AK29*AK74/1000000 -> 2.20804896 | AL112: =(AL$9)*AL29*AL74/1000000 -> 2.25883392 | AM112: =AM$9*AM29*AM74/1000000 -> 2.3107872
A113: =ROW() -> 113 | D113: Usage 1 (Q<=5TJ/year) | E113: 0 | F113: 0 | AI113: =AI30*AI75/1000000 -> 0 | AJ113: 0 | AK113: 0 | AL113: 0 | AM113: 0
A114: =ROW() -> 114 | D114: Usage 2 (5<Q<=10TJ/year) | E114: 0 | F114: 0 | AI114: =AI31*AI76/1000000 -> 0 | AJ114: 0 | AK114: 0 | AL114: 0 | AM114: 0
A115: =ROW() -> 115 | D115: Usage 3 (Q>10TJ/year) | E115: 0 | F115: 0 | AI115: =AI32*AI77/1000000 -> 0 | AJ115: 0 | AK115: 0 | AL115: 0 | AM115: 0
A116: =ROW() -> 116 | D116: Usage 1* (Q<=10TJ/year) | E116: 0.3175972665 | F116: 6.795427785 | AI116: =AI33*AI78/1000000 -> 1.534079519 | AJ116: 1.533320227 | AK116: 1.531840395 | AL116: 1.529677519 | AM116: 1.526867504
A117: =ROW() -> 117 | D117: Usage 2* (Q>10TJ/year) | E117: 0.2250479022 | F117: 4.815207587 | AI117: =AI34*AI79/1000000 -> 1.081529337 | AJ117: 1.083995346 | AK117: 1.085813121 | AL117: 1.08701449 | AM117: 1.087629957
A118: =ROW() -> 118 | D118: Total | E118: 1 | F118: 21.39636736 | AI118: =SUM(AI112:AI117) -> 4.725487256 | AJ118: 4.775721013 | AK118: 4.825702476 | AL118: 4.875525929 | AM118: 4.925284661
A119: =ROW() -> 119 | C119: B1
A120: =ROW() -> 120 | D120: Fixed | E120: =F120/$F$124 -> 0.1942070296 | F120: =SUMPRODUCT($AI$103:$AM$103,AI120:AM120) -> 10.04326398 | AI120: =AI$9*AI37*AI81/1000000 -> 2.023388422 | AJ120: =(AJ$9)*AJ37*AJ81/1000000 -> 2.148932641 | AK120: =AK$9*AK37*AK81/1000000 -> 2.272733062 | AL120: =(AL$9)*AL37*AL81/1000000 -> 2.39696252 | AM120: =AM$9*AM37*AM81/1000000 -> 2.524213837
A121: =ROW() -> 121 | D121: Usage 1 (Q<=5TJ/year) | E121: =F121/$F$124 -> 0.7266308775 | F121: =SUMPRODUCT($AI$103:$AM$103,AI121:AM121) -> 37.57714505 | AI121: =AI38*AI82/1000000 -> 7.79303646 | AJ121: 8.17490715 | AK121: 8.519795544 | AL121: 8.845902839 | AM121: 9.140853735
A122: =ROW() -> 122 | D122: Usage 2 (5<Q<=10TJ/year) | E122: =F122/$F$124 -> 0 | F122: =SUMPRODUCT($AI$103:$AM$103,AI122:AM122) -> 0 | AI122: =AI39*AI83/1000000 -> 0 | AJ122: 0 | AK122: 0 | AL122: 0 | AM122: 0
A123: =ROW() -> 123 | D123: Usage 2* (Q>5TJ/year) | E123: =F123/$F$124 -> 0.07916209289 | F123: =SUMPRODUCT($AI$103:$AM$103,AI123:AM123) -> 4.093805451 | AI123: =AI40*AI84/1000000 -> 0.8977852592 | AJ123: 0.893813612 | AK123: 0.9141698797 | AL123: 0.9436181902 | AM123: 0.9710111626
A124: =ROW() -> 124 | D124: Total | E124: =F124/$F$124 -> 1 | F124: =SUMPRODUCT($AI$103:$AM$103,AI124:AM124) -> 51.71421449 | AI124: =SUM(AI120:AI123) -> 10.71421014 | AJ124: 11.2176534 | AK124: 11.70669849 | AL124: 12.18648355 | AM124: 12.63607873
A125: =ROW() -> 125 | C125: B2
A126: =ROW() -> 126 | D126: Fixed | E126: =F126/$F$129 -> 0.322008672 | F126: =SUMPRODUCT($AI$103:$AM$103,AI126:AM126) -> 16.9722597 | AI126: =AI$9*AI43*AI86/1000000 -> 3.4788298 | AJ126: =(AJ$9)*AJ43*AJ86/1000000 -> 3.650697605 | AK126: =AK$9*AK43*AK86/1000000 -> 3.833267116 | AL126: =(AL$9)*AL43*AL86/1000000 -> 4.021751271 | AM126: =AM$9*AM43*AM86/1000000 -> 4.212357368
A127: =ROW() -> 127 | D127: Usage 1 (Q<=100GJ/year) | E127: =F127/$F$129 -> 0.3468647604 | F127: =SUMPRODUCT($AI$103:$AM$103,AI127:AM127) -> 18.28236102 | AI127: =AI44*AI87/1000000 -> 3.736372926 | AJ127: 3.931903728 | AK127: 4.140672784 | AL127: 4.349808255 | AM127: 4.520276781
A128: =ROW() -> 128 | D128: Usage 2 (Q>100GJ/year) | E128: =F128/$F$129 -> 0.3311265676 | F128: =SUMPRODUCT($AI$103:$AM$103,AI128:AM128) -> 17.45284084 | AI128: =AI45*AI88/1000000 -> 3.751055562 | AJ128: 3.847794684 | AK128: 3.944283773 | AL128: 4.037240435 | AM128: 4.121497985
A129: =ROW() -> 129 | D129: Total | E129: =F129/$F$129 -> 1 | F129: =SUMPRODUCT($AI$103:$AM$103,AI129:AM129) -> 52.70746156 | AI129: =SUM(AI126:AI128) -> 10.96625829 | AJ129: 11.43039602 | AK129: 11.91822367 | AL129: 12.40879996 | AM129: 12.85413213
A130: =ROW() -> 130 | C130: B3
A131: =ROW() -> 131 | D131: Fixed | E131: =F131/$F$138 -> 0.5853898224 | F131: =SUMPRODUCT($AI$103:$AM$103,AI131:AM131) -> 400.1767119 | AI131: =AI$9*AI48*AI90/1000000 -> 87.43261825 | AJ131: 88.83136927 | AK131: 90.26014551 | AL131: 91.72372507 | AM131: 93.2197176
A132: =ROW() -> 132 | D132: Usage 1 (Q<=15GJ/year) | E132: 0 | F132: 0 | AI132: =AI49*AI91/1000000 -> 0 | AJ132: 0 | AK132: 0 | AL132: 0 | AM132: 0
A133: =ROW() -> 133 | D133: Usage 2 (15<Q<=45GJ/year) | E133: 0 | F133: 0 | AI133: =AI50*AI92/1000000 -> 0 | AJ133: 0 | AK133: 0 | AL133: 0 | AM133: 0
A134: =ROW() -> 134 | D134: Usage 3 (Q>45GJ/year) | E134: 0 | F134: 0 | AI134: =AI51*AI93/1000000 -> 0 | AJ134: 0 | AK134: 0 | AL134: 0 | AM134: 0
A135: =ROW() -> 135 | D135: Usage 1* (Q<=2GJ/year to 2016); (Q<=1.825GJ/year, 2017 onwards) [$/GJ] | E135: 0 | F135: 0 | AI135: =AI52*AI94/1000000 -> 0 | AJ135: 0 | AK135: 0 | AL135: 0 | AM135: 0
A136: =ROW() -> 136 | D136: Usage 2* (2<Q<=10GJ/year to 2016); (1.825<Q<=9.855GJ/year, 2017 onwards) [$/GJ] | E136: 0.2427184313 | F136: 165.9240732 | AI136: =AI53*AI95/1000000 -> 35.81516541 | AJ136: 36.5735178 | AK136: 37.5291851 | AL136: 38.26440704 | AM136: 39.09960435
A137: =ROW() -> 137 | D137: Usage 3* (Q>10GJ/year to 2016); (Q>9.855GJ/year, 2017 onwards) [$/GJ] | E137: 0.1718917463 | F137: 117.5064397 | AI137: =AI54*AI96/1000000 -> 27.08016023 | AJ137: 26.77030401 | AK137: 26.32853823 | AL137: 26.13033539 | AM137: 25.97135796
A138: =ROW() -> 138 | D138: Total | E138: 1 | F138: 683.6072247 | AI138: =SUM(AI131:AI137) -> 150.3279439 | AJ138: 152.1751911 | AK138: 154.1178688 | AL138: 156.1184675 | AM138: 158.2906799
A139: =ROW() -> 139 | C139: Calculated Tariff Revenue | F139: PV AA5 | I139: Lower Bound Check per Rule 94 (3)(b) | N139: Upper Bound Check per Rule 94 (3)(a)
A140: =ROW() -> 140 | D140: A1 | E140: =F140/$F$148 -> 0.04038965913 | F140: =SUMPRODUCT($AI$103:$AM$103,AI140:AM140) -> 34.64283288 | I140: =IF(F168<(F140+F146),"Complies","Breach - Reset Tariffs") -> Complies | N140: =IF(F175>(F140+F146),"Complies","Breach - Reset Tariffs") -> Complies | AI140: =AI110 -> 7.783030502 | AJ140: 8.109826921 | AK140: 7.844332102 | AL140: 7.565471891 | AM140: 7.701791752
A141: =ROW() -> 141 | D141: A2 | E141: 0.02494576547 | F141: 21.39636736 | I141: =IF(F169<F141,"Complies","Breach - Reset Tariffs") -> Complies | N141: =IF(F176>F141,"Complies","Breach - Reset Tariffs") -> Complies | AI141: =AI118 -> 4.725487256 | AJ141: 4.775721013 | AK141: 4.825702476 | AL141: 4.875525929 | AM141: 4.925284661
A142: =ROW() -> 142 | D142: B1 | E142: 0.06029297612 | F142: 51.71421449 | I142: =IF(F170<F142,"Complies","Breach - Reset Tariffs") -> Complies | N142: =IF(F177>F142,"Complies","Breach - Reset Tariffs") -> Complies | AI142: =AI124 -> 10.71421014 | AJ142: 11.2176534 | AK142: 11.70669849 | AL142: 12.18648355 | AM142: 12.63607873
A143: =ROW() -> 143 | D143: B2 | E143: 0.06145099085 | F143: 52.70746156 | I143: =IF(F171<F143,"Complies","Breach - Reset Tariffs") -> Complies | N143: =IF(F178>F143,"Complies","Breach - Reset Tariffs") -> Complies | AI143: =AI129 -> 10.96625829 | AJ143: 11.43039602 | AK143: 11.91822367 | AL143: 12.40879996 | AM143: 12.85413213
A144: =ROW() -> 144 | D144: B3 | E144: 0.7970093809 | F144: 683.6072247 | I144: =IF(F172<F144,"Complies","Breach - Reset Tariffs") -> Complies | N144: =IF(F179>F144,"Complies","Breach - Reset Tariffs") -> Complies | AI144: =AI138 -> 150.3279439 | AJ144: 152.1751911 | AK144: 154.1178688 | AL144: 156.1184675 | AM144: 158.2906799
A145: =ROW() -> 145 | D145: Total Tariff Revenue | E145: 0.9840887724 | F145: 844.068101 | AI145: =SUM(AI140:AI144) -> 184.5169301 | AJ145: 187.7087884 | AK145: 190.4128256 | AL145: 193.1547488 | AM145: 196.4079672
A146: =ROW() -> 146 | D146: Revenue from Prudent Discounts | E146: 0.0007840780881 | F146: 0.6725158557 | AI146: =Load_Tariffs!AI163 -> 0.1608345967 | AJ146: =Load_Tariffs!AJ163 -> 0.1558464988 | AK146: =Load_Tariffs!AK163 -> 0.151013101 | AL146: =Load_Tariffs!AL163 -> 0.1463296054 | AM146: =Load_Tariffs!AM163 -> 0.141791363
A147: =ROW() -> 147 | D147: Revenue from Ancillary Services | E147: 0.01512714949 | F147: 12.97478917 | AI147: =Load_Tariffs!AI190 -> 2.834580605 | AJ147: =Load_Tariffs!AJ190 -> 2.879937141 | AK147: =Load_Tariffs!AK190 -> 2.926493713 | AL147: =Load_Tariffs!AL190 -> 2.974089144 | AM147: =Load_Tariffs!AM190 -> 3.022730841
A148: =ROW() -> 148 | D148: Total Tariff Revenue | E148: 1 | F148: 857.715406 | AI148: =SUM(AI145:AI147) -> 187.5123453 | AJ148: 190.7445721 | AK148: 193.4903324 | AL148: 196.2751676 | AM148: 199.5724894
A149: =ROW() -> 149
A150: =ROW() -> 150 | C150: Calculated Tariff Revenue | F150: PV AA5 | I150: Lower Bound Check per Rule 94 (3)(b) | N150: Upper Bound Check per Rule 94 (3)(a) | AI150: PV | AJ150: PV | AK150: PV | AL150: PV | AM150: PV
A151: =ROW() -> 151 | D151: A1 | E151: =F151/$F$159 -> 0.04038965913 | F151: =SUM(AI151:AM151) -> 34.64283288 | I151: =IF(F168<(F151+F157),"Complies","Breach - Reset Tariffs") -> Complies | N151: =IF(F175>(F151+F157),"Complies","Breach - Reset Tariffs") -> Complies | AI151: =AI$103*AI140 -> 7.475534548 | AJ151: 7.481671343 | AK151: 6.95082786 | AL151: 6.438876625 | AM151: 6.295922504
A152: =ROW() -> 152 | D152: A2 | E152: 0.02494576547 | F152: 21.39636736 | I152: =IF(F169<F152,"Complies","Breach - Reset Tariffs") -> Complies | N152: =IF(F176>F152,"Complies","Breach - Reset Tariffs") -> Complies | AI152: =AI$103*AI141 -> 4.538790286 | AJ152: 4.405812281 | AK152: 4.276033546 | AL152: 4.149497928 | AM152: 4.026233315
A153: =ROW() -> 153 | D153: B1 | E153: 0.06029297612 | F153: 51.71421449 | I153: =IF(F170<F153,"Complies","Breach - Reset Tariffs") -> Complies | N153: =IF(F177>F153,"Complies","Breach - Reset Tariffs") -> Complies | AI153: =AI$103*AI142 -> 10.29090764 | AJ153: 10.3487777 | AK153: 10.37325357 | AL153: 10.3717607 | AM153: 10.32951487
A154: =ROW() -> 154 | D154: B2 | E154: 0.06145099085 | F154: 52.70746156 | I154: =IF(F171<F154,"Complies","Breach - Reset Tariffs") -> Complies | N154: =IF(F178>F154,"Complies","Breach - Reset Tariffs") -> Complies | AI154: =AI$103*AI143 -> 10.53299774 | AJ154: 10.5450421 | AK154: 10.5606851 | AL154: 10.56097137 | AM154: 10.50776525
A155: =ROW() -> 155 | D155: B3 | E155: 0.7970093809 | F155: 683.6072247 | I155: =IF(F172<F155,"Complies","Breach - Reset Tariffs") -> Complies | N155: =IF(F179>F155,"Complies","Breach - Reset Tariffs") -> Complies | AI155: =AI$103*AI144 -> 144.3887105 | AJ155: 140.388294 | AK155: 136.5631596 | AL155: 132.8704363 | AM155: 129.3966243
A156: =ROW() -> 156 | D156: Total Tariff Revenue | E156: 0.9840887724 | F156: 844.068101 | AI156: =SUM(AI151:AI155) -> 177.2269407 | AJ156: 173.1695974 | AK156: 168.7239596 | AL156: 164.3915429 | AM156: 160.5560603
A157: =ROW() -> 157 | D157: Revenue from Prudent Discounts | E157: 0.0007840780881 | F157: 0.6725158557 | AI157: =AI$103*AI146 -> 0.1544802611 | AJ157: 0.1437752366 | AK157: 0.1338120386 | AL157: 0.1245392607 | AM157: 0.1159090588
A158: =ROW() -> 158 | D158: Revenue from Ancillary Services | E158: 0.01512714949 | F158: 12.97478917 | AI158: =AI$103*AI147 -> 2.722590543 | AJ158: 2.656868437 | AK158: 2.59315309 | AL158: 2.531209335 | AM158: 2.470967761
A159: =ROW() -> 159 | D159: Total Revenue | E159: =F159/$F$148 -> 1 | F159: 857.715406 | AI159: =SUM(AI156:AI158) -> 180.1040115 | AJ159: 175.9702411 | AK159: 171.4509248 | AL159: 167.0472915 | AM159: 163.1429371
A160: =ROW() -> 160 | C160: Avoidable OPEX including UAFG Cost | AI160: ="Forecast 5 [m$ 31/12/2019]" -> Forecast 5 [m$ 31/12/2019]
A161: =ROW() -> 161 | D161: A1 | AI161: 1.306392846 | AJ161: 1.307074504 | AK161: 1.327068421 | AL161: 1.320372992 | AM161: 1.309024625
A162: =ROW() -> 162 | D162: A2 | AI162: 0.3190439243 | AJ162: 0.276077073 | AK162: 0.2489692577 | AL162: 0.2130492144 | AM162: 0.1766746413
A163: =ROW() -> 163 | D163: B1 | AI163: 1.620368832 | AJ163: 1.559402299 | AK163: 1.506745858 | AL163: 1.442860162 | AM163: 1.391428195
A164: =ROW() -> 164 | D164: B2 | AI164: 1.325330004 | AJ164: 1.269784436 | AK164: 1.217254561 | AL164: 1.15008362 | AM164: 1.088083911
A165: =ROW() -> 165 | D165: B3 | AI165: 19.76877455 | AJ165: 18.93742563 | AK165: 18.41266276 | AL165: 17.63274029 | AM165: 16.71204273
A166: =ROW() -> 166 | D166: Avoidable OPEX including UAFG | AI166: =SUM(AI161:AI165) -> 24.33991015 | AJ166: 23.34976394 | AK166: 22.71270086 | AL166: 21.75910628 | AM166: 20.67725411
A167: =ROW() -> 167 | C167: Avoidable OPEX including UAFG, Return and Depreciation | F167: PV
A168: =ROW() -> 168 | D168: A1 | F168: =SUMPRODUCT($AI168:$AM168,$AI$16:$AM$16) -> 7.052923939 | AI168: =AI161+Input!AI1550 -> 1.306392846 | AJ168: =AJ161+Input!AJ1550 -> 1.452660025 | AK168: =AK161+Input!AK1550 -> 1.62006167 | AL168: =AL161+Input!AL1550 -> 1.751602026 | AM168: =AM161+Input!AM1550 -> 1.873734057
A169: =ROW() -> 169 | D169: A2 | F169: =SUMPRODUCT($AI169:$AM169,$AI$16:$AM$16) -> 2.80877572 | AI169: =AI162+Input!AI1551 -> 0.3190439243 | AJ169: =AJ162+Input!AJ1551 -> 0.4846200558 | AK169: =AK162+Input!AK1551 -> 0.6600543218 | AL169: =AL162+Input!AL1551 -> 0.8110686413 | AM169: =AM162+Input!AM1551 -> 0.9542853856
A170: =ROW() -> 170 | D170: B1 | F170: 9.498383379 | AI170: =AI163+Input!AI1552 -> 1.620368832 | AJ170: =AJ163+Input!AJ1552 -> 1.921240006 | AK170: =AK163+Input!AK1552 -> 2.183049695 | AL170: =AL163+Input!AL1552 -> 2.421189833 | AM170: =AM163+Input!AM1552 -> 2.660148229
A171: =ROW() -> 171 | D171: B2 | F171: 8.053352899 | AI171: =AI164+Input!AI1553 -> 1.325330004 | AJ171: =AJ164+Input!AJ1553 -> 1.57177885 | AK171: =AK164+Input!AK1553 -> 1.84204236 | AL171: =AL164+Input!AL1553 -> 2.094630615 | AM171: =AM164+Input!AM1553 -> 2.343118872
A172: =ROW() -> 172 | D172: B3 | F172: 120.7596861 | AI172: =AI165+Input!AI1554 -> 19.76877455 | AJ172: =AJ165+Input!AJ1554 -> 23.6397222 | AK172: =AK165+Input!AK1554 -> 27.70071944 | AL172: =AL165+Input!AL1554 -> 31.45872794 | AM172: =AM165+Input!AM1554 -> 35.0397406
A173: =ROW() -> 173 | D173: Avoidable OPEX including UAFG, Return and Depreciation | AI173: =SUM(AI168:AI172) -> 24.33991015 | AJ173: 29.07002113 | AK173: 34.00592749 | AL173: 38.53721906 | AM173: 42.87102714
A174: =ROW() -> 174 | C174: Stand Alone Costs | F174: PV
A175: =ROW() -> 175 | D175: A1 | F175: =SUMPRODUCT($AI175:$AM175,$AI$16:$AM$16) -> 183.4854835 | AI175: 38.6504302 | AJ175: 41.10980907 | AK175: 42.05428535 | AL175: 42.6094248 | AM175: 42.7029207
A176: =ROW() -> 176 | D176: A2 | F176: =SUMPRODUCT($AI176:$AM176,$AI$16:$AM$16) -> 277.2675566 | AI176: 59.97070159 | AJ176: 62.3000772 | AK176: 63.22778468 | AL176: 63.66509985 | AM176: 63.5885643
A177: =ROW() -> 177 | D177: B1 | F177: 433.9007191 | AI177: 95.6861788 | AJ177: 97.8428288 | AK177: 98.54593347 | AL177: 98.71219458 | AM177: 98.34933594
A178: =ROW() -> 178 | D178: B2 | F178: 442.0482027 | AI178: 97.53185205 | AJ178: 99.62112714 | AK178: 100.3777371 | AL178: 100.5721973 | AM178: 100.2185289
A179: =ROW() -> 179 | D179: B3 | F179: 781.9310105 | AI179: 166.3801704 | AJ179: 176.0929409 | AK179: 178.1945241 | AL179: 179.8913321 | AM179: 181.8680257
A180: =ROW() -> 180 | D180: Stand alone costs | AI180: =SUM(AI175:AI179) -> 458.2193331 | AJ180: 476.9667831 | AK180: 482.4002647 | AL180: 485.4502486 | AM180: 486.7273756
A181: =ROW() -> 181 | C181: PV of Volume [TJ] | F181: PV
A182: =ROW() -> 182 | D182: A1 | E182: =F182/$F$189 -> 0.3569098722 | F182: =SUMPRODUCT($AI$103:$AM$103,AI27:AM27)/1000 -> 38755.03247
A183: =ROW() -> 183 | D183: A2 | E183: 0.06521659771 | F183: =SUMPRODUCT($AI$103:$AM$103,AI35:AM35)/1000 -> 7081.539511
A184: =ROW() -> 184 | D184: B1 | E184: 0.08831222151 | F184: =SUMPRODUCT($AI$103:$AM$103,AI41:AM41/1000) -> 9589.376139
A185: =ROW() -> 185 | D185: B2 | E185: 0.05924273502 | F185: =SUMPRODUCT($AI$103:$AM$103,AI46:AM46)/1000 -> 6432.868066
A186: =ROW() -> 186 | D186: B3 | E186: 0.3945447244 | F186: =SUMPRODUCT($AI$103:$AM$103,AI55:AM55)/1000 -> 42841.61015
A187: =ROW() -> 187 | D187: Total Tariff Volume | E187: 0.9642261508 | F187: =SUM(F182:F186) -> 104700.4263
A188: =ROW() -> 188 | D188: Prudent Discount Volume | E188: 0.03577384918 | F188: =SUMPRODUCT($AI$103:$AM$103,Load_Tariffs!AI72:AM72) -> 3884.500807
A189: =ROW() -> 189 | D189: Total Volume | E189: 1 | F189: =SUM(F187:F188) -> 108584.9271
A190: =ROW() -> 190
A191: Revenue [m$ nominal]
A192: =ROW() -> 192 | AI192: Forecast [$ nominal]
A193: =ROW() -> 193 | C193: PV of Tariff Revenue
A194: =ROW() -> 194 | D194: Discounting Factor Nominal Post-tax (1 Half a Year & 5 Years) | AI194: =AI$18 -> 0.9431377533 | AJ194: =AJ$18 -> 0.8895088217 | AK194: 0.8389293516 | AL194: 0.7912259438 | AM194: 0.746235059
A195: =ROW() -> 195 | C195: A1 | F195: PV
A196: =ROW() -> 196 | D196: Fixed [$/year] | E196: =F196/$F$201 -> 0.3654258949 | F196: =SUMPRODUCT($AI$194:$AM$194,AI196:AM196) -> 12.65938821 | AI196: =AI105*AI$13 -> 2.831053215 | AJ196: 2.94945716 | AK196: 3.028915212 | AL196: 3.086994549 | AM196: 3.192279426
A197: =ROW() -> 197 | D197: Demand 1 (<=10km) [$/GJ*km*year], | E197: 0.3329272157 | F197: 11.53354189 | AI197: 2.835567342 | AJ197: 2.956846136 | AK197: 2.726503787 | AL197: 2.51088704 | AM197: 2.619881648
A198: =ROW() -> 198 | D198: Demand 2 (>10km) [$/GJ*km*year], | E198: 0.07476160562 | F198: 2.589953809 | AI198: 0.5823208941 | AJ198: 0.6071819157 | AK198: 0.6325509674 | AL198: 0.6180873773 | AM198: 0.6444872457
A199: =ROW() -> 199 | D199: Usage 1 (<=10km) [$/GJ*km] | E199: 0.1813980135 | F199: 6.284141065 | AI199: 1.343332144 | AJ199: 1.527910975 | AK199: 1.514511879 | AL199: 1.530528583 | AM199: 1.576636086
A200: =ROW() -> 200 | D200: Usage 2 (>10km) [$/GJ*km] | E200: 0.04548727032 | F200: 1.575807904 | AI200: 0.3339646679 | AJ200: 0.3696180282 | AK200: 0.3828735861 | AL200: 0.3913506531 | AM200: 0.4036315872
... 80 more rows

Sheet Working_Capital
A1: =Main!A1 -> 0
A2: Working Capital [m$ nominal]
A3: Ref | C3: =COLUMN() -> 3 | D3: =COLUMN() -> 4 | E3: =COLUMN() -> 5 | F3: =COLUMN() -> 6 | G3: =COLUMN() -> 7 | H3: =COLUMN() -> 8 | I3: =COLUMN() -> 9 | J3: =COLUMN() -> 10 | K3: =COLUMN() -> 11 | L3: =COLUMN() -> 12 | M3: =COLUMN() -> 13 | N3: =COLUMN() -> 14 | O3: =COLUMN() -> 15 | P3: =COLUMN() -> 16 | Q3: =COLUMN() -> 17 | R3: =COLUMN() -> 18 | S3: =COLUMN() -> 19 | T3: =COLUMN() -> 20 | U3: =COLUMN() -> 21 | V3: =COLUMN() -> 22 | W3: =COLUMN() -> 23 | X3: =COLUMN() -> 24 | Y3: =COLUMN() -> 25 | Z3: =COLUMN() -> 26 | AA3: =COLUMN() -> 27 | AD3: =COLUMN() -> 30 | AE3: =COLUMN() -> 31 | AF3: =COLUMN() -> 32 | AG3: =COLUMN() -> 33 | AH3: =COLUMN() -> 34
A4: Regulatory Period | J4: 1 | K4: 1 | L4: 1 | M4: 1 | N4: 1 | O4: 2 | P4: 2 | Q4: 2 | R4: 2 | S4: 2 | T4: 3 | U4: 3 | V4: 3 | W4: 3 | X4: 3 | Y4: 3 | Z4: 3 | AA4: 3 | AD4: 3 | AE4: 3 | AF4: 3 | AG4: 3 | AH4: 3 | AI4: 4 | AJ4: 5 | AK4: 6 | AL4: 7 | AM4: 8
A5: Year ending | I5: 1999 | J5: 2000 | K5: 2001 | L5: 2002 | M5: 2003 | N5: 2004 | O5: 2005 | P5: 2006 | Q5: 2007 | R5: 2008 | S5: =1+R5 -> 2009 | T5: =1+S5 -> 2010 | U5: 2010 | V5: 2011 | W5: =T5+1 -> 2011 | X5: =W5+1 -> 2012 | Y5: =X5+1 -> 2013 | Z5: =Y5+1 -> 2014 | AA5: 2014 | AD5: =AA5+1 -> 2015 | AE5: =AD5+1 -> 2016 | AF5: 2017 | AG5: 2018 | AH5: 2019 | AI5: 2020 | AJ5: 2021 | AK5: 2022 | AL5: 2023 | AM5: 2024
A6: Months | I6: 1 to 12 | J6: 1 to 12 | K6: 1 to 12 | L6: 1 to 12 | M6: 1 to 12 | N6: 1 to 12 | O6: 1 to 12 | P6: 1 to 12 | Q6: 1 to 12 | R6: 1 to 12 | S6: 1 to 12 | T6: 1 to 6 | U6: 7 to 12 | V6: 1 to 6 | W6: 7 to 6 | X6: 7 to 6 | Y6: 7 to 6 | Z6: 7 to 6 | AA6: 7 to 12 | AD6: 1 to 12 | AE6: 1 to 12 | AF6: 1 to 12 | AG6: 1 to 12 | AH6: 1 to 12 | AI6: 1 to 12 | AJ6: 1 to 12 | AK6: 1 to 12 | AL6: 1 to 12 | AM6: 1 to 12
A7: Days | I7: =Input!I$8 -> 365 | J7: =Input!J$8 -> 366 | K7: =Input!K$8 -> 365 | L7: =Input!L$8 -> 365 | M7: =Input!M$8 -> 365 | N7: =Input!N$8 -> 366 | O7: =Input!O$8 -> 365 | P7: =Input!P$8 -> 365 | Q7: =Input!Q$8 -> 365 | R7: =Input!R$8 -> 366 | S7: =Input!S$8 -> 365 | T7: =Input!T$8 -> 181 | U7: 184 | V7: 181 | W7: =Input!W$8 -> 365 | X7: =Input!X$8 -> 366 | Y7: =Input!Y$8 -> 365 | Z7: =Input!Z$8 -> 365 | AA7: =Input!AA$8 -> 184 | AD7: =Input!AD$8 -> 365 | AE7: =Input!AE$8 -> 366 | AF7: =Input!AF$8 -> 365 | AG7: =Input!AG$8 -> 365 | AH7: =Input!AH$8 -> 365 | AI7: 365 | AJ7: 365 | AK7: 365 | AL7: 365 | AM7: 365
A8: Year portion | I8: =Input!I$9 -> 1 | J8: =Input!J$9 -> 1 | K8: =Input!K$9 -> 1 | L8: =Input!L$9 -> 1 | M8: =Input!M$9 -> 1 | N8: =Input!N$9 -> 1 | O8: =Input!O$9 -> 1 | P8: =Input!P$9 -> 1 | Q8: =Input!Q$9 -> 1 | R8: =Input!R$9 -> 1 | S8: =Input!S$9 -> 1 | T8: =Input!T$9 -> 0.495890411 | U8: 0.5 | V8: 0.5 | W8: =Input!W$9 -> 1 | X8: =Input!X$9 -> 1 | Y8: =Input!Y$9 -> 1 | Z8: =Input!Z$9 -> 1 | AA8: =Input!AA$9 -> 0.504109589 | AD8: =Input!AD$9 -> 1 | AE8: =Input!AE$9 -> 1 | AF8: =Input!AF$9 -> 1 | AG8: =Input!AG$9 -> 1 | AH8: =Input!AH$9 -> 1 | AI8: =Input!AI$9 -> 1 | AJ8: =Input!AJ$9 -> 1 | AK8: =Input!AK$9 -> 1 | AL8: =Input!AL$9 -> 1 | AM8: =Input!AM$9 -> 1
A9: Financial Parameters
A10: =ROW() -> 10 | C10: Modelled Inflation
A11: =ROW() -> 11 | D11: Inflation | T11: =Input!T$31 -> 0.01533923304 | U11: =Input!U$31 -> 0.01104009297 | V11: =Input!V$31 -> 0.03602556653 | W11: =Input!W$31 -> 0.03602556653 | X11: =Input!X$31 -> 0.01177790241 | Y11: =Input!Y$31 -> 0.02390438247 | Z11: =Input!Z$31 -> 0.03015564202 | AA11: =Input!AA$31 -> 0.006610009443 | AD11: =Input!AD$31 -> 0.01688555347 | AE11: =Input!AE$31 -> 0.0147601476 | AF11: =Input!AF$31 -> 0.01909090909 | AG11: =Input!AG$31 -> 0.0184 | AH11: =Input!AH$31 -> 0.0184 | AI11: =Input!AI$31 -> 0.0184 | AJ11: =Input!AJ$31 -> 0.0184 | AK11: =Input!AK$31 -> 0.0184 | AL11: =Input!AL$31 -> 0.0184 | AM11: =Input!AM$31 -> 0.0184
A12: =ROW() -> 12 | D12: Inflation Factor (convert to nominal $) | T12: =Input!T$35 -> 0.823826307 | U12: =Input!U$35 -> 0.832921426 | V12: =Input!V$35 -> 0.8535051164 | W12: =Input!W$35 -> 0.8535051164 | X12: =Input!X$35 -> 0.8635576164 | Y12: =Input!Y$35 -> 0.884200428 | Z12: =Input!Z$35 -> 0.9108640595 | AA12: =Input!AA$35 -> 0.9168848796 | AD12: =Input!AD$35 -> 0.9323669882 | AE12: =Input!AE$35 -> 0.9461288626 | AF12: =Input!AF$35 -> 0.9641913227 | AG12: =Input!AG$35 -> 0.981932443 | AH12: =Input!AH$35 -> 1 | AI12: =Input!AI$35 -> 1.0184 | AJ12: =Input!AJ$35 -> 1.03713856 | AK12: =Input!AK$35 -> 1.05622191 | AL12: =Input!AL$35 -> 1.075656393 | AM12: =Input!AM$35 -> 1.09544847
A13: =ROW() -> 13 | C13: Nominal Post Tax WACC
A14: =ROW() -> 14 | D14: WACC | T14: =Input!T$41 -> 0 | U14: =Input!U$41 -> 0 | V14: =Input!V$41 -> 0 | W14: =Input!W$41 -> 0 | X14: =Input!X$41 -> 0 | Y14: =Input!Y$41 -> 0 | Z14: =Input!Z$41 -> 0 | AA14: =Input!AA$41 -> 0.02953234787 | AD14: =Input!AD$41 -> 0.059872 | AE14: =Input!AE$41 -> 0.060916 | AF14: =Input!AF$41 -> 0.06157 | AG14: =Input!AG$41 -> 0.06049 | AH14: =Input!AH$41 -> 0.06049 | AI14: =Input!AI$41 -> 0.0602905 | AJ14: =Input!AJ$41 -> 0.0602905 | AK14: =Input!AK$41 -> 0.0602905 | AL14: =Input!AL$41 -> 0.0602905 | AM14: =Input!AM$41 -> 0.0602905
A15: =ROW() -> 15 | D15: Discounting Factor | T15: =Input!T$42 -> 1 | U15: =Input!U$42 -> 0 | V15: =Input!V$42 -> 0 | W15: =Input!W$42 -> 1 | X15: =Input!X$42 -> 1 | Y15: =Input!Y$42 -> 1 | Z15: =Input!Z$42 -> 1 | AA15: =Input!AA$42 -> 0.9713147936 | AD15: =Input!AD$42 -> 0.9164453761 | AE15: =Input!AE$42 -> 0.8638246346 | AF15: =Input!AF$42 -> 0.8137236684 | AG15: =Input!AG$42 -> 0.7673091386 | AH15: =Input!AH$42 -> 0.7235420783 | AI15: =Input!AI$42 -> 0.9431377533 | AJ15: =Input!AJ$42 -> 0.8895088217 | AK15: =Input!AK$42 -> 0.8389293516 | AL15: =Input!AL$42 -> 0.7912259438 | AM15: =Input!AM$42 -> 0.746235059
A16: Working Capital | AI16: Forecast $m nominal
A17: =ROW() -> 17 | C17: Revenue
A18: =ROW() -> 18 | D18: Total Revenue | AI18: =Revenue!AI$239 -> 190.9625724 | AJ18: =Revenue!AJ$239 -> 197.8285508 | AK18: =Revenue!AK$239 -> 204.3687284 | AL18: =Revenue!AL$239 -> 211.1246387 | AM18: =Revenue!AM$239 -> 218.6213782
A19: =ROW() -> 19 | C19: Expenses
A20: =ROW() -> 20 | D20: Opex | AI20: =Input!AI$1534 -> 68.79536054 | AJ20: =Input!AJ$1534 -> 71.81778045 | AK20: =Input!AK$1534 -> 76.09695567 | AL20: =Input!AL$1534 -> 79.26161757 | AM20: =Input!AM$1534 -> 81.96920307
A21: =ROW() -> 21 | D21: Capex | AI21: =CoS!AI31 -> 105.2528568 | AJ21: =CoS!AJ31 -> 105.95775 | AK21: =CoS!AK31 -> 105.9975184 | AL21: =CoS!AL31 -> 109.8949407 | AM21: =CoS!AM31 -> 110.9314952
A22: =ROW() -> 22 | D22: Total Expenses | AI22: =SUM(AI20:AI21) -> 174.0482173 | AJ22: 177.7755304 | AK22: 182.0944741 | AL22: 189.1565582 | AM22: 192.9006982
A23: =ROW() -> 23 | C23: Working Capital | E23: Base for Calculation
A24: =ROW() -> 24 | D24: Receivables | E24: =Input!$AD$1594 -> 62 | F24: Days outstanding on receipts (billing plus credit) | AI24: =AI18/AI$7*$E24 -> 32.43747806 | AJ24: 33.60375384 | AK24: 34.7146881 | AL24: 35.8622674 | AM24: 37.13568616
A25: =ROW() -> 25 | D25: Inventory | E25: =Input!$AD$1595 -> 0.0089 | F25: (materials consumed / asset turnover) + insurance spares (ratio) | AI25: =AI21*$E25 -> 0.9367504253 | AJ25: 0.9430239747 | AK25: 0.9433779139 | AL25: 0.978064972 | AM25: 0.987290307
A26: =ROW() -> 26 | D26: Creditors | E26: =-Input!$AD$1596 -> -19 | F26: Days outstanding on expenditure | AI26: =AI22/AI$7*$E26 -> -9.060044189 | AJ26: -9.254068706 | AK26: -9.478890432 | AL26: -9.846505772 | AM26: -10.04140621
A27: =ROW() -> 27 | D27: End of the Year Working Capital | AI27: =SUM(AI24:AI26) -> 24.31418429 | AJ27: 25.2927091 | AK27: 26.17917559 | AL27: 26.9938266 | AM27: 28.08157026
A28: =ROW() -> 28 | C28: Working Capital
A29: =ROW() -> 29 | D29: Opening Value | AI29: =Input!AI1597 -> 1.332348129 | AJ29: =AI31 -> 24.31418429 | AK29: 25.2927091 | AL29: 26.17917559 | AM29: 26.9938266
A30: =ROW() -> 30 | D30: Variation | AI30: =AI27-AI29 -> 22.98183617 | AJ30: 0.9785248101 | AK30: 0.8864664815 | AL30: 0.8146510145 | AM30: 1.08774366
A31: =ROW() -> 31 | D31: Closing Value | AI31: =SUM(AI29:AI30) -> 24.31418429 | AJ31: 25.2927091 | AK31: 26.17917559 | AL31: 26.9938266 | AM31: 28.08157026
A32: =ROW() -> 32 | AI32: 24.31418429 | AJ32: 25.2927091 | AK32: 26.17917559 | AL32: 26.9938266 | AM32: 28.08157026
A33: =ROW() -> 33 | D33: WACC applied (Nominal after tax) | AI33: =AI$14 -> 0.0602905 | AJ33: 0.0602905 | AK33: 0.0602905 | AL33: 0.0602905 | AM33: 0.0602905
A34: =ROW() -> 34 | F34: PV AA5 | G34: PV AA6
A35: =ROW() -> 35 | D35: Return on Working Capital (at Nominal after tax WACC) | F35: =SUMPRODUCT(AI35:AM35,AI$15:AM$15) -> 5.122307889 | G35: =SUMPRODUCT(AN35:AR35,AN$15:AR$15) -> 0 | AI35: =AI29*AI33 -> 0.08032793484 | AJ35: 1.465914328 | AK35: 1.524910078 | AL35: 1.578355586 | AM35: 1.627471303

Sheet Tax_CoRE
A1: =Main!A1 -> 0
A2: Taxation Account and Equity Raising Cost
A3: Ref | C3: =COLUMN() -> 3 | D3: =COLUMN() -> 4 | E3: =COLUMN() -> 5 | F3: =COLUMN() -> 6 | G3: =COLUMN() -> 7 | H3: =COLUMN() -> 8 | I3: =COLUMN() -> 9 | J3: =COLUMN() -> 10 | K3: =COLUMN() -> 11 | L3: =COLUMN() -> 12 | M3: =COLUMN() -> 13 | N3: =COLUMN() -> 14 | O3: =COLUMN() -> 15 | P3: =COLUMN() -> 16 | Q3: =COLUMN() -> 17 | R3: =COLUMN() -> 18 | S3: =COLUMN() -> 19 | T3: =COLUMN() -> 20 | W3: =COLUMN() -> 23 | X3: =COLUMN() -> 24 | Y3: =COLUMN() -> 25 | Z3: =COLUMN() -> 26 | AA3: =COLUMN() -> 27 | AD3: =COLUMN() -> 30 | AE3: =COLUMN() -> 31 | AF3: =COLUMN() -> 32 | AG3: =COLUMN() -> 33 | AH3: =COLUMN() -> 34 | AI3: =COLUMN() -> 35 | AJ3: =COLUMN() -> 36 | AK3: =COLUMN() -> 37 | AL3: =COLUMN() -> 38 | AM3: =COLUMN() -> 39 | AN3: =COLUMN() -> 40
A4: Regulatory Period | J4: 1 | K4: 1 | L4: 1 | M4: 1 | N4: 1 | O4: 2 | P4: 2 | Q4: 2 | R4: 2 | S4: 2 | T4: 3 | W4: 3 | X4: 3 | Y4: 3 | Z4: 3 | AA4: 4 | AD4: 4 | AE4: 4 | AF4: 4 | AG4: 4 | AH4: 4 | AI4: 5 | AJ4: 6 | AK4: 7 | AL4: 8 | AM4: 9 | AN4: 10
A5: Year ending | I5: 1999 | J5: 2000 | K5: 2001 | L5: 2002 | M5: 2003 | N5: 2004 | O5: 2005 | P5: 2006 | Q5: 2007 | R5: 2008 | S5: =1+R5 -> 2009 | T5: =1+S5 -> 2010 | W5: =T5+1 -> 2011 | X5: =W5+1 -> 2012 | Y5: 2013 | Z5: 2014 | AA5: 2014 | AD5: =AA5+1 -> 2015 | AE5: 2016 | AF5: 2017 | AG5: 2018 | AH5: =AG5+1 -> 2019 | AI5: 2020 | AJ5: 2021 | AK5: 2022 | AL5: 2023 | AM5: 2024 | AN5: 2025
A6: Months | I6: 1 to 12 | J6: 1 to 12 | K6: 1 to 12 | L6: 1 to 12 | M6: 1 to 12 | N6: 1 to 12 | O6: 1 to 12 | P6: 1 to 12 | Q6: 1 to 12 | R6: 1 to 12 | S6: 1 to 12 | T6: 1 to 6 | W6: 7 to 6 | X6: 7 to 6 | Y6: 7 to 6 | Z6: 7 to 6 | AA6: 7 to 12 | AD6: 1 to 12 | AE6: 1 to 12 | AF6: 1 to 12 | AG6: 1 to 12 | AH6: 1 to 12 | AI6: 1 to 12 | AJ6: 1 to 12 | AK6: 1 to 12 | AL6: 1 to 12 | AM6: 1 to 12 | AN6: 1 to 12
A7: Days | I7: =Input!I8 -> 365 | J7: =Input!J8 -> 366 | K7: =Input!K8 -> 365 | L7: =Input!L8 -> 365 | M7: =Input!M8 -> 365 | N7: =Input!N8 -> 366 | O7: =Input!O8 -> 365 | P7: =Input!P8 -> 365 | Q7: =Input!Q8 -> 365 | R7: =Input!R8 -> 366 | S7: =Input!S8 -> 365 | T7: =Input!T8 -> 181 | W7: =Input!W8 -> 365 | X7: =Input!X8 -> 366 | Y7: =Input!Y8 -> 365 | Z7: =Input!Z8 -> 365 | AA7: =Input!AA8 -> 184 | AD7: =Input!AD8 -> 365 | AE7: =Input!AE8 -> 366 | AF7: =Input!AF8 -> 365 | AG7: =Input!AG8 -> 365 | AH7: =Input!AH8 -> 365 | AI7: 365 | AJ7: 365 | AK7: 365 | AL7: 365 | AM7: 365 | AN7: 366
A8: Year portion | I8: =Input!I9 -> 1 | J8: =Input!J9 -> 1 | K8: =Input!K9 -> 1 | L8: =Input!L9 -> 1 | M8: =Input!M9 -> 1 | N8: =Input!N9 -> 1 | O8: =Input!O9 -> 1 | P8: =Input!P9 -> 1 | Q8: =Input!Q9 -> 1 | R8: =Input!R9 -> 1 | S8: =Input!S9 -> 1 | T8: =Input!T9 -> 0.495890411 | W8: =Input!W9 -> 1 | X8: =Input!X9 -> 1 | Y8: =Input!Y9 -> 1 | Z8: =Input!Z9 -> 1 | AA8: =Input!AA9 -> 0.504109589 | AD8: =Input!AD9 -> 1 | AE8: =Input!AE9 -> 1 | AF8: =Input!AF9 -> 1 | AG8: =Input!AG9 -> 1 | AH8: =Input!AH9 -> 1 | AI8: =Input!AI9 -> 1 | AJ8: =Input!AJ9 -> 1 | AK8: =Input!AK9 -> 1 | AL8: =Input!AL9 -> 1 | AM8: =Input!AM9 -> 1
A9: Financial Parameters
A10: =ROW() -> 10 | C10: Modelled Inflation
A11: =ROW() -> 11 | D11: Inflation | AA11: =Input!AA31 -> 0.006610009443 | AD11: =Input!AD31 -> 0.01688555347 | AE11: =Input!AE31 -> 0.0147601476 | AF11: =Input!AF31 -> 0.01909090909 | AG11: =Input!AG31 -> 0.0184 | AH11: =Input!AH31 -> 0.0184 | AI11: =Input!AI31 -> 0.0184 | AJ11: =Input!AJ31 -> 0.0184 | AK11: =Input!AK31 -> 0.0184 | AL11: =Input!AL31 -> 0.0184 | AM11: =Input!AM31 -> 0.0184
A12: =ROW() -> 12 | D12: =Input!D35 -> Inflation Factor (convert 31/12/2019 $ to nominal $) | AA12: =Input!AA35 -> 0.9168848796 | AD12: =Input!AD35 -> 0.9323669882 | AE12: =Input!AE35 -> 0.9461288626 | AF12: =Input!AF35 -> 0.9641913227 | AG12: =Input!AG35 -> 0.981932443 | AH12: =Input!AH35 -> 1 | AI12: =Input!AI35 -> 1.0184 | AJ12: =Input!AJ35 -> 1.03713856 | AK12: =Input!AK35 -> 1.05622191 | AL12: =Input!AL35 -> 1.075656393 | AM12: =Input!AM35 -> 1.09544847
A13: =ROW() -> 13 | C13: Nominal Post Tax WACC
A14: =ROW() -> 14 | D14: WACC | AA14: =Input!AA41 -> 0.02953234787 | AD14: =Input!AD41 -> 0.059872 | AE14: =Input!AE41 -> 0.060916 | AF14: =Input!AF41 -> 0.06157 | AG14: =Input!AG41 -> 0.06049 | AH14: =Input!AH41 -> 0.06049 | AI14: =Input!AI41 -> 0.0602905 | AJ14: =Input!AJ41 -> 0.0602905 | AK14: =Input!AK41 -> 0.0602905 | AL14: =Input!AL41 -> 0.0602905 | AM14: =Input!AM41 -> 0.0602905
A15: =ROW() -> 15 | D15: Discounting Factor | AA15: =Input!AA42 -> 0.9713147936 | AD15: =Input!AD42 -> 0.9164453761 | AE15: =Input!AE42 -> 0.8638246346 | AF15: =Input!AF42 -> 0.8137236684 | AG15: =Input!AG42 -> 0.7673091386 | AH15: =Input!AH42 -> 0.7235420783 | AI15: =Input!AI42 -> 0.9431377533 | AJ15: =Input!AJ42 -> 0.8895088217 | AK15: =Input!AK42 -> 0.8389293516 | AL15: =Input!AL42 -> 0.7912259438 | AM15: =Input!AM42 -> 0.746235059
A16: =ROW() -> 16 | D16: Debt and Equity constant multiplier for less than 1 year period
A17: =ROW() -> 17
A18: Asset Value [m$ nominal]
A19: =ROW() -> 19 | C19: Asset Value
A20: =ROW() -> 20 | D20: Opening Asset Value | AI20: =Asset!AH$25*Input!AH$35 -> 1347.537977 | AJ20: =Asset!AI$25*Input!AI$35 -> 1428.163322 | AK20: =Asset!AJ$25*Input!AJ$35 -> 1499.868031 | AL20: =Asset!AK$25*Input!AK$35 -> 1569.60529 | AM20: =Asset!AL$25*Input!AL$35 -> 1641.430473 | AN20: =Asset!AM$25*Input!AM$35 -> 1711.637424
A21: =ROW() -> 21 | D21: Opening Working Capital | AI21: =Working_Capital!AI$29 -> 1.332348129 | AJ21: =Working_Capital!AJ$29 -> 24.31418429 | AK21: =Working_Capital!AK$29 -> 25.2927091 | AL21: =Working_Capital!AL$29 -> 26.17917559 | AM21: =Working_Capital!AM$29 -> 26.9938266 | AN21: =Working_Capital!AN$29 -> 0
A22: =ROW() -> 22 | D22: Total Opening Value | AI22: =SUM(AI20:AI21) -> 1348.870325 | AJ22: =SUM(AJ20:AJ21) -> 1452.477507 | AK22: =SUM(AK20:AK21) -> 1525.16074 | AL22: =SUM(AL20:AL21) -> 1595.784465 | AM22: =SUM(AM20:AM21) -> 1668.4243 | AN22: =SUM(AN20:AN21) -> 1711.637424
A23: =ROW() -> 23 | C23: Equity
A24: =ROW() -> 24 | D24: Equity | AI24: =AI$22*WACC!AI$15 -> 606.9916464 | AJ24: =AJ$22*WACC!AJ$15 -> 653.6148779 | AK24: =AK$22*WACC!AK$15 -> 686.322333 | AL24: =AL$22*WACC!AL$15 -> 718.1030093 | AM24: =AM$22*WACC!AM$15 -> 750.790935 | AN24: =AN$22*WACC!AN$15 -> 0
A25: =ROW() -> 25 | D25: Total Equity | AI25: =SUM(AI24:AI24) -> 606.9916464 | AJ25: =SUM(AJ24:AJ24) -> 653.6148779 | AK25: =SUM(AK24:AK24) -> 686.322333 | AL25: =SUM(AL24:AL24) -> 718.1030093 | AM25: =SUM(AM24:AM24) -> 750.790935 | AN25: =SUM(AN24:AN24) -> 0
A26: =ROW() -> 26 | C26: Debt
A27: =ROW() -> 27 | D27: Debt | AI27: =AI$22*WACC!AI$14 -> 741.8786789 | AJ27: =AJ$22*WACC!AJ$14 -> 798.8626286 | AK27: =AK$22*WACC!AK$14 -> 838.838407 | AL27: =AL$22*WACC!AL$14 -> 877.6814559 | AM27: =AM$22*WACC!AM$14 -> 917.633365 | AN27: =AN$22*WACC!AN$14 -> 0
A28: =ROW() -> 28 | D28: Total Debt | AI28: =SUM(AI27:AI27) -> 741.8786789 | AJ28: =SUM(AJ27:AJ27) -> 798.8626286 | AK28: =SUM(AK27:AK27) -> 838.838407 | AL28: =SUM(AL27:AL27) -> 877.6814559 | AM28: =SUM(AM27:AM27) -> 917.633365 | AN28: =SUM(AN27:AN27) -> 0
A29: =ROW() -> 29 | C29: Check that A=D+E | AI29: =IF(ROUND(AI22-AI25-AI28,8)=0,"OK","CHECK") -> OK | AJ29: =IF(ROUND(AJ22-AJ25-AJ28,8)=0,"OK","CHECK") -> OK | AK29: =IF(ROUND(AK22-AK25-AK28,8)=0,"OK","CHECK") -> OK | AL29: =IF(ROUND(AL22-AL25-AL28,8)=0,"OK","CHECK") -> OK | AM29: =IF(ROUND(AM22-AM25-AM28,8)=0,"OK","CHECK") -> OK
A30: =ROW() -> 30
A31: Calculation of Tax Expense - [m$ nominal]
A32: =ROW() -> 32 | C32: Revenue | AI32: Forecast 5 [m$ nominal]
A33: =ROW() -> 33 | D33: Tariff Revenue | AI33: =Revenue!AI145*AI$12 -> 187.9120416 | AJ33: =Revenue!AJ145*AJ$12 -> 194.6800225 | AK33: =Revenue!AK145*AK$12 -> 201.1181982 | AL33: =Revenue!AL145*AL$12 -> 207.7681404 | AM33: =Revenue!AM145*AM$12 -> 215.1548072
A34: =ROW() -> 34 | D34: Prudent Discount | AI34: =Revenue!AI146*AI$12 -> 0.1637939532 | AJ34: =Revenue!AJ146*AJ$12 -> 0.1616344134 | AK34: =Revenue!AK146*AK$12 -> 0.1595033459 | AL34: =Revenue!AL146*AL$12 -> 0.1574003755 | AM34: =Revenue!AM146*AM$12 -> 0.1553251317
A35: =ROW() -> 35 | D35: Ancillary Services | AI35: =Revenue!AI147*AI$12 -> 2.886736888 | AJ35: =Revenue!AJ147*AJ$12 -> 2.986893859 | AK35: =Revenue!AK147*AK$12 -> 3.091026778 | AL35: =Revenue!AL147*AL$12 -> 3.199098 | AM35: =Revenue!AM147*AM$12 -> 3.311245876
A36: =ROW() -> 36 | D36: Total Revenue | AI36: =SUM(AI33:AI35) -> 190.9625724 | AJ36: =SUM(AJ33:AJ35) -> 197.8285508 | AK36: =SUM(AK33:AK35) -> 204.3687284 | AL36: =SUM(AL33:AL35) -> 211.1246387 | AM36: =SUM(AM33:AM35) -> 218.6213782
A37: =ROW() -> 37 | C37: Expenses
A38: =ROW() -> 38 | D38: Operating Expenditure | AI38: =-Input!AI1501 -> -68.79536054 | AJ38: =-Input!AJ1501 -> -71.81778045 | AK38: =-Input!AK1501 -> -76.09695567 | AL38: =-Input!AL1501 -> -79.26161757 | AM38: =-Input!AM1501 -> -81.96920307
A39: =ROW() -> 39 | D39: Interest on Debt | AI39: =-Tax_CoRE!AI28*WACC!AI$27*AI$8 -> -37.62066781 | AJ39: =-Tax_CoRE!AJ28*WACC!AJ$27*AJ$8 -> -40.5103239 | AK39: =-Tax_CoRE!AK28*WACC!AK$27*AK$8 -> -42.53749562 | AL39: =-Tax_CoRE!AL28*WACC!AL$27*AL$8 -> -44.50722663 | AM39: =-Tax_CoRE!AM28*WACC!AM$27*AM$8 -> -46.53318794
A40: =ROW() -> 40 | D40: Tax Depreciation | AI40: =Tax_Asset!AE20 -> -62.15825003 | AJ40: =Tax_Asset!AF20 -> -67.18504207 | AK40: =Tax_Asset!AG20 -> -70.63146508 | AL40: =Tax_Asset!AH20 -> -74.0979465 | AM40: =Tax_Asset!AI20 -> -78.72648097
A41: =ROW() -> 41 | D41: Total Expenses | AI41: =SUM(AI38:AI40) -> -168.5742784 | AJ41: =SUM(AJ38:AJ40) -> -179.5131464 | AK41: =SUM(AK38:AK40) -> -189.2659164 | AL41: =SUM(AL38:AL40) -> -197.8667907 | AM41: =SUM(AM38:AM40) -> -207.228872
A42: =ROW() -> 42 | C42: Tax
A43: =ROW() -> 43 | D43: Net Income | AI43: =AI36+AI41 -> 22.38829406 | AJ43: =AJ36+AJ41 -> 18.3154044 | AK43: =AK36+AK41 -> 15.10281199 | AL43: =AL36+AL41 -> 13.25784802 | AM43: =AM36+AM41 -> 11.39250623
A44: =ROW() -> 44 | D44: Tax Loss Carried Forward | AI44: =IF(AI45<0,AI45,0) -> 0 | AJ44: 0 | AK44: 0 | AL44: 0 | AM44: 0
A45: =ROW() -> 45 | D45: Taxable Income | AI45: =AI43 -> 22.38829406 | AJ45: =AJ43+AI44 -> 18.3154044 | AK45: 15.10281199 | AL45: 13.25784802 | AM45: 11.39250623
A46: =ROW() -> 46 | D46: Income tax expense | AI46: =-IF(AI45>0,AI45*WACC!AI$23) -> -6.716488218 | AJ46: =-IF(AJ45>0,AJ45*WACC!AJ$23) -> -5.49462132 | AK46: =-IF(AK45>0,AK45*WACC!AK$23) -> -4.530843596 | AL46: =-IF(AL45>0,AL45*WACC!AL$23) -> -3.977354407 | AM46: =-IF(AM45>0,AM45*WACC!AM$23) -> -3.41775187
A47: =ROW() -> 47 | D47: Imputation Credits | AI47: =-AI46*WACC!AI$24 -> 2.283605994 | AJ47: =-AJ46*WACC!AJ$24 -> 1.868171249 | AK47: =-AK46*WACC!AK$24 -> 1.540486823 | AL47: =-AL46*WACC!AL$24 -> 1.352300499 | AM47: =-AM46*WACC!AM$24 -> 1.162035636
A48: =ROW() -> 48 | D48: Net Tax Expense | AI48: =SUM(AI46:AI47) -> -4.432882224 | AJ48: -3.626450071 | AK48: -2.990356773 | AL48: =SUM(AL46:AL47) -> -2.625053909 | AM48: =SUM(AM46:AM47) -> -2.255716234
A49: =ROW() -> 49
A50: Reconciliation on Return on Equity - [m$ nominal]
A51: =ROW() -> 51
A52: =ROW() -> 52 | C52: RAB | F52: =SUM(F53:F54) -> 1 | AI52: =CoS!AI$28 -> 1347.537977 | AJ52: =CoS!AJ$28 -> 1428.163322 | AK52: =CoS!AK$28 -> 1499.868031 | AL52: =CoS!AL$28 -> 1569.60529 | AM52: =CoS!AM$28 -> 1641.430473
A53: =ROW() -> 53 | D53: Equity | F53: =WACC!$AI$15 -> 0.45 | AI53: =$F53*AI52 -> 606.3920897 | AJ53: =$F53*AJ52 -> 642.673495 | AK53: =$F53*AK52 -> 674.9406139 | AL53: =$F53*AL52 -> 706.3223803 | AM53: =$F53*AM52 -> 738.6437131
A54: =ROW() -> 54 | D54: Debt | F54: =WACC!$AI$14 -> 0.55 | AI54: =$F54*AI52 -> 741.1458874 | AJ54: =$F54*AJ52 -> 785.4898272 | AK54: =$F54*AK52 -> 824.9274169 | AL54: =$F54*AL52 -> 863.2829093 | AM54: =$F54*AM52 -> 902.7867604
A55: =ROW() -> 55 | C55: per Revenue Building Blocks
A56: =ROW() -> 56 | D56: Return on Asset (includes inflationary gain) | G56: PV AA5
A57: =ROW() -> 57 | D57: Return on Equity % | AI57: =WACC!AI$30 -> 0.072 | AJ57: =WACC!AJ$30 -> 0.072 | AK57: =WACC!AK$30 -> 0.072 | AL57: =WACC!AL$30 -> 0.072 | AM57: =WACC!AM$30 -> 0.072
A58: =ROW() -> 58 | D58: Return on Debt % | AI58: =WACC!AI$27 -> 0.05071 | AJ58: =WACC!AJ$27 -> 0.05071 | AK58: =WACC!AK$27 -> 0.05071 | AL58: =WACC!AL$27 -> 0.05071 | AM58: =WACC!AM$27 -> 0.05071
A59: =ROW() -> 59 | D59: Return on Equity | G59: =SUMPRODUCT($AI$15:$AM$15,AI59:AM59) -> 203.0302753 | AI59: =AI$53*AI$57 -> 43.66023046 | AJ59: 46.27249164 | AK59: 48.5957242 | AL59: 50.85521138 | AM59: 53.18234734
A60: =ROW() -> 60 | D60: Return on Debt | G60: =SUMPRODUCT($AI$15:$AM$15,$AI60:$AM60) -> 174.7720955 | AI60: =AI$54*AI$58 -> 37.58350795 | AJ60: 39.83218914 | AK60: 41.83206931 | AL60: 43.77707633 | AM60: 45.78031662
A61: =ROW() -> 61 | F61: =WACC!AA35 -> 0.059434 | G61: =SUMPRODUCT($AI$15:$AM$15,$AI61:$AM61) -> 377.8023708 | AI61: =SUM(AI59:AI60) -> 81.24373841 | AJ61: 86.10468078 | AK61: 90.42779351 | AL61: 94.63228771 | AM61: 98.96266396
A62: =ROW() -> 62
A63: =ROW() -> 63 | C63: Reconciliation on Return on Equity: | F63: Expected PV | G63: PV
A64: =ROW() -> 64 | D64: Total Annual Revenue | F64: =CoS!F60 -> 857.715406 | G64: =SUMPRODUCT($AI$15:$AM$15,$AI64:$AM64) -> 857.715406 | AI64: =AI$36 -> 190.9625724 | AJ64: 197.8285508 | AK64: 204.3687284 | AL64: 211.1246387 | AM64: 218.6213782
A65: =ROW() -> 65 | D65: Annual Revenue and CoS difference | F65: =G65 -> 0.0001929626677 | G65: =SUMPRODUCT($AI$15:$AM$15,$AI65:$AM65) -> 0.0001929626677 | AI65: =AI66-AI64 -> -11.7827517 | AJ65: -0.5606837889 | AK65: 2.931547287 | AL65: 5.04243288 | AM65: 6.918221364
A66: =ROW() -> 66 | D66: Net Cost of Service | F66: =CoS!F59 -> 857.715599 | G66: =SUMPRODUCT($AI$15:$AM$15,$AI66:$AM66) -> 857.715599 | AI66: =CoS!AI$46 -> 179.1798207 | AJ66: =CoS!AJ$46 -> 197.267867 | AK66: =CoS!AK$46 -> 207.3002756 | AL66: =CoS!AL$46 -> 216.1670716 | AM66: =CoS!AM$46 -> 225.5395996
A67: =ROW() -> 67 | D67: Less:
A68: =ROW() -> 68 | D68: OPEX (Including UAFG) | F68: =CoS!F51 -> 316.488162 | G68: =SUMPRODUCT($AI$15:$AM$15,$AI68:$AM68) -> 316.488162 | AI68: =-AI38 -> 68.79536054 | AJ68: =-AJ38 -> 71.81778045 | AK68: =-AK38 -> 76.09695567 | AL68: =-AL38 -> 79.26161757 | AM68: =-AM38 -> 81.96920307
A69: =ROW() -> 69 | D69: Return on Debt (includes inflationary gain) | F69: =G69 -> 174.7720955 | G69: 174.7720955 | AI69: =AI60 -> 37.58350795 | AJ69: =AJ60 -> 39.83218914 | AK69: =AK60 -> 41.83206931 | AL69: =AL60 -> 43.77707633 | AM69: =AM60 -> 45.78031662
A70: =ROW() -> 70 | D70: Tax Payable | F70: =CoS!F57 -> 20.72057769 | G70: 20.72057769 | AI70: =CoS!AI44 -> 6.716488218 | AJ70: =CoS!AJ44 -> 5.49462132 | AK70: =CoS!AK44 -> 4.530843596 | AL70: =CoS!AL44 -> 3.977354407 | AM70: =CoS!AM44 -> 3.41775187
A71: =ROW() -> 71 | D71: Imputation Credits | F71: =CoS!F58 -> -7.044996414 | G71: -7.044996414 | AI71: =CoS!AI45 -> -2.283605994 | AJ71: =CoS!AJ45 -> -1.868171249 | AK71: =CoS!AK45 -> -1.540486823 | AL71: =CoS!AL45 -> -1.352300499 | AM71: =CoS!AM45 -> -1.162035636
A72: =ROW() -> 72 | D72: Depreciation | F72: =CoS!F52 -> 259.9283211 | G72: 259.9283211 | AI72: =CoS!AI39 -> 49.42221041 | AJ72: =CoS!AJ39 -> 60.53124652 | AK72: =CoS!AK39 -> 63.85783137 | AL72: =CoS!AL39 -> 66.95049416 | AM72: =CoS!AM39 -> 70.92686573
A73: =ROW() -> 73 | D73: Return of Asset Inflationary gain | F73: =CoS!F53 -> -115.301144 | G73: -115.301144 | AI73: =CoS!AI40 -> -24.79469878 | AJ73: =CoS!AJ40 -> -26.27820513 | AK73: =CoS!AK40 -> -27.59757177 | AL73: =CoS!AL40 -> -28.88073733 | AM73: =CoS!AM40 -> -30.20232071
A74: =ROW() -> 74 | D74: Return on Working Capital | F74: =CoS!F56 -> 5.122307889 | G74: 5.122307889 | AI74: =CoS!AI43 -> 0.08032793484 | AJ74: =CoS!AJ43 -> 1.465914328 | AK74: =CoS!AK43 -> 1.524910078 | AL74: =CoS!AL43 -> 1.578355586 | AM74: =CoS!AM43 -> 1.627471303
A75: =ROW() -> 75 | F75: =SUM(F68:F74) -> 654.6853237 | G75: 654.6853237 | AI75: =SUM(AI68:AI74) -> 135.5195903 | AJ75: =SUM(AJ68:AJ74) -> 150.9953754 | AK75: =SUM(AK68:AK74) -> 158.7045514 | AL75: =SUM(AL68:AL74) -> 165.3118602 | AM75: =SUM(AM68:AM74) -> 172.3572522
A76: =ROW() -> 76 | D76: Return on Equity | F76: =F66-F75 -> 203.0302753 | G76: 203.0302753 | AI76: =AI66-AI75 -> 43.66023046 | AJ76: =AJ66-AJ75 -> 46.27249164 | AK76: =AK66-AK75 -> 48.5957242 | AL76: =AL66-AL75 -> 50.85521138 | AM76: =AM66-AM75 -> 53.18234734
A77: =ROW() -> 77 | D77: Expected Return on Equity | F77: =G59 -> 203.0302753 | G77: 203.0302753 | AI77: =AI59 -> 43.66023046 | AJ77: =AJ59 -> 46.27249164 | AK77: =AK59 -> 48.5957242 | AL77: =AL59 -> 50.85521138 | AM77: =AM59 -> 53.18234734
A78: =ROW() -> 78 | D78: Difference (should be 0) | F78: =F76-F77 -> 0 | G78: 0 | AI78: =AI76-AI77 -> 0 | AJ78: 0 | AK78: 0 | AL78: 0 | AM78: 0
A79: =ROW() -> 79
A80: =ROW() -> 80
A81: Equity Raising Costs, Nominal Calculations [m$ nominal]
A82: =ROW() -> 82 | C82: Yield / cost inputs (ERA Rate of Return Guideline, 16 Dec 2013)
A83: =ROW() -> 83 | D83: Dividend imputation/payout ratio | G83: 0.7
A84: =ROW() -> 84 | D84: Benchmark seasoned equity offering (SEO) raising cost | G84: =Input!G1602 -> 0.03
A85: =ROW() -> 85 | D85: Benchmark DRP cost (AER 2010 Victorian DNSP decision) | G85: =Input!G1603 -> 0.01
A86: =ROW() -> 86 | D86: Benchmark DRP take-up | G86: =Input!G1604 -> 0.25
A87: =ROW() -> 87
A88: =ROW() -> 88 | C88: Dividend assessment
A89: =ROW() -> 89 | D89: Tax payable | AI89: =-AI46 -> 6.716488218 | AJ89: 5.49462132 | AK89: 4.530843596 | AL89: 3.977354407 | AM89: 3.41775187
A90: =ROW() -> 90 | D90: Dividends | AI90: =(AI89/WACC!AI$23*(1-WACC!AI$23)*$G$83) -> 10.97026409 | AJ90: =(AJ89/WACC!AJ$23*(1-WACC!AJ$23)*$G$83) -> 8.974548156 | AK90: =(AK89/WACC!AK$23*(1-WACC!AK$23)*$G$83) -> 7.400377873 | AL90: =(AL89/WACC!AL$23*(1-WACC!AL$23)*$G$83) -> 6.496345532 | AM90: =(AM89/WACC!AM$23*(1-WACC!AM$23)*$G$83) -> 5.582328055
A91: =ROW() -> 91 | D91: Dividend re-investment (DRP) | AI91: =AI90*$G$86 -> 2.742566022 | AJ91: 2.243637039 | AK91: 1.850094468 | AL91: 1.624086383 | AM91: 1.395582014
A92: =ROW() -> 92
A93: =ROW() -> 93 | C93: Benchmark Cash Flows
A94: =ROW() -> 94 | D94: Revenue | AI94: =AI36 -> 190.9625724 | AJ94: =AJ36 -> 197.8285508 | AK94: =AK36 -> 204.3687284 | AL94: =AL36 -> 211.1246387 | AM94: =AM36 -> 218.6213782
A95: =ROW() -> 95 | D95: Opex | AI95: =AI38 -> -68.79536054 | AJ95: -71.81778045 | AK95: -76.09695567 | AL95: -79.26161757 | AM95: -81.96920307
A96: =ROW() -> 96 | D96: Interest | AI96: -37.62066781 | AJ96: -40.5103239 | AK96: -42.53749562 | AL96: -44.50722663 | AM96: -46.53318794
A97: =ROW() -> 97 | D97: Tax | AI97: =AI46 -> -6.716488218 | AJ97: =AJ46 -> -5.49462132 | AK97: =AK46 -> -4.530843596 | AL97: =AL46 -> -3.977354407 | AM97: =AM46 -> -3.41775187
A98: =ROW() -> 98 | D98: Internal cash flow | AI98: =SUM(AI94:AI97) -> 77.83005587 | AJ98: =SUM(AJ94:AJ97) -> 80.00582515 | AK98: =SUM(AK94:AK97) -> 81.20343347 | AL98: =SUM(AL94:AL97) -> 83.37844012 | AM98: =SUM(AM94:AM97) -> 86.70123534
A99: =ROW() -> 99 | D99: Dividend | AI99: =-AI90 -> -10.97026409 | AJ99: =-AJ90 -> -8.974548156 | AK99: =-AK90 -> -7.400377873 | AL99: =-AL90 -> -6.496345532 | AM99: =-AM90 -> -5.582328055
A100: =ROW() -> 100 | D100: Dividend reinvestment | AI100: =AI91 -> 2.742566022 | AJ100: =AJ91 -> 2.243637039 | AK100: =AK91 -> 1.850094468 | AL100: =AL91 -> 1.624086383 | AM100: =AM91 -> 1.395582014
A101: =ROW() -> 101 | D101: Retained cash flow | AI101: =SUM(AI98:AI100) -> 69.60235781 | AJ101: =SUM(AJ98:AJ100) -> 73.27491403 | AK101: =SUM(AK98:AK100) -> 75.65315006 | AL101: =SUM(AL98:AL100) -> 78.50618097 | AM101: =SUM(AM98:AM100) -> 82.5144893
A102: =ROW() -> 102
A103: =ROW() -> 103 | C103: Benchmark capex funding
A104: =ROW() -> 104 | D104: Capex | AI104: =(Asset!AI18+Asset!AI19+Asset!AI20)*Input!AI$35 -> 105.2528568 | AJ104: =(Asset!AJ18+Asset!AJ19+Asset!AJ20)*Input!AJ$35 -> 105.95775 | AK104: =(Asset!AK18+Asset!AK19+Asset!AK20)*Input!AK$35 -> 105.9975184 | AL104: =(Asset!AL18+Asset!AL19+Asset!AL20)*Input!AL$35 -> 109.8949407 | AM104: =(Asset!AM18+Asset!AM19+Asset!AM20)*Input!AM$35 -> 110.9314952
A105: =ROW() -> 105 | D105: less Debt Component | AI105: =(AJ20-AI20)*WACC!AI$14 -> 44.34393983 | AJ105: =(AK20-AJ20)*WACC!AJ$14 -> 39.43758971 | AK105: =(AL20-AK20)*WACC!AK$14 -> 38.35549234 | AL105: =(AM20-AL20)*WACC!AL$14 -> 39.50385112 | AM105: =(AN20-AM20)*WACC!AM$14 -> 38.61382259
A106: =ROW() -> 106 | D106: Equity Component | AI106: =AI104-AI105 -> 60.90891694 | AJ106: =AJ104-AJ105 -> 66.52016025 | AK106: =AK104-AK105 -> 67.64202607 | AL106: =AL104-AL105 -> 70.39108956 | AM106: =AM104-AM105 -> 72.31767259
A107: =ROW() -> 107 | D107: Retained cash flows | AI107: =AI101 -> 69.60235781 | AJ107: =AJ101 -> 73.27491403 | AK107: =AK101 -> 75.65315006 | AL107: =AL101 -> 78.50618097 | AM107: =AM101 -> 82.5144893
A108: =ROW() -> 108 | D108: Equity Required (SEO) | AI108: =AI106-AI107 -> -8.693440865 | AJ108: =AJ106-AJ107 -> -6.754753778 | AK108: =AK106-AK107 -> -8.011123995 | AL108: =AL106-AL107 -> -8.115091412 | AM108: =AM106-AM107 -> -10.19681671
A109: =ROW() -> 109
A110: =ROW() -> 110 | C110: Equity raising costs
A111: =ROW() -> 111 | D111: External Equity Raising Costs | AI111: =AI108*$G$84 -> -0.2608032259 | AJ111: =AJ108*$G$84 -> -0.2026426133 | AK111: =AK108*$G$84 -> -0.2403337199 | AL111: =AL108*$G$84 -> -0.2434527424 | AM111: =AM108*$G$84 -> -0.3059045013
A112: =ROW() -> 112 | D112: DRP cost | AI112: =AI91*$G$85 -> 0.02742566022 | AJ112: =AJ91*$G$85 -> 0.02243637039 | AK112: =AK91*$G$85 -> 0.01850094468 | AL112: =AL91*$G$85 -> 0.01624086383 | AM112: =AM91*$G$85 -> 0.01395582014
A113: =ROW() -> 113 | D113: Total Equity Raising Costs | AI113: =SUM(AI111:AI112) -> -0.2333775657 | AJ113: -0.180206243 | AK113: -0.2218327752 | AL113: -0.2272118785 | AM113: -0.2919486811
A114: =ROW() -> 114 | D114: Equity Raising Costs (capitalised and included in RAB)
A115: =ROW() -> 115 | D115: Equity Raising Costs (manual entry)
A116: =ROW() -> 116 | D116: ="Total Equity Raising Costs [Real " & Input!$G$34 & " $M]" -> Total Equity Raising Costs [Real 31/12/2019 $M]
A117: =ROW() -> 117

Sheet Asset
A1: =Main!A1 -> 0
A2: ="Assets Account [Real m$ "&Input!$G$34&"]" -> Assets Account [Real m$ 31/12/2019]
A3: Ref | C3: =COLUMN() -> 3 | D3: =COLUMN() -> 4 | E3: =COLUMN() -> 5 | F3: =COLUMN() -> 6 | G3: =COLUMN() -> 7 | H3: =COLUMN() -> 8 | I3: =COLUMN() -> 9 | J3: =COLUMN() -> 10 | K3: =COLUMN() -> 11 | L3: =COLUMN() -> 12 | M3: =COLUMN() -> 13 | N3: =COLUMN() -> 14 | O3: =COLUMN() -> 15 | P3: =COLUMN() -> 16 | Q3: =COLUMN() -> 17 | R3: =COLUMN() -> 18 | S3: =COLUMN() -> 19 | T3: =COLUMN() -> 20 | W3: =COLUMN() -> 23 | X3: =COLUMN() -> 24 | Y3: =COLUMN() -> 25 | Z3: =COLUMN() -> 26 | AA3: =COLUMN() -> 27 | AD3: =COLUMN() -> 30 | AE3: =COLUMN() -> 31 | AF3: =COLUMN() -> 32 | AG3: =COLUMN() -> 33 | AH3: =COLUMN() -> 34 | AI3: =COLUMN() -> 35 | AJ3: =COLUMN() -> 36 | AK3: =COLUMN() -> 37 | AL3: =COLUMN() -> 38 | AM3: =COLUMN() -> 39
A4: =ROW() -> 4 | J4: Year ending 31 December | O4: Year ending 31 December | T4: Year Ending 30 June | AA4: Year Ending 31 December | AI4: Year Ending 31 December
A5: Regulatory Period | J5: 1 | K5: 1 | L5: 1 | M5: 1 | N5: 1 | O5: 2 | P5: 2 | Q5: 2 | R5: 2 | S5: 2 | T5: 3 | W5: 3 | X5: 3 | Y5: 3 | Z5: 3 | AA5: 4 | AD5: 4 | AE5: 4 | AF5: 4 | AG5: 4 | AH5: 4 | AI5: 4 | AJ5: 4 | AK5: 4 | AL5: 4 | AM5: 4
A6: Year ending | I6: 1999 | J6: 2000 | K6: 2001 | L6: 2002 | M6: 2003 | N6: 2004 | O6: 2005 | P6: 2006 | Q6: 2007 | R6: 2008 | S6: =1+R6 -> 2009 | T6: =1+S6 -> 2010 | W6: =T6+1 -> 2011 | X6: =W6+1 -> 2012 | Y6: 2013 | Z6: 2014 | AA6: 2014 | AD6: =AA6+1 -> 2015 | AE6: 2016 | AF6: 2017 | AG6: 2018 | AH6: 2019 | AI6: =AH6+1 -> 2020 | AJ6: 2021 | AK6: 2022 | AL6: 2023 | AM6: 2024
A7: Months | I7: 1 to 12 | J7: 1 to 12 | K7: 1 to 12 | L7: 1 to 12 | M7: 1 to 12 | N7: 1 to 12 | O7: 1 to 12 | P7: 1 to 12 | Q7: 1 to 12 | R7: 1 to 12 | S7: 1 to 12 | T7: 1 to 6 | W7: 7 to 6 | X7: 7 to 6 | Y7: 7 to 6 | Z7: 7 to 6 | AA7: 7 to 12 | AD7: 1 to 12 | AE7: 1 to 12 | AF7: 1 to 12 | AG7: 1 to 12 | AH7: 1 to 12 | AI7: 1 to 12 | AJ7: 1 to 12 | AK7: 1 to 12 | AL7: 1 to 12 | AM7: 1 to 12
A8: Days | I8: =Input!I8 -> 365 | J8: =Input!J8 -> 366 | K8: =Input!K8 -> 365 | L8: =Input!L8 -> 365 | M8: =Input!M8 -> 365 | N8: =Input!N8 -> 366 | O8: =Input!O8 -> 365 | P8: =Input!P8 -> 365 | Q8: =Input!Q8 -> 365 | R8: =Input!R8 -> 366 | S8: =Input!S8 -> 365 | T8: =Input!T8 -> 181 | W8: =Input!W8 -> 365 | X8: =Input!X8 -> 366 | Y8: =Input!Y8 -> 365 | Z8: =Input!Z8 -> 365 | AA8: =Input!AA8 -> 184 | AD8: =Input!AD8 -> 365 | AE8: =Input!AE8 -> 366 | AF8: =Input!AF8 -> 365 | AG8: =Input!AG8 -> 365 | AH8: =Input!AH8 -> 365 | AI8: =Input!AI8 -> 366 | AJ8: =Input!AJ8 -> 365 | AK8: =Input!AK8 -> 365 | AL8: =Input!AL8 -> 365 | AM8: =Input!AM8 -> 365
A9: Year portion | I9: =Input!I9 -> 1 | J9: =Input!J9 -> 1 | K9: =Input!K9 -> 1 | L9: =Input!L9 -> 1 | M9: =Input!M9 -> 1 | N9: =Input!N9 -> 1 | O9: =Input!O9 -> 1 | P9: =Input!P9 -> 1 | Q9: =Input!Q9 -> 1 | R9: =Input!R9 -> 1 | S9: =Input!S9 -> 1 | T9: =ROUND(Input!T9,2) -> 0.5 | W9: =Input!W9 -> 1 | X9: =Input!X9 -> 1 | Y9: =Input!Y9 -> 1 | Z9: =Input!Z9 -> 1 | AA9: =ROUND(Input!AA9,2) -> 0.5 | AD9: =Input!AD9 -> 1 | AE9: =Input!AE9 -> 1 | AF9: =Input!AF9 -> 1 | AG9: =Input!AG9 -> 1 | AH9: =Input!AH9 -> 1 | AI9: =ROUND(Input!AI9,2) -> 1 | AJ9: =Input!AJ9 -> 1 | AK9: =Input!AK9 -> 1 | AL9: =Input!AL9 -> 1 | AM9: =Input!AM9 -> 1
A10: Financial Parameters
A11: =ROW() -> 11 | C11: Inflation factor | J11: AA1 | O11: AA2 | T11: AA3 | AA11: AA4 | AI11: AA5
A12: =ROW() -> 12 | D12: ="Inflation Factor (convert to real "&Input!$G$34&" $)" -> Inflation Factor (convert to real 31/12/2019 $) | I12: =Input!I$34 -> 1.683346161 | J12: =Input!J$34 -> 1.591037765 | K12: =Input!K$34 -> 1.542860107 | L12: =Input!L$34 -> 1.497514398 | M12: =Input!M$34 -> 1.462907973 | N12: =Input!N$34 -> 1.425960809 | O12: =Input!O$34 -> 1.387139831 | P12: =Input!P$34 -> 1.343429315 | Q12: =Input!Q$34 -> 1.304829847 | R12: =Input!R$34 -> 1.258453365 | S12: =Input!S$34 -> 1.232467602 | T12: =Input!T$34 -> 1.213848103 | W12: =Input!W$34 -> 1.171639139 | X12: =Input!X$34 -> 1.158000324 | Y12: =Input!Y$34 -> 1.130965297 | Z12: =Input!Z$34 -> 1.097858665 | AA12: =Input!AA$34 -> 1.090649461 | AD12: =Input!AD$34 -> 1.072539046 | AE12: =Input!AE$34 -> 1.056938478 | AF12: =Input!AF$34 -> 1.03713856 | AG12: =Input!AG$34 -> 1.0184 | AH12: =Input!AH$34 -> 1 | AI12: =Input!AI$34 -> 0.981932443 | AJ12: =Input!AJ$34 -> 0.9641913227 | AK12: =Input!AK$34 -> 0.9467707411 | AL12: =Input!AL$34 -> 0.9296649068 | AM12: =Input!AM$34 -> 0.9128681331
A13: =ROW() -> 13 | D13: ="Inflation Factor (convert " &Input!$G$34& " $ to nominal $)" -> Inflation Factor (convert 31/12/2019 $ to nominal $) | I13: =Input!I$35 -> 0.5940548791 | J13: =Input!J$35 -> 0.6285205933 | K13: =Input!K$35 -> 0.6481469028 | L13: =Input!L$35 -> 0.6677732122 | M13: =Input!M$35 -> 0.6835699979 | N13: =Input!N$35 -> 0.7012815455 | O13: =Input!O$35 -> 0.7209078549 | P13: =Input!P$35 -> 0.7443636882 | Q13: =Input!Q$35 -> 0.76638345 | R13: =Input!R$35 -> 0.7946261881 | S13: =Input!S$35 -> 0.8113803547 | T13: =Input!T$35 -> 0.823826307 | W13: =Input!W$35 -> 0.8535051164 | X13: =Input!X$35 -> 0.8635576164 | Y13: =Input!Y$35 -> 0.884200428 | Z13: =Input!Z$35 -> 0.9108640595 | AA13: =Input!AA$35 -> 0.9168848796 | AD13: =Input!AD$35 -> 0.9323669882 | AE13: =Input!AE$35 -> 0.9461288626 | AF13: =Input!AF$35 -> 0.9641913227 | AG13: =Input!AG$35 -> 0.981932443 | AH13: =Input!AH$35 -> 1 | AI13: =Input!AI$35 -> 1.0184 | AJ13: =Input!AJ$35 -> 1.03713856 | AK13: =Input!AK$35 -> 1.05622191 | AL13: =Input!AL$35 -> 1.075656393 | AM13: =Input!AM$35 -> 1.09544847
A14: Capital Base
A15: =ROW() -> 15 | C15: Physical Asset Account
A16: =ROW() -> 16 | D16: Opening Value | O16: =N25 -> 947.753979 | P16: =O25 -> 937.7771025 | Q16: 941.0819106 | R16: 944.3945813 | S16: 946.8193552 | T16: =S25 -> 963.6164324 | W16: =T25 -> 984.1685899 | X16: 1000.401249 | Y16: 1011.03176 | Z16: 1063.620085 | AA16: =Z25 -> 1103.790337 | AD16: =AA25 -> 1129.560382 | AE16: 1170.61011 | AF16: 1219.030342 | AG16: 1263.940032 | AH16: 1312.133064 | AI16: =AH25 -> 1347.537977 | AJ16: 1402.3599 | AK16: 1446.159741 | AL16: 1486.056363 | AM16: 1525.980308
A17: =ROW() -> 17 | D17: Adjustment to opening balance (CAPEX over depreciation transferred to ICB assets) | O17: =O284 -> -8.580884225 | P17: 0 | Q17: 0 | R17: 0 | S17: 0 | T17: 0 | W17: 0 | X17: 0 | Y17: 0 | Z17: 0 | AA17: 0 | AD17: 0 | AE17: 0 | AF17: 0 | AG17: 0 | AH17: 0 | AI17: 0 | AJ17: 0 | AK17: 0 | AL17: 0 | AM17: 0
A18: =ROW() -> 18 | D18: Capex | O18: =O49 -> 33.92773012 | P18: =P49 -> 40.87809893 | Q18: 42.96230552 | R18: 43.76219819 | S18: 52.29811085 | T18: 30.40114047 | W18: 45.47035148 | X18: 42.50296237 | Y18: 87.05166805 | Z18: 77.16953292 | AA18: 43.87047393 | AD18: 80.94894931 | AE18: 92.88157737 | AF18: 92.42632801 | AG18: 98.31875477 | AH18: 88.64003083 | AI18: =AI49 -> 103.3511948 | AJ18: 102.1635431 | AK18: 100.3553491 | AL18: 102.1654698 | AM18: 101.2658269
A19: =ROW() -> 19 | D19: Vines (capex) | S19: =S39 -> 0.7146130624
A20: =ROW() -> 20 | D20: West Net (capex) | T20: =T45 -> 3.643676162
A21: =ROW() -> 21 | D21: Redundant Assets & Asset Disposal | O21: =O31+O38+O44+O50 -> 0 | P21: 0 | Q21: 0 | R21: 0 | S21: -5.434463125 | T21: 0 | W21: 0 | X21: 0 | Y21: 0 | Z21: 0 | AA21: -0.04252402058 | AD21: -0.01548359777 | AE21: -0.2030900724 | AF21: -0.2138391263 | AG21: 0 | AH21: 0 | AI21: 0 | AJ21: 0 | AK21: 0 | AL21: 0 | AM21: 0
A22: =ROW() -> 22 | D22: Depreciation | O22: =O30+O37+O43+O51 -> -35.32372245 | P22: -37.57329083 | Q22: -39.6496348 | R22: -41.33742427 | S22: -43.49467855 | T22: -13.49265914 | W22: -29.23769264 | X22: -31.87245103 | Y22: -34.46334343 | Z22: -36.9992802 | AA22: -18.05790495 | AD22: -39.88373813 | AE22: -44.25825557 | AF22: -47.30279899 | AG22: -50.12572244 | AH22: -53.23511763 | AI22: -48.52927181 | AJ22: -58.36370265 | AK22: -60.45872633 | AL22: -62.24152491 | AM22: -64.74687551
A23: =ROW() -> 23 | D23: Tariff variation depreciation
A24: =ROW() -> 24 | D24: Over Depreciation | O24: =O207 -> 0 | P24: 0 | Q24: 0 | R24: 0 | S24: 12.71349494 | T24: 0 | W24: 0 | X24: 0 | Y24: 0 | Z24: 5.551115123e-17 | AA24: 0 | AD24: 0 | AE24: 0 | AF24: 0 | AG24: 0 | AH24: 0 | AI24: 0 | AJ24: 0 | AK24: 0 | AL24: 0 | AM24: 0
A25: =ROW() -> 25 | D25: Closing Value | N25: =N33+N54 -> 947.753979 | O25: =SUM(O16:O24) -> 937.7771025 | P25: 941.0819106 | Q25: 944.3945813 | R25: 946.8193552 | S25: 963.6164324 | T25: 984.1685899 | W25: 1000.401249 | X25: 1011.03176 | Y25: 1063.620085 | Z25: 1103.790337 | AA25: 1129.560382 | AD25: 1170.61011 | AE25: 1219.030342 | AF25: 1263.940032 | AG25: 1312.133064 | AH25: 1347.537977 | AI25: 1402.3599 | AJ25: 1446.159741 | AK25: 1486.056363 | AL25: 1525.980308 | AM25: 1562.49926
A26: Initial Asset, Vines and Westnet
A27: =ROW() -> 27 | C27: ICB Account [m$ 30/6/2014]
A28: =ROW() -> 28 | D28: Opening Value | O28: =N33 -> 769.616457 | P28: 736.1289863 | Q28: 711.2224 | R28: 686.3158136 | S28: 661.4092272 | T28: 635.1894696 | W28: =T33 -> 627.8784975 | X28: 613.2565534 | Y28: 598.6346092 | Z28: 584.012665 | AA28: 569.3907208 | AD28: =AA33 -> 562.0797488 | AE28: 547.4578046 | AF28: 532.8358604 | AG28: 518.2139163 | AH28: 503.5919721 | AI28: 488.9700279 | AJ28: 474.3480838 | AK28: 459.7261396 | AL28: 445.1041954 | AM28: 430.5116864
A29: =ROW() -> 29 | D29: Adjustment to opening balance (CAPEX over depreciation transferred to ICB assets) | O29: =O284 -> -8.580884225 | P29: 0 | Q29: 0 | R29: 0 | S29: 0 | T29: 0 | W29: 0 | X29: 0 | Y29: 0 | Z29: 0 | AA29: 0 | AD29: 0 | AE29: 0 | AF29: 0 | AG29: 0 | AH29: 0 | AI29: 0 | AJ29: 0 | AK29: 0 | AL29: 0 | AM29: 0
A30: =ROW() -> 30 | D30: Depreciation | O30: =O322 -> -24.90658639 | P30: -24.90658639 | Q30: -24.90658639 | R30: -24.90658639 | S30: -24.90658639 | T30: -7.310972084 | W30: -14.62194417 | X30: -14.62194417 | Y30: -14.62194417 | Z30: -14.62194417 | AA30: -7.310972084 | AD30: -14.62194417 | AE30: -14.62194417 | AF30: -14.62194417 | AG30: -14.62194417 | AH30: -14.62194417 | AI30: -14.62194417 | AJ30: -14.62194417 | AK30: -14.62194417 | AL30: -14.59250901 | AM30: -14.45779397
A31: =ROW() -> 31 | D31: Asset Adjustment, Redundant Assets & Asset Disposal | O31: =O341 -> 0 | P31: =P341 -> 0 | Q31: 0 | R31: 0 | S31: -5.434463125 | T31: 0 | W31: 0 | X31: 0 | Y31: 0 | Z31: 0 | AA31: 0 | AD31: 0 | AE31: 0 | AF31: 0 | AG31: 0 | AH31: 0 | AI31: =AI341 -> 0 | AJ31: 0 | AK31: 0 | AL31: 0 | AM31: 0
A32: =ROW() -> 32 | D32: Over depreciation | O32: =O360 -> 0 | P32: 0 | Q32: 0 | R32: 0 | S32: 4.121291923 | T32: 0 | W32: 0 | X32: 0 | Y32: 0 | Z32: 0 | AA32: 0 | AD32: 0 | AE32: 0 | AF32: 0 | AG32: 0 | AH32: 0 | AI32: 0 | AJ32: 0 | AK32: 0 | AL32: 0 | AM32: 0
A33: =ROW() -> 33 | D33: Closing Value | N33: =N379 -> 769.616457 | O33: =SUM(O28:O32) -> 736.1289863 | P33: 711.2224 | Q33: 686.3158136 | R33: 661.4092272 | S33: 635.1894696 | T33: 627.8784975 | W33: 613.2565534 | X33: 598.6346092 | Y33: 584.012665 | Z33: 569.3907208 | AA33: 562.0797488 | AD33: 547.4578046 | AE33: 532.8358604 | AF33: 518.2139163 | AG33: 503.5919721 | AH33: 488.9700279 | AI33: 474.3480838 | AJ33: 459.7261396 | AK33: 445.1041954 | AL33: 430.5116864 | AM33: 416.0538924
A34: =ROW() -> 34 | C34: Vines Asset Account
A35: =ROW() -> 35 | D35: Opening Value | T35: =S39 -> 0.7146130624 | W35: =T39 -> 0.7032465596 | X35: 0.6805135541 | Y35: 0.6577805486 | Z35: 0.6350475432 | AA35: 0.6123145377 | AD35: =AA39 -> 0.6009480349 | AE35: 0.5782150294 | AF35: 0.5554820239 | AG35: 0.5327490184 | AH35: 0.5100160129 | AI35: =AH39 -> 0.4872830075 | AJ35: 0.464550002 | AK35: 0.4418169965 | AL35: 0.419083991 | AM35: 0.3963509855
A36: =ROW() -> 36 | D36: Assets rolled into asset base | S36: =S437 -> 0.7146130624 | T36: 0 | W36: 0 | X36: 0 | Y36: 0 | Z36: 0 | AA36: 0 | AD36: 0 | AE36: 0 | AF36: 0 | AG36: 0 | AH36: 0 | AI36: 0 | AJ36: 0 | AK36: 0 | AL36: 0 | AM36: 0
A37: =ROW() -> 37 | D37: Depreciation | T37: =T456 -> -0.01136650275 | W37: -0.02273300549 | X37: -0.02273300549 | Y37: -0.02273300549 | Z37: -0.02273300549 | AA37: -0.01136650275 | AD37: -0.02273300549 | AE37: -0.02273300549 | AF37: -0.02273300549 | AG37: -0.02273300549 | AH37: -0.02273300549 | AI37: -0.02273300549 | AJ37: -0.02273300549 | AK37: -0.02273300549 | AL37: -0.02273300549 | AM37: -0.02273300549
A38: =ROW() -> 38 | D38: Redundant Assets & Asset Disposal | T38: =T475 -> 0 | W38: 0 | X38: 0 | Y38: 0 | Z38: 0 | AA38: 0 | AD38: 0 | AE38: 0 | AF38: 0 | AG38: 0 | AH38: 0 | AI38: =AI475 -> 0 | AJ38: 0 | AK38: 0 | AL38: 0 | AM38: 0
A39: =ROW() -> 39 | D39: Closing Value (Asset Added as at 31/12/2009) | S39: =SUM(S35:S38) -> 0.7146130624 | T39: 0.7032465596 | W39: 0.6805135541 | X39: 0.6577805486 | Y39: 0.6350475432 | Z39: 0.6123145377 | AA39: 0.6009480349 | AD39: 0.5782150294 | AE39: 0.5554820239 | AF39: 0.5327490184 | AG39: 0.5100160129 | AH39: 0.4872830075 | AI39: 0.464550002 | AJ39: 0.4418169965 | AK39: 0.419083991 | AL39: 0.3963509855 | AM39: 0.37361798
A40: =ROW() -> 40 | C40: West Net Energy Asset Account
A41: =ROW() -> 41 | D41: Opening Value | W41: =T45 -> 3.643676162 | X41: =W45 -> 2.901373964 | Y41: 2.159071765 | Z41: 1.416769566 | AA41: 0.6744673672 | AD41: =AA45 -> 0.496521511 | AE41: 0.2527296378 | AF41: 0.008937764522 | AG41: 6.401129626e-16 | AH41: 6.401129626e-16 | AI41: =AH45 -> 6.401129626e-16 | AJ41: 8.326672685e-16 | AK41: 8.326672685e-16 | AL41: 8.326672685e-16 | AM41: 8.326672685e-16
A42: =ROW() -> 42 | D42: Assets rolled into asset base | T42: =T552 -> 3.643676162 | W42: 0 | X42: 0 | Y42: 0 | Z42: 0 | AA42: 0 | AD42: 0 | AE42: 0 | AF42: 0 | AG42: 0 | AH42: 0 | AI42: 0 | AJ42: 0 | AK42: 0 | AL42: 0 | AM42: 0
A43: =ROW() -> 43 | D43: Depreciation | W43: =W571 -> -0.7423021988 | X43: -0.7423021988 | Y43: -0.7423021988 | Z43: -0.7423021988 | AA43: -0.1779458562 | AD43: -0.2437918732 | AE43: -0.2437918732 | AF43: -0.008937764522 | AG43: 0 | AH43: 0 | AI43: 1.925543058e-16 | AJ43: 0 | AK43: 0 | AL43: 0 | AM43: 0
A44: =ROW() -> 44 | D44: Redundant Assets & Asset Disposal | W44: =W590 -> 0 | X44: 0 | Y44: 0 | Z44: 0 | AA44: 0 | AD44: 0 | AE44: 0 | AF44: 0 | AG44: 0 | AH44: 0 | AI44: =AI590 -> 0 | AJ44: 0 | AK44: 0 | AL44: 0 | AM44: 0
A45: =ROW() -> 45 | D45: Closing Value (Asset Added as at 30/06/2010) | T45: =SUM(T41:T44) -> 3.643676162 | W45: 2.901373964 | X45: 2.159071765 | Y45: 1.416769566 | Z45: 0.6744673672 | AA45: 0.496521511 | AD45: 0.2527296378 | AE45: 0.008937764522 | AF45: 6.401129626e-16 | AG45: 6.401129626e-16 | AH45: 6.401129626e-16 | AI45: 8.326672685e-16 | AJ45: 8.326672685e-16 | AK45: 8.326672685e-16 | AL45: 8.326672685e-16 | AM45: 8.326672685e-16
A46: Capex
A47: =ROW() -> 47 | C47: Capex Account
A48: =ROW() -> 48 | C48: 1 | D48: Opening Value | O48: =N54 -> 178.1375221 | P48: 201.6481161 | Q48: 229.8595106 | R48: 258.0787677 | S48: 285.410128 | T48: 319.1201467 | W48: =T54 -> 343.3509666 | X48: 374.9706048 | Y48: 400.9880955 | Z48: 468.9633995 | AA48: 524.5206316 | AD48: =AA54 -> 557.790961 | AE48: 613.7291577 | AF48: 677.0378584 | AG48: 736.6011633 | AH48: 799.4388728 | AI48: 849.4884632 | AJ48: 918.9550633 | AK48: 977.3995809 | AL48: 1031.940881 | AM48: 1086.480068
A49: =ROW() -> 49 | C49: 2 | D49: Capex | O49: =O648 -> 33.92773012 | P49: =P648 -> 40.87809893 | Q49: 42.96230552 | R49: 43.76219819 | S49: 52.29811085 | T49: 30.40114047 | W49: 45.47035148 | X49: 42.50296237 | Y49: 87.05166805 | Z49: 77.16953292 | AA49: 43.87047393 | AD49: 80.94894931 | AE49: 92.88157737 | AF49: 92.42632801 | AG49: 98.31875477 | AH49: 88.64003083 | AI49: =AI648 -> 103.3511948 | AJ49: 102.1635431 | AK49: 100.3553491 | AL49: 102.1654698 | AM49: 101.2658269
A50: =ROW() -> 50 | C50: 3 | D50: Redundant Assets & Asset Disposal | O50: =O667 -> 0 | P50: 0 | Q50: 0 | R50: 0 | S50: 0 | T50: 0 | W50: 0 | X50: 0 | Y50: 0 | Z50: 0 | AA50: -0.04252402058 | AD50: -0.01548359777 | AE50: -0.2030900724 | AF50: -0.2138391263 | AG50: 0 | AH50: 0 | AI50: 0 | AJ50: 0 | AK50: 0 | AL50: 0 | AM50: 0
A51: =ROW() -> 51 | C51: 4 | D51: Depreciation | O51: =O686 -> -10.41713606 | P51: =P686 -> -12.66670445 | Q51: =Q686 -> -14.74304841 | R51: =R686 -> -16.43083789 | S51: =S686 -> -18.58809217 | T51: =T686+T705 -> -6.170320553 | W51: -13.85071327 | X51: -16.48547166 | Y51: -19.07636406 | Z51: -21.61230082 | AA51: -10.55762051 | AD51: -24.99526908 | AE51: -29.36978653 | AF51: -32.64918405 | AG51: -35.48104526 | AH51: -38.59044045 | AI51: -33.88459463 | AJ51: -43.71902548 | AK51: -45.81404916 | AL51: -47.6262829 | AM51: -50.26634853
A52: =ROW() -> 52 | C52: 5 | D52: Depreciation per tariff variation | O52: =O705 -> 0 | P52: 0 | Q52: 0 | R52: 0 | S52: 0 | T52: 0 | W52: 0 | X52: 0 | Y52: 0 | Z52: -0.01605970722 | AA52: 0 | AD52: 0 | AE52: 0 | AF52: 0 | AG52: 0 | AH52: 0 | AI52: 0 | AJ52: 0 | AK52: 0 | AL52: 0 | AM52: 0 | AS52: 0
A53: =ROW() -> 53 | C53: 6 | D53: Over depreciation | O53: =O724 -> 0 | P53: 0 | Q53: 0 | R53: 0 | S53: 8.592203013 | T53: 0 | W53: 0 | X53: 0 | Y53: 0 | Z53: 5.551115123e-17 | AA53: 0 | AD53: 0 | AE53: 0 | AF53: 0 | AG53: 0 | AH53: 0 | AI53: 0 | AJ53: 0 | AK53: 0 | AL53: 0 | AM53: 0
A54: =ROW() -> 54 | D54: Closing Value | N54: =N743 -> 178.1375221 | O54: =SUM(O48:O51) -> 201.6481161 | P54: 229.8595106 | Q54: 258.0787677 | R54: 285.410128 | S54: 319.1201467 | T54: 343.3509666 | W54: 374.9706048 | X54: 400.9880955 | Y54: 468.9633995 | Z54: 524.5206316 | AA54: 557.790961 | AD54: 613.7291577 | AE54: 677.0378584 | AF54: 736.6011633 | AG54: 799.4388728 | AH54: 849.4884632 | AI54: 918.9550633 | AJ54: 977.3995809 | AK54: 1031.940881 | AL54: 1086.480068 | AM54: 1137.479546
A55: ="Assets Account [m$"&Input!$G$34&"]" -> Assets Account [m$31/12/2019]
A56: Opening Asset Value -- by asset class
A57: =ROW() -> 57 | C57: Opening Value
A58: =ROW() -> 58 | D58: High Pressure Mains - Steel | O58: =N210 -> 242.9641729 | P58: 241.1737488 | Q58: 240.6422438 | R58: 240.1755711 | S58: 241.7969312 | T58: 252.3357331 | W58: =T210 -> 260.7492165 | X58: 261.9918784 | Y58: 262.4395822 | Z58: 282.3266311 | AA58: 284.6119176 | AD58: =AA210 -> 283.7476621 | AE58: 281.0452373 | AF58: 280.3543144 | AG58: 283.9445846 | AH58: 285.6719913 | AI58: =AH210 -> 284.8411199 | AJ58: 298.9678194 | AK58: 300.9284595 | AL58: 305.1952282 | AM58: 319.1009316
A59: =ROW() -> 59 | D59: High Pressure Mains - PE | O59: =N211 -> 0 | P59: =O211 -> 0 | Q59: =P211 -> 0 | R59: =Q211 -> 0 | S59: =R211 -> 0 | T59: 0 | W59: 0 | X59: 0 | Y59: 0 | Z59: 0 | AA59: =Z211 -> 0 | AD59: 1.218385971 | AE59: 2.750438902 | AF59: 3.520258237 | AG59: 3.96841942 | AH59: 4.052123678 | AI59: =AH211 -> 4.008102619 | AJ59: 3.936839527 | AK59: 3.865576436 | AL59: 3.794313345 | AM59: 3.723050254
A60: =ROW() -> 60 | D60: Medium Pressure Mains | O60: =N212 -> 309.8259778 | P60: 303.1306017 | Q60: 296.3029264 | R60: 289.3517358 | S60: 282.2964118 | T60: 276.3490971 | W60: 236.182695 | X60: 230.2033863 | Y60: 224.2240775 | Z60: 218.2447688 | AA60: 212.2654601 | AD60: 209.2758057 | AE60: 203.296497 | AF60: 197.3171882 | AG60: 191.3378795 | AH60: 185.3585707 | AI60: =AH212 -> 179.379262 | AJ60: 173.3999533 | AK60: 167.4206445 | AL60: 161.4413358 | AM60: 155.4620271
A61: =ROW() -> 61 | D61: Medium / Low Pressure Mains | O61: =N213 -> 146.433861 | P61: 152.0347543 | Q61: 158.8774377 | R61: 170.8921487 | S61: 180.9509022 | T61: 187.8036384 | W61: 227.6929894 | X61: 233.0439517 | Y61: 239.1711394 | Z61: 257.6191887 | AA61: 269.4083918 | AD61: 280.0403043 | AE61: 308.29243 | AF61: 335.359855 | AG61: 361.3104834 | AH61: 386.7761384 | AI61: =AH213 -> 409.7255548 | AJ61: 431.8261553 | AK61: 456.8731943 | AL61: 481.3180559 | AM61: 504.854852
A62: =ROW() -> 62 | D62: Low Pressure Mains | O62: =N214 -> 39.4157707 | P62: 37.14422677 | Q62: 35.71560266 | R62: 34.28697856 | S62: 32.85835445 | T62: 31.42973034 | W62: 30.71541829 | X62: 29.28679418 | Y62: 27.85817008 | Z62: 26.42954597 | AA62: 25.00092186 | AD62: 24.28660981 | AE62: 22.8579857 | AF62: 21.4293616 | AG62: 20.00073749 | AH62: 18.57211338 | AI62: =AH214 -> 17.14348928 | AJ62: 15.71486517 | AK62: 14.28624107 | AL62: 12.85761696 | AM62: 11.42899285
A63: =ROW() -> 63 | D63: Regulators | O63: =N215 -> 13.78720711 | P63: 13.29429394 | Q63: 13.64324993 | R63: 13.81181233 | S63: 13.40075806 | T63: 13.69872518 | W63: 13.64953528 | X63: 13.19427907 | Y63: 12.96861938 | Z63: 13.59026187 | AA63: 13.55621039 | AD63: 14.73807442 | AE63: 16.80180915 | AF63: 20.44276788 | AG63: 24.81100789 | AH63: 25.95335241 | AI63: =AH215 -> 25.17820501 | AJ63: 25.3624096 | AK63: 24.67530169 | AL63: 24.66843128 | AM63: 23.78933555
A64: =ROW() -> 64 | D64: Secondary Gate Stations | O64: =N216 -> 2.619602639 | P64: 2.424870629 | Q64: 2.289883869 | R64: 2.154630389 | S64: 2.034610067 | T64: 3.943993904 | W64: 5.897031082 | X64: 5.859156495 | Y64: 5.867089332 | Z64: 5.610461952 | AA64: 5.350087114 | AD64: 5.234821433 | AE64: 5.011335474 | AF64: 4.763150311 | AG64: 4.712735605 | AH64: 6.305665945 | AI64: =AH216 -> 11.17689596 | AJ64: 12.38718498 | AK64: 19.37301144 | AL64: 26.02747479 | AM64: 25.25692841
A65: =ROW() -> 65 | D65: Buildings | O65: =N217 -> 2.321279463 | P65: 2.192127977 | Q65: 2.062516696 | R65: 1.98393417 | S65: 1.997401521 | T65: 0.8244185984 | W65: 0.9482084034 | X65: 2.172282456 | Y65: 2.90237993 | Z65: 7.439990618 | AA65: 17.60192505 | AD65: 17.59751436 | AE65: 17.57567317 | AF65: 17.46082156 | AG65: 18.07808728 | AH65: 27.66197415 | AI65: =AH217 -> 30.95035599 | AJ65: 31.62622213 | AK65: 31.00123363 | AL65: 30.31354636 | AM65: 29.40989205
A66: =ROW() -> 66 | D66: Meter and Services Pipes | O66: =N218 -> 153.1319794 | P66: 161.3940023 | Q66: 172.5997823 | R66: 179.644612 | S66: 183.7214316 | T66: 188.6667103 | W66: 194.5769043 | X66: 207.8584492 | Y66: 217.6225132 | Z66: 228.7309998 | AA66: 248.7294804 | AD66: 260.634175 | AE66: 279.5043894 | AF66: 297.7367626 | AG66: 312.297809 | AH66: 327.0124162 | AI66: =AH218 -> 343.4776512 | AJ66: 357.3391087 | AK66: 369.5833868 | AL66: 380.9406056 | AM66: 391.4224035
A67: =ROW() -> 67 | D67: Equipment & Vehicles | O67: =N219 -> 3.556655504 | P67: -4.121291923 | Q67: -4.121291923 | R67: -4.121291923 | S67: -4.121291923 | T67: 0 | W67: 3.501493843 | X67: 3.58552042 | Y67: 4.105975336 | Z67: 7.808974428 | AA67: 12.61793678 | AD67: 12.20970683 | AE67: 11.87021978 | AF67: 11.00444583 | AG67: 10.39538978 | AH67: 11.46640904 | AI67: =AH219 -> 10.17827766 | AJ67: 9.09692178 | AK67: 7.967197137 | AL67: 6.958579175 | AM67: 6.187016801
